Workbook

Sheet LDC Info
AA3: Algoma Power Inc.
AA4: Atikokan Hydro Inc.
AA5: Attawapiskat Power Corporation
AA6: Bluewater Power Distribution Corp.
AA7: Brant County Power
AA8: Brantford Power Inc.
AA9: Burlington Hydro Inc.
AA10: Cambridge and North Dumfries Hydro
AA11: Canadian Niagara Power Inc. – Eastern Ontario Power/Fort Erie/Port Colborne
AA12: Centre Wellington Hydro Ltd.
N13: Version 1.1 | AA13: Chapleau Public Utilities Corporation
D14: Utility Name | E14: Kitchener-Wilmot Hydro Inc. | AA14: COLLUS Power Corp.
AA15: Cooperative Hydro Embrun Inc.
D16: Service Territory | AA16: E.L.K. Energy Inc.
AA17: Enersource Hydro Mississauga Inc.
D18: Assigned EB Number | E18: EB-2013-0147 | AA18: Entegrus Powerlines Inc.
AA19: ENWIN Utilities Ltd.
D20: Name of Contact and Title | E20: Margaret Nanninga, Vice-President Finance | AA20: Erie Thames Powerlines Corp.
AA21: Espanola Regional Hydro Distribution Corporation
D22: Phone Number | E22: 519-749-6177 | AA22: Essex Powerlines Corporation
AA23: Festival Hydro Inc.
D24: Email Address | E24: mnanninga@kwhydro.on.ca | AA24: Fort Albany Power Corporation
AA25: Fort Frances Power Corporation
D26: Bridge Year | E26: 2013 | AA26: Greater Sudbury Hydro Inc.
AA27: Grimsby Power Inc.
D28: Test Year | E28: 2013 | AA28: Guelph Hydro Electric Systems Inc.
AA29: Haldimand County Hydro Inc.
D30: Last Rebasing Year | E30: 2010 | AA30: Guelph Hydro Electric Systems Inc.
AA31: Halton Hills Hydro Inc.
B32: Notes | AA32: Hearst Power Distribution Co. Ltd.
AA33: Horizon Utilities Corporation
C34: Pale green cells represent input cells. | AA34: Hydro 2000 Inc.
AA35: Hydro Hawkesbury Inc.
C36: Pale blue cells represent drop-down lists. The applicant should select the appropriate item from the drop-down list. | AA36: Hydro One Brampton Networks Inc.
AA37: Hydro One Networks Inc.
C38: White cells contain fixed values, automatically generated values or formulae. | AA38: Hydro One Remote Communities Inc.
AA39: Hydro Ottawa Limited
AA40: Innisfil Hydro Dist. Systems Limited
AA41: Kashechewan Power Corporation
AA42: Kenora Hydro Electric Corporation Ltd.
AA43: Kingston Hydro Corporation
AA44: Kitchener-Wilmot Hydro Inc.
AA45: Lakefront Utilities Inc.
AA46: Lakeland Power Distribution Ltd.
AA47: London Hydro Inc.
AA48: Midland Power Utility Corporation
AA49: Milton Hydro Distribution Inc.
AA50: Newmarket – Tay Power Distribution Ltd.
AA51: Niagara Peninsula Energy Inc.
AA52: Niagara-on-the-Lake Hydro Inc.
AA53: Norfolk Power Distribution Ltd.
AA54: North Bay Hydro Distribution Limited
AA55: Northern Ontario Wires Inc.
AA56: Oakville Hydro Distribution Inc.
AA57: Orangeville Hydro Limited
AA58: Orillia Power Distribution Corp.
AA59: Oshawa PUC Networks Inc.
AA60: Ottawa River Power Corporation
AA61: Parry Sound Power Corporation
AA62: Peterborough Distribution Inc.
AA63: PowerStream Inc.
AA64: PUC Distribution Inc.
AA65: Renfrew Hydro Inc.
AA66: Rideau St. Lawrence Distribution Inc.
AA67: St. Thomas Energy Inc.
AA68: Sioux Lookout Hydro Inc.
AA69: Thunder Bay Hydro Electricity Distribution
AA70: Tillsonburg Hydro Inc.
AA71: Toronto Hydro-Electric System Limited
AA72: Veridian Connections Inc.
AA73: Wasaga Distribution Inc.
AA74: Waterloo North Hydro Inc.
AA75: Welland Hydro Electric System Corp.
AA76: Wellington North Power Inc.
AA77: West Coast Huron Energy Inc.
AA78: Westario Power Inc.
AA79: Whitby Hydro Electric Corporation
AA80: Woodstock Hydro Services Inc.

Sheet Index
A15: 1 | B15: LDC Information Sheet | E15: 19 | F15: Appendix 2-H OM&A Detailed Analysis
A16: 2 | B16: Index | E16: 20 | F16: Appendix 2-I OM&A Summary Analysis
A17: 3 | B17: Appendix 2-A Capital Projects | E17: 21 | F17: Appendix 2-J OM&A Cost Drivers
A18: 4 | B18: Appendix 2-B Fixed Asset Continuity | E18: 22 | F18: Appendix 2-K Employee Costs
A19: 5 | B19: Appendix 2-CA CGAAP Depreciation Expense 2011 | E19: 23 | F19: Appendix 2-L OM&A per Cust FTEE
A20: 6 | B20: Appendix 2-CB MIFRS Depreciation Expense 2011 | E20: 24 | F20: Appendix 2-M Regulatory Costs
A21: 7 | B21: Appendix 2-CC MIFRS Depreciation Expense 2012 | E21: 25 | F21: Appendix 2-N Corp Cost Allocation
A22: 8 | B22: Appendix 2-CD MIFRS Depreciation Expense 2013 | E22: 26 | F22: Appendix 2-OA Capital Structure and Cost of Capital
A23: 9 | B23: Appendix 2-CE CGAAP Depreciation Expense 2011 | E23: 27 | F23: Appendix 2-OB Debt Instruments
A24: 10 | B24: Appendix 2-CF CGAAP Depreciation Expense 2012 | E24: 28 | F24: Appendix 2-P Cost Allocation
A25: 11 | B25: Appendix 2-CG MIFRS Depreciation Expense 2012 | E25: 29 | F25: Appendix 2-Q Cost of Service Embedded Distributor
A26: 12 | B26: Appendix 2-CH MIFRS Depreciation Expense 2013 | E26: 30 | F26: Appendix 2-R Loss Factors
A27: 13 | B27: Appendix 2-CI Alternative Accounting Standards Depreciation Expense | E27: 31 | F27: Appendix 2-S Stranded Meters
A28: 14 | B28: Appendix 2-D Overhead | E28: 32 | F28: Appendix 2-T 1592 Tax Variance
A29: 15 | B29: Appendix 2-EA PP&E Deferral Account - 2012 IFRS Adopters | E29: 33 | F29: Appendix 2-U IFRS Transition Costs
A30: 16 | B30: Appendix 2-EB PP&E Deferral Account - 2013 IFRS Adopters | E30: 34 | F30: Appendix 2-V Rev Reconciliation
A31: 17 | B31: Appendix 2-F Other Operating Revenue | E31: 35 | F31: Appendix 2-W Bill Impacts
A32: 18 | B32: Appendix 2-G Detailed OM&A Expenses | E32: 36 | F32: Appendix 2-X CoS Flowchart

Sheet App.2-A_Capital Projects
G1: File Number: | H1: EB-2013-0147
G2: Exhibit:
G3: Tab:
G4: Schedule:
G5: Page:
G7: Date:
A9: Appendix 2-A
A10: Capital Projects Table
A13: Projects | B13: 2008 | C13: 2009 | D13: 2010 | E13: 2011 | F13: 2012 | G13: 2013 Bridge Year | H13: 2014 Test Year
A14: Reporting Basis | B14: CGAAP | C14: CGAAP | D14: CGAAP | E14: CGAAP | F14: CGAAP | G14: MIFRS | H14: MIFRS
A15: Commercial Services
A16: 1855 | B16: 537847.49 | C16: 539580.46 | D16: 721043.76 | E16: 576677.3 | F16: 314847.07 | G16: 350000 | H16: 350000
A17: Sub-Total | B17: =SUM(B16:B16) -> 537847.49 | C17: 539580.46 | D17: 721043.76 | E17: 576677.3 | F17: 314847.07 | G17: 350000 | H17: 350000
A18: Rbld-Front/South/Main,ND
A19: 1830 | C19: 33694.98
A20: 1835 | C20: 82037.14
A21: 1850 | C21: 29923.1
A22: 1855 | C22: 38289.23
A23: Sub-Total | B23: =SUM(B19:B22) -> 0 | C23: 183944.45 | D23: 0 | E23: 0 | F23: 0 | G23: 0 | H23: 0
A24: Subd-Nithview Heights
A25: 1840 | C25: 27584.51 | D25: 58164.78
A26: 1845 | C26: 8457.72 | D26: 91828.24
A27: 1850 | C27: 37021.01 | D27: 9739.65
A28: 1855 | C28: 23582.16 | D28: 84790.39
A29: Sub-Total | B29: =SUM(B25:B28) -> 0 | C29: 96645.4 | D29: 244523.06 | E29: 0 | F29: 0 | G29: 0 | H29: 0
A30: 4TS-P&C Reconstruction
A31: 1806 | C31: 32917.88
A32: 1809 | B32: 323.4
A33: 1815 | C33: 1053959.26 | D33: 16680.2
A34: Sub-Total | B34: =SUM(B31:B33) -> 323.4 | C34: 1086877.14 | D34: 16680.2 | E34: 0 | F34: 0 | G34: 0 | H34: 0
A35: Rbld-Victoria to Queen St
A36: 1840 | B36: 185960.42
A37: Sub-Total | B37: =SUM(B36:B36) -> 185960.42 | C37: 0 | D37: 0 | E37: 0 | F37: 0 | G37: 0 | H37: 0
A38: Rbld-East Ave,Krug-Weber
A39: 1830 | C39: 95089.02 | D39: 8062.23
A40: 1835 | C40: 157167.67 | D40: 62438.21
A41: 1850 | C41: 28377.84 | D41: 23455.75
A42: 1855 | C42: 18168.13 | D42: 19524.14
A43: Sub-Total | B43: =SUM(B39:B42) -> 0 | C43: 298802.66 | D43: 113480.33 | E43: 0 | F43: 0 | G43: 0 | H43: 0
A44: Rbld-Erbs Rd-Sandhills-Twp 16A
A45: 1830 | B45: 173950.32
A46: 1835 | B46: 185931.19 | C46: -1963.5
A47: 1850 | B47: 10924.61
A48: 1855 | B48: 3386.75
A49: Sub-Total | B49: =SUM(B45:B48) -> 374192.87 | C49: -1963.5 | D49: 0 | E49: 0 | F49: 0 | G49: 0 | H49: 0
A50: Rbld-Joseph St-Phase 2
A51: 1830 | B51: -4169.2
A52: 1835 | B52: 1277.22
A53: 1840 | B53: 317520.81
A54: 1845 | B54: 38828.1
A55: 1855 | B55: 6334.29
A56: Sub-Total | B56: =SUM(B51:B55) -> 359791.22 | C56: 0 | D56: 0 | E56: 0 | F56: 0 | G56: 0 | H56: 0
A57: Rbld-Old Huron Road
A58: 1840 | B58: 46552.27 | C58: 4267.35
A59: 1845 | B59: 41580.02
A60: 1850 | B60: 29473.43
A61: 1855 | B61: 59863.54
A62: Sub-Total | B62: =SUM(B58:B61) -> 177469.26 | C62: 4267.35 | D62: 0 | E62: 0 | F62: 0 | G62: 0 | H62: 0
A63: Subd-Chicopee,S2 P1
A64: 1840 | B64: 64368.5
A65: 1845 | B65: 66092.59
A66: 1850 | B66: 47589.78
A67: 1855 | B67: 114622.11
A68: Sub-Total | B68: =SUM(B64:B67) -> 292672.98 | C68: 0 | D68: 0 | E68: 0 | F68: 0 | G68: 0 | H68: 0
A69: Subd-Eby Estates,P1
A70: 1840 | B70: 158923.54
A71: 1845 | B71: 125117.17
A72: 1850 | B72: 133723.88
A73: 1855 | B73: 173148.41
A74: Sub-Total | B74: =SUM(B70:B73) -> 590913 | C74: 0 | D74: 0 | E74: 0 | F74: 0 | G74: 0 | H74: 0
A75: Subd-Baden Village 15 & 16
A76: 1840 | B76: 40374.44
A77: 1845 | B77: 82924.61 | C77: 1042.63
A78: 1850 | B78: 54369.34 | C78: 881.83
A79: 1855 | B79: 88543.85
A80: Sub-Total | B80: =SUM(B76:B79) -> 266212.24 | C80: 1924.46 | D80: 0 | E80: 0 | F80: 0 | G80: 0 | H80: 0
A81: Subd-Doon Creek
A82: 1840 | C82: 219358.03 | D82: 16826.99
A83: 1845 | C83: 114427.2 | D83: 57361.2
A84: 1850 | C84: 114881.15 | D84: 10515.2
A85: 1855 | C85: 246958.31 | D85: 18708.97
A86: Sub-Total | B86: =SUM(B82:B85) -> 0 | C86: 695624.69 | D86: 103412.36 | E86: 0 | F86: 0 | G86: 0 | H86: 0
A87: Subd-Topper Woods South S1
A88: 1840 | E88: 32679.61 | F88: 52655.9
A89: 1845 | E89: 1479.57 | F89: 55241.63
A90: 1850 | E90: 42703.81 | F90: 11024.1
A91: 1855 | E91: 36618.76 | F91: 74344.22
A92: Sub-Total | B92: =SUM(B88:B91) -> 0 | C92: 0 | D92: 0 | E92: 113481.75 | F92: 193265.85 | G92: 0 | H92: 0
A93: Subd-Huron Village 8A, 9 & 10
A94: 1840 | C94: 98743.96
A95: 1845 | C95: 124747.79 | D95: 11880.1
A96: 1850 | C96: 79368.86
A97: 1855 | C97: 217049 | D97: 6272.66
A98: Sub-Total | B98: =SUM(B94:B97) -> 0 | C98: 519909.61 | D98: 18152.76 | E98: 0 | F98: 0 | G98: 0 | H98: 0
A99: Subd-921 Glasgow St
A100: 1830 | E100: 18001.43
A101: 1840 | E101: 91820.74
A102: 1845 | E102: 66210.84
A103: 1850 | E103: 23788.76
A104: 1855 | E104: 99207.57
A105: Sub-Total | B105: =SUM(B100:B104) -> 0 | C105: 0 | D105: 0 | E105: 299029.34 | F105: 0 | G105: 0 | H105: 0
A106: Subd-Eby Stage 2 & 3
A107: 1840 | D107: 59153.14 | E107: 24290.12
A108: 1845 | D108: 40196.11 | E108: 31723.93
A109: 1850 | D109: 74193.55 | E109: 4103.44
A110: 1855 | D110: 74133.11 | E110: 26730.66
A111: Sub-Total | B111: =SUM(B107:B110) -> 0 | C111: 0 | D111: 247675.91 | E111: 86848.15 | F111: 0 | G111: 0 | H111: 0
A112: Subd-Grand River South,S4
A113: 1840 | B113: 25316.94 | C113: 30061.59
A114: 1845 | B114: 8706.89 | C114: 42860.32
A115: 1850 | B115: 35702.34 | C115: 5070.52
A116: 1855 | B116: 86082.75 | C116: 10878.9
A117: Sub-Total | B117: =SUM(B113:B116) -> 155808.92 | C117: 88871.33 | D117: 0 | E117: 0 | F117: 0 | G117: 0 | H117: 0
A118: Robert Ferrie Drive
A119: 1830 | D119: 143359.93
A120: 1835 | D120: 52439.75
A121: Sub-Total | B121: =SUM(B119:B120) -> 0 | C121: 0 | D121: 195799.68 | E121: 0 | F121: 0 | G121: 0 | H121: 0
A122: Rbld-Queen St S
A123: 1830 | C123: 104122.8
A124: 1835 | C124: 109984.61
A125: 1845 | C125: 9568.16
A126: 1850 | C126: 17132.26
A127: 1855 | C127: 79613.24
A128: Sub-Total | B128: =SUM(B123:B127) -> 0 | C128: 320421.07 | D128: 0 | E128: 0 | F128: 0 | G128: 0 | H128: 0
A129: Rbld-Erbs Rd,Twp 16A-St.Agatha
A130: 1830 | B130: 39528.44
A131: 1835 | B131: 167284.5 | C131: -2180.08
A132: 1850 | B132: 9690.04
A133: 1855 | B133: 9224.89
A134: Sub-Total | B134: =SUM(B130:B133) -> 225727.87 | C134: -2180.08 | D134: 0 | E134: 0 | F134: 0 | G134: 0 | H134: 0
A135: Rbld-Doon Valley Drive
A136: 1830 | B136: 169653.05
A137: 1835 | B137: 157765.05
A138: 1850 | B138: 18408.87
A139: 1855 | B139: 57508.56
A140: Sub-Total | B140: =SUM(B136:B139) -> 403335.53 | C140: 0 | D140: 0 | E140: 0 | F140: 0 | G140: 0 | H140: 0
A141: 2nd Feeder To Bridgeport
A142: 1830 | B142: 96335.11
A143: 1835 | B143: 54462.39
A144: 1840 | B144: 43592.61
A145: 1845 | B145: 58435.23
A146: 1850 | B146: 2828.41
A147: Sub-Total | B147: =SUM(B142:B146) -> 255653.75 | C147: 0 | D147: 0 | E147: 0 | F147: 0 | G147: 0 | H147: 0
A148: Retention Load Transfer
A149: 1830 | B149: 118927.33
A150: 1835 | B150: 84865.04
A151: 1850 | B151: 4998.58
A152: 1855 | B152: 5353.61
A153: Sub-Total | B153: =SUM(B149:B152) -> 214144.56 | C153: 0 | D153: 0 | E153: 0 | F153: 0 | G153: 0 | H153: 0
A154: Replace Revenue Metering
A155: 1815 | B155: 279052.99 | C155: 3589.15 | D155: 139.16
A156: Sub-Total | B156: =SUM(B155:B155) -> 279052.99 | C156: 3589.15 | D156: 139.16 | E156: 0 | F156: 0 | G156: 0 | H156: 0
A157: 5TS-Upgrades & Modifications
A158: 1815 | B158: 286039.91
A159: Sub-Total | B159: =SUM(B158:B158) -> 286039.91 | C159: 0 | D159: 0 | E159: 0 | F159: 0 | G159: 0 | H159: 0
A160: 9TS-Design & Construction
A161: 1806 | C161: 642580.22 | D161: 14403.95
A162: 1815 | C162: 2260769.29 | D162: 5704112.07 | E162: 205801.79 | F162: 2287.46
A163: 1840 | C163: 441104.89 | D163: 7839.92
A164: 1845 | C164: 108495.47 | D164: 641859.73 | E164: 5302.17
A165: 1850 | D165: 12101.61 | E165: 17018.46
A166: Sub-Total | B166: =SUM(B161:B165) -> 0 | C166: 3452949.87 | D166: 6380317.28 | E166: 228122.42 | F166: 2287.46 | G166: 0 | H166: 0
A167: Rbld-Wilmot Ctr Rd
A168: 1830 | B168: 64681.4
A169: 1835 | B169: 141371.41
A170: 1840 | B170: 29465.12
A171: 1850 | B171: 3891.35
A172: 1855 | B172: 15782.76
A173: Sub-Total | B173: =SUM(B168:B172) -> 255192.04 | C173: 0 | D173: 0 | E173: 0 | F173: 0 | G173: 0 | H173: 0
A174: Rbld-Foundry St,BA
A175: 1830 | C175: 15807.05 | D175: 118473.33
A176: 1835 | D176: 174554.58
A177: 1850 | D177: 2733.61
A178: 1855 | D178: 1018.7
A179: Sub-Total | B179: =SUM(B175:B178) -> 0 | C179: 15807.05 | D179: 296780.22 | E179: 0 | F179: 0 | G179: 0 | H179: 0
A180: Rbld-Pioneer/Green Valley
A181: 1830 | B181: 222902.43 | C181: 16427.59
A182: 1835 | B182: 146674.38 | C182: 8087.43
A183: 1845 | B183: 44954.86
A184: 1850 | B184: 1319.32
A185: 1855 | B185: 54989.4
A186: Sub-Total | B186: =SUM(B181:B185) -> 470840.39 | C186: 24515.02 | D186: 0 | E186: 0 | F186: 0 | G186: 0 | H186: 0
A187: Rbld-Patricia Ave-In Front of KWH
A188: 1830 | D188: 70265.7
A189: 1835 | D189: 79700.9
A190: 1850 | D190: 6880.07
A191: 1855 | D191: 23931.57
A192: Sub-Total | B192: =SUM(B188:B191) -> 0 | C192: 0 | D192: 180778.24 | E192: 0 | F192: 0 | G192: 0 | H192: 0
A193: Rbld-Cherry-Walnut/IronHorseTrl
A194: 1830 | D194: 68463.1
A195: 1835 | D195: 88930.08
A196: 1850 | D196: 14791.02
A197: 1855 | D197: 18925.12
A198: Sub-Total | B198: =SUM(B194:B197) -> 0 | C198: 0 | D198: 191109.32 | E198: 0 | F198: 0 | G198: 0 | H198: 0
A199: Rbld-Erbs Rd,Lot 15/16-Sandhills
A200: 1830 | B200: 132735.16
A201: 1835 | B201: 108768.3 | C201: -1605.73
A202: 1850 | B202: 4917.88
A203: 1855 | B203: 12230.71
A205: Sub-Total | B205: =SUM(B200:B204) -> 258652.05 | C205: -1605.73 | D205: 0 | E205: 0 | F205: 0 | G205: 0 | H205: 0
... 403 more rows

Sheet App.2-B_FA Continuity 2009 GAAP
M1: File Number: | N1: ='LDC Info'!$E$18 -> EB-2013-0147
M2: Exhibit:
M3: Tab:
M4: Schedule:
M5: Page:
M7: Date:
A9: Appendix 2-B
A10: Fixed Asset Continuity Schedule
F12: Year | G12: 2009
E14: Cost | K14: Accumulated Depreciation
A15: CCA Class | B15: OEB | C15: Description | D15: Depreciation Rate | E15: Opening Balance | F15: Additions | G15: Disposals | H15: Closing Balance | J15: Opening Balance | K15: Additions | L15: Disposals | M15: Closing Balance | N15: Net Book Value
A16: 12 | B16: 1611 | C16: Computer Software (Formally known as Account 1925) | E16: 2360459 | F16: 92800.58 | H16: =E16+F16+G16 -> 2453259.58 | J16: -1650178.92 | K16: -227327.38 | M16: =J16+K16+L16 -> -1877506.3 | N16: =H16+M16 -> 575753.28
A17: CEC | B17: 1612 | C17: Land Rights (Formally known as Account 1906) | E17: 265447 | H17: =E17+F17+G17 -> 265447 | J17: -244610 | K17: -2653 | M17: =J17+K17+L17 -> -247263 | N17: =H17+M17 -> 18184
A18: N/A | B18: 1805 | C18: Land | E18: 2331738 | F18: 1434 | H18: =E18+F18+G18 -> 2333172 | M18: =J18+K18+L18 -> 0 | N18: =H18+M18 -> 2333172
A19: 47 | B19: 1808 | C19: Buildings | E19: 6227536 | F19: 102357 | H19: =E19+F19+G19 -> 6329893 | J19: -1561369 | K19: -120848 | M19: =J19+K19+L19 -> -1682217 | N19: =H19+M19 -> 4647676
A20: 13 | B20: 1810 | C20: Leasehold Improvements | H20: 0 | M20: 0 | N20: 0
A21: 47 | B21: 1815 | C21: Transformer Station Equipment >50 kV | E21: 38712090 | F21: 2251300.87 | H21: 40963390.87 | J21: -13689711.77 | K21: -984463.12 | M21: -14674174.89 | N21: 26289215.98
A22: 47 | B22: 1820 | C22: Distribution Station Equipment <50 kV | E22: 2853105 | H22: 2853105 | I22: -1965929 | J22: -1733558.44 | K22: -77456.79 | M22: -1811015.23 | N22: 1042089.77
A23: 47 | B23: 1825 | C23: Storage Battery Equipment | H23: 0 | J23: 0 | K23: 0 | M23: 0 | N23: 0
A24: 47 | B24: 1830 | C24: Poles, Towers & Fixtures | E24: 25851567 | F24: 1473318.89 | G24: -505439 | H24: 26819446.89 | J24: -10871392.57 | K24: -1092997.85 | L24: 505438.54 | M24: -11458951.88 | N24: 15360495.01
A25: 47 | B25: 1835 | C25: Overhead Conductors & Devices | E25: 29774758 | F25: 1350817.36 | G25: -697480 | H25: 30428095.36 | J25: -14001766.79 | K25: -1245019.4 | L25: 697479.85 | M25: -14549306.34 | N25: 15878789.02
A26: 47 | B26: 1840 | C26: Underground Conduit | E26: 20010044 | F26: 817650.39 | H26: 20827694.39 | J26: -8096264.2 | K26: -818962.83 | M26: -8915227.03 | N26: 11912467.36
A27: 47 | B27: 1845 | C27: Underground Conductors & Devices | E27: 35933596 | F27: 560777.59 | H27: 36494373.59 | J27: -17898677.19 | K27: -1424663.94 | M27: -19323341.13 | N27: 17171032.46
A28: 47 | B28: 1850 | C28: Line Transformers | E28: 48710018 | F28: 1870667.66 | G28: -389183 | H28: 50191502.66 | J28: -23857364.04 | K28: -2000230.48 | L28: 389182.6 | M28: -25468411.92 | N28: 24723090.74
A29: 47 | B29: 1855 | C29: Services (Overhead & Underground) | E29: 36788796 | F29: 1969923.36 | G29: -63845 | H29: 38694874.36 | J29: -14275083.17 | K29: -1529116.3 | L29: 63844.87 | M29: -15740354.6 | N29: 22954519.76
A30: 47 | B30: 1860 | C30: Meters | E30: 11606960 | F30: 441558.12 | H30: 12048518.12 | J30: -5953615.69 | K30: -473209.07 | M30: -6426824.76 | N30: 5621693.36
A31: 47 | B31: 1860 | C31: Meters (Smart Meters) | H31: 0 | J31: 0 | K31: 0 | M31: 0 | N31: 0
A32: N/A | B32: 1905 | C32: Land | E32: 1395300 | H32: 1395300 | J32: 0 | K32: 0 | M32: 0 | N32: 1395300
A33: 47 | B33: 1908 | C33: Buildings & Fixtures | E33: 9369791 | F33: 59842 | H33: 9429633 | J33: -2896572.67 | K33: -167367.3 | M33: -3063939.97 | N33: 6365693.03
A34: 13 | B34: 1910 | C34: Leasehold Improvements | H34: 0 | J34: 0 | K34: 0 | M34: 0 | N34: 0
A35: 8 | B35: 1915 | C35: Office Furniture & Equipment (10 years) | E35: 969240 | F35: 146149 | G35: -98312.4 | H35: 1017076.6 | J35: -683091.45 | K35: -56627.37 | L35: 98312 | M35: -641406.82 | N35: 375669.78
A36: 8 | B36: 1915 | C36: Office Furniture & Equipment (5 years) | H36: 0 | J36: -1582538.53 | K36: -223526.53 | M36: -1806065.06 | N36: -1806065.06
A37: 10 | B37: 1920 | C37: Computer Equipment - Hardware | E37: 2179346 | F37: 93553.31 | H37: 2272899.31 | M37: 0 | N37: 2272899.31
A38: 45 | B38: 1920 | C38: Computer Equip.-Hardware(Post Mar. 22/04) | E38: 0 | F38: 0 | H38: 0 | M38: 0 | N38: 0
A39: 45.1 | B39: 1920 | C39: Computer Equip.-Hardware(Post Mar. 19/07) | H39: 0 | M39: 0 | N39: 0
A40: 10 | B40: 1930 | C40: Transportation Equipment | E40: 6874197 | F40: 1229585 | G40: -384499 | H40: 7719283 | J40: -4524919.55 | K40: -657854.78 | L40: 384499 | M40: -4798275.33 | N40: 2921007.67 | O40: =G40+L40 -> 0
A41: 8 | B41: 1935 | C41: Stores Equipment | E41: 36630 | F41: 18706.83 | H41: 55336.83 | J41: -36629.72 | K41: -646.98 | M41: -37276.7 | N41: 18060.13 | O41: =G41+L41 -> 0
A42: 8 | B42: 1940 | C42: Tools, Shop & Garage Equipment | E42: 828508 | F42: 71500.19 | G42: -2082 | H42: 897926.19 | J42: -454526.63 | K42: -65906.47 | L42: 1180 | M42: -519253.1 | N42: 378673.09 | O42: -902
A43: 8 | B43: 1945 | C43: Measurement & Testing Equipment | E43: 622261 | F43: 8751.33 | H43: 631012.33 | J43: -504342.57 | K43: -24550.29 | M43: -528892.86 | N43: 102119.47 | O43: 0
A44: 8 | B44: 1950 | C44: Power Operated Equipment | E44: 680955 | F44: 118288.08 | G44: -39528 | H44: 759715.08 | J44: -343143.05 | K44: -64538.18 | L44: 33269 | M44: -374412.23 | N44: 385302.85
A45: 8 | B45: 1955 | C45: Communications Equipment | E45: 173729 | H45: 173729 | J45: -84995.54 | K45: -9951.36 | M45: -94946.9 | N45: 78782.1
A46: 8 | B46: 1955 | C46: Communication Equipment (Smart Meters) | H46: 0 | J46: -19687.69 | K46: -7506.03 | M46: -27193.72 | N46: -27193.72
A47: 8 | B47: 1960 | C47: Miscellaneous Equipment | E47: 30566 | F47: 68290 | H47: 98856 | J47: 0 | K47: 0 | M47: 0 | N47: 98856
A48: 47 | B48: 1975 | C48: Load Management Controls Utility Premises | H48: 0 | J48: 0 | K48: 0 | M48: 0 | N48: 0
A49: 47 | B49: 1980 | C49: System Supervisor Equipment | E49: 1608893 | G49: -9061 | H49: 1599832 | J49: -1296759 | K49: -66576 | L49: 9061 | M49: -1354274 | N49: =H49+M49 -> 245558
A50: 47 | B50: 1985 | C50: Miscellaneous Fixed Assets | H50: 0 | J50: 0 | K50: 0 | M50: 0 | N50: 0
A51: 47 | B51: 1995 | C51: Contributions & Grants | E51: -35269965 | F51: -2349073 | H51: -37619038 | J51: 6363499 | K51: 1504762 | M51: 7868261 | N51: =H51+M51 -> -29750777
B52: etc. | H52: 0 | M52: 0 | N52: 0
C54: Total | E54: =SUM(E16:E53) -> 250925565 | F54: =SUM(F16:F53) -> 10398198.56 | G54: -2189429.4 | H54: 259134334.2 | J54: =SUM(J16:J53) -> -119897299.2 | K54: =SUM(K16:K53) -> -9837237.45 | L54: 2182266.86 | M54: -127552269.8 | N54: 131582064.4
J56: Less: Fully Allocated Depreciation
A57: 10 | C57: Transportation | J57: Transportation | L57: =K40 -> -657854.78
J58: Loss on disposals | L58: 0
J59: Smart Meter Misclass | L59: -206934
A60: 8 | C60: Stores Equipment | J60: Stores Equipment
J61: Net Depreciation | L61: =K54-L57-L60-L58+L59 -> -9386316.67
A63: Notes:
A65: 1 | B65: Tables in the format outlined above covering all fixed asset accounts should be submitted for the Test Year, Bridge Year and all relevant historical years. At a minimum , the applicant must provide data for the earlier of: 1) all historical years back to its last rebasing; or 2) at least three years of historical actuals, in addition to Bridge Year and Test Year forecasts.
A68: 2 | B68: The "CCA Class" for fixed assets should agree with the CCA Class used for tax purposes in Tax Returns. Fixed Assets sub-components may be used where the underlying asset components are classified under multiple CCA Classes for tax purposes. If an applicant uses any different classes from those shown in the table, an explanation should be provided. (also see note 3 below).
A71: 3 | B71: The table may need to be customized for a utility's asset categories or for any new asset accounts announced or authorized by the Board.
A73: 4 | B73: The depreciation column (D) is not required as the relevant information will be provided in the following 2-C series of appendices.

Sheet App.2-B_FA Continuity 2010 GAAP
M1: File Number: | N1: ='LDC Info'!$E$18 -> EB-2013-0147
M2: Exhibit:
M3: Tab:
M4: Schedule:
M5: Page:
M7: Date:
A9: Appendix 2-B
A10: Fixed Asset Continuity Schedule
F12: Year | G12: 2010
E14: Cost | K14: Accumulated Depreciation
A15: CCA Class | B15: OEB | C15: Description | D15: Depreciation Rate | E15: Opening Balance | F15: Additions | G15: Disposals | H15: Closing Balance | J15: Opening Balance | K15: Additions | L15: Disposals | M15: Closing Balance | N15: Net Book Value
A16: 12 | B16: 1611 | C16: Computer Software (Formally known as Account 1925) | E16: 2453260 | F16: 420280 | G16: -37383 | H16: =E16+F16+G16 -> 2836157 | J16: -1877506 | K16: -259075 | L16: 37383 | M16: =J16+K16+L16 -> -2099198 | N16: =H16+M16 -> 736959
A17: CEC | B17: 1612 | C17: Land Rights (Formally known as Account 1906) | E17: 265449 | H17: =E17+F17+G17 -> 265449 | J17: -247262 | K17: -2653 | M17: =J17+K17+L17 -> -249915 | N17: =H17+M17 -> 15534
A18: N/A | B18: 1805 | C18: Land | E18: 2333172 | F18: 2007 | H18: =E18+F18+G18 -> 2335179 | M18: =J18+K18+L18 -> 0 | N18: =H18+M18 -> 2335179
A19: 47 | B19: 1808 | C19: Buildings | E19: 6329893 | F19: 2074902 | H19: =E19+F19+G19 -> 8404795 | J19: -1682217 | K19: -162346 | M19: =J19+K19+L19 -> -1844563 | N19: =H19+M19 -> 6560232
A20: 13 | B20: 1810 | C20: Leasehold Improvements | H20: 0 | M20: 0 | N20: 0
A21: 47 | B21: 1815 | C21: Transformer Station Equipment >50 kV | E21: 40963390 | F21: 10491135 | H21: 51454525 | J21: -14674175 | K21: -1246742 | M21: -15920917 | N21: 35533608
A22: 47 | B22: 1820 | C22: Distribution Station Equipment <50 kV | E22: 2853105 | H22: 2853105 | I22: -1965929 | J22: -1811015 | K22: -77457 | M22: -1888472 | N22: 964633
A23: 47 | B23: 1825 | C23: Storage Battery Equipment | H23: 0 | M23: 0 | N23: 0
A24: 47 | B24: 1830 | C24: Poles, Towers & Fixtures | E24: 26819447 | F24: 2307566 | G24: -529910 | H24: 28597103 | J24: -11458952 | K24: -1165083 | L24: 529910 | M24: -12094125 | N24: 16502978
A25: 47 | B25: 1835 | C25: Overhead Conductors & Devices | E25: 30428096 | F25: 2169333 | G25: -731249 | H25: 31866180 | J25: -14549306 | K25: -1303893 | L25: 731249 | M25: -15121950 | N25: 16744230
A26: 47 | B26: 1840 | C26: Underground Conduit | E26: 20827695 | F26: 1418579 | G26: -601433 | H26: 21644841 | J26: -8915227 | K26: -875706 | L26: 601433 | M26: -9189500 | N26: 12455341
A27: 47 | B27: 1845 | C27: Underground Conductors & Devices | E27: 36494374 | F27: 1842857 | G27: -1492881 | H27: 36844350 | J27: -19323341 | K27: -1498378 | L27: 1492881 | M27: -19328838 | N27: 17515512
A28: 47 | B28: 1850 | C28: Line Transformers | E28: 50191503 | F28: 1922027 | G28: -2004412 | H28: 50109118 | J28: -25468412 | K28: -2064139 | L28: 2004412 | M28: -25528139 | N28: 24580979
A29: 47 | B29: 1855 | C29: Services (Overhead & Underground) | E29: 38694874 | F29: 2282417 | G29: -987325 | H29: 39989966 | J29: -15740355 | K29: -1617859 | L29: 987325 | M29: -16370889 | N29: 23619077
A30: 47 | B30: 1860 | C30: Meters | E30: 12048518 | F30: 173212 | G30: -374316 | H30: 11847414 | J30: -6426825 | K30: -480138 | L30: 374316 | M30: -6532647 | N30: 5314767
A31: 47 | B31: 1860 | C31: Meters (Smart Meters) | H31: 0 | M31: 0 | N31: 0
A32: N/A | B32: 1905 | C32: Land | E32: 1395300 | H32: 1395300 | M32: 0 | N32: 1395300
A33: 47 | B33: 1908 | C33: Buildings & Fixtures | E33: 9429633 | H33: 9429633 | J33: -3063940 | K33: -167367 | M33: -3231307 | N33: 6198326
A34: 13 | B34: 1910 | C34: Leasehold Improvements | H34: 0 | M34: 0 | N34: 0
A35: 8 | B35: 1915 | C35: Office Furniture & Equipment (10 years) | E35: 1017076 | F35: 68485 | H35: 1085561 | J35: -641406 | K35: -64008 | M35: -705414 | N35: 380147
A36: 8 | B36: 1915 | C36: Office Furniture & Equipment (5 years) | H36: 0 | M36: 0 | N36: 0
A37: 10 | B37: 1920 | C37: Computer Equipment - Hardware | E37: 2272899 | F37: 222051 | G37: -88475 | H37: 2406475 | J37: -1806065 | K37: -225444 | L37: 88421 | M37: -1943088 | N37: 463387
A38: 45 | B38: 1920 | C38: Computer Equip.-Hardware(Post Mar. 22/04) | H38: 0 | M38: 0 | N38: 0
A39: 45.1 | B39: 1920 | C39: Computer Equip.-Hardware(Post Mar. 19/07) | H39: 0 | M39: 0 | N39: 0
A40: 10 | B40: 1930 | C40: Transportation Equipment | E40: 7719284 | F40: 809961 | G40: -719550 | H40: 7809695 | J40: -4798276 | K40: -679525 | L40: 715657 | M40: -4762144 | N40: 3047551
A41: 8 | B41: 1935 | C41: Stores Equipment | E41: 55337 | F41: 8735 | H41: 64072 | J41: -37277 | K41: -2567 | M41: -39844 | N41: 24228
A42: 8 | B42: 1940 | C42: Tools, Shop & Garage Equipment | E42: 897926 | F42: 69275 | H42: 967201 | J42: -519253 | K42: -71001 | M42: -590254 | N42: 376947
A43: 8 | B43: 1945 | C43: Measurement & Testing Equipment | E43: 631012 | F43: 32892 | H43: 663904 | J43: -528893 | K43: -26650 | M43: -555543 | N43: 108361
A44: 8 | B44: 1950 | C44: Power Operated Equipment | E44: 759715 | F44: 44500 | G44: -20520 | H44: 783695 | J44: -374412 | K44: -65945 | L44: 17784 | M44: -422573 | N44: 361122
A45: 8 | B45: 1955 | C45: Communications Equipment | E45: 173729 | H45: 173729 | J45: -94947 | K45: -9951 | M45: -104898 | N45: 68831
A46: 8 | B46: 1955 | C46: Communication Equipment (Smart Meters) | H46: 0 | M46: 0 | N46: 0
A47: 8 | B47: 1960 | C47: Miscellaneous Equipment | E47: 98856 | H47: 98856 | J47: -27194 | K47: -16107 | M47: -43301 | N47: 55555
A48: 47 | B48: 1975 | C48: Load Management Controls Utility Premises | H48: 0 | M48: 0 | N48: 0
A49: 47 | B49: 1980 | C49: System Supervisor Equipment | E49: 1599832 | G49: -33352 | H49: 1566480 | J49: -1354274 | K49: -66092 | L49: 33352 | M49: -1387014 | N49: =H49+M49 -> 179466
A50: 47 | B50: 1985 | C50: Miscellaneous Fixed Assets | H50: 0 | M50: 0 | N50: 0
A51: 47 | B51: 1995 | C51: Contributions & Grants | E51: -37619038 | F51: -4105073 | H51: -41724111 | J51: 7868260 | K51: 1669967 | M51: 9538227 | N51: =H51+M51 -> -32185884
B52: etc. | H52: 0 | M52: 0 | N52: 0
C54: Total | E54: =SUM(E16:E53) -> 259134337 | F54: =SUM(F16:F53) -> 22255141 | G54: -7620806 | H54: 273768672 | J54: =SUM(J16:J53) -> -127552270 | K54: =SUM(K16:K53) -> -10478159 | L54: 7614123 | M54: -130416306 | N54: 143352366
J56: Less: Fully Allocated Depreciation
A57: 10 | C57: Transportation | J57: Transportation | L57: -679525.38
A58: 8 | C58: Stores Equipment | J58: Stores Equipment
J59: Net Depreciation | L59: =K54-L57-L58 -> -9798633.62
L60: 9798633.59
A61: Notes: | L61: =SUM(L59:L60) -> -0.02999999933
A63: 1 | B63: Tables in the format outlined above covering all fixed asset accounts should be submitted for the Test Year, Bridge Year and all relevant historical years. At a minimum , the applicant must provide data for the earlier of: 1) all historical years back to its last rebasing; or 2) at least three years of historical actuals, in addition to Bridge Year and Test Year forecasts.
A66: 2 | B66: The "CCA Class" for fixed assets should agree with the CCA Class used for tax purposes in Tax Returns. Fixed Assets sub-components may be used where the underlying asset components are classified under multiple CCA Classes for tax purposes. If an applicant uses any different classes from those shown in the table, an explanation should be provided. (also see note 3 below).
A69: 3 | B69: The table may need to be customized for a utility's asset categories or for any new asset accounts announced or authorized by the Board.
A71: 4 | B71: The depreciation column (D) is not required as the relevant information will be provided in the following 2-C series of appendices.

Sheet App.2-B_FA Continuity 2011 GAAP
M1: File Number: | N1: ='LDC Info'!$E$18 -> EB-2013-0147
M2: Exhibit:
M3: Tab:
M4: Schedule:
M5: Page:
M7: Date:
A9: Appendix 2-B
A10: Fixed Asset Continuity Schedule
F12: Year | G12: 2011
E14: Cost | K14: Accumulated Depreciation
A15: CCA Class | B15: OEB | C15: Description | D15: Depreciation Rate | E15: Opening Balance | F15: Additions | G15: Disposals | H15: Closing Balance | J15: Opening Balance | K15: Additions | L15: Disposals | M15: Closing Balance | N15: Net Book Value
A16: 12 | B16: 1611 | C16: Computer Software (Formally known as Account 1925) | E16: 2836157 | F16: 430618 | H16: =E16+F16+G16 -> 3266775 | J16: -2099198 | K16: -238943 | M16: =J16+K16+L16 -> -2338141 | N16: =H16+M16 -> 928634
A17: CEC | B17: 1612 | C17: Land Rights (Formally known as Account 1906) | E17: 265449 | H17: =E17+F17+G17 -> 265449 | J17: -249915 | K17: -2653 | M17: =J17+K17+L17 -> -252568 | N17: =H17+M17 -> 12881
A18: N/A | B18: 1805 | C18: Land | E18: 2335179 | F18: 4779 | H18: =E18+F18+G18 -> 2339958 | J18: 0 | M18: =J18+K18+L18 -> 0 | N18: =H18+M18 -> 2339958
A19: 47 | B19: 1808 | C19: Buildings | E19: 8404795 | F19: 863870 | H19: =E19+F19+G19 -> 9268665 | J19: -1844563 | K19: -179623 | M19: =J19+K19+L19 -> -2024186 | N19: =H19+M19 -> 7244479
A20: 13 | B20: 1810 | C20: Leasehold Improvements | E20: 0 | H20: 0 | J20: 0 | M20: 0 | N20: 0
A21: 47 | B21: 1815 | C21: Transformer Station Equipment >50 kV | E21: 51454525 | F21: 8423605 | H21: 59878130 | J21: -15920917 | K21: -1457332 | M21: -17378249 | N21: 42499881
A22: 47 | B22: 1820 | C22: Distribution Station Equipment <50 kV | E22: 2853105 | H22: 2853105 | I22: -1965929 | J22: -1888472 | K22: -77457 | M22: -1965929 | N22: 887176
A23: 47 | B23: 1825 | C23: Storage Battery Equipment | E23: 0 | H23: 0 | J23: 0 | M23: 0 | N23: 0
A24: 47 | B24: 1830 | C24: Poles, Towers & Fixtures | E24: 28597103 | F24: 1751105 | G24: -703439 | H24: 29644769 | J24: -12094125 | K24: -1225681 | L24: 703439 | M24: -12616367 | N24: 17028402
A25: 47 | B25: 1835 | C25: Overhead Conductors & Devices | E25: 31866180 | F25: 1308791 | G25: -970711 | H25: 32204260 | J25: -15121950 | K25: -1361746 | L25: 970711 | M25: -15512985 | N25: 16691275
A26: 47 | B26: 1840 | C26: Underground Conduit | E26: 21644841 | F26: 962361 | G26: -566460 | H26: 22040742 | J26: -9189500 | K26: -890143 | L26: 566460 | M26: -9513183 | N26: 12527559
A27: 47 | B27: 1845 | C27: Underground Conductors & Devices | E27: 36844350 | F27: 1886678 | G27: -1406071 | H27: 37324957 | J27: -19328838 | K27: -1514130 | L27: 1406071 | M27: -19436897 | N27: 17888060
A28: 47 | B28: 1850 | C28: Line Transformers | E28: 50109118 | F28: 2426209 | G28: -2612850 | H28: 49922477 | J28: -25528139 | K28: -2083099 | L28: 2612850 | M28: -24998388 | N28: 24924089
A29: 47 | B29: 1855 | C29: Services (Overhead & Underground) | E29: 39989966 | F29: 2441461 | G29: -955724 | H29: 41475703 | J29: -16370889 | K29: -1629524 | L29: 955724 | M29: -17044689 | N29: 24431014
A30: 47 | B30: 1860 | C30: Meters | E30: 11847414 | F30: 148271 | G30: -492301 | H30: 11503384 | J30: -6532647 | K30: -540722 | L30: 693908 | M30: -6379461 | N30: 5123923
A31: 47 | B31: 1860 | C31: Meters (Smart Meters) | E31: 0 | H31: 0 | J31: 0 | M31: 0 | N31: 0
A32: N/A | B32: 1905 | C32: Land | E32: 1395300 | H32: 1395300 | J32: 0 | M32: 0 | N32: 1395300
A33: 47 | B33: 1908 | C33: Buildings & Fixtures | E33: 9429633 | F33: 815320 | H33: 10244953 | J33: -3231307 | K33: -183674 | M33: -3414981 | N33: 6829972
A34: 13 | B34: 1910 | C34: Leasehold Improvements | E34: 0 | H34: 0 | J34: 0 | M34: 0 | N34: 0
A35: 8 | B35: 1915 | C35: Office Furniture & Equipment (10 years) | E35: 1085561 | F35: 26749 | H35: 1112310 | J35: -705414 | K35: -66684 | M35: -772098 | N35: 340212
A36: 8 | B36: 1915 | C36: Office Furniture & Equipment (5 years) | H36: 0 | M36: 0 | N36: 0
A37: 10 | B37: 1920 | C37: Computer Equipment - Hardware | E37: 2406475 | F37: 86381 | G37: -72393 | H37: 2420463 | J37: -1943088 | K37: -199306 | L37: 72393 | M37: -2070001 | N37: 350462
A38: 45 | B38: 1920 | C38: Computer Equip.-Hardware(Post Mar. 22/04) | E38: 0 | H38: 0 | J38: 0 | M38: 0 | N38: 0
A39: 45.1 | B39: 1920 | C39: Computer Equip.-Hardware(Post Mar. 19/07) | E39: 0 | H39: 0 | J39: 0 | M39: 0 | N39: 0
A40: 10 | B40: 1930 | C40: Transportation Equipment | E40: 7809695 | F40: 471632 | G40: -126446 | H40: 8154881 | J40: -4762144 | K40: -738097 | L40: 126446 | M40: -5373795 | N40: 2781086
A41: 8 | B41: 1935 | C41: Stores Equipment | E41: 64072 | H41: 64072 | J41: -39844 | K41: -2744 | M41: -42588 | N41: 21484
A42: 8 | B42: 1940 | C42: Tools, Shop & Garage Equipment | E42: 967201 | F42: -194403 | H42: 772798 | J42: -590254 | K42: 142409 | M42: -447845 | N42: 324953
A43: 8 | B43: 1945 | C43: Measurement & Testing Equipment | E43: 663904 | F43: 304556 | G43: -101727 | H43: 866733 | J43: -555543 | K43: -240516 | L43: 92340 | M43: -703719 | N43: 163014
A44: 8 | B44: 1950 | C44: Power Operated Equipment | E44: 783695 | H44: 783695 | J44: -422573 | K44: -54310 | M44: -476883 | N44: 306812
A45: 8 | B45: 1955 | C45: Communications Equipment | E45: 173729 | H45: 173729 | J45: -104898 | K45: -9951 | M45: -114849 | N45: 58880
A46: 8 | B46: 1955 | C46: Communication Equipment (Smart Meters) | E46: 0 | H46: 0 | J46: 0 | M46: 0 | N46: 0
A47: 8 | B47: 1960 | C47: Miscellaneous Equipment | E47: 98856 | H47: 98856 | J47: -43301 | K47: -14585 | M47: -57886 | N47: 40970
A48: 47 | B48: 1975 | C48: Load Management Controls Utility Premises | E48: 0 | H48: 0 | J48: 0 | M48: 0 | N48: 0
A49: 47 | B49: 1980 | C49: System Supervisor Equipment | E49: 1566480 | H49: 1566480 | J49: -1387014 | K49: -64390 | M49: -1451404 | N49: 115076
A50: 47 | B50: 1985 | C50: Miscellaneous Fixed Assets | E50: 0 | H50: 0 | J50: 0 | M50: 0 | N50: 0
A51: 47 | B51: 1995 | C51: Contributions & Grants | E51: -41724111 | F51: -2813049 | H51: -44537160 | J51: 9538227 | K51: 1780484 | M51: 11318711 | N51: -33218449
B52: etc. | E52: 0 | H52: 0 | J52: 0 | M52: 0 | N52: 0
C54: Total | E54: =SUM(E16:E53) -> 273768672 | F54: =SUM(F16:F53) -> 19344934 | G54: -8008122 | H54: 285105484 | J54: -130416306 | K54: -10852417 | L54: 8200342 | M54: =SUM(M16:M53) -> -133068381 | N54: 152037103
J56: Less: Fully Allocated Depreciation
A57: 10 | C57: Transportation | J57: Transportation | L57: -738097
A58: 8 | C58: Stores Equipment | J58: Stores Equipment
J59: Net Depreciation | L59: =K54-L57-L58 -> -10114320
L60: 10114320
A61: Notes: | L61: =SUM(L59:L60) -> 0
A63: 1 | B63: Tables in the format outlined above covering all fixed asset accounts should be submitted for the Test Year, Bridge Year and all relevant historical years. At a minimum , the applicant must provide data for the earlier of: 1) all historical years back to its last rebasing; or 2) at least three years of historical actuals, in addition to Bridge Year and Test Year forecasts.
A66: 2 | B66: The "CCA Class" for fixed assets should agree with the CCA Class used for tax purposes in Tax Returns. Fixed Assets sub-components may be used where the underlying asset components are classified under multiple CCA Classes for tax purposes. If an applicant uses any different classes from those shown in the table, an explanation should be provided. (also see note 3 below).
A69: 3 | B69: The table may need to be customized for a utility's asset categories or for any new asset accounts announced or authorized by the Board.
A71: 4 | B71: The depreciation column (D) is not required as the relevant information will be provided in the following 2-C series of appendices.

Sheet App.2-B_FA Continuity 2012 GAAP
M1: File Number: | N1: ='LDC Info'!$E$18 -> EB-2013-0147
M2: Exhibit:
M3: Tab:
M4: Schedule:
M5: Page:
M7: Date:
A9: Appendix 2-B
A10: Fixed Asset Continuity Schedule
F12: Year | G12: Pre-2012 | H12: GAAP
E14: Cost | K14: Accumulated Depreciation
A15: CCA Class | B15: OEB | C15: Description | D15: Depreciation Rate | E15: Opening Balance | F15: Additions | G15: Disposals | H15: Closing Balance | J15: Opening Balance | K15: Additions | L15: Disposals | M15: Closing Balance | N15: Net Book Value
A16: 12 | B16: 1611 | C16: Computer Software (Formally known as Account 1925) | E16: 3266775 | F16: 326748 | H16: =E16+F16+G16 -> 3593523 | J16: -2338142 | K16: -322564 | M16: =J16+K16+L16 -> -2660706 | N16: =H16+M16 -> 932817
A17: 12 | B17: 1611 | C17: Computer Software (Formally known as Account 1925) - Smart Meters | F17: 518017 | H17: =E17+F17+G17 -> 518017 | K17: -420712 | M17: =J17+K17+L17 -> -420712 | N17: =H17+M17 -> 97305
A18: CEC | B18: 1612 | C18: Land Rights (Formally known as Account 1906) | E18: 265449 | F18: 0 | G18: 0 | H18: =E18+F18+G18 -> 265449 | J18: -252568 | K18: -2653 | L18: 0 | M18: =J18+K18+L18 -> -255221 | N18: =H18+M18 -> 10228
A19: N/A | B19: 1805 | C19: Land | E19: 2339958 | H19: =E19+F19+G19 -> 2339958 | J19: 0 | M19: =J19+K19+L19 -> 0 | N19: =H19+M19 -> 2339958
A20: 47 | B20: 1808 | C20: Buildings | E20: 9268665 | F20: -20178 | G20: -10745 | H20: =E20+F20+G20 -> 9237742 | J20: -2024186 | K20: -179220 | L20: 10745 | M20: =J20+K20+L20 -> -2192661 | N20: =H20+M20 -> 7045081
A21: 13 | B21: 1810 | C21: Leasehold Improvements | E21: 0 | F21: 0 | G21: 0 | H21: 0 | J21: 0 | K21: 0 | L21: 0 | M21: 0 | N21: 0
A22: 47 | B22: 1815 | C22: Transformer Station Equipment >50 kV | E22: 59878130 | F22: 93639 | G22: -162180 | H22: 59809589 | J22: -17378248 | K22: -1464704 | L22: 162180 | M22: -18680772 | N22: 41128817
A23: 47 | B23: 1820 | C23: Distribution Station Equipment <50 kV | E23: 2853105 | G23: -15845 | H23: 2837260 | I23: -1965929 | J23: -1965929 | K23: -77457 | L23: 15845 | M23: -2027541 | N23: 809719
A24: 47 | B24: 1825 | C24: Storage Battery Equipment | H24: 0 | M24: 0 | N24: 0
A25: 47 | B25: 1830 | C25: Poles, Towers & Fixtures | E25: 29644768 | F25: 2894738 | H25: 32539506 | J25: -12616367 | K25: -1301580 | M25: -13917947 | N25: 18621559
A26: 47 | B26: 1835 | C26: Overhead Conductors & Devices | E26: 32204259 | F26: 2259990 | H26: 34464249 | J26: -15512985 | K26: -1378570 | M26: -16891555 | N26: 17572694
A27: 47 | B27: 1840 | C27: Underground Conduit | E27: 22040741 | F27: 1910830 | H27: 23951571 | J27: -9513183 | K27: -943918 | M27: -10457101 | N27: 13494470
A28: 47 | B28: 1845 | C28: Underground Conductors & Devices | E28: 37324957 | F28: 2430148 | H28: 39755105 | J28: -19436898 | K28: -1555093 | M28: -20991991 | N28: 18763114
A29: 47 | B29: 1850 | C29: Line Transformers | E29: 49922477 | F29: 3398190 | H29: 53320667 | J29: -24998388 | K29: -2118291 | M29: -27116679 | N29: 26203988
A30: 47 | B30: 1855 | C30: Services (Overhead & Underground) | E30: 41475703 | F30: 2762234 | H30: 44237937 | J30: -17044689 | K30: -1748284 | M30: -18792973 | N30: 25444964
A31: 47 | B31: 1860 | C31: Meters | E31: 11503383 | F31: 367352 | G31: -9578658 | H31: 2292077 | J31: -6379461 | K31: -598619 | L31: 6393556 | M31: -584524 | N31: 1707553
A32: 47 | B32: 1860 | C32: Meters (Smart Meters) | F32: 12045109 | H32: 12045109 | K32: -2387679 | M32: -2387679 | N32: 9657430
A33: N/A | B33: 1905 | C33: Land | E33: 1395300 | H33: 1395300 | J33: 0 | K33: 0 | L33: 0 | M33: 0 | N33: 1395300
A34: 47 | B34: 1908 | C34: Buildings & Fixtures | E34: 10244953 | F34: 31703 | H34: 10276656 | J34: -3414981 | K34: -184308 | M34: -3599289 | N34: 6677367
A35: 13 | B35: 1910 | C35: Leasehold Improvements
A36: 8 | B36: 1915 | C36: Office Furniture & Equipment (10 years) | E36: 1112310 | F36: 34301 | H36: 1146611 | J36: -772098 | K36: -65354 | M36: -837452 | N36: 309159
A37: 8 | B37: 1915 | C37: Office Furniture & Equipment (5 years)
A38: 10 | B38: 1920 | C38: Computer Equipment - Hardware | E38: 2420464 | F38: 227721 | H38: 2648185 | J38: -2070000 | K38: -151267 | M38: -2221267 | N38: 426918
A39: 45 | B39: 1920 | C39: Computer Equip.-Hardware - Smart Meter | F39: 221261 | H39: 221261 | K39: -77441 | M39: -77441 | N39: 143820
A40: 45.1 | B40: 1920 | C40: Computer Equip.-Hardware(Post Mar. 19/07) | H40: 0 | M40: 0 | N40: 0
A41: 10 | B41: 1930 | C41: Transportation Equipment | E41: 8154881 | F41: 428102 | G41: -45515 | H41: 8537468 | J41: -5373795 | K41: -747189 | L41: 45515 | M41: -6075469 | N41: 2461999
A42: 8 | B42: 1935 | C42: Stores Equipment | E42: 64072 | H42: 64072 | J42: -42588 | K42: -3512 | M42: -46100 | N42: 17972
A43: 8 | B43: 1940 | C43: Tools, Shop & Garage Equipment | E43: 772798 | F43: 70533 | G43: -4335 | H43: 838996 | J43: -447845 | K43: -59229 | L43: 1382 | M43: -505692 | N43: 333304
A44: 8 | B44: 1940 | C44: Tools - Smart Meter | F44: 3728 | H44: =E44+F44+G44 -> 3728 | K44: -1273.68 | M44: =J44+K44+L44 -> -1273.68 | N44: =H44+M44 -> 2454.32
A45: 8 | B45: 1945 | C45: Measurement & Testing Equipment | E45: 866733 | F45: 96435 | H45: 963168 | J45: -703718 | K45: -32783 | M45: -736501 | N45: 226667
A46: 8 | B46: 1950 | C46: Power Operated Equipment | E46: 783695 | F46: 54068 | H46: 837763 | J46: -476883 | K46: -57705 | M46: -534588 | N46: 303175
A47: 8 | B47: 1955 | C47: Communications Equipment | E47: 173729 | H47: 173729 | J47: -114850 | K47: -16819 | M47: -131669 | N47: 42060
A48: 8 | B48: 1955 | C48: Communication Equipment (Smart Meters) | F48: 696107 | H48: 696107 | K48: -254934 | M48: -254934 | N48: 441173
A49: 8 | B49: 1960 | C49: Miscellaneous Equipment | E49: 98856 | H49: 98856 | J49: -57887 | K49: -14930 | M49: -72817 | N49: 26039
A50: 47 | B50: 1975 | C50: Load Management Controls Utility Premises | H50: 0 | M50: 0 | N50: 0
A51: 47 | B51: 1980 | C51: System Supervisor Equipment | E51: 1566480 | H51: 1566480 | J51: -1451404 | K51: -64006 | M51: -1515410 | N51: 51070
A52: 47 | B52: 1985 | C52: Miscellaneous Fixed Assets | H52: 0 | M52: 0 | N52: 0
A53: 47 | B53: 1995 | C53: Contributions & Grants | E53: -44537160 | F53: -4668971 | H53: -49206131 | J53: 11318711 | K53: 1968390 | M53: 13287101 | N53: -35919030
B54: etc. | H54: 0 | M54: 0 | N54: 0
C56: Total | E56: =SUM(E16:E55) -> 285105481 | F56: =SUM(F16:F55) -> 26181805 | G56: -9817278 | H56: 301470008 | J56: =SUM(J16:J55) -> -133068382 | K56: =SUM(K16:K55) -> -14261704.68 | L56: =SUM(L16:L55) -> 6629223 | M56: -140700863.7 | N56: 160769144.3
J58: Less: Fully Allocated Depreciation
A59: 10 | C59: Transportation | J59: Transportation | L59: -747188.95
J60: Loss on disposal - tools | N60: =13507030-14188428 -> -681398
J61: Line transformer transfers | M61: counted twice?
J62: Meters
A64: 8 | C64: Stores Equipment | J64: Stores Equipment
J65: Net Depreciation | L65: =K56-L59-L64-L60-L61-L62 -> -13514515.73
L66: 13514516
A67: Notes: | L67: =SUM(L65:L66) -> 0.2699999996
A69: 1 | B69: Tables in the format outlined above covering all fixed asset accounts should be submitted for the Test Year, Bridge Year and all relevant historical years. At a minimum , the applicant must provide data for the earlier of: 1) all historical years back to its last rebasing; or 2) at least three years of historical actuals, in addition to Bridge Year and Test Year forecasts.
A72: 2 | B72: The "CCA Class" for fixed assets should agree with the CCA Class used for tax purposes in Tax Returns. Fixed Assets sub-components may be used where the underlying asset components are classified under multiple CCA Classes for tax purposes. If an applicant uses any different classes from those shown in the table, an explanation should be provided. (also see note 3 below).
A75: 3 | B75: The table may need to be customized for a utility's asset categories or for any new asset accounts announced or authorized by the Board.
A77: 4 | B77: The depreciation column (D) is not required as the relevant information will be provided in the following 2-C series of appendices.

Sheet App.2-B_FA Continuity 2012 MIFR
M1: File Number: | N1: ='LDC Info'!$E$18 -> EB-2013-0147
M2: Exhibit:
M3: Tab:
M4: Schedule:
M5: Page:
M7: Date:
A9: Appendix 2-B
A10: Fixed Asset Continuity Schedule
F12: Year | G12: 2012 | H12: MIFRS
E14: Cost | K14: Accumulated Depreciation
A15: CCA Class | B15: OEB | C15: Description | D15: Depreciation Rate | E15: Opening Balance | F15: Additions | G15: Disposals | H15: Closing Balance | J15: Opening Balance | K15: Additions | L15: Disposals | M15: Closing Balance | N15: Net Book Value
A16: 12 | B16: 1611 | C16: Computer Software (Formally known as Account 1925) | E16: 928633 | F16: 326748 | H16: =E16+F16+G16 -> 1255381 | K16: -349303 | M16: =J16+K16+L16 -> -349303 | N16: =H16+M16 -> 906078
A17: 12 | B17: 1611 | C17: Computer Software (Formally known as Account 1925) - Smart Meters | F17: 518017 | H17: =E17+F17+G17 -> 518017 | K17: -420712 | M17: =J17+K17+L17 -> -420712 | N17: =H17+M17 -> 97305
A18: CEC | B18: 1612 | C18: Land Rights (Formally known as Account 1906) | E18: 12881 | H18: =E18+F18+G18 -> 12881 | M18: =J18+K18+L18 -> 0 | N18: =H18+M18 -> 12881
A19: N/A | B19: 1805 | C19: Land | E19: 2339958 | H19: =E19+F19+G19 -> 2339958 | M19: =J19+K19+L19 -> 0 | N19: =H19+M19 -> 2339958
A20: 47 | B20: 1808 | C20: Buildings | E20: 7099490 | F20: 4769 | H20: =E20+F20+G20 -> 7104259 | K20: -186431 | M20: =J20+K20+L20 -> -186431 | N20: =H20+M20 -> 6917828
A21: 47 | B21: 1808 | C21: Roof | E21: 144989 | G21: -10745 | H21: =E21+F21+G21 -> 134244 | K21: -27874 | L21: 10745 | M21: =J21+K21+L21 -> -17129 | N21: =H21+M21 -> 117115
A22: 13 | B22: 1810 | C22: Leasehold Improvements
A23: 47 | B23: 1815 | C23: Transformer Station Equipment >50 kV 50 yrs | E23: 15658086 | F23: 78477 | G23: -6407 | H23: 15730156 | K23: -390350 | L23: 6407 | M23: -383943 | N23: 15346213
A24: 47 | B24: 1815 | C24: Transformer Station Equipment >50 kV 40 yrs | E24: 24475179 | H24: =E24+F24+G24 -> 24475179 | K24: -837825 | M24: =J24+K24+L24 -> -837825 | N24: =H24+M24 -> 23637354
A25: 47 | B25: 1815 | C25: Transformer Station Equipment >50 kV 25 yrs | E25: 887028 | G25: -9621 | H25: 877407 | K25: -94545 | L25: 9621 | M25: -84924 | N25: 792483
A26: 47 | B26: 1815 | C26: Transformer Station Equipment >50 kV 20 yrs | E26: 392015 | F26: 25270 | G26: -12461 | H26: 404824 | K26: -67030 | L26: 12461 | M26: -54569 | N26: 350255
A27: 47 | B27: 1815 | C27: Transformer Station Equipment >50 kV 15 yrs | E27: 1087574 | F27: 68590 | G27: -133691 | H27: 1022473 | K27: -282314 | L27: 133691 | M27: -148623 | N27: 873850
A28: 47 | B28: 1820 | C28: Distribution Station Equipment <50 kV 50 yrs | E28: 288917 | H28: 288917 | I28: -1965929 | K28: -8813 | M28: -8813 | N28: 280104
A29: 47 | B29: 1820 | C29: Distribution Station Equipment <50 kV 40 yrs | E29: 545044 | H29: =E29+F29+G29 -> 545044 | I29: -1965929 | K29: -25509 | M29: =J29+K29+L29 -> -25509 | N29: =H29+M29 -> 519535
A30: 47 | B30: 1820 | C30: Distribution Station Equipment <50 kV 25 yrs | E30: 19153 | G30: -1089 | H30: 18064 | I30: -1965929 | K30: -3895 | L30: 1089 | M30: -2806 | N30: 15258
A31: 47 | B31: 1820 | C31: Distribution Station Equipment <50 kV 20 yrs | E31: 8761 | G31: -3210 | H31: 5551 | I31: -1965929 | K31: -4284 | L31: 3210 | M31: -1074 | N31: 4477
A32: 47 | B32: 1820 | C32: Distribution Station Equipment <50 kV 15 yrs | E32: 25299 | G32: -11546 | H32: 13753 | I32: -1965929 | K32: -13339 | L32: 11546 | M32: -1793 | N32: 11960
A33: 47 | B33: 1825 | C33: Storage Battery Equipment
A34: 47 | B34: 1830 | C34: Poles, Towers & Fixtures | E34: 15401549 | F34: 2587380 | H34: 17988929 | K34: -552687 | M34: -552687 | N34: 17436242
A35: 47 | B35: 1835 | C35: Overhead Conductors | E35: 13072933 | F35: 1849156 | H35: 14922089 | K35: -287855 | M35: -287855 | N35: 14634234
A36: 47 | B36: 1835 | C36: Overhead Devices | E36: 1452548 | F36: 156884 | H36: =E36+F36+G36 -> 1609432 | K36: -50900 | M36: =J36+K36+L36 -> -50900 | N36: =H36+M36 -> 1558532
A37: 47 | B37: 1835 | C37: Voltage Regulators | E37: 163109 | H37: 163109 | K37: -8155 | M37: -8155 | N37: 154954
A38: 47 | B38: 1835 | C38: Capacitor Banks | E38: 618096 | H38: 618096 | K38: -31924 | M38: -31924 | N38: 586172
A39: 47 | B39: 1840 | C39: Underground Conduit | E39: 6961154 | F39: 1775167 | H39: 8736321 | K39: -168706 | M39: -168706 | N39: 8567615
A40: 47 | B40: 1845 | C40: Underground PILC | E40: 414000 | F40: 71811 | H40: 485811 | K40: -8335 | M40: -8335 | N40: 477476
A41: 47 | B41: 1845 | C41: Underground Cables | E41: 13434518 | F41: 2004581 | H41: =E41+F41+G41 -> 15439099 | K41: -531523 | M41: =J41+K41+L41 -> -531523 | N41: =H41+M41 -> 14907576
A42: 47 | B42: 1845 | C42: Underground Devices | E42: 1492724 | F42: 123332 | H42: 1616056 | K42: -56573 | M42: -56573 | N42: 1559483
A43: 47 | B43: 1850 | C43: Line Transformers - Overhead | E43: 12974334 | F43: 975364 | H43: 13949698 | K43: -501652 | L43: 72814 | M43: -428838 | N43: 13520860
A44: 47 | B44: 1850 | C44: Network Transformers | E44: 5503 | F44: 152267 | H44: =E44+F44+G44 -> 157770 | K44: -4252 | M44: =J44+K44+L44 -> -4252 | N44: =H44+M44 -> 153518
A45: 47 | B45: 1850 | C45: Vault | F45: 2629 | H45: 2629 | K45: -44 | M45: -44 | N45: 2585
A46: 47 | B46: 1850 | C46: Roof | E46: 497948 | H46: 497948 | K46: -21235 | M46: -21235 | N46: 476713
A47: 47 | B47: 1850 | C47: Network Protectors | E47: 91592 | F47: 107832 | H47: 199424 | K47: -4948 | M47: -4948 | N47: 194476
A48: 47 | B48: 1850 | C48: Padmount Transformers | E48: 2045154 | F48: 721460 | H48: 2766614 | K48: -74088 | M48: -74088 | N48: 2692526
A49: 47 | B49: 1850 | C49: Submersible Transformers | E49: 1330488 | F49: 790096 | H49: 2120584 | K49: -76240 | M49: -76240 | N49: 2044344
A50: 47 | B50: 1850 | C50: Foundation | E50: 632265 | F50: 417525 | H50: 1049790 | K50: -16177 | M50: -16177 | N50: 1033613
A51: 47 | B51: 1855 | C51: Services - Overhead | E51: 644713 | F51: 419374 | H51: 1064087 | K51: -20945 | M51: -20945 | N51: 1043142
A52: 47 | B52: 1855 | C52: Services - Underground | E52: 9136964 | F52: 2054280 | H52: =E52+F52+G52 -> 11191244 | K52: -370565 | M52: =J52+K52+L52 -> -370565 | N52: =H52+M52 -> 10820679
A53: 47 | B53: 1860 | C53: Meters | E53: 5026277 | F53: 346570 | G53: -3185102 | H53: 2187745 | K53: -629264 | M53: -629264 | N53: 1558481
A54: 47 | B54: 1860 | C54: Meters (Smart Meters) | F54: 12041179 | H54: 12041179 | K54: -2387679 | M54: -2387679 | N54: 9653500
A55: N/A | B55: 1905 | C55: Land | E55: 1395300 | H55: 1395300 | M55: 0 | N55: 1395300
A56: 47 | B56: 1908 | C56: Buildings & Fixtures - Building | E56: 5262681 | F56: 30105 | H56: 5292786 | K56: -177588 | M56: -177588 | N56: 5115198
A57: 47 | B57: 1908 | C57: Buildings & Fixtures - Roof | E57: 1567291 | H57: =E57+F57+G57 -> 1567291 | K57: -246333 | M57: =J57+K57+L57 -> -246333 | N57: =H57+M57 -> 1320958
A58: 13 | B58: 1910 | C58: Leasehold Improvements
A59: 8 | B59: 1915 | C59: Office Furniture & Equipment (10 years) | E59: 340212 | F59: 34301 | H59: 374513 | K59: -65353 | M59: -65353 | N59: 309160
A60: 8 | B60: 1915 | C60: Office Furniture & Equipment (5 years)
A61: 10 | B61: 1920 | C61: Computer Equipment - Hardware | E61: 350464 | F61: 227721 | H61: 578185 | K61: -141860 | M61: -141860 | N61: 436325
A62: 45 | B62: 1920 | C62: Computer Equip.-Hardware - Smart Meter | F62: 221261 | H62: 221261 | K62: -77441 | M62: -77441 | N62: 143820
A63: 45.1 | B63: 1920 | C63: Computer Equip.-Hardware(Post Mar. 19/07)
A64: 10 | B64: 1930 | C64: Transportation Equipment | E64: 2781086 | F64: 428102 | G64: -45515 | H64: 3163673 | K64: -458021 | L64: 45515 | M64: -412506 | N64: 2751167
A65: 8 | B65: 1935 | C65: Stores Equipment | E65: 21484 | H65: 21484 | K65: -3512 | M65: -3512 | N65: 17972
A66: 8 | B66: 1940 | C66: Tools, Shop & Garage Equipment | E66: 324953 | F66: 70533 | G66: -4335 | H66: 391151 | K66: -59229 | L66: 1382 | M66: -57847 | N66: 333304
A67: 8 | B67: 1940 | C67: Tools - Smart Meters | F67: 3728 | H67: =E67+F67+G67 -> 3728 | K67: -1274 | M67: =J67+K67+L67 -> -1274 | N67: =H67+M67 -> 2454
A68: 8 | B68: 1945 | C68: Measurement & Testing Equipment | E68: 163014 | F68: 96435 | H68: 259449 | K68: -32783 | M68: -32783 | N68: 226666
A69: 8 | B69: 1950 | C69: Power Operated Equipment | E69: 306812 | F69: 54068 | H69: 360880 | K69: -57705 | M69: -57705 | N69: 303175
A70: 8 | B70: 1955 | C70: Communications Equipment | E70: 58879 | F70: 0 | H70: 58879 | K70: -16819 | M70: -16819 | N70: 42060
A71: 8 | B71: 1955 | C71: Communication Equipment (Smart Meters) | F71: 696107 | H71: 696107 | K71: -254934 | M71: -254934 | N71: 441173
A72: 8 | B72: 1960 | C72: Miscellaneous Equipment | E72: 40969 | H72: 40969 | K72: -14931 | M72: -14931 | N72: 26038
A73: 47 | B73: 1975 | C73: Load Management Controls Utility Premises
A74: 47 | B74: 1980 | C74: System Supervisor Equipment | E74: 115075 | H74: 115075 | K74: -95926 | M74: -95926 | N74: 19149
A75: 47 | B75: 1985 | C75: Miscellaneous Fixed Assets
A76: 47 | B76: 1995 | C76: Contributions & Grants
A77: 47 | B77: 1995 | C77: CC - Poles Towers Fixtures | F77: -600093 | H77: =E77+F77+G77 -> -600093 | K77: 15002 | M77: =J77+K77+L77 -> 15002 | N77: =H77+M77 -> -585091
A78: 47 | B78: 1995 | C78: CC - O/H Conductors | F78: -607123 | H78: -607123 | K78: 10119 | M78: 10119 | N78: -597004
A79: 47 | B79: 1995 | C79: CC - O/H Devices | F79: -67458 | H79: -67458 | K79: 1686 | M79: 1686 | N79: -65772
A80: 47 | B80: 1995 | C80: CC - O/H Services | F80: 90988 | H80: 90988 | K80: -1516 | M80: -1516 | N80: 89472
A81: 47 | B81: 1995 | C81: CC - U/G Trenching and Ductwork | F81: -1079357 | H81: -1079357 | K81: 17989 | M81: 17989 | N81: -1061368
A82: 47 | B82: 1995 | C82: CC - U/G Cable-Primary | F82: -1393554 | H82: -1393554 | K82: 34839 | M82: 34839 | N82: -1358715
A83: 47 | B83: 1995 | C83: CC - U/G Devices | F83: -104668 | H83: -104668 | K83: 2617 | M83: 2617 | N83: -102051
A84: 47 | B84: 1995 | C84: CC - U/G Services | F84: -48024 | H84: -48024 | K84: 1201 | M84: 1201 | N84: -46823
A85: 47 | B85: 1995 | C85: CC - Pole Top Transformer | F85: -317706 | H85: -317706 | K85: 7943 | M85: 7943 | N85: -309763
A86: 47 | B86: 1995 | C86: CC - UG Transformer | F86: -281562 | H86: -281562 | K86: 9385 | M86: 9385 | N86: -272177
A87: 47 | B87: 1995 | C87: CC - U/G Submersible Transformer | F87: 172272 | H87: 172272 | K87: -4307 | M87: -4307 | N87: 167965
A88: 47 | B88: 1995 | C88: CC - Foundation Transformer | F88: -429058 | H88: -429058 | K88: 7151 | M88: 7151 | N88: -421907
A89: 47 | B89: 1995 | C89: CC - Meters Distribution | F89: -95090 | H89: =E89+F89+G89 -> -95090 | K89: 6339 | M89: =J89+K89+L89 -> 6339 | N89: =H89+M89 -> -88751
A90: 47 | B90: 1995 | C90: CC - OEB Clearing Account | F90: 91462 | H90: 91462 | K90: -6097 | M90: -6097 | N90: 85365
H91: 0
C93: Total | E93: =SUM(E16:E92) -> 152037096 | F93: =SUM(F16:F92) -> 24812148 | G93: =SUM(G16:G92) -> -3423722 | H93: =SUM(H16:H92) -> 173425522 | J93: =SUM(J16:J92) -> 0 | K93: =SUM(K16:K92) -> -10117329 | L93: 308481 | M93: -9808848 | N93: 163616674
J95: Less: Fully Allocated Depreciation
A96: 10 | C96: Transportation | J96: Transportation | L96: -458021
A97: 8 | C97: Stores Equipment | J97: Stores Equipment | L97: 0
L98: 0
J100: Net Depreciation | L100: =K93-L96-L97-L99-L98 -> -9659308
L101: 9659309.19
A102: Notes:
A104: 1 | B104: Tables in the format outlined above covering all fixed asset accounts should be submitted for the Test Year, Bridge Year and all relevant historical years. At a minimum , the applicant must provide data for the earlier of: 1) all historical years back to its last rebasing; or 2) at least three years of historical actuals, in addition to Bridge Year and Test Year forecasts.
A107: 2 | B107: The "CCA Class" for fixed assets should agree with the CCA Class used for tax purposes in Tax Returns. Fixed Assets sub-components may be used where the underlying asset components are classified under multiple CCA Classes for tax purposes. If an applicant uses any different classes from those shown in the table, an explanation should be provided. (also see note 3 below).
A110: 3 | B110: The table may need to be customized for a utility's asset categories or for any new asset accounts announced or authorized by the Board.
A112: 4 | B112: The depreciation column (D) is not required as the relevant information will be provided in the following 2-C series of appendices.

Sheet App.2-B_FA Continuity 2013 MIFR
M1: File Number: | N1: ='LDC Info'!$E$18 -> EB-2013-0147
M2: Exhibit:
M3: Tab:
M4: Schedule:
M5: Page:
M7: Date:
A9: Appendix 2-B
A10: Fixed Asset Continuity Schedule
F12: Year | G12: 2013 | H12: MIFRS
E14: Cost | K14: Accumulated Depreciation
A15: CCA Class | B15: OEB | C15: Description | D15: Depreciation Rate | E15: Opening Balance | F15: Additions | G15: Disposals | H15: Closing Balance | J15: Opening Balance | K15: Additions | L15: Disposals | M15: Closing Balance | N15: Net Book Value
A16: 12 | B16: 1611 | C16: Computer Software (Formally known as Account 1925) | E16: 1255381 | F16: 341000 | H16: =E16+F16+G16 -> 1596381 | J16: -349303 | K16: -380495 | M16: =J16+K16+L16 -> -729798 | N16: =H16+M16 -> 866583
A17: 12 | B17: 1611 | C17: Computer Software (Formally known as Account 1925) - Smart Meters | E17: 518017 | H17: =E17+F17+G17 -> 518017 | J17: -420712 | K17: -97305 | M17: =J17+K17+L17 -> -518017 | N17: =H17+M17 -> 0
A18: CEC | B18: 1612 | C18: Land Rights (Formally known as Account 1906) | E18: 12881 | H18: =E18+F18+G18 -> 12881 | J18: 0 | M18: =J18+K18+L18 -> 0 | N18: =H18+M18 -> 12881
A19: N/A | B19: 1805 | C19: Land | E19: 2339958 | H19: =E19+F19+G19 -> 2339958 | J19: 0 | M19: =J19+K19+L19 -> 0 | N19: =H19+M19 -> 2339958
A20: 47 | B20: 1808 | C20: Buildings | E20: 7104259 | F20: 500000 | H20: =E20+F20+G20 -> 7604259 | J20: -186431 | K20: -186400 | M20: =J20+K20+L20 -> -372831 | N20: =H20+M20 -> 7231428
A21: 47 | B21: 1808 | C21: Roof | E21: 134244 | H21: 134244 | J21: -17129 | K21: -17100 | M21: -34229 | N21: 100015
A22: 13 | B22: 1810 | C22: Leasehold Improvements
A23: 47 | B23: 1815 | C23: Transformer Station Equipment >50 kV 50 yrs | E23: 15730156 | F23: 700000 | H23: 16430156 | J23: -383943 | K23: -404300 | M23: -788243 | N23: 15641913
A24: 47 | B24: 1815 | C24: Transformer Station Equipment >50 kV 40 yrs | E24: 24475179 | F24: 1000000 | H24: 25475179 | J24: -837825 | K24: -862800 | M24: -1700625 | N24: 23774554
A25: 47 | B25: 1815 | C25: Transformer Station Equipment >50 kV 25 yrs | E25: 877407 | F25: 263300 | H25: 1140707 | J25: -84924 | K25: -95500 | M25: -180424 | N25: 960283
A26: 47 | B26: 1815 | C26: Transformer Station Equipment >50 kV 20 yrs | E26: 404824 | H26: 404824 | J26: -54569 | K26: -48500 | M26: -103069 | N26: 301755
A27: 47 | B27: 1815 | C27: Transformer Station Equipment >50 kV 15 yrs | E27: 1022473 | F27: 133400 | H27: 1155873 | J27: -148623 | K27: -157900 | M27: -306523 | N27: 849350
A28: 47 | B28: 1820 | C28: Distribution Station Equipment <50 kV 50 yrs | E28: 288917 | H28: 288917 | J28: -8813 | K28: -8800 | M28: -17613 | N28: 271304
A29: 47 | B29: 1820 | C29: Distribution Station Equipment <50 kV 40 yrs | E29: 545044 | H29: 545044 | J29: -25509 | K29: -25500 | M29: -51009 | N29: 494035
A30: 47 | B30: 1820 | C30: Distribution Station Equipment <50 kV 25 yrs | E30: 18064 | H30: 18064 | J30: -2806 | K30: -2800 | M30: -5606 | N30: 12458
A31: 47 | B31: 1820 | C31: Distribution Station Equipment <50 kV 20 yrs | E31: 5551 | H31: 5551 | J31: -1074 | K31: -1100 | M31: -2174 | N31: 3377
A32: 47 | B32: 1820 | C32: Distribution Station Equipment <50 kV 15 yrs | E32: 13753 | F32: 63000 | H32: 76753 | J32: -1793 | K32: -6000 | M32: -7793 | N32: 68960
A33: 47 | B33: 1825 | C33: Storage Battery Equipment
A34: 47 | B34: 1830 | C34: Poles, Towers & Fixtures | E34: 17988929 | F34: 2718300 | G34: -85800 | H34: 20621429 | J34: -552687 | K34: -619500 | L34: 57800 | M34: -1114387 | N34: 19507042
A35: 47 | B35: 1835 | C35: Overhead Conductors | E35: 14922089 | F35: 1636400 | H35: 16558489 | J35: -287855 | K35: -315090 | M35: -602945 | N35: 15955544
A36: 47 | B36: 1835 | C36: Overhead Devices | E36: 1609432 | F36: 181900 | H36: 1791332 | J36: -50900 | K36: -55510 | M36: -106410 | N36: 1684922
A37: 47 | B37: 1835 | C37: Voltage Regulators | E37: 163109 | H37: 163109 | J37: -8155 | K37: -8200 | M37: -16355 | N37: 146754
A38: 47 | B38: 1835 | C38: Capacitor Banks | E38: 618096 | H38: 618096 | J38: -31924 | K38: -31900 | M38: -63824 | N38: 554272
A39: 47 | B39: 1840 | C39: Underground Conduit | E39: 8736321 | F39: 3191900 | H39: 11928221 | J39: -168706 | K39: -221900 | M39: -390606 | N39: 11537615
A40: 47 | B40: 1845 | C40: Underground PILC | E40: 485811 | H40: 485811 | J40: -8335 | K40: -8300 | M40: -16635 | N40: 469176
A41: 47 | B41: 1845 | C41: Underground Cables | E41: 15439099 | F41: 2076700 | H41: 17515799 | J41: -531523 | K41: -583470 | M41: -1114993 | N41: 16400806
A42: 47 | B42: 1845 | C42: Underground Devices | E42: 1616056 | F42: 230700 | H42: 1846756 | J42: -56573 | K42: -62330 | M42: -118903 | N42: 1727853
A43: 47 | B43: 1850 | C43: Line Transformers - Overhead | E43: 13949698 | F43: 788300 | H43: 14737998 | J43: -428838 | K43: -521300 | M43: -950138 | N43: 13787860
A44: 47 | B44: 1850 | C44: Network Transformers | E44: 157770 | F44: 255900 | H44: 413670 | J44: -4252 | K44: -10700 | M44: -14952 | N44: 398718
A45: 47 | B45: 1850 | C45: Vault | E45: 2629 | F45: 85400 | H45: 88029 | J45: -44 | K45: -1500 | M45: -1544 | N45: 86485
A46: 47 | B46: 1850 | C46: Roof | E46: 497948 | H46: 497948 | J46: -21235 | K46: -21200 | M46: -42435 | N46: 455513
A47: 47 | B47: 1850 | C47: Network Protectors | E47: 199424 | H47: 199424 | J47: -4948 | K47: -4900 | M47: -9848 | N47: 189576
A48: 47 | B48: 1850 | C48: Padmount Transformers | E48: 2766614 | F48: 120600 | H48: 2887214 | J48: -74088 | K48: -77100 | M48: -151188 | N48: 2736026
A49: 47 | B49: 1850 | C49: Submersible Transformers | E49: 2120584 | F49: 1307100 | H49: 3427684 | J49: -76240 | K49: -120000 | M49: -196240 | N49: 3231444
A50: 47 | B50: 1850 | C50: Foundation | E50: 1049790 | F50: 386300 | H50: 1436090 | J50: -16177 | K50: -22600 | M50: -38777 | N50: 1397313
A51: 47 | B51: 1855 | C51: Services - Overhead | E51: 1064087 | F51: 340600 | H51: 1404687 | J51: -20945 | K51: -26600 | M51: -47545 | N51: 1357142
A52: 47 | B52: 1855 | C52: Services - Underground | E52: 11191244 | F52: 1798100 | H52: 12989344 | J52: -370565 | K52: -415600 | M52: -786165 | N52: 12203179
A53: 47 | B53: 1860 | C53: Meters | E53: 2187745 | F53: 690000 | H53: 2877745 | J53: -629264 | K53: -107249 | M53: -736513 | N53: 2141232
A54: 47 | B54: 1860 | C54: Meters (Smart Meters) | E54: 12041179 | H54: 12041179 | J54: -2387679 | K54: -796251 | M54: -3183930 | N54: 8857249
A55: N/A | B55: 1905 | C55: Land | E55: 1395300 | H55: 1395300 | J55: 0 | M55: 0 | N55: 1395300
A56: 47 | B56: 1908 | C56: Buildings & Fixtures - Building | E56: 5292786 | F56: 5600000 | H56: 10892786 | J56: -177588 | K56: -289600 | M56: -467188 | N56: 10425598
A57: 47 | B57: 1908 | C57: Buildings & Fixtures - Roof | E57: 1567291 | F57: 60000 | H57: 1627291 | J57: -246333 | K57: -249300 | M57: -495633 | N57: 1131658
A58: 13 | B58: 1910 | C58: Leasehold Improvements
A59: 8 | B59: 1915 | C59: Office Furniture & Equipment (10 years) | E59: 374513 | F59: 126600 | H59: 501113 | J59: -65353 | K59: -61400 | M59: -126753 | N59: 374360
A60: 8 | B60: 1915 | C60: Office Furniture & Equipment (5 years)
A61: 10 | B61: 1920 | C61: Computer Equipment - Hardware | E61: 578185 | F61: 398000 | H61: 976185 | J61: -141860 | K61: -146874 | M61: -288734 | N61: 687451
A62: 45 | B62: 1920 | C62: Computer Equip.-Hardware - Smart Meters | E62: 221261 | H62: 221261 | J62: -77441 | K62: -22126 | M62: -99567 | N62: 121694
A63: 45.1 | B63: 1920 | C63: Computer Equip.-Hardware(Post Mar. 19/07)
A64: 10 | B64: 1930 | C64: Transportation Equipment | E64: 3163673 | F64: 1124200 | G64: -400000 | H64: 3887873 | J64: -412506 | K64: -535700 | L64: 400000 | M64: -548206 | N64: 3339667
A65: 8 | B65: 1935 | C65: Stores Equipment | E65: 21484 | H65: 21484 | J65: -3512 | K65: -4000 | M65: -7512 | N65: 13972
A66: 8 | B66: 1940 | C66: Tools, Shop & Garage Equipment | E66: 391151 | F66: 88400 | H66: 479551 | J66: -57847 | K66: -62827 | M66: -120674 | N66: 358877
A67: 8 | B67: 1940 | C67: Tools - Smart Meters | E67: 3728 | H67: =E67+F67+G67 -> 3728 | J67: -1274 | K67: -373 | M67: =J67+K67+L67 -> -1647 | N67: =H67+M67 -> 2081
A68: 8 | B68: 1945 | C68: Measurement & Testing Equipment | E68: 259449 | H68: 259449 | J68: -32783 | K68: -34100 | M68: -66883 | N68: 192566
A69: 8 | B69: 1950 | C69: Power Operated Equipment | E69: 360880 | H69: 360880 | J69: -57705 | K69: -54600 | M69: -112305 | N69: 248575
A70: 8 | B70: 1955 | C70: Communications Equipment | E70: 58879 | H70: 58879 | J70: -16819 | K70: -20289 | M70: -37108 | N70: 21771
A71: 8 | B71: 1955 | C71: Communication Equipment (Smart Meters) | E71: 696107 | H71: 696107 | J71: -254934 | K71: -69611 | M71: -324545 | N71: 371562
A72: 8 | B72: 1960 | C72: Miscellaneous Equipment | E72: 40969 | H72: 40969 | J72: -14931 | K72: -14700 | M72: -29631 | N72: 11338
A73: 47 | B73: 1975 | C73: Load Management Controls Utility Premises
A74: 47 | B74: 1980 | C74: System Supervisor Equipment | E74: 115075 | H74: 115075 | J74: -95926 | K74: -4100 | M74: -100026 | N74: 15049
A75: 47 | B75: 1985 | C75: Miscellaneous Fixed Assets
A76: 47 | B76: 1995 | C76: Contributions & Grants
A77: 47 | B77: 1995 | C77: CC - Poles Towers Fixtures | E77: -600093 | F77: -308400 | H77: -908493 | J77: 15002 | K77: 22700 | M77: 37702 | N77: -870791
A78: 47 | B78: 1995 | C78: CC - O/H Conductors | E78: -607123 | F78: -212130 | H78: -819253 | J78: 10119 | K78: 13600 | M78: 23719 | N78: -795534
A79: 47 | B79: 1995 | C79: CC - O/H Devices | E79: -67458 | F79: -23570 | H79: -91028 | J79: 1686 | K79: 2300 | M79: 3986 | N79: -87042
A80: 47 | B80: 1995 | C80: CC - O/H Services | E80: 90988 | F80: -31750 | H80: 59238 | J80: -1516 | K80: -1000 | M80: -2516 | N80: 56722
A81: 47 | B81: 1995 | C81: CC - U/G Trenching and Ductwork | E81: -1079357 | F81: -797000 | H81: -1876357 | J81: 17989 | K81: 31300 | M81: 49289 | N81: -1827068
A82: 47 | B82: 1995 | C82: CC - U/G Cable-Primary | E82: -1393554 | F82: -623160 | H82: -2016714 | J82: 34839 | K82: 50400 | M82: 85239 | N82: -1931475
A83: 47 | B83: 1995 | C83: CC - U/G Devices | E83: -104668 | F83: -69240 | H83: -173908 | J83: 2617 | K83: 4300 | M83: 6917 | N83: -166991
A84: 47 | B84: 1995 | C84: CC - U/G Services | E84: -48024 | F84: 0 | H84: -48024 | J84: 1201 | K84: 1200 | M84: 2401 | N84: -45623
A85: 47 | B85: 1995 | C85: CC - Pole Top Transformer | E85: -317706 | F85: -141200 | H85: -458906 | J85: 7943 | K85: 11500 | M85: 19443 | N85: -439463
A86: 47 | B86: 1995 | C86: CC - UG Transformer | E86: -281562 | F86: -329400 | H86: -610962 | J86: 9385 | K86: 20400 | M86: 29785 | N86: -581177
A87: 47 | B87: 1995 | C87: CC - U/G Submersible Transformer | E87: 172272 | F87: -1303150 | H87: -1130878 | J87: -4307 | K87: 28300 | M87: 23993 | N87: -1106885
A88: 47 | B88: 1995 | C88: CC - Foundation Transformer | E88: -429058 | F88: -96500 | H88: -525558 | J88: 7151 | K88: 8800 | M88: 15951 | N88: -509607
A89: 47 | B89: 1995 | C89: CC - Meters Distribution | E89: -95090 | F89: -40000 | H89: -135090 | J89: 6339 | K89: 5500 | M89: 11839 | N89: -123251
A90: 47 | B90: 1995 | C90: CC - OEB Clearing Account | E90: 91462 | F90: 40000 | H90: 131462 | J90: -6097 | K90: -5200 | M90: -11297 | N90: 120165
C93: Total | E93: =SUM(E16:E92) -> 173425522 | F93: =SUM(F16:F92) -> 22270600 | G93: =SUM(G16:G92) -> -485800 | H93: =SUM(H16:H92) -> 195210322 | J93: =SUM(J16:J92) -> -9808848 | K93: =SUM(K16:K92) -> -7701200 | L93: 457800 | M93: -17052248 | N93: 178158074
J95: Less: Fully Allocated Depreciation
A96: 10 | C96: Transportation | J96: Transportation | L96: -535700
J97: Loss on disposal - poles | L97: 22900
A98: 8 | C98: Stores Equipment | J98: Stores Equipment
J99: Net Depreciation | L99: =K93-L96-L98-L97 -> -7188400
L100: 7188399.5
A101: Notes: | L101: =SUM(L99:L100) -> -0.5
A103: 1 | B103: Tables in the format outlined above covering all fixed asset accounts should be submitted for the Test Year, Bridge Year and all relevant historical years. At a minimum , the applicant must provide data for the earlier of: 1) all historical years back to its last rebasing; or 2) at least three years of historical actuals, in addition to Bridge Year and Test Year forecasts.
A106: 2 | B106: The "CCA Class" for fixed assets should agree with the CCA Class used for tax purposes in Tax Returns. Fixed Assets sub-components may be used where the underlying asset components are classified under multiple CCA Classes for tax purposes. If an applicant uses any different classes from those shown in the table, an explanation should be provided. (also see note 3 below).
A109: 3 | B109: The table may need to be customized for a utility's asset categories or for any new asset accounts announced or authorized by the Board.
A111: 4 | B111: The depreciation column (D) is not required as the relevant information will be provided in the following 2-C series of appendices.

Sheet App.2-B_FA Continuity 2014 MIFR
M1: File Number: | N1: ='LDC Info'!$E$18 -> EB-2013-0147
M2: Exhibit:
M3: Tab:
M4: Schedule:
M5: Page:
M7: Date:
A9: Appendix 2-B
A10: Fixed Asset Continuity Schedule
F12: Year | G12: 2014 | H12: MIFRS
E14: Cost | K14: Accumulated Depreciation
A15: CCA Class | B15: OEB | C15: Description | D15: Depreciation Rate | E15: Opening Balance | F15: Additions | G15: Disposals | H15: Closing Balance | J15: Opening Balance | K15: Additions | L15: Disposals | M15: Closing Balance | N15: Net Book Value
A16: 12 | B16: 1611 | C16: Computer Software (Formally known as Account 1925) | E16: 1596381 | F16: 360000 | H16: =E16+F16+G16 -> 1956381 | J16: -729798 | K16: -666800 | M16: =J16+K16+L16 -> -1396598 | N16: =H16+M16 -> 559783
A17: 12 | B17: 1611 | C17: Computer Software (Formally known as Account 1925) - Smart Meters | E17: 518017 | H17: =E17+F17+G17 -> 518017 | J17: -518017 | M17: =J17+K17+L17 -> -518017 | N17: =H17+M17 -> 0
A18: CEC | B18: 1612 | C18: Land Rights (Formally known as Account 1906) | E18: 12881 | H18: =E18+F18+G18 -> 12881 | J18: 0 | K18: 0 | M18: =J18+K18+L18 -> 0 | N18: =H18+M18 -> 12881
A19: N/A | B19: 1805 | C19: Land | E19: 2339958 | H19: =E19+F19+G19 -> 2339958 | J19: 0 | K19: 0 | M19: =J19+K19+L19 -> 0 | N19: =H19+M19 -> 2339958
A20: 47 | B20: 1808 | C20: Buildings | E20: 7604259 | F20: 158000 | H20: =E20+F20+G20 -> 7762259 | J20: -372831 | K20: -186400 | M20: =J20+K20+L20 -> -559231 | N20: =H20+M20 -> 7203028
A21: 47 | B21: 1808 | C21: Roof | E21: 134244 | F21: 3200 | H21: 137444 | J21: -34229 | K21: -12700 | M21: -46929 | N21: 90515
A22: 13 | B22: 1810 | C22: Leasehold Improvements
A23: 47 | B23: 1815 | C23: Transformer Station Equipment >50 kV 50 yrs | E23: 16430156 | F23: 650000 | H23: 17080156 | J23: -788243 | K23: -411100 | M23: -1199343 | N23: 15880813
A24: 47 | B24: 1815 | C24: Transformer Station Equipment >50 kV 40 yrs | E24: 25475179 | F24: 1390000 | H24: 26865179 | J24: -1700625 | K24: -881000 | M24: -2581625 | N24: 24283554
A25: 47 | B25: 1815 | C25: Transformer Station Equipment >50 kV 25 yrs | E25: 1140707 | H25: 1140707 | J25: -180424 | K25: -87300 | M25: -267724 | N25: 872983
A26: 47 | B26: 1815 | C26: Transformer Station Equipment >50 kV 20 yrs | E26: 404824 | H26: 404824 | J26: -103069 | K26: -41500 | M26: -144569 | N26: 260255
A27: 47 | B27: 1815 | C27: Transformer Station Equipment >50 kV 15 yrs | E27: 1155873 | H27: 1155873 | J27: -306523 | K27: -146000 | M27: -452523 | N27: 703350
A28: 47 | B28: 1820 | C28: Distribution Station Equipment <50 kV 50 yrs | E28: 288917 | H28: 288917 | I28: -1965929 | J28: -17613 | K28: -8800 | M28: -26413 | N28: 262504
A29: 47 | B29: 1820 | C29: Distribution Station Equipment <50 kV 40 yrs | E29: 545044 | H29: 545044 | I29: -1965929 | J29: -51009 | K29: -25500 | M29: -76509 | N29: 468535
A30: 47 | B30: 1820 | C30: Distribution Station Equipment <50 kV 25 yrs | E30: 18064 | H30: 18064 | I30: -1965929 | J30: -5606 | K30: -2200 | M30: -7806 | N30: 10258
A31: 47 | B31: 1820 | C31: Distribution Station Equipment <50 kV 20 yrs | E31: 5551 | H31: 5551 | I31: -1965929 | J31: -2174 | K31: -1100 | M31: -3274 | N31: 2277
A32: 47 | B32: 1820 | C32: Distribution Station Equipment <50 kV 15 yrs | E32: 76753 | H32: 76753 | I32: -1965929 | J32: -7793 | K32: -6000 | M32: -13793 | N32: 62960
A33: 47 | B33: 1825 | C33: Storage Battery Equipment
A34: 47 | B34: 1830 | C34: Poles, Towers & Fixtures | E34: 20621429 | F34: 2768500 | G34: -172100 | H34: 23217829 | J34: -1114387 | K34: -651100 | L34: 90000 | M34: -1675487 | N34: 21542342
A35: 47 | B35: 1835 | C35: Overhead Conductors | E35: 16558489 | F35: 1997100 | H35: 18555589 | J35: -602945 | K35: -330390 | M35: -933335 | N35: 17622254
A36: 47 | B36: 1835 | C36: Overhead Devices | E36: 1791332 | F36: 221900 | H36: 2013232 | J36: -106410 | K36: -60610 | M36: -167020 | N36: 1846212
A37: 47 | B37: 1835 | C37: Voltage Regulators | E37: 163109 | H37: 163109 | J37: -16355 | K37: -8200 | M37: -24555 | N37: 138554
A38: 47 | B38: 1835 | C38: Capacitor Banks | E38: 618096 | H38: 618096 | J38: -63824 | K38: -31900 | M38: -95724 | N38: 522372
A39: 47 | B39: 1840 | C39: Underground Conduit | E39: 11928221 | F39: 2820500 | G39: -99700 | H39: 14649021 | J39: -390606 | K39: -244500 | L39: 80600 | M39: -554506 | N39: 14094515
A40: 47 | B40: 1845 | C40: Underground PILC | E40: 485811 | H40: 485811 | J40: -16635 | K40: -8300 | M40: -24935 | N40: 460876
A41: 47 | B41: 1845 | C41: Underground Cables | E41: 17515799 | F41: 2359600 | H41: 19875399 | J41: -1114993 | K41: -612970 | M41: -1727963 | N41: 18147436
A42: 47 | B42: 1845 | C42: Underground Devices | E42: 1846756 | F42: 262200 | H42: 2108956 | J42: -118903 | K42: -65630 | M42: -184533 | N42: 1924423
A43: 47 | B43: 1850 | C43: Line Transformers - Overhead | E43: 14737998 | F43: 820800 | H43: 15558798 | J43: -950138 | K43: -531600 | M43: -1481738 | N43: 14077060
A44: 47 | B44: 1850 | C44: Network Transformers | E44: 413670 | F44: 192100 | H44: 605770 | J44: -14952 | K44: -13000 | M44: -27952 | N44: 577818
A45: 47 | B45: 1850 | C45: Vault | E45: 88029 | H45: 88029 | J45: -1544 | K45: -1500 | M45: -3044 | N45: 84985
A46: 47 | B46: 1850 | C46: Roof | E46: 497948 | H46: 497948 | J46: -42435 | K46: -20900 | M46: -63335 | N46: 434613
A47: 47 | B47: 1850 | C47: Network Protectors | E47: 199424 | H47: 199424 | J47: -9848 | K47: -4900 | M47: -14748 | N47: 184676
A48: 47 | B48: 1850 | C48: Padmount Transformers | E48: 2887214 | F48: 463000 | H48: 3350214 | J48: -151188 | K48: -82900 | M48: -234088 | N48: 3116126
A49: 47 | B49: 1850 | C49: Submersible Transformers | E49: 3427684 | F49: 1097700 | H49: 4525384 | J49: -196240 | K49: -138200 | M49: -334440 | N49: 4190944
A50: 47 | B50: 1850 | C50: Foundation | E50: 1436090 | F50: 324900 | H50: 1760990 | J50: -38777 | K50: -25400 | M50: -64177 | N50: 1696813
A51: 47 | B51: 1855 | C51: Services - Overhead | E51: 1404687 | F51: 538500 | H51: 1943187 | J51: -47545 | K51: -31200 | M51: -78745 | N51: 1864442
A52: 47 | B52: 1855 | C52: Services - Underground | E52: 12989344 | F52: 2525500 | H52: 15514844 | J52: -786165 | K52: -447000 | M52: -1233165 | N52: 14281679
A53: 47 | B53: 1860 | C53: Meters | E53: 2877745 | F53: 612000 | H53: 3489745 | J53: -736513 | K53: -77049 | M53: -813562 | N53: 2676183
A54: 47 | B54: 1860 | C54: Meters (Smart Meters) | E54: 12041179 | H54: 12041179 | J54: -3183930 | K54: -837051 | M54: -4020981 | N54: 8020198
A55: N/A | B55: 1905 | C55: Land | E55: 1395300 | H55: 1395300 | J55: 0 | K55: 0 | M55: 0 | N55: 1395300
A56: 47 | B56: 1908 | C56: Buildings & Fixtures - Building | E56: 10892786 | F56: 1350000 | H56: 12242786 | J56: -467188 | K56: -309400 | M56: -776588 | N56: 11466198
A57: 47 | B57: 1908 | C57: Buildings & Fixtures - Roof | E57: 1627291 | H57: 1627291 | J57: -495633 | K57: -243200 | M57: -738833 | N57: 888458
A58: 13 | B58: 1910 | C58: Leasehold Improvements
A59: 8 | B59: 1915 | C59: Office Furniture & Equipment (10 years) | E59: 501113 | F59: 70000 | H59: 571113 | J59: -126753 | K59: -75800 | M59: -202553 | N59: 368560
A60: 8 | B60: 1915 | C60: Office Furniture & Equipment (5 years)
A61: 10 | B61: 1920 | C61: Computer Equipment - Hardware | E61: 976185 | F61: 360000 | H61: 1336185 | J61: -288734 | K61: -181474 | M61: -470208 | N61: 865977
A62: 45 | B62: 1920 | C62: Computer Equip.-Hardware - Smart Meters | E62: 221261 | H62: 221261 | J62: -99567 | K62: -22126 | M62: -121693 | N62: 99568
A63: 45.1 | B63: 1920 | C63: Computer Equip.-Hardware(Post Mar. 19/07)
A64: 10 | B64: 1930 | C64: Transportation Equipment | E64: 3887873 | F64: 920000 | G64: -400000 | H64: 4407873 | J64: -548206 | K64: -643000 | L64: 400000 | M64: -791206 | N64: 3616667
A65: 8 | B65: 1935 | C65: Stores Equipment | E65: 21484 | H65: 21484 | J65: -7512 | K65: -4000 | M65: -11512 | N65: 9972
A66: 8 | B66: 1940 | C66: Tools, Shop & Garage Equipment | E66: 479551 | F66: 90000 | H66: 569551 | J66: -120674 | K66: -71827 | M66: -192501 | N66: 377050
A67: 8 | B67: 1940 | C67: Tools - Smart Meters | E67: 3728 | H67: =E67+F67+G67 -> 3728 | J67: -1647 | K67: -373 | M67: =J67+K67+L67 -> -2020 | N67: =H67+M67 -> 1708
A68: 8 | B68: 1945 | C68: Measurement & Testing Equipment | E68: 259449 | H68: 259449 | J68: -66883 | K68: -34100 | M68: -100983 | N68: 158466
A69: 8 | B69: 1950 | C69: Power Operated Equipment | E69: 360880 | H69: 360880 | J69: -112305 | K69: -54600 | M69: -166905 | N69: 193975
A70: 8 | B70: 1955 | C70: Communications Equipment | E70: 58879 | H70: 58879 | J70: -37108 | K70: -20189 | M70: -57297 | N70: 1582
A71: 8 | B71: 1955 | C71: Communication Equipment (Smart Meters) | E71: 696107 | H71: 696107 | J71: -324545 | K71: -69611 | M71: -394156 | N71: 301951
A72: 8 | B72: 1960 | C72: Miscellaneous Equipment | E72: 40969 | H72: 40969 | J72: -29631 | K72: -11300 | M72: -40931 | N72: 38
A73: 47 | B73: 1975 | C73: Load Management Controls Utility Premises
A74: 47 | B74: 1980 | C74: System Supervisor Equipment | E74: 115075 | H74: 115075 | J74: -100026 | K74: -4100 | M74: -104126 | N74: 10949
A75: 47 | B75: 1985 | C75: Miscellaneous Fixed Assets
A76: 47 | B76: 1995 | C76: Contributions & Grants
A77: 47 | B77: 1995 | C77: CC - Poles Towers Fixtures | E77: -908493 | F77: -500500 | H77: -1408993 | J77: 37702 | K77: 29000 | M77: 66702 | N77: -1342291
A78: 47 | B78: 1995 | C78: CC - O/H Conductors | E78: -819253 | F78: -411840 | H78: -1231093 | J78: 23719 | K78: 17100 | M78: 40819 | N78: -1190274
A79: 47 | B79: 1995 | C79: CC - O/H Devices | E79: -91028 | F79: -45760 | H79: -136788 | J79: 3986 | K79: 2800 | M79: 6786 | N79: -130002
A80: 47 | B80: 1995 | C80: CC - O/H Services | E80: 59238 | F80: -78650 | H80: -19412 | J80: -2516 | K80: -300 | M80: -2816 | N80: -22228
A81: 47 | B81: 1995 | C81: CC - U/G Trenching and Ductwork | E81: -1876357 | F81: -815625 | H81: -2691982 | J81: 49289 | K81: 38100 | M81: 87389 | N81: -2604593
A82: 47 | B82: 1995 | C82: CC - U/G Cable-Primary | E82: -2016714 | F82: -700583 | H82: -2717297 | J82: 85239 | K82: 59200 | M82: 144439 | N82: -2572858
A83: 47 | B83: 1995 | C83: CC - U/G Devices | E83: -173908 | F83: -77843 | H83: -251751 | J83: 6917 | K83: 5300 | M83: 12217 | N83: -239534
A84: 47 | B84: 1995 | C84: CC - U/G Services | E84: -48024 | F84: 0 | H84: -48024 | J84: 2401 | K84: 1200 | M84: 3601 | N84: -44423
A85: 47 | B85: 1995 | C85: CC - Pole Top Transformer | E85: -458906 | F85: -134868 | H85: -593774 | J85: 19443 | K85: 13200 | M85: 32643 | N85: -561131
A86: 47 | B86: 1995 | C86: CC - UG Transformer | E86: -610962 | F86: -314700 | H86: -925662 | J86: 29785 | K86: 25600 | M86: 55385 | N86: -870277
A87: 47 | B87: 1995 | C87: CC - U/G Submersible Transformer | E87: -1130878 | F87: -1537000 | H87: -2667878 | J87: 23993 | K87: 47500 | M87: 71493 | N87: -2596385
A88: 47 | B88: 1995 | C88: CC - Foundation Transformer | E88: -525558 | F88: -92200 | H88: -617758 | J88: 15951 | K88: 9500 | M88: 25451 | N88: -592307
A89: 47 | B89: 1995 | C89: CC - Meters Distribution | E89: -135090 | F89: -40000 | H89: -175090 | J89: 11839 | K89: 6800 | M89: 18639 | N89: -156451
A90: 47 | B90: 1995 | C90: CC - OEB Clearing Account | E90: 131462 | F90: 40000 | H90: 171462 | J90: -11297 | K90: -6500 | M90: -17797 | N90: 153665
B91: etc.
C93: Total | E93: =SUM(E16:E92) -> 195210322 | F93: =SUM(F16:F92) -> 17645931 | G93: =SUM(G16:G92) -> -671800 | H93: =SUM(H16:H92) -> 212184453 | J93: =SUM(J16:J92) -> -17052248 | K93: =SUM(K16:K92) -> -8197300 | L93: 570600 | M93: -24678948 | N93: 187505505
J95: Less: Fully Allocated Depreciation
A96: 10 | C96: Transportation | J96: Transportation | L96: -643000
J97: PP&E Amortization | L97: -1485353
J98: Losses on pooled assets | L98: 96000 | M98: (pole & u/g conduit)
A99: 8 | C99: Stores Equipment | J99: Stores Equipment
J100: Net Depreciation | L100: =K93-L96-L99-L97-L98 -> -6164947
L101: 6164947
A102: Notes: | L102: =SUM(L100:L101) -> 0
A104: 1 | B104: Tables in the format outlined above covering all fixed asset accounts should be submitted for the Test Year, Bridge Year and all relevant historical years. At a minimum , the applicant must provide data for the earlier of: 1) all historical years back to its last rebasing; or 2) at least three years of historical actuals, in addition to Bridge Year and Test Year forecasts.
A107: 2 | B107: The "CCA Class" for fixed assets should agree with the CCA Class used for tax purposes in Tax Returns. Fixed Assets sub-components may be used where the underlying asset components are classified under multiple CCA Classes for tax purposes. If an applicant uses any different classes from those shown in the table, an explanation should be provided. (also see note 3 below).
A110: 3 | B110: The table may need to be customized for a utility's asset categories or for any new asset accounts announced or authorized by the Board.
A112: 4 | B112: The depreciation column (D) is not required as the relevant information will be provided in the following 2-C series of appendices.

Sheet App.2-CA_CGAAP_DepExp_2012
K1: File Number: | L1: ='LDC Info'!$E$18 -> EB-2013-0147
K2: Exhibit:
K3: Tab:
K4: Schedule:
K5: Page:
K7: Date:
A9: Appendix 2-CA
A10: Depreciation and Amortization Expense
A11: Assumes the applicant adopted IFRS for financial reporting purposes January 1, 2013
C12: Year | D12: 2012 | E12: CGAAP
A14: Account | B14: Description | C14: Opening Regulatory Gross PP&E as at Jan 1, 2012 | D14: Less Fully Depreciated | E14: Net for Depreciation | F14: Additions | G14: Total for Depreciation | H14: Years | I14: Depreciation Rate | J14: Depreciation Expense | K14: 2012 Depreciation Expense per Appendix 2-B Fixed Assets, Column K (l) | L14: Variance 2
C15: (a) | D15: (b) | E15: (c) | F15: (d) | G15: (e) = (c) + ½ x (d) 1 | H15: (f) | I15: (g) = 1 / (f) | J15: (h) = (e) / (f) | L15: (m) = (h) - (l)
A16: 1611 | B16: Computer Software (Formally known as Account 1925) | C16: 3266775 | D16: 2476815.65 | E16: =C16-D16 -> 789959.35 | F16: 326748 | G16: =E16+0.5*F16 -> 953333.35 | H16: 5 | I16: =IF(H16=0,0,1/H16) -> 0.2 | J16: =IF(H16=0,0,G16/H16) -> 190666.67 | K16: 322564 | L16: =IF(ISERROR(+J16-K16), 0, +J16-K16) -> -131897.33
A17: 1611 | B17: Computer Software (Formally known as Account 1925) - Smart Meters | E17: =C17-D17 -> 0 | F17: 518017 | G17: =E17+0.5*F17 -> 259008.5 | H17: 3 | I17: =IF(H17=0,0,1/H17) -> 0.3333333333 | J17: =IF(H17=0,0,G17/H17) -> 86336.16667 | K17: 420712 | L17: =IF(ISERROR(+J17-K17), 0, +J17-K17) -> -334375.8333
A18: 1612 | B18: Land Rights (Formally known as Account 1906) | C18: 265449 | D18: 199174 | E18: =C18-D18 -> 66275 | F18: 0 | G18: =E18+0.5*F18 -> 66275 | H18: 25 | I18: 0.04 | J18: =IF(H18=0,0,G18/H18) -> 2651 | K18: 2653 | L18: =IF(ISERROR(+J18-K18), 0, +J18-K18) -> -2
A19: 1805 | B19: Land | C19: 2339958 | E19: 2339958 | F19: 0 | G19: 2339958 | H19: 0 | I19: 0 | J19: 0 | K19: 0 | L19: 0
A20: 1808 | B20: Buildings | C20: 7461078.7 | E20: 7461078.7 | F20: -20178 | G20: 7450989.7 | H20: 50 | I20: 0.02 | J20: 149019.794 | K20: 148823 | L20: 196.794
A21: 1808 | B21: Buildings | C21: 1807586.3 | E21: =C21-D21 -> 1807586.3 | G21: =E21+0.5*F21 -> 1807586.3 | H21: 60 | I21: =IF(H21=0,0,1/H21) -> 0.01666666667 | J21: =IF(H21=0,0,G21/H21) -> 30126.43833 | K21: 30397 | L21: =IF(ISERROR(+J21-K21), 0, +J21-K21) -> -270.5616667
A22: 1810 | B22: Leasehold Improvements | E22: 0 | F22: 0 | G22: 0 | H22: 0 | I22: 0 | J22: 0 | L22: 0
A23: 1815 | B23: Transformer Station Equipment >50 kV | C23: 59878130 | D23: 1369864.63 | E23: 58508265.37 | F23: 93639 | G23: 58555084.87 | H23: 40 | I23: 0.025 | J23: 1463877.122 | K23: 1464704 | L23: -826.87825
A24: 1820 | B24: Distribution Station Equipment <50 kV | C24: 2853105 | D24: 527835.24 | E24: 2325269.76 | F24: 0 | G24: 2325269.76 | H24: 30 | I24: 0.03333333333 | J24: 77508.992 | K24: 77457 | L24: 51.992
A25: 1825 | B25: Storage Battery Equipment | E25: 0 | F25: 0 | G25: 0 | H25: 0 | I25: 0 | J25: 0 | L25: 0
A26: 1830 | B26: Poles, Towers & Fixtures | C26: 29644768 | E26: 29644768 | F26: 2894738 | G26: 31092137 | H26: 25 | I26: 0.04 | J26: 1243685.48 | K26: 1301580 | L26: -57894.52
A27: 1835 | B27: Overhead Conductors & Devices | C27: 32204259 | E27: 32204259 | F27: 2259990 | G27: 33334254 | H27: 25 | I27: 0.04 | J27: 1333370.16 | K27: 1378570 | L27: -45199.84
A28: 1840 | B28: Underground Conduit | C28: 20808670.79 | E28: 20808670.79 | F28: 1910830 | G28: 21764085.79 | H28: 25 | I28: 0.04 | J28: 870563.4316 | K28: 908698 | L28: -38134.5684
A29: 1840 | B29: Underground Conduit | C29: 1232070.21 | E29: =C29-D29 -> 1232070.21 | G29: =E29+0.5*F29 -> 1232070.21 | H29: 35 | I29: =IF(H29=0,0,1/H29) -> 0.02857142857 | J29: =IF(H29=0,0,G29/H29) -> 35202.006 | K29: 35220.11 | L29: =IF(ISERROR(+J29-K29), 0, +J29-K29) -> -18.104
A30: 1845 | B30: Underground Conductors & Devices | C30: 34266705.52 | E30: 34266705.52 | F30: 2430148 | G30: 35481779.52 | H30: 25 | I30: 0.04 | J30: =IF(H30=0,0,G30/H30) -> 1419271.181 | K30: 1467669.45 | L30: -48398.2692
A31: 1845 | B31: Underground Conductors & Devices | C31: 3058251.48 | E31: =C31-D31 -> 3058251.48 | G31: =E31+0.5*F31 -> 3058251.48 | H31: 35 | I31: =IF(H31=0,0,1/H31) -> 0.02857142857 | J31: =IF(H31=0,0,G31/H31) -> 87378.61371 | K31: 87423.55 | L31: =IF(ISERROR(+J31-K31), 0, +J31-K31) -> -44.93628571
A32: 1850 | B32: Line Transformers | C32: 47742315.85 | E32: 47742315.85 | F32: 3398190 | G32: 49441410.85 | H32: 25 | I32: 0.04 | J32: 1977656.434 | K32: 1972805 | L32: 4851.434
A33: 1850 | B33: Line Transformers | C33: 2180161.15 | E33: =C33-D33 -> 2180161.15 | G33: =E33+0.5*F33 -> 2180161.15 | H33: 30 | I33: =IF(H33=0,0,1/H33) -> 0.03333333333 | J33: =IF(H33=0,0,G33/H33) -> 72672.03833 | K33: 72672.04 | L33: =IF(ISERROR(+J33-K33), 0, +J33-K33) -> -0.001666666663
A34: 1855 | B34: Services (Overhead & Underground) | C34: 39590233.15 | E34: 39590233.15 | F34: 2762234 | G34: 40971350.15 | H34: 25 | I34: 0.04 | J34: 1638854.006 | K34: 1694385.76 | L34: -55531.754
A35: 1855 | B35: Services (Overhead & Underground) | C35: 1885468.85 | E35: =C35-D35 -> 1885468.85 | G35: =E35+0.5*F35 -> 1885468.85 | H35: 35 | I35: =IF(H35=0,0,1/H35) -> 0.02857142857 | J35: =IF(H35=0,0,G35/H35) -> 53870.53857 | K35: 53898.24 | L35: =IF(ISERROR(+J35-K35), 0, +J35-K35) -> -27.70142857
A36: 1860 | B36: Meters | C36: 11502677 | D36: 9578658 | E36: 1924019 | F36: 367352 | G36: 2107695 | H36: 25 | I36: 0.04 | J36: 84307.8 | K36: 598599 | L36: -514291.2
A37: 1860 | B37: Meters | C37: 706 | E37: =C37-D37 -> 706 | G37: =E37+0.5*F37 -> 706 | H37: 35 | I37: =IF(H37=0,0,1/H37) -> 0.02857142857 | J37: =IF(H37=0,0,G37/H37) -> 20.17142857 | K37: 20 | L37: =IF(ISERROR(+J37-K37), 0, +J37-K37) -> 0.1714285714
A38: 1860 | B38: Meters (Smart Meters) | E38: 0 | F38: 12045109 | G38: 6022554.5 | H38: 15 | I38: 0.06666666667 | J38: 401503.6333 | K38: 2387679 | L38: -1986175.367
A39: 1905 | B39: Land | C39: 1395300 | E39: 1395300 | F39: 0 | G39: 1395300 | H39: 0 | I39: 0 | J39: 0 | L39: 0
A40: 1908 | B40: Buildings & Fixtures | C40: 3877327 | E40: 3877327 | F40: 31703 | G40: 3893178.5 | H40: 50 | I40: 0.02 | J40: 77863.57 | K40: 78181 | L40: -317.43
A41: 1908 | B41: Buildings & Fixtures | C41: 6367626 | E41: =C41-D41 -> 6367626 | G41: =E41+0.5*F41 -> 6367626 | H41: 60 | I41: =IF(H41=0,0,1/H41) -> 0.01666666667 | J41: =IF(H41=0,0,G41/H41) -> 106127.1 | K41: 106127 | L41: =IF(ISERROR(+J41-K41), 0, +J41-K41) -> 0.1
A42: 1910 | B42: Leasehold Improvements | E42: 0 | F42: 0 | G42: 0 | H42: 50 | I42: 0.02 | J42: 0 | L42: 0
A43: 1915 | B43: Office Furniture & Equipment (10 years) | C43: 1112310 | D43: 527725 | E43: 584585 | F43: 34301 | G43: 601735.5 | H43: 10 | I43: 0.1 | J43: 60173.55 | K43: 65354 | L43: -5180.45
A44: 1915 | B44: Office Furniture & Equipment (5 years) | E44: 0 | F44: 0 | G44: 0 | H44: 5 | I44: 0.2 | J44: 0 | K44: 0 | L44: 0
A45: 1920 | B45: Computer Equipment - Hardware | C45: 2420464 | D45: 1813602.59 | E45: 606861.41 | F45: 227721 | G45: 720721.91 | H45: 5 | I45: 0.2 | J45: 144144.382 | K45: 151267 | L45: -7122.618
A46: 1920 | B46: Computer Equip.-Hardware - Smart Meters | E46: 0 | F46: 221261 | G46: 110630.5 | H46: 5 | I46: 0.2 | J46: 22126.1 | K46: 77441 | L46: -55314.9
A47: 1920 | B47: Computer Equip.-Hardware(Post Mar. 19/07) | E47: 0 | G47: 0 | H47: 5 | I47: 0.2 | J47: 0 | K47: 0 | L47: 0
A48: 1930 | B48: Transportation Equipment < 3 Tons | C48: 1059248.37 | D48: 402788.6 | E48: =C48-D48 -> 656459.77 | F48: 52112.56 | G48: =E48+0.5*F48 -> 682516.05 | H48: 5 | I48: 0.2 | J48: 136503.21 | K48: 43455 | L48: 93048.21
A49: 1930 | B49: Transportation Equipment > 3 Tons | C49: 6846246.52 | D49: 1672923.82 | E49: =C49-D49 -> 5173322.7 | F49: 375989 | G49: =E49+0.5*F49 -> 5361317.2 | H49: 8 | I49: =IF(H49=0,0,1/H49) -> 0.125 | J49: =IF(H49=0,0,G49/H49) -> 670164.65 | K49: 693664 | L49: =IF(ISERROR(+J49-K49), 0, +J49-K49) -> -23499.35
A50: 1930 | B50: Transportation Equipment - Trailers | C50: 249385.85 | D50: 168828.67 | E50: =C50-D50 -> 80557.18 | F50: 0 | G50: =E50+0.5*F50 -> 80557.18 | H50: 8 | I50: =IF(H50=0,0,1/H50) -> 0.125 | J50: =IF(H50=0,0,G50/H50) -> 10069.6475 | K50: 10070 | L50: =IF(ISERROR(+J50-K50), 0, +J50-K50) -> -0.3525
A51: 1935 | B51: Stores Equipment | C51: 64072 | D51: 36629.72 | E51: 27442.28 | F51: 0 | G51: 27442.28 | H51: 10 | I51: 0.1 | J51: 2744.228 | K51: 3512 | L51: -767.772
A52: 1940 | B52: Tools, Shop & Garage Equipment | C52: 772798 | D52: 230418.71 | E52: 542379.29 | F52: 70533 | G52: 577645.79 | H52: 10 | I52: 0.1 | J52: 57764.579 | K52: 60130 | L52: -2365.421
A53: 1940 | B53: Tools - Smart Meters | E53: =C53-D53 -> 0 | F53: 3728 | G53: =E53+0.5*F53 -> 1864 | H53: 10 | I53: =IF(H53=0,0,1/H53) -> 0.1 | J53: =IF(H53=0,0,G53/H53) -> 186.4 | K53: 372.8 | L53: =IF(ISERROR(+J53-K53), 0, +J53-K53) -> -186.4
A54: 1945 | B54: Measurement & Testing Equipment | C54: 866733 | D54: 614023.28 | E54: 252709.72 | F54: 96435 | G54: 300927.22 | H54: 10 | I54: 0.1 | J54: 30092.722 | K54: 32783 | L54: -2690.278
A55: 1950 | B55: Power Operated Equipment | C55: 783695 | D55: 304873.23 | E55: 478821.77 | F55: 54068 | G55: 505855.77 | H55: 10 | I55: 0.1 | J55: 50585.577 | K55: 57705 | L55: -7119.423
A56: 1955 | B56: Communications Equipment | C56: 173729 | D56: 74214.9 | E56: 99514.1 | F56: 0 | G56: 99514.1 | H56: 10 | I56: 0.1 | J56: 9951.41 | K56: 16819 | L56: -6867.59
A57: 1955 | B57: Communication Equipment (Smart Meters) | E57: 0 | F57: 696107 | G57: 348053.5 | H57: 10 | I57: 0.1 | J57: 34805.35 | K57: 254934 | L57: -220128.65
A58: 1960 | B58: Miscellaneous Equipment | C58: 98856 | D58: 24382.97 | E58: 74473.03 | F58: 0 | G58: 74473.03 | H58: 5 | I58: 0.2 | J58: 14894.606 | K58: 14930 | L58: -35.394
A59: 1975 | B59: Load Management Controls Utility Premises | E59: 0 | F59: 0 | G59: 0 | H59: 10 | I59: 0.1 | J59: 0 | K59: 0 | L59: 0
A60: 1980 | B60: System Supervisor Equipment | C60: 1507244 | D60: 5771 | E60: 1501473 | F60: 0 | G60: 1501473 | H60: 25 | I60: 0.04 | J60: 60058.92 | K60: 60058.91 | L60: 0.009999999995
A61: 1980 | B61: System Supervisor Equipment | C61: 59236 | E61: =C61-D61 -> 59236 | F61: 0 | G61: =E61+0.5*F61 -> 59236 | H61: 15 | I61: =IF(H61=0,0,1/H61) -> 0.06666666667 | J61: =IF(H61=0,0,G61/H61) -> 3949.066667 | K61: 3946.81 | L61: =IF(ISERROR(+J61-K61), 0, +J61-K61) -> 2.256666667
A62: 1985 | B62: Miscellaneous Fixed Assets | E62: 0 | F62: 0 | G62: 0 | H62: 5 | I62: 0.2 | J62: 0 | L62: 0
A63: 1995 | B63: Contributions & Grants | C63: -44537160 | E63: -44537160 | F63: -4668971 | G63: -46871645.5 | H63: 25 | I63: 0.04 | J63: -1874865.82 | K63: -1968390 | L63: =IF(ISERROR(+J63-K63), 0, +J63-K63) -> 93524.18
A64: etc. | E64: 0 | G64: 0 | I64: 0 | J64: 0 | L64: 0
E65: 0 | G65: 0 | J65: 0 | L65: 0
B66: Total | C66: =SUM(C16:C65) -> 285105479.7 | D66: =SUM(D16:D65) -> 20028530.01 | E66: =SUM(E16:E65) -> 265076949.7 | F66: =SUM(F16:F65) -> 26181804.56 | G66: =SUM(G16:G65) -> 278167852 | J66: =SUM(J16:J65) -> 10835880.92 | K66: =SUM(K16:K65) -> 14188890.67 | L66: =SUM(L16:L65) -> -3353009.745
A68: Notes:
A70: 1 | B70: Board policy of the "half-year" rule - the applicant must ensure that additions in the year attract a half-year depreciation expense in the first year. Deviations from this standard practice must be supported in the application.
A71: 2 | B71: The applicant must provide an explanation of material variances in evidence
A73: General | B73: Applicants must provide a breakdown of depreciation and amortization expense in the above format for all relevant accounts. Asset Retirement Obligations (AROs), depreciation and accretion expense should be disclosed separately consistent with the Notes of historical Audited Financial Statements.

Sheet App.2-CA_CGAAP_DepExp_2012COL (hidden)
K1: File Number: | L1: ='LDC Info'!$E$18 -> EB-2013-0147
K2: Exhibit: | L2: 4
K3: Tab:
K4: Schedule:
K5: Page:
K7: Date:
A9: Appendix 2-CA
A10: Depreciation and Amortization Expense
A11: Assumes the applicant adopted IFRS for financial reporting purposes January 1, 2013
C12: Year | D12: 2012 | E12: CGAAP
A14: Account | B14: Description | C14: Opening Regulatory Gross PP&E as at Jan 1, 2012 | D14: Less Fully Depreciated | E14: Net for Depreciation | F14: Additions | G14: Total for Depreciation | H14: Years | I14: Depreciation Rate | J14: Depreciation Expense | K14: 2012 Depreciation Expense per Appendix 2-B Fixed Assets, Column K (l) | L14: Variance 2
C15: (a) | D15: (b) | E15: (c) | F15: (d) | G15: (e) = (c) + ½ x (d) 1 | H15: (f) | I15: (g) = 1 / (f) | J15: (h) = (e) / (f) | L15: (m) = (h) - (l) | M15: 1/2 Year Deprec
A16: 1611 | B16: Computer Software (Formally known as Account 1925) | C16: 3266775 | D16: =2470199+6616.65 -> 2476815.65 | E16: =C16-D16 -> 789959.35 | F16: =+'App.2-B_FA Continuity 2012 GAAP'!F16 -> 326748 | G16: =E16+0.5*F16 -> 953333.35 | H16: 5 | I16: =IF(H16=0,0,1/H16) -> 0.2 | J16: =IF(H16=0,0,G16/H16) -> 190666.67 | K16: =-'App.2-B_FA Continuity 2012 GAAP'!K16 -> 322564 | L16: =IF(ISERROR(+J16-K16), 0, +J16-K16) -> -131897.33 | M16: =F16/H16*0.5 -> 32674.8 | N16: =L16+M16 -> -99222.53
A17: 1611 | B17: Computer Software (Formally known as Account 1925) - Smart Meters | E17: =C17-D17 -> 0 | F17: =+'App.2-B_FA Continuity 2012 GAAP'!F17 -> 518017 | G17: =E17+0.5*F17 -> 259008.5 | H17: 3 | I17: 0.3333333333 | J17: =IF(H17=0,0,G17/H17) -> 86336.16667 | K17: =-'App.2-B_FA Continuity 2012 GAAP'!K17 -> 420712 | L17: =IF(ISERROR(+J17-K17), 0, +J17-K17) -> -334375.8333 | M17: =F17/H17*0.5 -> 86336.16667 | N17: =L17+M17 -> -248039.6667 | O17: Additions during the year were from Regulatory accounts. Most are transferred in.
A18: 1612 | B18: Land Rights (Formally known as Account 1906) | C18: 265449 | D18: 199174 | E18: =C18-D18 -> 66275 | F18: 0 | G18: =E18+0.5*F18 -> 66275 | H18: 25 | I18: 0.04 | J18: 2651 | K18: =-'App.2-B_FA Continuity 2012 GAAP'!K18 -> 2653 | L18: =IF(ISERROR(+J18-K18), 0, +J18-K18) -> -2 | M18: 0 | N18: -2 | O18: Changed years. Is this correct? (assets fully depreciated?)
A19: 1805 | B19: Land | C19: 2339958 | E19: 2339958 | F19: 0 | G19: 2339958 | H19: 0 | I19: 0 | J19: 0 | K19: 0 | L19: 0 | N19: 0
A20: 1808 | B20: Buildings | C20: =9268665-C21 -> 7461078.7 | E20: 7461078.7 | F20: -20178 | G20: 7450989.7 | H20: 50 | I20: 0.02 | J20: 149019.794 | K20: =-'App.2-B_FA Continuity 2012 GAAP'!K20-K21 -> 148823 | L20: 196.794 | M20: -201.78 | N20: -4.986
A21: 1808 | B21: Buildings | C21: =110211+31314.3+94138+15528+135517+459713+57293+94760+269175+539937 -> 1807586.3 | E21: 1807586.3 | G21: 1807586.3 | H21: 60 | I21: 0.01666666667 | J21: 30126.43833 | K21: =1900+522+1827+2258+7661+983+1664+4584+8998 -> 30397 | L21: -270.5616667 | M21: 0 | N21: -270.5616667
A22: 1810 | B22: Leasehold Improvements | E22: 0 | F22: 0 | G22: 0 | H22: 0 | I22: 0 | J22: 0 | L22: 0 | N22: 0
A23: 1815 | B23: Transformer Station Equipment >50 kV | C23: 59878130 | D23: =1424846.22-54981.59 -> 1369864.63 | E23: 58508265.37 | F23: 93639 | G23: 58555084.87 | H23: 40 | I23: 0.025 | J23: 1463877.122 | K23: =-'App.2-B_FA Continuity 2012 GAAP'!K22 -> 1464704 | L23: -826.87825 | M23: 1170.4875 | N23: 343.60925 | O23: 2012 deprec error
A24: 1820 | B24: Distribution Station Equipment <50 kV | C24: 2853105 | D24: 527835.24 | E24: 2325269.76 | F24: 0 | G24: 2325269.76 | H24: 30 | I24: 0.03333333333 | J24: 77508.992 | K24: =-'App.2-B_FA Continuity 2012 GAAP'!K23 -> 77457 | L24: 51.992 | M24: 0 | N24: 51.992
A25: 1825 | B25: Storage Battery Equipment | E25: 0 | F25: 0 | G25: 0 | H25: 0 | I25: 0 | J25: 0 | L25: 0 | N25: 0
A26: 1830 | B26: Poles, Towers & Fixtures | C26: 29644768 | E26: 29644768 | F26: 2894738 | G26: 31092137 | H26: 25 | I26: 0.04 | J26: 1243685.48 | K26: =-'App.2-B_FA Continuity 2012 GAAP'!K25 -> 1301580 | L26: -57894.52 | M26: 57894.76 | N26: 0.24
A27: 1835 | B27: Overhead Conductors & Devices | C27: 32204259 | E27: 32204259 | F27: 2259990 | G27: 33334254 | H27: 25 | I27: 0.04 | J27: 1333370.16 | K27: =-'App.2-B_FA Continuity 2012 GAAP'!K26 -> 1378570 | L27: -45199.84 | M27: 45199.8 | N27: -0.04000000008
A28: 1840 | B28: Underground Conduit | C28: =22040741-1232070.21 -> 20808670.79 | E28: 20808670.79 | F28: 1910830 | G28: 21764085.79 | H28: 25 | I28: 0.04 | J28: 870563.4316 | K28: =-'App.2-B_FA Continuity 2012 GAAP'!K27-35220 -> 908698 | L28: -38134.5684 | M28: 38216.6 | N28: 82.0316
A29: 1840 | B29: Underground Conduit | C29: 1232070.21 | E29: 1232070.21 | G29: 1232070.21 | H29: 35 | I29: 0.02857142857 | J29: 35202.006 | K29: 35220.11 | L29: -18.104 | M29: 0 | N29: -18.104
A30: 1845 | B30: Underground Conductors & Devices | C30: =37324957-3058251.48 -> 34266705.52 | E30: 34266705.52 | F30: 2430148 | G30: 35481779.52 | H30: 25 | I30: 0.04 | J30: =IF(H30=0,0,G30/H30) -> 1419271.181 | K30: =1555093-87423.55 -> 1467669.45 | L30: -48398.2692 | M30: 48602.96 | N30: 204.6908
A31: 1845 | B31: Underground Conductors & Devices | C31: 3058251.48 | E31: 3058251.48 | G31: 3058251.48 | H31: 35 | I31: 0.02857142857 | J31: =IF(H31=0,0,G31/H31) -> 87378.61371 | K31: 87423.55 | L31: -44.93628571 | M31: 0 | N31: -44.93628571
A32: 1850 | B32: Line Transformers | C32: =49922477-2180161.15 -> 47742315.85 | E32: 47742315.85 | F32: 3398190 | G32: 49441410.85 | H32: 25 | I32: 0.04 | J32: 1977656.434 | K32: =2045477-72672 -> 1972805 | L32: 4851.434 | M32: 67963.8 | N32: 72815.234 | O32: transfers
A33: 1850 | B33: Line Transformers | C33: 2180161.15 | E33: 2180161.15 | G33: 2180161.15 | H33: 30 | I33: 0.03333333333 | J33: 72672.03833 | K33: 72672.04 | L33: -0.001666666663 | M33: 0 | N33: -0.001666666663
A34: 1855 | B34: Services (Overhead & Underground) | C34: =41475703-1885469.85 -> 39590233.15 | E34: 39590233.15 | F34: 2762234 | G34: 40971350.15 | H34: 25 | I34: 0.04 | J34: 1638854.006 | K34: =1748284-53898.24 -> 1694385.76 | L34: -55531.754 | M34: 55244.68 | N34: -287.074
A35: 1855 | B35: Services (Overhead & Underground) | C35: 1885468.85 | E35: 1885468.85 | G35: 1885468.85 | H35: 35 | I35: 0.02857142857 | J35: 53870.53857 | K35: 53898.24 | L35: -27.70142857 | M35: 0 | N35: -27.70142857
A36: 1860 | B36: Meters | C36: =11503383-706 -> 11502677 | D36: 9578658 | E36: 1924019 | F36: =+'App.2-B_FA Continuity 2012 GAAP'!F31 -> 367352 | G36: 2107695 | H36: 25 | I36: 0.04 | J36: 84307.8 | K36: =-+'App.2-B_FA Continuity 2012 GAAP'!K31-K37 -> 598599 | L36: -514291.2 | M36: 7347.04 | N36: -506944.16
A37: 1860 | B37: Meters | C37: 706 | E37: 706 | G37: 706 | H37: 35 | I37: 0.02857142857 | J37: 20.17142857 | K37: 20 | L37: 0.1714285714 | M37: 0 | N37: 0.1714285714
A38: 1860 | B38: Meters (Smart Meters) | E38: 0 | F38: =+'App.2-B_FA Continuity 2012 GAAP'!F32 -> 12045109 | G38: 6022554.5 | H38: 15 | I38: 0.06666666667 | J38: 401503.6333 | K38: =-+'App.2-B_FA Continuity 2012 GAAP'!K32 -> 2387679 | L38: -1986175.367 | M38: 401503.6333 | N38: -1584671.733 | O38: smart meters
A39: 1905 | B39: Land | C39: 1395300 | E39: 1395300 | F39: 0 | G39: 1395300 | H39: 0 | I39: 0 | J39: 0 | L39: 0 | N39: 0
A40: 1908 | B40: Buildings & Fixtures | C40: =10244953-290243-6077383 -> 3877327 | E40: 3877327 | F40: 31703 | G40: 3893178.5 | H40: 50 | I40: 0.02 | J40: 77863.57 | K40: =184308-4837-101290 -> 78181 | L40: -317.43 | M40: 317.03 | N40: -0.4
A41: 1908 | B41: Buildings & Fixtures | C41: =290243+6077383 -> 6367626 | E41: 6367626 | G41: 6367626 | H41: 60 | I41: 0.01666666667 | J41: 106127.1 | K41: =4837+101290 -> 106127 | L41: 0.1 | M41: 0 | N41: 0.1
A42: 1910 | B42: Leasehold Improvements | E42: 0 | F42: 0 | G42: 0 | H42: 50 | I42: 0.02 | J42: 0 | L42: 0 | M42: 0 | N42: 0
A43: 1915 | B43: Office Furniture & Equipment (10 years) | C43: 1112310 | D43: 527725 | E43: 584585 | F43: 34301 | G43: 601735.5 | H43: 10 | I43: 0.1 | J43: 60173.55 | K43: 65354 | L43: -5180.45 | M43: 1715.05 | N43: -3465.4
A44: 1915 | B44: Office Furniture & Equipment (5 years) | E44: 0 | F44: 0 | G44: 0 | H44: 5 | I44: 0.2 | J44: 0 | K44: 0 | L44: 0 | M44: 0 | N44: 0
A45: 1920 | B45: Computer Equipment - Hardware | C45: 2420464 | D45: 1813602.59 | E45: 606861.41 | F45: 227721 | G45: 720721.91 | H45: 5 | I45: 0.2 | J45: 144144.382 | K45: 151267 | L45: -7122.618 | M45: 22772.1 | N45: 15649.482
A46: 1920 | B46: Computer Equip.-Hardware - Smart Meters | E46: 0 | F46: 221261 | G46: 110630.5 | H46: 5 | I46: 0.2 | J46: 22126.1 | K46: 77441 | L46: -55314.9 | M46: 22126.1 | N46: -33188.8 | O46: smart meters
A47: 1920 | B47: Computer Equip.-Hardware(Post Mar. 19/07) | E47: 0 | G47: 0 | H47: 5 | I47: 0.2 | J47: 0 | K47: 0 | L47: 0 | M47: 0 | N47: 0
A48: 1930 | B48: Transportation Equipment < 3 Tons | C48: 1059248.37 | D48: 402788.6 | E48: =C48-D48 -> 656459.77 | F48: 52112.56 | G48: =E48+0.5*F48 -> 682516.05 | H48: 5 | I48: 0.2 | J48: 136503.21 | K48: =747189-693664-10070 -> 43455 | L48: 93048.21 | M48: 5211.256 | N48: 98259.466
A49: 1930 | B49: Transportation Equipment > 3 Tons | C49: 6846246.52 | D49: 1672923.82 | E49: =C49-D49 -> 5173322.7 | F49: 375989 | G49: =E49+0.5*F49 -> 5361317.2 | H49: 8 | I49: 0.125 | J49: 670164.65 | K49: 693664 | L49: -23499.35 | M49: 23499.3125 | N49: -0.03750000009
A50: 1930 | B50: Transportation Equipment - Trailers | C50: 249385.85 | D50: 168828.67 | E50: =C50-D50 -> 80557.18 | F50: 0 | G50: =E50+0.5*F50 -> 80557.18 | H50: 8 | I50: 0.125 | J50: 10069.6475 | K50: 10070 | L50: -0.3525 | M50: 0 | N50: -0.3525
A51: 1935 | B51: Stores Equipment | C51: 64072 | D51: 36629.72 | E51: 27442.28 | F51: 0 | G51: 27442.28 | H51: 10 | I51: 0.1 | J51: 2744.228 | K51: 3512 | L51: -767.772 | M51: 0 | N51: -767.772
A52: 1940 | B52: Tools, Shop & Garage Equipment | C52: 772798 | D52: 230418.71 | E52: 542379.29 | F52: 70533 | G52: 577645.79 | H52: 10 | I52: 0.1 | J52: 57764.579 | K52: =60503-373 -> 60130 | L52: -2365.421 | M52: 3526.65 | N52: 1161.229
A53: 1940 | B53: Tools - Smart Meters | E53: 0 | F53: 3728 | G53: 1864 | H53: 10 | I53: 0.1 | J53: 186.4 | K53: 372.8 | L53: -186.4 | M53: 186.4 | N53: 0 | O53: smart meters
A54: 1945 | B54: Measurement & Testing Equipment | C54: 866733 | D54: 614023.28 | E54: 252709.72 | F54: 96435 | G54: 300927.22 | H54: 10 | I54: 0.1 | J54: 30092.722 | K54: 32783 | L54: -2690.278 | M54: 4821.75 | N54: 2131.472
A55: 1950 | B55: Power Operated Equipment | C55: 783695 | D55: 304873.23 | E55: 478821.77 | F55: 54068 | G55: 505855.77 | H55: 10 | I55: 0.1 | J55: 50585.577 | K55: 57705 | L55: -7119.423 | M55: 2703.4 | N55: -4416.023
A56: 1955 | B56: Communications Equipment | C56: 173729 | D56: 74214.9 | E56: 99514.1 | F56: 0 | G56: 99514.1 | H56: 10 | I56: 0.1 | J56: 9951.41 | K56: 16819 | L56: -6867.59 | M56: 0 | N56: -6867.59
A57: 1955 | B57: Communication Equipment (Smart Meters) | E57: 0 | F57: 696107 | G57: 348053.5 | H57: 10 | I57: 0.1 | J57: 34805.35 | K57: 254934 | L57: -220128.65 | M57: 34805.35 | N57: -185323.3 | O57: smart meters
A58: 1960 | B58: Miscellaneous Equipment | C58: 98856 | D58: 24382.97 | E58: 74473.03 | F58: 0 | G58: 74473.03 | H58: 5 | I58: 0.2 | J58: 14894.606 | K58: 14930 | L58: -35.394 | M58: 0 | N58: -35.394
A59: 1975 | B59: Load Management Controls Utility Premises | E59: 0 | F59: 0 | G59: 0 | H59: 10 | I59: 0.1 | J59: 0 | K59: 0 | L59: 0 | M59: 0 | N59: 0
A60: 1980 | B60: System Supervisor Equipment | C60: 1507244 | D60: 5771 | E60: 1501473 | F60: 0 | G60: 1501473 | H60: 25 | I60: 0.04 | J60: 60058.92 | K60: 60058.91 | L60: 0.009999999995 | M60: =F60/H60*0.5 -> 0 | N60: 0.009999999995
A61: 1980 | B61: System Supervisor Equipment | C61: 59236 | E61: 59236 | F61: 0 | G61: 59236 | H61: 15 | I61: 0.06666666667 | J61: 3949.066667 | K61: 3946.81 | L61: 2.256666667 | M61: =F61/H61*0.5 -> 0 | N61: 2.256666667
A62: 1985 | B62: Miscellaneous Fixed Assets | E62: 0 | F62: 0 | G62: 0 | H62: 5 | I62: 0.2 | J62: 0 | L62: 0 | M62: 0 | N62: 0
A63: 1995 | B63: Contributions & Grants | C63: -44537160 | E63: -44537160 | F63: -4668971 | G63: -46871645.5 | H63: 25 | I63: 0.04 | J63: -1874865.82 | K63: -1968390 | L63: =IF(ISERROR(+J63-K63), 0, +J63-K63) -> 93524.18 | M63: -93379.42 | N63: 144.76 | O63: Rounding?
A64: etc. | E64: 0 | G64: 0 | I64: 0 | J64: 0 | L64: 0
E65: 0 | G65: 0 | J65: 0 | L65: 0
B66: Total | C66: =SUM(C16:C65) -> 285105479.7 | D66: =SUM(D16:D65) -> 20028530.01 | E66: =SUM(E16:E65) -> 265076949.7 | F66: =SUM(F16:F65) -> 26181804.56 | G66: =SUM(G16:G65) -> 278167852 | J66: =SUM(J16:J65) -> 10835880.92 | K66: =SUM(K16:K65) -> 14188890.67 | L66: =SUM(L16:L65) -> -3353009.745 | M66: =SUM(M16:M65) -> 870257.926
A68: Notes: | M68: =M66/K66 -> 0.06133375373
A70: 1 | B70: Board policy of the "half-year" rule - the applicant must ensure that additions in the year attract a half-year depreciation expense in the first year. Deviations from this standard practice must be supported in the application.
A71: 2 | B71: The applicant must provide an explanation of material variances in evidence
A73: General | B73: Applicants must provide a breakdown of depreciation and amortization expense in the above format for all relevant accounts. Asset Retirement Obligations (AROs), depreciation and accretion expense should be disclosed separately consistent with the Notes of historical Audited Financial Statements.
A78: Explanation | G78: Applying the half year rule in the Test year | L78: =+L63+L20+L23+L26+L27+L28+L30+L34+L40-M32-M36-L32 -> -232744.5599
G79: Result of the smart meter decision(i.e. taking depreciation as ordered) | L79: =+L57+L53+L46+L38+L17 -> -2596181.15
G80: Identifiable Assets - Depreciation taken when asset comes into service | L80: =+L56+L55+L54+L52+L51+L49+L48+L45+L43+L16 -> -94462.022
G81: Amortization on Stranded meters | L81: -502795.26
G82: Transformer adjustment | L82: 72814
G83: Rounding errors | L83: 639.29
L84: =SUM(L78:L83) -> -3352729.702
L85: =+L66-L84 -> -280.0434524

Sheet App.2-CB_MIFRS_DepExp_2012
N1: File Number: | O1: ='LDC Info'!$E$18 -> EB-2013-0147
N2: Exhibit:
N3: Tab:
N4: Schedule:
N5: Page:
N7: Date:
A9: Appendix 2-CB
A10: Depreciation and Amortization Expense
A11: Assumes the applicant adopted IFRS for financial reporting purposes January 1, 2013
C12: Year | D12: 2012 | E12: MIFRS
A14: Account | B14: Description | C14: Opening NBV as at Jan 1, 2012 5 | D14: Additions | E14: Average Remaining Life of Opening NBV 4 | F14: Years (new additions only) 3 | G14: Depreciation Rate on New Additions | H14: Depreciation Expense on Opening NBV | I14: Depreciation Expense on Additions 1 | J14: 2012 Depreciation Expense | K14: 2012 Depreciation Expense per Appendix 2-B Fixed Assets, Column K (l) | L14: Variance 2 | M14: Depreciation Expense on 2012 Full Year Additions | N14: Less Depreciation Expense on Assets Fully Depreciated during the year (o) | O14: 2012 Full Year Depreciation 6
C15: (a) | D15: (d) | E15: (i) | F15: (f) | G15: (g) = 1 / (f) | H15: (j) = (a) / (i) | I15: (h)=((d)*0.5)/(f) | J15: (k) = (j) + (h) | L15: (m) = (k) - (l) | M15: (n) = (d)/(f) | O15: (p) = (j) + (n) - (o)
A16: 1611 | B16: Computer Software (Formally known as Account 1925) | C16: 928633 | D16: 326748 | E16: =C16/(K16-M16) -> 3.863074958 | F16: 3 | G16: =IF(F16=0,0,1/F16) -> 0.3333333333 | H16: =IF(E16=0,0,+C16/E16) -> 240387 | I16: =IF(F16=0,0,+(D16*0.5)/F16) -> 54458 | J16: =IF(ISERROR(+H16+I16), 0, +H16+I16) -> 294845 | K16: 349303 | L16: =IF(ISERROR(+J16-K16), 0, +J16-K16) -> -54458 | M16: =IF(F16=0,0,+(D16)/F16) -> 108916 | O16: =IF(ISERROR(+M16+H16-N16), 0, +M16+H16-N16) -> 349303
A17: 1611 | B17: Computer Software (Formally known as Account 1925) - Smart Meters | D17: 518017 | E17: 2 | F17: 5 | G17: =IF(F17=0,0,1/F17) -> 0.2 | H17: =IF(E17=0,0,+C17/E17) -> 0 | I17: =IF(F17=0,0,+(D17*0.5)/F17) -> 51801.7 | J17: =IF(ISERROR(+H17+I17), 0, +H17+I17) -> 51801.7 | K17: 420712 | L17: =IF(ISERROR(+J17-K17), 0, +J17-K17) -> -368910.3 | M17: =IF(F17=0,0,+(D17)/F17) -> 103603.4 | O17: =IF(ISERROR(+M17+H17-N17), 0, +M17+H17-N17) -> 103603.4
A18: 1612 | B18: Land Rights (Formally known as Account 1906) | C18: 12881 | F18: 50 | G18: 0.02 | H18: =IF(E18=0,0,+C18/E18) -> 0 | I18: 0 | J18: =IF(ISERROR(+H18+I18), 0, +H18+I18) -> 0 | L18: =IF(ISERROR(+J18-K18), 0, +J18-K18) -> 0 | M18: =IF(F18=0,0,+(D18)/F18) -> 0 | O18: =IF(ISERROR(+M18+H18-N18), 0, +M18+H18-N18) -> 0
A19: 1805 | B19: Land | C19: 2339958 | G19: 0 | H19: 0 | I19: 0 | J19: 0 | L19: 0 | M19: 0 | O19: 0
A20: 1808 | B20: Buildings - Structure | C20: 7099490 | E20: =C20/(K20-M20) -> 38.08105948 | F20: 50 | G20: =IF(F20=0,0,1/F20) -> 0.02 | H20: =IF(E20=0,0,+C20/E20) -> 186431 | I20: =IF(F20=0,0,+(D20*0.5)/F20) -> 0 | J20: =IF(ISERROR(+H20+I20), 0, +H20+I20) -> 186431 | K20: 186431 | L20: =IF(ISERROR(+J20-K20), 0, +J20-K20) -> 2.910383046e-11 | M20: =IF(F20=0,0,+(D20)/F20) -> 0 | O20: =IF(ISERROR(+M20+H20-N20), 0, +M20+H20-N20) -> 186431
A21: 1808 | B21: Buildings - Roof | C21: 144989 | D21: 4769 | E21: 5.24646696 | F21: 20 | G21: 0.05 | H21: 27635.55 | I21: 119.225 | J21: 27754.775 | K21: 27874 | L21: -119.225 | M21: 238.45 | N21: 10745.32 | O21: =IF(ISERROR(+M21+H21-N21), 0, +M21+H21-N21) -> 17128.68
A22: 1810 | B22: Leasehold Improvements | G22: 0 | H22: 0 | I22: 0 | J22: 0 | L22: 0 | M22: 0 | O22: 0
A23: 1815 | B23: Transformer Station Equipment >50 kV 50 yrs | C23: 15658086 | D23: 78477 | E23: 40.27487904 | F23: 50 | G23: 0.02 | H23: 388780.46 | I23: 784.77 | J23: 389565.23 | K23: 390350 | L23: -784.77 | M23: 1569.54 | O23: 390350
A24: 1815 | B24: Transformer Station Equipment >50 kV 40 yrs | C24: 24475179 | E24: 29.21275803 | F24: 40 | G24: =IF(F24=0,0,1/F24) -> 0.025 | H24: =IF(E24=0,0,+C24/E24) -> 837825 | I24: =IF(F24=0,0,+(D24*0.5)/F24) -> 0 | J24: =IF(ISERROR(+H24+I24), 0, +H24+I24) -> 837825 | K24: 837825 | L24: =IF(ISERROR(+J24-K24), 0, +J24-K24) -> 0 | M24: =IF(F24=0,0,+(D24)/F24) -> 0 | O24: =IF(ISERROR(+M24+H24-N24), 0, +M24+H24-N24) -> 837825
A25: 1815 | B25: Transformer Station Equipment >50 kV 25 yrs | C25: 887028 | E25: 9.382072029 | F25: 25 | G25: 0.04 | H25: 94545 | I25: 0 | J25: 94545 | K25: 94545 | L25: 0 | M25: 0 | N25: 9620.76 | O25: 84924.24
A26: 1815 | B26: Transformer Station Equipment >50 kV 20 yrs | C26: 392015 | D26: 25270 | E26: 5.96070948 | F26: 20 | G26: 0.05 | H26: 65766.5 | I26: 631.75 | J26: 66398.25 | K26: 67030 | L26: -631.75 | M26: 1263.5 | N26: 18865.27 | O26: 48164.73
A27: 1815 | B27: Transformer Station Equipment >50 kV 15 yrs | C27: 1087574 | D27: 68590 | E27: 3.91578015 | F27: 15 | G27: =IF(F27=0,0,1/F27) -> 0.06666666667 | H27: =IF(E27=0,0,+C27/E27) -> 277741.3333 | I27: =IF(F27=0,0,+(D27*0.5)/F27) -> 2286.333333 | J27: =IF(ISERROR(+H27+I27), 0, +H27+I27) -> 280027.6667 | K27: 282314 | L27: =IF(ISERROR(+J27-K27), 0, +J27-K27) -> -2286.333333 | M27: =IF(F27=0,0,+(D27)/F27) -> 4572.666667 | N27: 133862.53 | O27: =IF(ISERROR(+M27+H27-N27), 0, +M27+H27-N27) -> 148451.47
A28: 1820 | B28: Distribution Station Equipment <50 kV 50 yrs | C28: 288917 | E28: 32.78304777 | F28: 50 | G28: 0.02 | H28: 8813 | I28: 0 | J28: 8813 | K28: 8813 | L28: 0 | M28: 0 | O28: 8813
A29: 1820 | B29: Distribution Station Equipment <50 kV 40 yrs | C29: 545044 | E29: 21.36673331 | F29: 40 | G29: =IF(F29=0,0,1/F29) -> 0.025 | H29: =IF(E29=0,0,+C29/E29) -> 25509 | I29: =IF(F29=0,0,+(D29*0.5)/F29) -> 0 | J29: =IF(ISERROR(+H29+I29), 0, +H29+I29) -> 25509 | K29: 25509 | L29: =IF(ISERROR(+J29-K29), 0, +J29-K29) -> 0 | M29: =IF(F29=0,0,+(D29)/F29) -> 0 | O29: =IF(ISERROR(+M29+H29-N29), 0, +M29+H29-N29) -> 25509
A30: 1820 | B30: Distribution Station Equipment <50 kV 25 yrs | C30: 19153 | E30: 4.91732991 | F30: 25 | G30: 0.04 | H30: 3895 | I30: 0 | J30: 3895 | K30: 3895 | L30: 0 | M30: 0 | N30: 1089.01 | O30: 2805.99
A31: 1820 | B31: Distribution Station Equipment <50 kV 20 yrs | C31: 8761 | E31: 2.045051354 | F31: 20 | G31: 0.05 | H31: 4284 | I31: 0 | J31: 4284 | K31: 4284 | L31: 0 | M31: 0 | N31: 3210.13 | O31: 1073.87
A32: 1820 | B32: Distribution Station Equipment <50 kV 15 hrs | C32: 25299 | E32: 1.896618937 | F32: 15 | G32: 0.06666666667 | H32: 13339 | I32: 0 | J32: 13339 | K32: 13339 | L32: 0 | M32: 0 | N32: 11541.01 | O32: 1797.99
A33: 1825 | B33: Storage Battery Equipment | C33: 0 | G33: 0 | H33: 0 | I33: 0 | J33: 0 | L33: 0 | M33: 0 | O33: 0
A34: 1830 | B34: Poles, Towers & Fixtures | C34: 15401549 | D34: 2587380 | E34: 31.56038955 | F34: 40 | G34: 0.025 | H34: 488002.5 | I34: 32342.25 | J34: 520344.75 | K34: 552687 | L34: -32342.25 | M34: 64684.5 | N34: 1200 | O34: 551487
A35: 1835 | B35: Overhead Conductors | C35: 13072933 | D35: 1849156 | E35: 50.86037194 | F35: 60 | G35: 0.01666666667 | H35: 257035.7333 | I35: 15409.63333 | J35: 272445.3667 | K35: 287855 | L35: -15409.63333 | M35: 30819.26667 | O35: 287855
A36: 1835 | B36: Overhead Devices | C36: 1452548 | D36: 156884 | E36: 30.91981549 | F36: 40 | G36: =IF(F36=0,0,1/F36) -> 0.025 | H36: =IF(E36=0,0,+C36/E36) -> 46977.9 | I36: =IF(F36=0,0,+(D36*0.5)/F36) -> 1961.05 | J36: =IF(ISERROR(+H36+I36), 0, +H36+I36) -> 48938.95 | K36: 50900 | L36: =IF(ISERROR(+J36-K36), 0, +J36-K36) -> -1961.05 | M36: =IF(F36=0,0,+(D36)/F36) -> 3922.1 | O36: =IF(ISERROR(+M36+H36-N36), 0, +M36+H36-N36) -> 50900
A37: 1835 | B37: Voltage Regulators | C37: 163109 | E37: 20.00110362 | F37: 30 | G37: 0.03333333333 | H37: 8155 | I37: 0 | J37: 8155 | K37: 8155 | L37: -9.094947018e-13 | M37: 0 | O37: 8155
A38: 1835 | B38: Capacitor Banks | C38: 618096 | E38: 19.36148352 | F38: 25 | G38: 0.04 | H38: 31924 | I38: 0 | J38: 31924 | K38: 31924 | L38: 3.637978807e-12 | M38: 0 | O38: 31924
A39: 1840 | B39: Underground Conduit | C39: 6961154 | D39: 1775167 | E39: 50.03708911 | F39: 60 | G39: 0.01666666667 | H39: 139119.8833 | I39: 14793.05833 | J39: 153912.9417 | K39: 168706 | L39: -14793.05833 | M39: 29586.11667 | O39: 168706
A40: 1845 | B40: Underground Conductors & Devices - PILC | C40: 414000 | D40: 71811 | E40: 57.99822083 | F40: 60 | G40: 0.01666666667 | H40: 7138.15 | I40: 598.425 | J40: 7736.575 | K40: 8335 | L40: -598.425 | M40: 1196.85 | O40: 8335
A41: 1845 | B41: Underground Cables | C41: 13434518 | D41: 2004581 | E41: 27.90669192 | F41: 40 | G41: =IF(F41=0,0,1/F41) -> 0.025 | H41: =IF(E41=0,0,+C41/E41) -> 481408.475 | I41: =IF(F41=0,0,+(D41*0.5)/F41) -> 25057.2625 | J41: =IF(ISERROR(+H41+I41), 0, +H41+I41) -> 506465.7375 | K41: 531523 | L41: =IF(ISERROR(+J41-K41), 0, +J41-K41) -> -25057.2625 | M41: =IF(F41=0,0,+(D41)/F41) -> 50114.525 | O41: =IF(ISERROR(+M41+H41-N41), 0, +M41+H41-N41) -> 531523
A42: 1845 | B42: Underground Devices | C42: 1492724 | D42: 123332 | E42: 27.90675588 | F42: 40 | G42: 0.025 | H42: 53489.7 | I42: 1541.65 | J42: 55031.35 | K42: 56573 | L42: -1541.65 | M42: 3083.3 | O42: 56573
A43: 1850 | B43: Line Transformers - Overhead | C43: 12974334 | D43: 975364 | E43: =C43/(K43+72814-M43) -> 27.18459381 | F43: 40 | G43: 0.025 | H43: 477267.9 | I43: 12192.05 | J43: 489459.95 | K43: 428838 | L43: 60621.95 | M43: 24384.1 | O43: 501652
A44: 1850 | B44: Line Transformers - Network | C44: 5503 | D44: 152267 | E44: 12.35726716 | F44: 40 | G44: =IF(F44=0,0,1/F44) -> 0.025 | H44: =IF(E44=0,0,+C44/E44) -> 445.325 | I44: =IF(F44=0,0,+(D44*0.5)/F44) -> 1903.3375 | J44: =IF(ISERROR(+H44+I44), 0, +H44+I44) -> 2348.6625 | K44: 4252 | L44: =IF(ISERROR(+J44-K44), 0, +J44-K44) -> -1903.3375 | M44: =IF(F44=0,0,+(D44)/F44) -> 3806.675 | O44: =IF(ISERROR(+M44+H44-N44), 0, +M44+H44-N44) -> 4252
A45: 1850 | B45: Line Transformers - Vault | C45: 0 | D45: 2629 | E45: 60 | F45: 60 | G45: 0.01666666667 | H45: 0 | I45: 21.90833333 | J45: 21.90833333 | K45: 44 | L45: -22.09166667 | M45: 43.81666667 | O45: 43.81666667
A46: 1850 | B46: Line Transformers - Roof | C46: 497948 | E46: 23.44939958 | F46: 30 | G46: 0.03333333333 | H46: 21235 | I46: 0 | J46: 21235 | K46: 21235 | L46: 0 | M46: 0 | O46: 21235
A47: 1850 | B47: Line Transformers -Network Protectors | C47: 91592 | D47: 107832 | E47: 40.66779149 | F47: 40 | G47: 0.025 | H47: 2252.2 | I47: 1347.9 | J47: 3600.1 | K47: 4948 | L47: -1347.9 | M47: 2695.8 | O47: 4948
A48: 1850 | B48: Line Transformers - Padmount | C48: 2045154 | D48: 721460 | E48: 36.48705209 | F48: 40 | G48: 0.025 | H48: 56051.5 | I48: 9018.25 | J48: 65069.75 | K48: 74088 | L48: -9018.25 | M48: 18036.5 | O48: 74088
A49: 1850 | B49: Line Transformers - Submersible | C49: 1330488 | D49: 790096 | E49: 26.66123396 | F49: 30 | G49: 0.03333333333 | H49: 49903.46667 | I49: 13168.26667 | J49: 63071.73333 | K49: 76240 | L49: -13168.26667 | M49: 26336.53333 | O49: 76240
A50: 1850 | B50: Line Transformers - Foundation | C50: 632265 | D50: 417525 | E50: 68.58839801 | F50: 60 | G50: 0.01666666667 | H50: 9218.25 | I50: 3479.375 | J50: 12697.625 | K50: 16177 | L50: -3479.375 | M50: 6958.75 | O50: 16177
A51: 1855 | B51: Services - Overhead | C51: 644713 | D51: 419374 | E51: 46.19799218 | F51: 60 | G51: 0.01666666667 | H51: 13955.43333 | I51: 3494.783333 | J51: 17450.21667 | K51: 20945 | L51: -3494.783333 | M51: 6989.566667 | O51: 20945
A52: 1855 | B52: Services - Underground | C52: 9136964 | D52: 2054280 | E52: 28.62385654 | F52: 40 | G52: =IF(F52=0,0,1/F52) -> 0.025 | H52: =IF(E52=0,0,+C52/E52) -> 319208 | I52: =IF(F52=0,0,+(D52*0.5)/F52) -> 25678.5 | J52: =IF(ISERROR(+H52+I52), 0, +H52+I52) -> 344886.5 | K52: 370565 | L52: =IF(ISERROR(+J52-K52), 0, +J52-K52) -> -25678.5 | M52: =IF(F52=0,0,+(D52)/F52) -> 51357 | O52: =IF(ISERROR(+M52+H52-N52), 0, +M52+H52-N52) -> 370565
A53: 1860 | B53: Meters | C53: 5026277 | D53: 346570 | E53: 2.97711949 | F53: 15 | G53: 0.06666666667 | H53: =IF(E53=0,0,+C53/E53) -> 1688302.071 | I53: 11552.33333 | J53: 1699854.404 | K53: 629264 | L53: 1070590.404 | M53: 23104.66667 | N53: 1570193 | O53: 141213.7375
A54: 1860 | B54: Meters (Smart Meters) | D54: 12041179 | E54: 2.98 | F54: 15 | G54: 0.06666666667 | H54: 0 | I54: =IF(F54=0,0,+(D54*0.5)/F54) -> 401372.6333 | J54: 401372.6333 | K54: 2387679 | L54: =IF(ISERROR(+J54-K54), 0, +J54-K54) -> -1986306.367 | M54: 802745.2667 | O54: 802745.2667
A55: 1905 | B55: Land | C55: 1395300 | G55: 0 | H55: 0 | I55: 0 | J55: 0 | L55: 0 | M55: 0 | O55: 0
A56: 1908 | B56: Buildings & Fixtures - Building | C56: 5262681 | D56: 30105 | E56: 29.73502974 | F56: 50 | G56: 0.02 | H56: 176985.9 | I56: 301.05 | J56: 177286.95 | K56: 177588 | L56: -301.05 | M56: 602.1 | O56: 177588
A57: 1908 | B57: Buildings & Fixtures - Roof | C57: 1567291 | E57: 6.362488988 | F57: 20 | G57: =IF(F57=0,0,1/F57) -> 0.05 | H57: =IF(E57=0,0,+C57/E57) -> 246333 | I57: =IF(F57=0,0,+(D57*0.5)/F57) -> 0 | J57: =IF(ISERROR(+H57+I57), 0, +H57+I57) -> 246333 | K57: 246333 | L57: =IF(ISERROR(+J57-K57), 0, +J57-K57) -> 0 | M57: =IF(F57=0,0,+(D57)/F57) -> 0 | O57: =IF(ISERROR(+M57+H57-N57), 0, +M57+H57-N57) -> 246333
A58: 1910 | B58: Leasehold Improvements | G58: 0 | H58: 0 | I58: 0 | J58: 0 | L58: 0 | M58: 0 | O58: 0
A59: 1915 | B59: Office Furniture & Equipment (10 years) | C59: 340212 | D59: 34301 | E59: 5.49412253 | F59: 10 | G59: 0.1 | H59: 61922.9 | I59: 1715.05 | J59: 63637.95 | K59: 65353 | L59: -1715.05 | M59: 3430.1 | N59: 5467 | O59: 59886
A60: 1915 | B60: Office Furniture & Equipment (5 years) | F60: 5 | G60: 0.2 | H60: 0 | I60: 0 | J60: 0 | L60: 0 | M60: 0 | O60: 0
A61: 1920 | B61: Computer Equipment - Hardware | C61: 350464 | D61: 227721 | E61: 4.126516327 | F61: 4 | G61: 0.25 | H61: 84929.75 | I61: 28465.125 | J61: 113394.875 | K61: 141860 | L61: -28465.125 | M61: 56930.25 | N61: 50000 | O61: 91860
A62: 1920 | B62: Computer Equip.-Hardware - Smart Meters | C62: 0 | D62: 221261 | F62: 5 | G62: 0.2 | H62: 0 | I62: 22126.1 | J62: 22126.1 | K62: 77441 | L62: -55314.9 | M62: 44252.2 | O62: 44252.2
A63: 1920 | B63: Computer Equip.-Hardware(Post Mar. 19/07) | C63: 0 | G63: 0 | H63: 0 | I63: 0 | J63: 0 | L63: 0 | M63: 0 | O63: 0
A64: 1930 | B64: Transportation Equipment | C64: 2781086 | D64: 428102 | E64: 6.635811276 | F64: 11 | G64: 0.09090909091 | H64: 419102.6364 | I64: 19459.18182 | J64: 438561.8182 | K64: 458021 | L64: -19459.18182 | M64: 38918.36364 | O64: 458021
A65: 1935 | B65: Stores Equipment | C65: 21484 | E65: 6.117312073 | F65: 10 | G65: 0.1 | H65: 3512 | I65: 0 | J65: 3512 | K65: 3512 | L65: 0 | M65: 0 | O65: 3512
A66: 1940 | B66: Tools, Shop & Garage Equipment | C66: 324953 | D66: 70533 | E66: 6.228052523 | F66: 10 | G66: 0.1 | H66: 52175.7 | I66: 3526.65 | J66: 55702.35 | K66: 59229 | L66: -3526.65 | M66: 7053.3 | O66: 59229
A67: 1940 | B67: Tools - Smart Meters | D67: 3728 | E67: =C67/(K67-M67) -> 0 | F67: 10 | G67: =IF(F67=0,0,1/F67) -> 0.1 | H67: =IF(E67=0,0,+C67/E67) -> 0 | I67: =IF(F67=0,0,+(D67*0.5)/F67) -> 186.4 | J67: =IF(ISERROR(+H67+I67), 0, +H67+I67) -> 186.4 | K67: 1274 | L67: =IF(ISERROR(+J67-K67), 0, +J67-K67) -> -1087.6 | M67: =IF(F67=0,0,+(D67)/F67) -> 372.8 | O67: =IF(ISERROR(+M67+H67-N67), 0, +M67+H67-N67) -> 372.8
A68: 1945 | B68: Measurement & Testing Equipment | C68: 163014 | D68: 96435 | E68: 7.044836751 | F68: 10 | G68: 0.1 | H68: 23139.5 | I68: 4821.75 | J68: 27961.25 | K68: 32783 | L68: -4821.75 | M68: 9643.5 | O68: 32783
A69: 1950 | B69: Power Operated Equipment | C69: 306812 | D69: 54068 | E69: 5.866588143 | F69: 10 | G69: 0.1 | H69: 52298.2 | I69: 2703.4 | J69: 55001.6 | K69: 57705 | L69: -2703.4 | M69: 5406.8 | O69: 57705
A70: 1955 | B70: Communications Equipment | C70: 58879 | E70: 3.500743207 | F70: 10 | G70: 0.1 | H70: 16819 | I70: 0 | J70: 16819 | K70: 16819 | L70: 0 | M70: 0 | O70: 16819
A71: 1955 | B71: Communication Equipment (Smart Meters) | C71: 0 | D71: 696107 | E71: 0 | F71: 10 | G71: 0.1 | H71: 0 | I71: 34805.35 | J71: 34805.35 | K71: 254934 | L71: -220128.65 | M71: 69610.7 | O71: 69610.7
A72: 1960 | B72: Miscellaneous Equipment | C72: 40969 | E72: 2.743888554 | F72: 5 | G72: 0.2 | H72: 14931 | I72: 0 | J72: 14931 | K72: 14931 | L72: 1.818989404e-12 | M72: 0 | O72: 14931
A73: 1975 | B73: Load Management Controls Utility Premises | C73: 0 | G73: 0 | H73: 0 | I73: 0 | J73: 0 | L73: 0 | M73: 0 | O73: 0
A74: 1980 | B74: System Supervisor Equipment | C74: 115075 | E74: 1.199622626 | F74: 10 | G74: 0.1 | H74: 95926 | I74: 0 | J74: 95926 | K74: 95926 | L74: 0 | M74: 0 | N74: 91867.01 | O74: 4058.99
A75: 1985 | B75: Miscellaneous Fixed Assets | G75: 0 | H75: 0 | I75: 0 | J75: 0 | L75: 0 | M75: 0 | O75: 0
A76: 1995 | B76: Contributions & Grants | G76: 0 | H76: 0 | I76: 0 | J76: 0 | L76: 0 | M76: 0 | O76: 0
A77: 1995 | B77: Contributed Capital - Poles, Towers & Fixtures | D77: -600093 | E77: 40 | F77: 40 | G77: =IF(F77=0,0,1/F77) -> 0.025 | H77: =IF(E77=0,0,+C77/E77) -> 0 | I77: =IF(F77=0,0,+(D77*0.5)/F77) -> -7501.1625 | J77: =IF(ISERROR(+H77+I77), 0, +H77+I77) -> -7501.1625 | K77: -15002 | L77: =IF(ISERROR(+J77-K77), 0, +J77-K77) -> 7500.8375 | M77: =IF(F77=0,0,+(D77)/F77) -> -15002.325 | O77: =IF(ISERROR(+M77+H77-N77), 0, +M77+H77-N77) -> -15002.325
A78: 1995 | B78: Contributed Capital - Overhead Conductors | D78: -607123 | E78: 60 | F78: 60 | G78: =IF(F78=0,0,1/F78) -> 0.01666666667 | H78: =IF(E78=0,0,+C78/E78) -> 0 | I78: =IF(F78=0,0,+(D78*0.5)/F78) -> -5059.358333 | J78: =IF(ISERROR(+H78+I78), 0, +H78+I78) -> -5059.358333 | K78: -10119 | L78: =IF(ISERROR(+J78-K78), 0, +J78-K78) -> 5059.641667 | M78: =IF(F78=0,0,+(D78)/F78) -> -10118.71667 | O78: =IF(ISERROR(+M78+H78-N78), 0, +M78+H78-N78) -> -10118.71667
A79: 1995 | B79: Contributed Capital - Overhead Devices | D79: -67458 | E79: 40 | F79: 40 | G79: 0.025 | H79: 0 | I79: -843.225 | J79: -843.225 | K79: -1686 | L79: 842.775 | M79: -1686.45 | O79: -1686.45
A80: 1995 | B80: Contributed Capital - Overhead Services | D80: 90988 | E80: 60 | F80: 60 | G80: 0.01666666667 | H80: 0 | I80: 758.2333333 | J80: 758.2333333 | K80: 1516 | L80: -757.7666667 | M80: =IF(F80=0,0,+(D80)/F80) -> 1516.466667 | O80: =IF(ISERROR(+M80+H80-N80), 0, +M80+H80-N80) -> 1516.466667
A81: 1995 | B81: Contributed Capital - Underground Trenching & Ductwork | D81: -1079357 | E81: 60 | F81: 60 | G81: 0.01666666667 | H81: 0 | I81: -8994.641667 | J81: -8994.641667 | K81: -17989 | L81: 8994.358333 | M81: -17989.28333 | O81: -17989.28333
A82: 1995 | B82: Contributed Capital - Underground Cables | D82: -1393554 | E82: 40 | F82: 40 | G82: 0.025 | H82: 0 | I82: -17419.425 | J82: -17419.425 | K82: -34839 | L82: 17419.575 | M82: -34838.85 | O82: -34838.85
A83: 1995 | B83: Contributed Capital - Underground Devices | D83: -104668 | E83: 40 | F83: 40 | G83: 0.025 | H83: 0 | I83: -1308.35 | J83: -1308.35 | K83: -2617 | L83: 1308.65 | M83: -2616.7 | O83: -2616.7
A84: 1995 | B84: Contributed Capital - Overhead Transformer | D84: -48024 | E84: 40 | F84: 40 | G84: 0.025 | H84: 0 | I84: -600.3 | J84: -600.3 | K84: -1201 | L84: 600.7 | M84: -1200.6 | O84: -1200.6
A85: 1995 | B85: Contributed Capital - Underground Padmount Transformer | D85: -317706 | E85: 40 | F85: 40 | G85: 0.025 | H85: 0 | I85: -3971.325 | J85: -3971.325 | K85: -7943 | L85: 3971.675 | M85: -7942.65 | O85: -7942.65
A86: 1995 | B86: Contributed Capital -Underground Submersible Transformer | D86: -281562 | E86: 30 | F86: 30 | G86: 0.03333333333 | H86: 0 | I86: -4692.7 | J86: -4692.7 | K86: -9385 | L86: 4692.3 | M86: -9385.4 | O86: -9385.4
A87: 1995 | B87: Contributed Capital - Underground Services | D87: 172272 | E87: 40 | F87: 40 | G87: 0.025 | H87: 0 | I87: 2153.4 | J87: 2153.4 | K87: 4307 | L87: -2153.6 | M87: 4306.8 | O87: 4306.8
A88: 1995 | B88: Contributed Capital - Transformer Foundations | D88: -429058 | E88: 60 | F88: 60 | G88: 0.01666666667 | H88: 0 | I88: -3575.483333 | J88: -3575.483333 | K88: -7151 | L88: =IF(ISERROR(+J88-K88), 0, +J88-K88) -> 3575.516667 | M88: -7150.966667 | O88: -7150.966667
A89: 1995 | B89: Contributed Capital - Meters | D89: -95090 | E89: 15 | F89: 15 | G89: 0.06666666667 | H89: 0 | I89: =IF(F89=0,0,+(D89*0.5)/F89) -> -3169.666667 | J89: -3169.666667 | K89: -6339 | L89: =IF(ISERROR(+J89-K89), 0, +J89-K89) -> 3169.333333 | M89: =IF(F89=0,0,+(D89)/F89) -> -6339.333333 | O89: -6339.333333
A90: 1995 | B90: Contributed Capital - OEB Clearing | D90: 91462 | E90: 15 | F90: 15 | G90: 0.06666666667 | H90: 0 | I90: 3048.733333 | J90: 3048.733333 | K90: 6097 | L90: -3048.266667 | M90: =IF(F90=0,0,+(D90)/F90) -> 6097.466667 | O90: 6097.466667
A91: etc. | G91: 0 | H91: 0 | I91: 0 | J91: 0 | L91: 0 | M91: 0 | O91: 0
G92: 0 | H92: 0 | I92: 0 | J92: 0 | L92: 0 | M92: 0 | O92: 0
B93: Total | C93: =SUM(C16:C92) -> 152037096 | D93: =SUM(D16:D92) -> 24812148 | H93: =SUM(H16:H92) -> 7574117.917 | I93: 751949.231 | J93: 8326067.148 | K93: =SUM(K16:K92) -> 10044515 | L93: -1718447.852 | M93: 1503898.462 | N93: =SUM(N16:N92) -> 1907661.04 | O93: 7170355.339
A95: Notes:
A97: 1 | B97: Board policy of the "half-year" rule - the applicant must ensure that additions in the year attract a half-year depreciation expense in the first year. Deviations from this standard practice must be supported in the application.
A98: 2 | B98: The applicant must provide an explanation of material variances in evidence
A99: 3 | B99: The applicant should ensure that the years for new additions of assets are the asset useful lives determined by management in accordance with IFRS.
A100: 4 | B100: A recalculation should be performed to determine the average remaining life of opening balance of assets (i.e. excluding 2011 additions) under IFRS. For example, Asset A had a useful life of 20 years under CGAAP. On January 1, 2011, the date of transition, Asset A was 3 years depreciated. As a result, Asset A would have a remaining service life of 17 years (20 years less 3 years) under CGAAP as of January 1, 2011. Due to the transition to IFRS, management re-assessed the asset useful lives under IFRS principles and concluded that the revised useful life of Asset A is now 30 years. Therefore, the average remaining useful life of opening balance of Asset A is determined to be 27 years (30 years less 3 years) under IFRS as of January 1, 2011.
A101: 5 | B101: NBV must exclude assets still on the books but which have been fully amortized or depreciated.
A102: 6 | B102: This column refers to the calculated full year depreciation but excludes the depreciation expense on assets fully depreciated during the year. This column is used for the purpose of calculating depreciation expense in the following year on the next worksheet.
A104: General: | B104: Applicants must provide a breakdown of depreciation and amortization expense in the above format for all relevant accounts. Asset Retirement Obligations (AROs), depreciation and accretion expense should be disclosed separately consistent with the Notes of historical Audited Financial Statements.

Sheet App.2-CC_MIFRS_DepExp_2013
J1: File Number: | K1: ='LDC Info'!$E$18 -> EB-2013-0147
J2: Exhibit:
J3: Tab:
J4: Schedule:
J5: Page:
J7: Date:
A9: Appendix 2-CC
A10: Depreciation and Amortization Expense
A11: Assumes the applicant adopted IFRS for financial reporting purposes January 1, 2013
C12: 2013 | D12: MIFRS
A14: Account | B14: Description | C14: Additions | D14: Years (new additions only) | E14: Depreciation Rate on New Additions | F14: 2013 Depreciation Expense 1 | G14: 2013 Depreciation Expense per Apppendix 2-B Fixed Assets, Column K (l) | H14: Variance 2 | I14: Depreciation Expense on 2013 Full Year Additions | J14: Less Depreciation Expense on Assets Fully Depreciated during the year (o) | K14: 2013 Full Year Depreciation 3
C15: (d) | D15: (f) | E15: (g) = 1 / (f) | F15: (h)=2012 Full Year Deprecation + ((d)*0.5)/(f) | H15: (m) = (h) - (l) | I15: (n)=((d))/(f) | K15: (o) = 2012 Full Year Depreciation + (n) - (o)
A16: 1611 | B16: Computer Software (Formally known as Account 1925) | C16: 341000 | D16: 3 | E16: =IF(D16=0,0,1/D16) -> 0.3333333333 | F16: =IF(D16=0,+'App.2-CB_MIFRS_DepExp_2012'!O16,+'App.2-CB_MIFRS_DepExp_2012'!O16+((C16*0.5)/D16)) -> 406136.3333 | G16: 380495 | H16: =IF(ISERROR(+F16-G16), 0, +F16-G16) -> 25641.33333 | I16: =IF(D16=0,0,+(C16)/D16) -> 113666.6667 | K16: =IF(ISERROR(+I16+'App.2-CB_MIFRS_DepExp_2012'!O16-J16), 0, +I16+'App.2-CB_MIFRS_DepExp_2012'!O16-J16) -> 462969.6667
A17: 1611 | B17: Computer Software (Formally known as Account 1925) - Smart Meters | D17: 5 | E17: =IF(D17=0,0,1/D17) -> 0.2 | F17: =IF(D17=0,+'App.2-CB_MIFRS_DepExp_2012'!O17,+'App.2-CB_MIFRS_DepExp_2012'!O17+((C17*0.5)/D17)) -> 103603.4 | G17: 97305 | H17: =IF(ISERROR(+F17-G17), 0, +F17-G17) -> 6298.4 | I17: =IF(D17=0,0,+(C17)/D17) -> 0 | J17: 103603 | K17: =IF(ISERROR(+I17+'App.2-CB_MIFRS_DepExp_2012'!O17-J17), 0, +I17+'App.2-CB_MIFRS_DepExp_2012'!O17-J17) -> 0.4
A18: 1612 | B18: Land Rights (Formally known as Account 1906) | D18: 0 | E18: 0 | F18: =IF(D18=0,+'App.2-CB_MIFRS_DepExp_2012'!O18,+'App.2-CB_MIFRS_DepExp_2012'!O18+((C18*0.5)/D18)) -> 0 | G18: 0 | H18: =IF(ISERROR(+F18-G18), 0, +F18-G18) -> 0 | I18: =IF(D18=0,0,+(C18)/D18) -> 0 | K18: =IF(ISERROR(+I18+'App.2-CB_MIFRS_DepExp_2012'!O18-J18), 0, +I18+'App.2-CB_MIFRS_DepExp_2012'!O18-J18) -> 0
A19: 1805 | B19: Land | D19: 0 | E19: 0 | F19: =IF(D19=0,+'App.2-CB_MIFRS_DepExp_2012'!O19,+'App.2-CB_MIFRS_DepExp_2012'!O19+((C19*0.5)/D19)) -> 0 | G19: 0 | H19: 0 | I19: 0 | K19: =IF(ISERROR(+I19+'App.2-CB_MIFRS_DepExp_2012'!O19-J19), 0, +I19+'App.2-CB_MIFRS_DepExp_2012'!O19-J19) -> 0
A20: 1808 | B20: Buildings - Structure | C20: 500000 | D20: 50 | E20: 0.02 | F20: =IF(D20=0,+'App.2-CB_MIFRS_DepExp_2012'!O20,+'App.2-CB_MIFRS_DepExp_2012'!O20+((C20*0.5)/D20)) -> 191431 | G20: 186400 | H20: 5031 | I20: =IF(D20=0,0,+(C20)/D20) -> 10000 | K20: =IF(ISERROR(+I20+'App.2-CB_MIFRS_DepExp_2012'!O20-J20), 0, +I20+'App.2-CB_MIFRS_DepExp_2012'!O20-J20) -> 196431
A21: 1808 | B21: Buildings - Roof | D21: 20 | E21: =IF(D21=0,0,1/D21) -> 0.05 | F21: =IF(D21=0,+'App.2-CB_MIFRS_DepExp_2012'!O21,+'App.2-CB_MIFRS_DepExp_2012'!O21+((C21*0.5)/D21)) -> 17128.68 | G21: 17100 | H21: =IF(ISERROR(+F21-G21), 0, +F21-G21) -> 28.68 | I21: =IF(D21=0,0,+(C21)/D21) -> 0 | J21: 4452.79 | K21: =IF(ISERROR(+I21+'App.2-CB_MIFRS_DepExp_2012'!O21-J21), 0, +I21+'App.2-CB_MIFRS_DepExp_2012'!O21-J21) -> 12675.89
A22: 1810 | B22: Leasehold Improvements | D22: 0 | E22: 0 | F22: =IF(D22=0,+'App.2-CB_MIFRS_DepExp_2012'!O22,+'App.2-CB_MIFRS_DepExp_2012'!O22+((C22*0.5)/D22)) -> 0 | G22: 0 | H22: 0 | I22: 0 | K22: =IF(ISERROR(+I22+'App.2-CB_MIFRS_DepExp_2012'!O22-J22), 0, +I22+'App.2-CB_MIFRS_DepExp_2012'!O22-J22) -> 0
A23: 1815 | B23: Transformer Station Equipment >50 kV 50 yrs | C23: 700000 | D23: 50 | E23: 0.02 | F23: =IF(D23=0,+'App.2-CB_MIFRS_DepExp_2012'!O23,+'App.2-CB_MIFRS_DepExp_2012'!O23+((C23*0.5)/D23)) -> 397350 | G23: 404300 | H23: -6950 | I23: 14000 | K23: =IF(ISERROR(+I23+'App.2-CB_MIFRS_DepExp_2012'!O23-J23), 0, +I23+'App.2-CB_MIFRS_DepExp_2012'!O23-J23) -> 404350
A24: 1815 | B24: Transformer Station Equipment >50 kV 40 yrs | C24: 1000000 | D24: 40 | E24: =IF(D24=0,0,1/D24) -> 0.025 | F24: =IF(D24=0,+'App.2-CB_MIFRS_DepExp_2012'!O24,+'App.2-CB_MIFRS_DepExp_2012'!O24+((C24*0.5)/D24)) -> 850325 | G24: 862800 | H24: =IF(ISERROR(+F24-G24), 0, +F24-G24) -> -12475 | I24: =IF(D24=0,0,+(C24)/D24) -> 25000 | K24: =IF(ISERROR(+I24+'App.2-CB_MIFRS_DepExp_2012'!O24-J24), 0, +I24+'App.2-CB_MIFRS_DepExp_2012'!O24-J24) -> 862825
A25: 1815 | B25: Transformer Station Equipment >50 kV 25 yrs | C25: 263300 | D25: 25 | E25: 0.04 | F25: =IF(D25=0,+'App.2-CB_MIFRS_DepExp_2012'!O25,+'App.2-CB_MIFRS_DepExp_2012'!O25+((C25*0.5)/D25)) -> 90190.24 | G25: 95500 | H25: -5309.76 | I25: 10532 | J25: 8547.96 | K25: =IF(ISERROR(+I25+'App.2-CB_MIFRS_DepExp_2012'!O25-J25), 0, +I25+'App.2-CB_MIFRS_DepExp_2012'!O25-J25) -> 86908.28
A26: 1815 | B26: Transformer Station Equipment >50 kV 20 yrs | D26: 20 | E26: 0.05 | F26: =IF(D26=0,+'App.2-CB_MIFRS_DepExp_2012'!O26,+'App.2-CB_MIFRS_DepExp_2012'!O26+((C26*0.5)/D26)) -> 48164.73 | G26: 48500 | H26: -335.27 | I26: 0 | J26: 6937.98 | K26: =IF(ISERROR(+I26+'App.2-CB_MIFRS_DepExp_2012'!O26-J26), 0, +I26+'App.2-CB_MIFRS_DepExp_2012'!O26-J26) -> 41226.75
A27: 1815 | B27: Transformer Station Equipment >50 kV 15 yrs | C27: 133400 | D27: 15 | E27: 0.06666666667 | F27: =IF(D27=0,+'App.2-CB_MIFRS_DepExp_2012'!O27,+'App.2-CB_MIFRS_DepExp_2012'!O27+((C27*0.5)/D27)) -> 152898.1367 | G27: 157900 | H27: -5001.863333 | I27: 8893.333333 | J27: 11948.58 | K27: =IF(ISERROR(+I27+'App.2-CB_MIFRS_DepExp_2012'!O27-J27), 0, +I27+'App.2-CB_MIFRS_DepExp_2012'!O27-J27) -> 145396.2233
A28: 1820 | B28: Distribution Station Equipment <50 kV 50 yrs | D28: 50 | E28: 0.02 | F28: =IF(D28=0,+'App.2-CB_MIFRS_DepExp_2012'!O28,+'App.2-CB_MIFRS_DepExp_2012'!O28+((C28*0.5)/D28)) -> 8813 | G28: 8800 | H28: 13 | I28: 0 | K28: =IF(ISERROR(+I28+'App.2-CB_MIFRS_DepExp_2012'!O28-J28), 0, +I28+'App.2-CB_MIFRS_DepExp_2012'!O28-J28) -> 8813
A29: 1820 | B29: Distribution Station Equipment <50 kV 40 yrs | D29: 40 | E29: =IF(D29=0,0,1/D29) -> 0.025 | F29: =IF(D29=0,+'App.2-CB_MIFRS_DepExp_2012'!O29,+'App.2-CB_MIFRS_DepExp_2012'!O29+((C29*0.5)/D29)) -> 25509 | G29: 25500 | H29: =IF(ISERROR(+F29-G29), 0, +F29-G29) -> 9 | I29: =IF(D29=0,0,+(C29)/D29) -> 0 | K29: =IF(ISERROR(+I29+'App.2-CB_MIFRS_DepExp_2012'!O29-J29), 0, +I29+'App.2-CB_MIFRS_DepExp_2012'!O29-J29) -> 25509
A30: 1820 | B30: Distribution Station Equipment <50 kV 25 yrs | D30: 25 | E30: 0.04 | F30: =IF(D30=0,+'App.2-CB_MIFRS_DepExp_2012'!O30,+'App.2-CB_MIFRS_DepExp_2012'!O30+((C30*0.5)/D30)) -> 2805.99 | G30: 2800 | H30: 5.99 | I30: 0 | J30: 564.51 | K30: =IF(ISERROR(+I30+'App.2-CB_MIFRS_DepExp_2012'!O30-J30), 0, +I30+'App.2-CB_MIFRS_DepExp_2012'!O30-J30) -> 2241.48
A31: 1820 | B31: Distribution Station Equipment <50 kV 20 yrs | D31: 20 | E31: 0.05 | F31: =IF(D31=0,+'App.2-CB_MIFRS_DepExp_2012'!O31,+'App.2-CB_MIFRS_DepExp_2012'!O31+((C31*0.5)/D31)) -> 1073.87 | G31: 1100 | H31: -26.13 | I31: 0 | K31: =IF(ISERROR(+I31+'App.2-CB_MIFRS_DepExp_2012'!O31-J31), 0, +I31+'App.2-CB_MIFRS_DepExp_2012'!O31-J31) -> 1073.87
A32: 1820 | B32: Distribution Station Equipment <50 kV 15 yrs | C32: 63000 | D32: 15 | E32: 0.06666666667 | F32: =IF(D32=0,+'App.2-CB_MIFRS_DepExp_2012'!O32,+'App.2-CB_MIFRS_DepExp_2012'!O32+((C32*0.5)/D32)) -> 3897.99 | G32: 6000 | H32: -2102.01 | I32: 4200 | K32: =IF(ISERROR(+I32+'App.2-CB_MIFRS_DepExp_2012'!O32-J32), 0, +I32+'App.2-CB_MIFRS_DepExp_2012'!O32-J32) -> 5997.99
A33: 1825 | B33: Storage Battery Equipment | D33: 0 | E33: 0 | F33: =IF(D33=0,+'App.2-CB_MIFRS_DepExp_2012'!O33,+'App.2-CB_MIFRS_DepExp_2012'!O33+((C33*0.5)/D33)) -> 0 | G33: 0 | H33: 0 | I33: 0 | K33: =IF(ISERROR(+I33+'App.2-CB_MIFRS_DepExp_2012'!O33-J33), 0, +I33+'App.2-CB_MIFRS_DepExp_2012'!O33-J33) -> 0
A34: 1830 | B34: Poles, Towers & Fixtures | C34: 2718300 | D34: 40 | E34: 0.025 | F34: =IF(D34=0,+'App.2-CB_MIFRS_DepExp_2012'!O34,+'App.2-CB_MIFRS_DepExp_2012'!O34+((C34*0.5)/D34)) -> 585465.75 | G34: 619500 | H34: -34034.25 | I34: 67957.5 | J34: 1200 | K34: =IF(ISERROR(+I34+'App.2-CB_MIFRS_DepExp_2012'!O34-J34), 0, +I34+'App.2-CB_MIFRS_DepExp_2012'!O34-J34) -> 618244.5
A35: 1835 | B35: Overhead Conductors | C35: 1636400 | D35: 60 | E35: 0.01666666667 | F35: =IF(D35=0,+'App.2-CB_MIFRS_DepExp_2012'!O35,+'App.2-CB_MIFRS_DepExp_2012'!O35+((C35*0.5)/D35)) -> 301491.6667 | G35: 315090 | H35: -13598.33333 | I35: 27273.33333 | K35: =IF(ISERROR(+I35+'App.2-CB_MIFRS_DepExp_2012'!O35-J35), 0, +I35+'App.2-CB_MIFRS_DepExp_2012'!O35-J35) -> 315128.3333
A36: 1835 | B36: Overhead Devices | C36: 181900 | D36: 40 | E36: =IF(D36=0,0,1/D36) -> 0.025 | F36: =IF(D36=0,+'App.2-CB_MIFRS_DepExp_2012'!O36,+'App.2-CB_MIFRS_DepExp_2012'!O36+((C36*0.5)/D36)) -> 53173.75 | G36: 55510 | H36: =IF(ISERROR(+F36-G36), 0, +F36-G36) -> -2336.25 | I36: =IF(D36=0,0,+(C36)/D36) -> 4547.5 | K36: =IF(ISERROR(+I36+'App.2-CB_MIFRS_DepExp_2012'!O36-J36), 0, +I36+'App.2-CB_MIFRS_DepExp_2012'!O36-J36) -> 55447.5
A37: 1835 | B37: Voltage Regulators | D37: 30 | E37: 0.03333333333 | F37: =IF(D37=0,+'App.2-CB_MIFRS_DepExp_2012'!O37,+'App.2-CB_MIFRS_DepExp_2012'!O37+((C37*0.5)/D37)) -> 8155 | G37: 8200 | H37: -45 | I37: 0 | K37: =IF(ISERROR(+I37+'App.2-CB_MIFRS_DepExp_2012'!O37-J37), 0, +I37+'App.2-CB_MIFRS_DepExp_2012'!O37-J37) -> 8155
A38: 1835 | B38: Capacitor Banks | D38: 25 | E38: 0.04 | F38: =IF(D38=0,+'App.2-CB_MIFRS_DepExp_2012'!O38,+'App.2-CB_MIFRS_DepExp_2012'!O38+((C38*0.5)/D38)) -> 31924 | G38: 31900 | H38: 24 | I38: 0 | K38: =IF(ISERROR(+I38+'App.2-CB_MIFRS_DepExp_2012'!O38-J38), 0, +I38+'App.2-CB_MIFRS_DepExp_2012'!O38-J38) -> 31924
A39: 1840 | B39: Underground Conduit | C39: 3191900 | D39: 60 | E39: 0.01666666667 | F39: =IF(D39=0,+'App.2-CB_MIFRS_DepExp_2012'!O39,+'App.2-CB_MIFRS_DepExp_2012'!O39+((C39*0.5)/D39)) -> 195305.1667 | G39: 221900 | H39: -26594.83333 | I39: 53198.33333 | K39: =IF(ISERROR(+I39+'App.2-CB_MIFRS_DepExp_2012'!O39-J39), 0, +I39+'App.2-CB_MIFRS_DepExp_2012'!O39-J39) -> 221904.3333
A40: 1845 | B40: Underground Conductors & Devices - PILC | D40: 60 | E40: 0.01666666667 | F40: =IF(D40=0,+'App.2-CB_MIFRS_DepExp_2012'!O40,+'App.2-CB_MIFRS_DepExp_2012'!O40+((C40*0.5)/D40)) -> 8335 | G40: 8300 | H40: 35 | I40: 0 | K40: =IF(ISERROR(+I40+'App.2-CB_MIFRS_DepExp_2012'!O40-J40), 0, +I40+'App.2-CB_MIFRS_DepExp_2012'!O40-J40) -> 8335
A41: 1845 | B41: Underground Cables | C41: 2076700 | D41: 40 | E41: =IF(D41=0,0,1/D41) -> 0.025 | F41: =IF(D41=0,+'App.2-CB_MIFRS_DepExp_2012'!O41,+'App.2-CB_MIFRS_DepExp_2012'!O41+((C41*0.5)/D41)) -> 557481.75 | G41: 583470 | H41: =IF(ISERROR(+F41-G41), 0, +F41-G41) -> -25988.25 | I41: =IF(D41=0,0,+(C41)/D41) -> 51917.5 | K41: =IF(ISERROR(+I41+'App.2-CB_MIFRS_DepExp_2012'!O41-J41), 0, +I41+'App.2-CB_MIFRS_DepExp_2012'!O41-J41) -> 583440.5
A42: 1845 | B42: Underground Devices | C42: 230700 | D42: 40 | E42: 0.025 | F42: =IF(D42=0,+'App.2-CB_MIFRS_DepExp_2012'!O42,+'App.2-CB_MIFRS_DepExp_2012'!O42+((C42*0.5)/D42)) -> 59456.75 | G42: 62330 | H42: -2873.25 | I42: 5767.5 | K42: =IF(ISERROR(+I42+'App.2-CB_MIFRS_DepExp_2012'!O42-J42), 0, +I42+'App.2-CB_MIFRS_DepExp_2012'!O42-J42) -> 62340.5
A43: 1850 | B43: Overhead Line Transformers | C43: 788300 | D43: 40 | E43: 0.025 | F43: =IF(D43=0,+'App.2-CB_MIFRS_DepExp_2012'!O43,+'App.2-CB_MIFRS_DepExp_2012'!O43+((C43*0.5)/D43)) -> 511505.75 | G43: 521300 | H43: -9794.25 | I43: 19707.5 | K43: =IF(ISERROR(+I43+'App.2-CB_MIFRS_DepExp_2012'!O43-J43), 0, +I43+'App.2-CB_MIFRS_DepExp_2012'!O43-J43) -> 521359.5
A44: 1850 | B44: Network Transformers | C44: 255900 | D44: 40 | E44: =IF(D44=0,0,1/D44) -> 0.025 | F44: =IF(D44=0,+'App.2-CB_MIFRS_DepExp_2012'!O44,+'App.2-CB_MIFRS_DepExp_2012'!O44+((C44*0.5)/D44)) -> 7450.75 | G44: 10700 | H44: =IF(ISERROR(+F44-G44), 0, +F44-G44) -> -3249.25 | I44: =IF(D44=0,0,+(C44)/D44) -> 6397.5 | K44: =IF(ISERROR(+I44+'App.2-CB_MIFRS_DepExp_2012'!O44-J44), 0, +I44+'App.2-CB_MIFRS_DepExp_2012'!O44-J44) -> 10649.5
A45: 1850 | B45: Vault | C45: 85400 | D45: 60 | E45: 0.01666666667 | F45: =IF(D45=0,+'App.2-CB_MIFRS_DepExp_2012'!O45,+'App.2-CB_MIFRS_DepExp_2012'!O45+((C45*0.5)/D45)) -> 755.4833333 | G45: 1500 | H45: -744.5166667 | I45: 1423.333333 | K45: =IF(ISERROR(+I45+'App.2-CB_MIFRS_DepExp_2012'!O45-J45), 0, +I45+'App.2-CB_MIFRS_DepExp_2012'!O45-J45) -> 1467.15
A46: 1850 | B46: Roof | D46: 30 | E46: 0.03333333333 | F46: =IF(D46=0,+'App.2-CB_MIFRS_DepExp_2012'!O46,+'App.2-CB_MIFRS_DepExp_2012'!O46+((C46*0.5)/D46)) -> 21235 | G46: 21200 | H46: 35 | I46: 0 | K46: =IF(ISERROR(+I46+'App.2-CB_MIFRS_DepExp_2012'!O46-J46), 0, +I46+'App.2-CB_MIFRS_DepExp_2012'!O46-J46) -> 21235
A47: 1850 | B47: Network Protectors | D47: 40 | E47: =IF(D47=0,0,1/D47) -> 0.025 | F47: =IF(D47=0,+'App.2-CB_MIFRS_DepExp_2012'!O47,+'App.2-CB_MIFRS_DepExp_2012'!O47+((C47*0.5)/D47)) -> 4948 | G47: 4900 | H47: =IF(ISERROR(+F47-G47), 0, +F47-G47) -> 48 | I47: =IF(D47=0,0,+(C47)/D47) -> 0 | K47: =IF(ISERROR(+I47+'App.2-CB_MIFRS_DepExp_2012'!O47-J47), 0, +I47+'App.2-CB_MIFRS_DepExp_2012'!O47-J47) -> 4948
A48: 1850 | B48: Padmount | C48: 120600 | D48: 40 | E48: 0.025 | F48: =IF(D48=0,+'App.2-CB_MIFRS_DepExp_2012'!O48,+'App.2-CB_MIFRS_DepExp_2012'!O48+((C48*0.5)/D48)) -> 75595.5 | G48: 77100 | H48: -1504.5 | I48: 3015 | K48: =IF(ISERROR(+I48+'App.2-CB_MIFRS_DepExp_2012'!O48-J48), 0, +I48+'App.2-CB_MIFRS_DepExp_2012'!O48-J48) -> 77103
A49: 1850 | B49: Submersible | C49: 1307100 | D49: 30 | E49: 0.03333333333 | F49: =IF(D49=0,+'App.2-CB_MIFRS_DepExp_2012'!O49,+'App.2-CB_MIFRS_DepExp_2012'!O49+((C49*0.5)/D49)) -> 98025 | G49: 120000 | H49: -21975 | I49: 43570 | K49: =IF(ISERROR(+I49+'App.2-CB_MIFRS_DepExp_2012'!O49-J49), 0, +I49+'App.2-CB_MIFRS_DepExp_2012'!O49-J49) -> 119810
A50: 1850 | B50: Foundation | C50: 386300 | D50: 60 | E50: 0.01666666667 | F50: =IF(D50=0,+'App.2-CB_MIFRS_DepExp_2012'!O50,+'App.2-CB_MIFRS_DepExp_2012'!O50+((C50*0.5)/D50)) -> 19396.16667 | G50: 22600 | H50: -3203.833333 | I50: 6438.333333 | K50: =IF(ISERROR(+I50+'App.2-CB_MIFRS_DepExp_2012'!O50-J50), 0, +I50+'App.2-CB_MIFRS_DepExp_2012'!O50-J50) -> 22615.33333
A51: 1855 | B51: Services - Overhead | C51: 340600 | D51: 60 | E51: 0.01666666667 | F51: =IF(D51=0,+'App.2-CB_MIFRS_DepExp_2012'!O51,+'App.2-CB_MIFRS_DepExp_2012'!O51+((C51*0.5)/D51)) -> 23783.33333 | G51: 26600 | H51: -2816.666667 | I51: 5676.666667 | K51: =IF(ISERROR(+I51+'App.2-CB_MIFRS_DepExp_2012'!O51-J51), 0, +I51+'App.2-CB_MIFRS_DepExp_2012'!O51-J51) -> 26621.66667
A52: 1855 | B52: Services - Underground | C52: 1798100 | D52: 40 | E52: =IF(D52=0,0,1/D52) -> 0.025 | F52: =IF(D52=0,+'App.2-CB_MIFRS_DepExp_2012'!O52,+'App.2-CB_MIFRS_DepExp_2012'!O52+((C52*0.5)/D52)) -> 393041.25 | G52: 415600 | H52: =IF(ISERROR(+F52-G52), 0, +F52-G52) -> -22558.75 | I52: =IF(D52=0,0,+(C52)/D52) -> 44952.5 | K52: =IF(ISERROR(+I52+'App.2-CB_MIFRS_DepExp_2012'!O52-J52), 0, +I52+'App.2-CB_MIFRS_DepExp_2012'!O52-J52) -> 415517.5
A53: 1860 | B53: Meters | C53: 690000 | D53: 15 | E53: 0.06666666667 | F53: =IF(D53=0,+'App.2-CB_MIFRS_DepExp_2012'!O53,+'App.2-CB_MIFRS_DepExp_2012'!O53+((C53*0.5)/D53)) -> 164213.7375 | G53: 107249 | H53: 56964.73747 | I53: 46000 | K53: =IF(ISERROR(+I53+'App.2-CB_MIFRS_DepExp_2012'!O53-J53), 0, +I53+'App.2-CB_MIFRS_DepExp_2012'!O53-J53) -> 187213.7375
A54: 1860 | B54: Meters (Smart Meters) | D54: 15 | E54: 0.06666666667 | F54: =IF(D54=0,+'App.2-CB_MIFRS_DepExp_2012'!O54,+'App.2-CB_MIFRS_DepExp_2012'!O54+((C54*0.5)/D54)) -> 802745.2667 | G54: 796251 | H54: 6494.266667 | I54: 0 | K54: =IF(ISERROR(+I54+'App.2-CB_MIFRS_DepExp_2012'!O54-J54), 0, +I54+'App.2-CB_MIFRS_DepExp_2012'!O54-J54) -> 802745.2667
A55: 1905 | B55: Land
A56: 1908 | B56: Buildings & Fixtures - Structure | C56: 5600000 | D56: 50 | E56: 0.02 | F56: =IF(D56=0,+'App.2-CB_MIFRS_DepExp_2012'!O56,+'App.2-CB_MIFRS_DepExp_2012'!O56+((C56*0.5)/D56)) -> 233588 | G56: 289600 | H56: -56012 | I56: 112000 | K56: =IF(ISERROR(+I56+'App.2-CB_MIFRS_DepExp_2012'!O56-J56), 0, +I56+'App.2-CB_MIFRS_DepExp_2012'!O56-J56) -> 289588
A57: 1908 | B57: Buildings & Fixtures - Roof | C57: 60000 | D57: 20 | E57: =IF(D57=0,0,1/D57) -> 0.05 | F57: =IF(D57=0,+'App.2-CB_MIFRS_DepExp_2012'!O57,+'App.2-CB_MIFRS_DepExp_2012'!O57+((C57*0.5)/D57)) -> 247833 | G57: 249300 | H57: =IF(ISERROR(+F57-G57), 0, +F57-G57) -> -1467 | I57: =IF(D57=0,0,+(C57)/D57) -> 3000 | K57: =IF(ISERROR(+I57+'App.2-CB_MIFRS_DepExp_2012'!O57-J57), 0, +I57+'App.2-CB_MIFRS_DepExp_2012'!O57-J57) -> 249333
A58: 1910 | B58: Leasehold Improvements | D58: 0 | E58: 0 | F58: =IF(D58=0,+'App.2-CB_MIFRS_DepExp_2012'!O58,+'App.2-CB_MIFRS_DepExp_2012'!O58+((C58*0.5)/D58)) -> 0 | G58: 0 | H58: 0 | I58: 0 | K58: =IF(ISERROR(+I58+'App.2-CB_MIFRS_DepExp_2012'!O58-J58), 0, +I58+'App.2-CB_MIFRS_DepExp_2012'!O58-J58) -> 0
A59: 1915 | B59: Office Furniture & Equipment (10 years) | C59: 126600 | D59: 10 | E59: 0.1 | F59: =IF(D59=0,+'App.2-CB_MIFRS_DepExp_2012'!O59,+'App.2-CB_MIFRS_DepExp_2012'!O59+((C59*0.5)/D59)) -> 66216 | G59: 61400 | H59: 4816 | I59: 12660 | K59: =IF(ISERROR(+I59+'App.2-CB_MIFRS_DepExp_2012'!O59-J59), 0, +I59+'App.2-CB_MIFRS_DepExp_2012'!O59-J59) -> 72546
A60: 1915 | B60: Office Furniture & Equipment (5 years) | D60: 5 | E60: 0.2 | F60: =IF(D60=0,+'App.2-CB_MIFRS_DepExp_2012'!O60,+'App.2-CB_MIFRS_DepExp_2012'!O60+((C60*0.5)/D60)) -> 0 | G60: 0 | H60: 0 | I60: 0 | K60: =IF(ISERROR(+I60+'App.2-CB_MIFRS_DepExp_2012'!O60-J60), 0, +I60+'App.2-CB_MIFRS_DepExp_2012'!O60-J60) -> 0
A61: 1920 | B61: Computer Equipment - Hardware | C61: 398000 | D61: 4 | E61: 0.25 | F61: =IF(D61=0,+'App.2-CB_MIFRS_DepExp_2012'!O61,+'App.2-CB_MIFRS_DepExp_2012'!O61+((C61*0.5)/D61)) -> 141610 | G61: 146874 | H61: -5264 | I61: 99500 | J61: 10318 | K61: =IF(ISERROR(+I61+'App.2-CB_MIFRS_DepExp_2012'!O61-J61), 0, +I61+'App.2-CB_MIFRS_DepExp_2012'!O61-J61) -> 181042
A62: 1920 | B62: Computer Equip.-Hardware - Smart Meters | D62: 5 | E62: 0.2 | F62: =IF(D62=0,+'App.2-CB_MIFRS_DepExp_2012'!O62,+'App.2-CB_MIFRS_DepExp_2012'!O62+((C62*0.5)/D62)) -> 44252.2 | G62: 22126 | H62: 22126.2 | I62: 0 | K62: =IF(ISERROR(+I62+'App.2-CB_MIFRS_DepExp_2012'!O62-J62), 0, +I62+'App.2-CB_MIFRS_DepExp_2012'!O62-J62) -> 44252.2
A63: 1920 | B63: Computer Equip.-Hardware(Post Mar. 19/07) | D63: 5 | E63: 0.2 | F63: =IF(D63=0,+'App.2-CB_MIFRS_DepExp_2012'!O63,+'App.2-CB_MIFRS_DepExp_2012'!O63+((C63*0.5)/D63)) -> 0 | G63: 0 | H63: 0 | I63: 0 | K63: =IF(ISERROR(+I63+'App.2-CB_MIFRS_DepExp_2012'!O63-J63), 0, +I63+'App.2-CB_MIFRS_DepExp_2012'!O63-J63) -> 0
A64: 1930 | B64: Transportation Equipment | C64: 1124200 | D64: 10 | E64: 0.1 | F64: =IF(D64=0,+'App.2-CB_MIFRS_DepExp_2012'!O64,+'App.2-CB_MIFRS_DepExp_2012'!O64+((C64*0.5)/D64)) -> 514231 | G64: 535700 | H64: -21469 | I64: 112420 | K64: =IF(ISERROR(+I64+'App.2-CB_MIFRS_DepExp_2012'!O64-J64), 0, +I64+'App.2-CB_MIFRS_DepExp_2012'!O64-J64) -> 570441
A65: 1935 | B65: Stores Equipment | D65: 10 | E65: 0.1 | F65: =IF(D65=0,+'App.2-CB_MIFRS_DepExp_2012'!O65,+'App.2-CB_MIFRS_DepExp_2012'!O65+((C65*0.5)/D65)) -> 3512 | G65: 4000 | H65: -488 | I65: 0 | K65: =IF(ISERROR(+I65+'App.2-CB_MIFRS_DepExp_2012'!O65-J65), 0, +I65+'App.2-CB_MIFRS_DepExp_2012'!O65-J65) -> 3512
A66: 1940 | B66: Tools, Shop & Garage Equipment | D66: 10 | E66: 0.1 | F66: =IF(D66=0,+'App.2-CB_MIFRS_DepExp_2012'!O66,+'App.2-CB_MIFRS_DepExp_2012'!O66+((C66*0.5)/D66)) -> 59229 | G66: 62827 | H66: -3598 | I66: 0 | K66: =IF(ISERROR(+I66+'App.2-CB_MIFRS_DepExp_2012'!O66-J66), 0, +I66+'App.2-CB_MIFRS_DepExp_2012'!O66-J66) -> 59229
A67: 1940 | B67: Tools - Smart Meters | D67: 10 | E67: =IF(D67=0,0,1/D67) -> 0.1 | F67: =IF(D67=0,+'App.2-CB_MIFRS_DepExp_2012'!O67,+'App.2-CB_MIFRS_DepExp_2012'!O67+((C67*0.5)/D67)) -> 372.8 | G67: 373 | H67: =IF(ISERROR(+F67-G67), 0, +F67-G67) -> -0.2 | I67: =IF(D67=0,0,+(C67)/D67) -> 0 | K67: =IF(ISERROR(+I67+'App.2-CB_MIFRS_DepExp_2012'!O67-J67), 0, +I67+'App.2-CB_MIFRS_DepExp_2012'!O67-J67) -> 372.8
A68: 1945 | B68: Measurement & Testing Equipment | C68: 88400 | D68: 10 | E68: 0.1 | F68: =IF(D68=0,+'App.2-CB_MIFRS_DepExp_2012'!O68,+'App.2-CB_MIFRS_DepExp_2012'!O68+((C68*0.5)/D68)) -> 37203 | G68: 34100 | H68: 3103 | I68: 8840 | K68: =IF(ISERROR(+I68+'App.2-CB_MIFRS_DepExp_2012'!O68-J68), 0, +I68+'App.2-CB_MIFRS_DepExp_2012'!O68-J68) -> 41623
A69: 1950 | B69: Power Operated Equipment | D69: 10 | E69: 0.1 | F69: =IF(D69=0,+'App.2-CB_MIFRS_DepExp_2012'!O69,+'App.2-CB_MIFRS_DepExp_2012'!O69+((C69*0.5)/D69)) -> 57705 | G69: 54600 | H69: 3105 | I69: 0 | K69: =IF(ISERROR(+I69+'App.2-CB_MIFRS_DepExp_2012'!O69-J69), 0, +I69+'App.2-CB_MIFRS_DepExp_2012'!O69-J69) -> 57705
A70: 1955 | B70: Communications Equipment | D70: 10 | E70: 0.1 | F70: =IF(D70=0,+'App.2-CB_MIFRS_DepExp_2012'!O70,+'App.2-CB_MIFRS_DepExp_2012'!O70+((C70*0.5)/D70)) -> 16819 | G70: 20289 | H70: -3470 | I70: 0 | K70: =IF(ISERROR(+I70+'App.2-CB_MIFRS_DepExp_2012'!O70-J70), 0, +I70+'App.2-CB_MIFRS_DepExp_2012'!O70-J70) -> 16819
A71: 1955 | B71: Communication Equipment (Smart Meters) | D71: 10 | E71: 0.1 | F71: =IF(D71=0,+'App.2-CB_MIFRS_DepExp_2012'!O71,+'App.2-CB_MIFRS_DepExp_2012'!O71+((C71*0.5)/D71)) -> 69610.7 | G71: 69611 | H71: -0.3 | I71: 0 | K71: =IF(ISERROR(+I71+'App.2-CB_MIFRS_DepExp_2012'!O71-J71), 0, +I71+'App.2-CB_MIFRS_DepExp_2012'!O71-J71) -> 69610.7
A72: 1960 | B72: Miscellaneous Equipment | D72: 5 | E72: 0.2 | F72: =IF(D72=0,+'App.2-CB_MIFRS_DepExp_2012'!O72,+'App.2-CB_MIFRS_DepExp_2012'!O72+((C72*0.5)/D72)) -> 14931 | G72: 14700 | H72: 231 | I72: 0 | K72: =IF(ISERROR(+I72+'App.2-CB_MIFRS_DepExp_2012'!O72-J72), 0, +I72+'App.2-CB_MIFRS_DepExp_2012'!O72-J72) -> 14931
A73: 1975 | B73: Load Management Controls Utility Premises | D73: 5 | E73: 0.2 | F73: =IF(D73=0,+'App.2-CB_MIFRS_DepExp_2012'!O73,+'App.2-CB_MIFRS_DepExp_2012'!O73+((C73*0.5)/D73)) -> 0 | G73: 0 | H73: 0 | I73: 0 | K73: =IF(ISERROR(+I73+'App.2-CB_MIFRS_DepExp_2012'!O73-J73), 0, +I73+'App.2-CB_MIFRS_DepExp_2012'!O73-J73) -> 0
A74: 1980 | B74: System Supervisor Equipment | D74: 5 | E74: 0.2 | F74: =IF(D74=0,+'App.2-CB_MIFRS_DepExp_2012'!O74,+'App.2-CB_MIFRS_DepExp_2012'!O74+((C74*0.5)/D74)) -> 4058.99 | G74: 4100 | H74: -41.01 | I74: 0 | K74: =IF(ISERROR(+I74+'App.2-CB_MIFRS_DepExp_2012'!O74-J74), 0, +I74+'App.2-CB_MIFRS_DepExp_2012'!O74-J74) -> 4058.99
A75: 1985 | B75: Miscellaneous Fixed Assets | D75: 10 | E75: 0.1 | F75: =IF(D75=0,+'App.2-CB_MIFRS_DepExp_2012'!O75,+'App.2-CB_MIFRS_DepExp_2012'!O75+((C75*0.5)/D75)) -> 0 | G75: 0 | H75: 0 | I75: 0 | K75: =IF(ISERROR(+I75+'App.2-CB_MIFRS_DepExp_2012'!O75-J75), 0, +I75+'App.2-CB_MIFRS_DepExp_2012'!O75-J75) -> 0
A76: 1995 | B76: Contributions & Grants | E76: 0 | F76: =IF(D76=0,+'App.2-CB_MIFRS_DepExp_2012'!O76,+'App.2-CB_MIFRS_DepExp_2012'!O76+((C76*0.5)/D76)) -> 0 | G76: 0 | H76: 0 | I76: 0 | K76: =IF(ISERROR(+I76+'App.2-CB_MIFRS_DepExp_2012'!O76-J76), 0, +I76+'App.2-CB_MIFRS_DepExp_2012'!O76-J76) -> 0
A77: 1995 | B77: Contributed Capital - Poles, Towers & Fixtures | C77: -308400 | D77: 40 | E77: =IF(D77=0,0,1/D77) -> 0.025 | F77: =IF(D77=0,+'App.2-CB_MIFRS_DepExp_2012'!O77,+'App.2-CB_MIFRS_DepExp_2012'!O77+((C77*0.5)/D77)) -> -18857.325 | G77: -22700 | H77: =IF(ISERROR(+F77-G77), 0, +F77-G77) -> 3842.675 | I77: =IF(D77=0,0,+(C77)/D77) -> -7710 | K77: =IF(ISERROR(+I77+'App.2-CB_MIFRS_DepExp_2012'!O77-J77), 0, +I77+'App.2-CB_MIFRS_DepExp_2012'!O77-J77) -> -22712.325
A78: 1995 | B78: Contributed Capital - Overhead Conductors | C78: -212130 | D78: 60 | E78: 0.01666666667 | F78: =IF(D78=0,+'App.2-CB_MIFRS_DepExp_2012'!O78,+'App.2-CB_MIFRS_DepExp_2012'!O78+((C78*0.5)/D78)) -> -11886.46667 | G78: -13600 | H78: 1713.533333 | I78: -3535.5 | K78: =IF(ISERROR(+I78+'App.2-CB_MIFRS_DepExp_2012'!O78-J78), 0, +I78+'App.2-CB_MIFRS_DepExp_2012'!O78-J78) -> -13654.21667
A79: 1995 | B79: Contributed Capital - Overhead Devices | C79: -23570 | D79: 40 | E79: 0.025 | F79: =IF(D79=0,+'App.2-CB_MIFRS_DepExp_2012'!O79,+'App.2-CB_MIFRS_DepExp_2012'!O79+((C79*0.5)/D79)) -> -1981.075 | G79: -2300 | H79: 318.925 | I79: -589.25 | K79: =IF(ISERROR(+I79+'App.2-CB_MIFRS_DepExp_2012'!O79-J79), 0, +I79+'App.2-CB_MIFRS_DepExp_2012'!O79-J79) -> -2275.7
A80: 1995 | B80: Contributed Capital - Overhead Services | C80: -31750 | D80: 60 | E80: =IF(D80=0,0,1/D80) -> 0.01666666667 | F80: =IF(D80=0,+'App.2-CB_MIFRS_DepExp_2012'!O80,+'App.2-CB_MIFRS_DepExp_2012'!O80+((C80*0.5)/D80)) -> 1251.883333 | G80: 1000 | H80: =IF(ISERROR(+F80-G80), 0, +F80-G80) -> 251.8833333 | I80: =IF(D80=0,0,+(C80)/D80) -> -529.1666667 | K80: =IF(ISERROR(+I80+'App.2-CB_MIFRS_DepExp_2012'!O80-J80), 0, +I80+'App.2-CB_MIFRS_DepExp_2012'!O80-J80) -> 987.3
A81: 1995 | B81: Contributed Capital - Underground Trenching & Ductwork | C81: -797000 | D81: 60 | E81: 0.01666666667 | F81: =IF(D81=0,+'App.2-CB_MIFRS_DepExp_2012'!O81,+'App.2-CB_MIFRS_DepExp_2012'!O81+((C81*0.5)/D81)) -> -24630.95 | G81: -31300 | H81: 6669.05 | I81: -13283.33333 | K81: =IF(ISERROR(+I81+'App.2-CB_MIFRS_DepExp_2012'!O81-J81), 0, +I81+'App.2-CB_MIFRS_DepExp_2012'!O81-J81) -> -31272.61667
A82: 1995 | B82: Contributed Capital - Underground Cables | C82: -623160 | D82: 40 | E82: 0.025 | F82: =IF(D82=0,+'App.2-CB_MIFRS_DepExp_2012'!O82,+'App.2-CB_MIFRS_DepExp_2012'!O82+((C82*0.5)/D82)) -> -42628.35 | G82: -50400 | H82: 7771.65 | I82: -15579 | K82: =IF(ISERROR(+I82+'App.2-CB_MIFRS_DepExp_2012'!O82-J82), 0, +I82+'App.2-CB_MIFRS_DepExp_2012'!O82-J82) -> -50417.85
A83: 1995 | B83: Contributed Capital - Underground Devices | C83: -69240 | D83: 40 | E83: 0.025 | F83: =IF(D83=0,+'App.2-CB_MIFRS_DepExp_2012'!O83,+'App.2-CB_MIFRS_DepExp_2012'!O83+((C83*0.5)/D83)) -> -3482.2 | G83: -4300 | H83: 817.8 | I83: -1731 | K83: =IF(ISERROR(+I83+'App.2-CB_MIFRS_DepExp_2012'!O83-J83), 0, +I83+'App.2-CB_MIFRS_DepExp_2012'!O83-J83) -> -4347.7
A84: 1995 | B84: Contributed Capital - Overhead Transformer | C84: 0 | D84: 40 | E84: 0.025 | F84: =IF(D84=0,+'App.2-CB_MIFRS_DepExp_2012'!O84,+'App.2-CB_MIFRS_DepExp_2012'!O84+((C84*0.5)/D84)) -> -1200.6 | G84: -1200 | H84: -0.6 | I84: 0 | K84: =IF(ISERROR(+I84+'App.2-CB_MIFRS_DepExp_2012'!O84-J84), 0, +I84+'App.2-CB_MIFRS_DepExp_2012'!O84-J84) -> -1200.6
A85: 1995 | B85: Contributed Capital - Underground Padmount Transformer | C85: -141200 | D85: 40 | E85: 0.025 | F85: =IF(D85=0,+'App.2-CB_MIFRS_DepExp_2012'!O85,+'App.2-CB_MIFRS_DepExp_2012'!O85+((C85*0.5)/D85)) -> -9707.65 | G85: -11500 | H85: 1792.35 | I85: -3530 | K85: =IF(ISERROR(+I85+'App.2-CB_MIFRS_DepExp_2012'!O85-J85), 0, +I85+'App.2-CB_MIFRS_DepExp_2012'!O85-J85) -> -11472.65
A86: 1995 | B86: Contributed Capital -Underground Submersible Transformer | C86: -329400 | D86: 30 | E86: 0.03333333333 | F86: =IF(D86=0,+'App.2-CB_MIFRS_DepExp_2012'!O86,+'App.2-CB_MIFRS_DepExp_2012'!O86+((C86*0.5)/D86)) -> -14875.4 | G86: -20400 | H86: 5524.6 | I86: -10980 | K86: =IF(ISERROR(+I86+'App.2-CB_MIFRS_DepExp_2012'!O86-J86), 0, +I86+'App.2-CB_MIFRS_DepExp_2012'!O86-J86) -> -20365.4
A87: 1995 | B87: Contributed Capital - Underground Services | C87: -1303150 | D87: 40 | E87: 0.025 | F87: =IF(D87=0,+'App.2-CB_MIFRS_DepExp_2012'!O87,+'App.2-CB_MIFRS_DepExp_2012'!O87+((C87*0.5)/D87)) -> -11982.575 | G87: -28300 | H87: 16317.425 | I87: -32578.75 | K87: =IF(ISERROR(+I87+'App.2-CB_MIFRS_DepExp_2012'!O87-J87), 0, +I87+'App.2-CB_MIFRS_DepExp_2012'!O87-J87) -> -28271.95
A88: 1995 | B88: Contributed Capital - Transformer Foundations | C88: -96500 | D88: 60 | E88: 0.01666666667 | F88: =IF(D88=0,+'App.2-CB_MIFRS_DepExp_2012'!O88,+'App.2-CB_MIFRS_DepExp_2012'!O88+((C88*0.5)/D88)) -> -7955.133333 | G88: -8800 | H88: 844.8666667 | I88: -1608.333333 | K88: =IF(ISERROR(+I88+'App.2-CB_MIFRS_DepExp_2012'!O88-J88), 0, +I88+'App.2-CB_MIFRS_DepExp_2012'!O88-J88) -> -8759.3
A89: 1995 | B89: Contributed Capital - Meters | C89: -40000 | D89: 15 | E89: 0.06666666667 | F89: =IF(D89=0,+'App.2-CB_MIFRS_DepExp_2012'!O89,+'App.2-CB_MIFRS_DepExp_2012'!O89+((C89*0.5)/D89)) -> -7672.666667 | G89: -5500 | H89: -2172.666667 | I89: -2666.666667 | K89: =IF(ISERROR(+I89+'App.2-CB_MIFRS_DepExp_2012'!O89-J89), 0, +I89+'App.2-CB_MIFRS_DepExp_2012'!O89-J89) -> -9006
A90: 1995 | B90: Contributed Capital - OEB Clearing | C90: 40000 | D90: 15 | E90: 0.06666666667 | F90: =IF(D90=0,+'App.2-CB_MIFRS_DepExp_2012'!O90,+'App.2-CB_MIFRS_DepExp_2012'!O90+((C90*0.5)/D90)) -> 7430.8 | G90: 5200 | H90: 2230.8 | I90: 2666.666667 | K90: =IF(ISERROR(+I90+'App.2-CB_MIFRS_DepExp_2012'!O90-J90), 0, +I90+'App.2-CB_MIFRS_DepExp_2012'!O90-J90) -> 8764.133333
A91: 1995 | E91: 0 | F91: 0 | H91: 0 | I91: 0 | K91: 0
A92: 1995 | E92: 0 | H92: 0 | I92: 0
A93: etc. | D93: ='App.2-CB_MIFRS_DepExp_2012'!F76 -> 0 | E93: 0 | F93: =IF(D93=0,+'App.2-CB_MIFRS_DepExp_2012'!O91,+'App.2-CB_MIFRS_DepExp_2012'!O91+((C93*0.5)/D93)) -> 0 | H93: 0 | I93: 0 | K93: =IF(ISERROR(+I93+'App.2-CB_MIFRS_DepExp_2012'!O91-J93), 0, +I93+'App.2-CB_MIFRS_DepExp_2012'!O91-J93) -> 0
E94: 0 | F94: =IF(D94=0,+'App.2-CB_MIFRS_DepExp_2012'!O92,+'App.2-CB_MIFRS_DepExp_2012'!O92+((C94*0.5)/D94)) -> 0 | H94: 0 | I94: 0 | K94: =IF(ISERROR(+I94+'App.2-CB_MIFRS_DepExp_2012'!O92-J94), 0, +I94+'App.2-CB_MIFRS_DepExp_2012'!O92-J94) -> 0
B95: Total | C95: =SUM(C16:C94) -> 22270600 | F95: =SUM(F16:F94) -> 7585805.422 | G95: 7701200 | H95: -115394.5775 | I95: 830900.1667 | J95: 147572.82 | K95: 7853682.686
A97: Notes:
A98: 1 | B98: Board policy of the "half-year" rule - the applicant must ensure that additions in the year attract a half-year depreciation expense in the first year. Deviations from this standard practice must be supported in the application.
A99: 2 | B99: The applicant must provide an explanation of material variances in evidence
A100: 3 | B100: This column refers to the calculated full year depreciation but excludes the depreciation expense on assets fully depreciated during the year. This column is used for the purpose of calculating depreciation expense in the following year on the next worksheet.
A102: General: | B102: Applicants must provide a breakdown of depreciation and amortization expense in the above format for all relevant accounts. Asset Retirement Obligations (AROs), depreciation and accretion expense should be disclosed separately consistent with the Notes of historical Audited Financial Statements.

Sheet App.2-CD_MIFRS_DepExp_2014
G1: File Number: | H1: ='LDC Info'!$E$18 -> EB-2013-0147
G2: Exhibit:
G3: Tab:
G4: Schedule:
G5: Page:
G7: Date:
A9: Appendix 2-CD
A10: Depreciation and Amortization Expense
A11: Assumes the applicant adopted IFRS for financial reporting purposes January 1, 2014
C12: 2014 | D12: MIFRS
A14: Account | B14: Description | C14: Additions | D14: Years (new additions only) | E14: Depreciation Rate on New Additions | F14: 2014 Depreciation Expense 1 | G14: 2014 Depreciation Expense per Appendix 2-B Fixed Assets, Column K (l) | H14: Variance 2
C15: (d) | D15: (f) | E15: (g) = 1 / (f) | F15: (h)=2012 Full Year Depreciation + ((d)*0.5)/(f) | H15: (m) = (h) - (l)
A16: 1611 | B16: Computer Software (Formally known as Account 1925) | C16: 360000 | D16: 3 | E16: =IF(D16=0,0,1/D16) -> 0.3333333333 | F16: =IF(D16=0,'App.2-CC_MIFRS_DepExp_2013'!K16,+'App.2-CC_MIFRS_DepExp_2013'!K16+((C16*0.5)/D16)) -> 522969.6667 | G16: 666800 | H16: =IF(ISERROR(+F16-G16), 0, +F16-G16) -> -143830.3333
A17: 1611 | B17: Computer Software (Formally known as Account 1925) - Smart Meters | D17: 5 | E17: =IF(D17=0,0,1/D17) -> 0.2 | F17: =IF(D17=0,'App.2-CC_MIFRS_DepExp_2013'!K17,+'App.2-CC_MIFRS_DepExp_2013'!K17+((C17*0.5)/D17)) -> 0.4 | G17: 0 | H17: =IF(ISERROR(+F17-G17), 0, +F17-G17) -> 0.4
A18: 1612 | B18: Land Rights (Formally known as Account 1906) | D18: 50 | E18: =IF(D18=0,0,1/D18) -> 0.02 | F18: =IF(D18=0,'App.2-CC_MIFRS_DepExp_2013'!K18,+'App.2-CC_MIFRS_DepExp_2013'!K18+((C18*0.5)/D18)) -> 0 | G18: 0 | H18: =IF(ISERROR(+F18-G18), 0, +F18-G18) -> 0
A19: 1805 | B19: Land | E19: 0 | F19: =IF(D19=0,'App.2-CC_MIFRS_DepExp_2013'!K19,+'App.2-CC_MIFRS_DepExp_2013'!K19+((C19*0.5)/D19)) -> 0 | G19: 0 | H19: 0
A20: 1808 | B20: Buildings - Structure | C20: 158000 | D20: 50 | E20: 0.02 | F20: =IF(D20=0,'App.2-CC_MIFRS_DepExp_2013'!K20,+'App.2-CC_MIFRS_DepExp_2013'!K20+((C20*0.5)/D20)) -> 198011 | G20: 186400 | H20: 11611
A21: 1808 | B21: Buildings - Roof | C21: 3200 | D21: 20 | E21: 0.05 | F21: =IF(D21=0,'App.2-CC_MIFRS_DepExp_2013'!K21,+'App.2-CC_MIFRS_DepExp_2013'!K21+((C21*0.5)/D21)) -> 12755.89 | G21: 12700 | H21: 55.89
A22: 1810 | B22: Leasehold Improvements | E22: 0 | F22: =IF(D22=0,'App.2-CC_MIFRS_DepExp_2013'!K22,+'App.2-CC_MIFRS_DepExp_2013'!K22+((C22*0.5)/D22)) -> 0 | G22: 0 | H22: 0
A23: 1815 | B23: Transformer Station Equipment >50 kV 50 yrs | C23: 650000 | D23: 50 | E23: 0.02 | F23: =IF(D23=0,'App.2-CC_MIFRS_DepExp_2013'!K23,+'App.2-CC_MIFRS_DepExp_2013'!K23+((C23*0.5)/D23)) -> 410850 | G23: 411100 | H23: -250
A24: 1815 | B24: Transformer Station Equipment >50 kV 40 yrs | C24: 1390000 | D24: 40 | E24: 0.025 | F24: =IF(D24=0,'App.2-CC_MIFRS_DepExp_2013'!K24,+'App.2-CC_MIFRS_DepExp_2013'!K24+((C24*0.5)/D24)) -> 880200 | G24: 881000 | H24: -800
A25: 1815 | B25: Transformer Station Equipment >50 kV 25 yrs | D25: 25 | E25: =IF(D25=0,0,1/D25) -> 0.04 | F25: =IF(D25=0,'App.2-CC_MIFRS_DepExp_2013'!K25,+'App.2-CC_MIFRS_DepExp_2013'!K25+((C25*0.5)/D25)) -> 86908.28 | G25: 87300 | H25: -391.72
A26: 1815 | B26: Transformer Station Equipment >50 kV 20 yrs | D26: 20 | E26: 0.05 | F26: =IF(D26=0,'App.2-CC_MIFRS_DepExp_2013'!K26,+'App.2-CC_MIFRS_DepExp_2013'!K26+((C26*0.5)/D26)) -> 41226.75 | G26: 41500 | H26: -273.25
A27: 1815 | B27: Transformer Station Equipment >50 kV 15 yrs | D27: 15 | E27: 0.06666666667 | F27: =IF(D27=0,'App.2-CC_MIFRS_DepExp_2013'!K27,+'App.2-CC_MIFRS_DepExp_2013'!K27+((C27*0.5)/D27)) -> 145396.2233 | G27: 146000 | H27: -603.7766667
A28: 1820 | B28: Distribution Station Equipment <50 kV 50 yrs | D28: 50 | E28: 0.02 | F28: =IF(D28=0,'App.2-CC_MIFRS_DepExp_2013'!K28,+'App.2-CC_MIFRS_DepExp_2013'!K28+((C28*0.5)/D28)) -> 8813 | G28: 8800 | H28: 13
A29: 1820 | B29: Distribution Station Equipment <50 kV 40 yrs | D29: 40 | E29: 0.025 | F29: =IF(D29=0,'App.2-CC_MIFRS_DepExp_2013'!K29,+'App.2-CC_MIFRS_DepExp_2013'!K29+((C29*0.5)/D29)) -> 25509 | G29: 25500 | H29: 9
A30: 1820 | B30: Distribution Station Equipment <50 kV 25 yrs | D30: 25 | E30: 0.04 | F30: =IF(D30=0,'App.2-CC_MIFRS_DepExp_2013'!K30,+'App.2-CC_MIFRS_DepExp_2013'!K30+((C30*0.5)/D30)) -> 2241.48 | G30: 2200 | H30: 41.48
A31: 1820 | B31: Distribution Station Equipment <50 kV 20 yrs | D31: 20 | E31: 0.05 | F31: =IF(D31=0,'App.2-CC_MIFRS_DepExp_2013'!K31,+'App.2-CC_MIFRS_DepExp_2013'!K31+((C31*0.5)/D31)) -> 1073.87 | G31: 1100 | H31: -26.13
A32: 1820 | B32: Distribution Station Equipment <50 kV 15 yrs | D32: 15 | E32: 0.06666666667 | F32: =IF(D32=0,'App.2-CC_MIFRS_DepExp_2013'!K32,+'App.2-CC_MIFRS_DepExp_2013'!K32+((C32*0.5)/D32)) -> 5997.99 | G32: 6000 | H32: -2.01
A33: 1825 | B33: Storage Battery Equipment | G33: 0
A34: 1830 | B34: Poles, Towers & Fixtures | C34: 2768500 | D34: 40 | E34: 0.025 | F34: =IF(D34=0,'App.2-CC_MIFRS_DepExp_2013'!K34,+'App.2-CC_MIFRS_DepExp_2013'!K34+((C34*0.5)/D34)) -> 652850.75 | G34: 651100 | H34: 1750.75
A35: 1835 | B35: Overhead Conductors | C35: 1997100 | D35: 60 | E35: 0.01666666667 | F35: =IF(D35=0,'App.2-CC_MIFRS_DepExp_2013'!K35,+'App.2-CC_MIFRS_DepExp_2013'!K35+((C35*0.5)/D35)) -> 331770.8333 | G35: 330390 | H35: 1380.833333
A36: 1835 | B36: Overhead Devices | C36: 221900 | D36: 40 | E36: 0.025 | F36: =IF(D36=0,'App.2-CC_MIFRS_DepExp_2013'!K36,+'App.2-CC_MIFRS_DepExp_2013'!K36+((C36*0.5)/D36)) -> 58221.25 | G36: 60610 | H36: -2388.75
A37: 1835 | B37: Voltage Regulators | D37: 30 | E37: 0.03333333333 | F37: =IF(D37=0,'App.2-CC_MIFRS_DepExp_2013'!K37,+'App.2-CC_MIFRS_DepExp_2013'!K37+((C37*0.5)/D37)) -> 8155 | G37: 8200 | H37: -45
A38: 1835 | B38: Capacitor Banks | D38: 25 | E38: 0.04 | F38: =IF(D38=0,'App.2-CC_MIFRS_DepExp_2013'!K38,+'App.2-CC_MIFRS_DepExp_2013'!K38+((C38*0.5)/D38)) -> 31924 | G38: 31900 | H38: 24
A39: 1840 | B39: Underground Conduit | C39: 2820500 | D39: 60 | E39: 0.01666666667 | F39: =IF(D39=0,'App.2-CC_MIFRS_DepExp_2013'!K39,+'App.2-CC_MIFRS_DepExp_2013'!K39+((C39*0.5)/D39)) -> 245408.5 | G39: 244500 | H39: 908.5
A40: 1845 | B40: Underground Conductors & Devices - PILC | D40: 60 | E40: 0.01666666667 | F40: =IF(D40=0,'App.2-CC_MIFRS_DepExp_2013'!K40,+'App.2-CC_MIFRS_DepExp_2013'!K40+((C40*0.5)/D40)) -> 8335 | G40: 8300 | H40: 35
A41: 1845 | B41: Underground Cables | C41: 2359600 | D41: 40 | E41: 0.025 | F41: =IF(D41=0,'App.2-CC_MIFRS_DepExp_2013'!K41,+'App.2-CC_MIFRS_DepExp_2013'!K41+((C41*0.5)/D41)) -> 612935.5 | G41: 612970 | H41: -34.5
A42: 1845 | B42: Underground Devices | C42: 262200 | D42: 40 | E42: 0.025 | F42: =IF(D42=0,'App.2-CC_MIFRS_DepExp_2013'!K42,+'App.2-CC_MIFRS_DepExp_2013'!K42+((C42*0.5)/D42)) -> 65618 | G42: 65630 | H42: -12
A43: 1850 | B43: Overhead Line Transformers | C43: 820800 | D43: 40 | E43: 0.025 | F43: =IF(D43=0,'App.2-CC_MIFRS_DepExp_2013'!K43,+'App.2-CC_MIFRS_DepExp_2013'!K43+((C43*0.5)/D43)) -> 531619.5 | G43: 531600 | H43: 19.5
A44: 1850 | B44: Network Transformers | C44: 192100 | D44: 40 | E44: 0.025 | F44: =IF(D44=0,'App.2-CC_MIFRS_DepExp_2013'!K44,+'App.2-CC_MIFRS_DepExp_2013'!K44+((C44*0.5)/D44)) -> 13050.75 | G44: 13000 | H44: 50.75
A45: 1850 | B45: Vault | D45: 60 | E45: 0.01666666667 | F45: =IF(D45=0,'App.2-CC_MIFRS_DepExp_2013'!K45,+'App.2-CC_MIFRS_DepExp_2013'!K45+((C45*0.5)/D45)) -> 1467.15 | G45: 1500 | H45: -32.85
A46: 1850 | B46: Roof | D46: 30 | E46: 0.03333333333 | F46: =IF(D46=0,'App.2-CC_MIFRS_DepExp_2013'!K46,+'App.2-CC_MIFRS_DepExp_2013'!K46+((C46*0.5)/D46)) -> 21235 | G46: 20900 | H46: 335
A47: 1850 | B47: Network Protectors | D47: 40 | E47: 0.025 | F47: =IF(D47=0,'App.2-CC_MIFRS_DepExp_2013'!K47,+'App.2-CC_MIFRS_DepExp_2013'!K47+((C47*0.5)/D47)) -> 4948 | G47: 4900 | H47: 48
A48: 1850 | B48: Padmount | C48: 463000 | D48: 40 | E48: =IF(D48=0,0,1/D48) -> 0.025 | F48: =IF(D48=0,'App.2-CC_MIFRS_DepExp_2013'!K48,+'App.2-CC_MIFRS_DepExp_2013'!K48+((C48*0.5)/D48)) -> 82890.5 | G48: 82900 | H48: -9.5
A49: 1850 | B49: Submersible | C49: 1097700 | D49: 30 | E49: 0.03333333333 | F49: =IF(D49=0,'App.2-CC_MIFRS_DepExp_2013'!K49,+'App.2-CC_MIFRS_DepExp_2013'!K49+((C49*0.5)/D49)) -> 138105 | G49: 138200 | H49: -95
A50: 1850 | B50: Foundation | C50: 324900 | D50: 60 | E50: 0.01666666667 | F50: =IF(D50=0,'App.2-CC_MIFRS_DepExp_2013'!K50,+'App.2-CC_MIFRS_DepExp_2013'!K50+((C50*0.5)/D50)) -> 25322.83333 | G50: 25400 | H50: -77.16666667
A51: 1855 | B51: Services - Overhead | C51: 538500 | D51: 60 | E51: 0.01666666667 | F51: =IF(D51=0,'App.2-CC_MIFRS_DepExp_2013'!K51,+'App.2-CC_MIFRS_DepExp_2013'!K51+((C51*0.5)/D51)) -> 31109.16667 | G51: 31200 | H51: -90.83333333
A52: 1855 | B52: Services - Underground | C52: 2525500 | D52: 40 | E52: 0.025 | F52: =IF(D52=0,'App.2-CC_MIFRS_DepExp_2013'!K52,+'App.2-CC_MIFRS_DepExp_2013'!K52+((C52*0.5)/D52)) -> 447086.25 | G52: 447000 | H52: 86.25
A53: 1860 | B53: Meters | E53: 0 | F53: =IF(D53=0,'App.2-CC_MIFRS_DepExp_2013'!K53,+'App.2-CC_MIFRS_DepExp_2013'!K53+((C53*0.5)/D53)) -> 187213.7375 | G53: 77049 | H53: 110164.7375
A54: 1860 | B54: Meters (Smart Meters) | C54: 612000 | D54: 15 | E54: =IF(D54=0,0,1/D54) -> 0.06666666667 | F54: =IF(D54=0,'App.2-CC_MIFRS_DepExp_2013'!K54,+'App.2-CC_MIFRS_DepExp_2013'!K54+((C54*0.5)/D54)) -> 823145.2667 | G54: 837051 | H54: -13905.73333
A55: 1905 | B55: Land
A56: 1908 | B56: Buildings & Fixtures - Structure | C56: 1350000 | D56: 50 | E56: 0.02 | F56: =IF(D56=0,'App.2-CC_MIFRS_DepExp_2013'!K56,+'App.2-CC_MIFRS_DepExp_2013'!K56+((C56*0.5)/D56)) -> 303088 | G56: 309400 | H56: -6312
A57: 1908 | B57: Buildings & Fixtures - Roof | D57: 20 | E57: =IF(D57=0,0,1/D57) -> 0.05 | F57: =IF(D57=0,'App.2-CC_MIFRS_DepExp_2013'!K58,+'App.2-CC_MIFRS_DepExp_2013'!K58+((C57*0.5)/D57)) -> 0 | G57: 243200 | H57: =IF(ISERROR(+F57-G57), 0, +F57-G57) -> -243200
A58: 1910 | B58: Leasehold Improvements
A59: 1915 | B59: Office Furniture & Equipment (10 years) | C59: 70000 | D59: 10 | E59: 0.1 | F59: =IF(D59=0,'App.2-CC_MIFRS_DepExp_2013'!K59,+'App.2-CC_MIFRS_DepExp_2013'!K59+((C59*0.5)/D59)) -> 76046 | G59: 75800 | H59: 246
A60: 1915 | B60: Office Furniture & Equipment (5 years) | D60: 5 | E60: 0.2 | F60: =IF(D60=0,'App.2-CC_MIFRS_DepExp_2013'!K60,+'App.2-CC_MIFRS_DepExp_2013'!K60+((C60*0.5)/D60)) -> 0 | G60: 0 | H60: 0
A61: 1920 | B61: Computer Equipment - Hardware | C61: 360000 | D61: 4 | E61: 0.25 | F61: =IF(D61=0,'App.2-CC_MIFRS_DepExp_2013'!K61,+'App.2-CC_MIFRS_DepExp_2013'!K61+((C61*0.5)/D61)) -> 226042 | G61: 181474 | H61: 44568
A62: 1920 | B62: Computer Equip.-Hardware - Smart Meters | D62: 5 | E62: 0.2 | F62: =IF(D62=0,'App.2-CC_MIFRS_DepExp_2013'!K62,+'App.2-CC_MIFRS_DepExp_2013'!K62+((C62*0.5)/D62)) -> 44252.2 | G62: 22126 | H62: 22126.2
A63: 1920 | B63: Computer Equip.-Hardware(Post Mar. 19/07)
A64: 1930 | B64: Transportation Equipment | C64: 920000 | D64: 10 | E64: 0.1 | F64: =IF(D64=0,'App.2-CC_MIFRS_DepExp_2013'!K64,+'App.2-CC_MIFRS_DepExp_2013'!K64+((C64*0.5)/D64)) -> 616441 | G64: 643000 | H64: -26559
A65: 1935 | B65: Stores Equipment | D65: 10 | E65: 0.1 | F65: =IF(D65=0,'App.2-CC_MIFRS_DepExp_2013'!K65,+'App.2-CC_MIFRS_DepExp_2013'!K65+((C65*0.5)/D65)) -> 3512 | G65: 4000 | H65: -488
A66: 1940 | B66: Tools, Shop & Garage Equipment | D66: 10 | E66: 0.1 | F66: =IF(D66=0,'App.2-CC_MIFRS_DepExp_2013'!K66,+'App.2-CC_MIFRS_DepExp_2013'!K66+((C66*0.5)/D66)) -> 59229 | G66: 71827 | H66: -12598
A67: 1940 | B67: Tools - Smart Meters | D67: 10 | E67: =IF(D67=0,0,1/D67) -> 0.1 | F67: =IF(D67=0,'App.2-CC_MIFRS_DepExp_2013'!K67,+'App.2-CC_MIFRS_DepExp_2013'!K67+((C67*0.5)/D67)) -> 372.8 | G67: 373 | H67: =IF(ISERROR(+F67-G67), 0, +F67-G67) -> -0.2
A68: 1945 | B68: Measurement & Testing Equipment | C68: 90000 | D68: 10 | E68: 0.1 | F68: =IF(D68=0,'App.2-CC_MIFRS_DepExp_2013'!K68,+'App.2-CC_MIFRS_DepExp_2013'!K68+((C68*0.5)/D68)) -> 46123 | G68: 34100 | H68: 12023
A69: 1950 | B69: Power Operated Equipment | D69: 10 | E69: 0.1 | F69: =IF(D69=0,'App.2-CC_MIFRS_DepExp_2013'!K69,+'App.2-CC_MIFRS_DepExp_2013'!K69+((C69*0.5)/D69)) -> 57705 | G69: 54600 | H69: 3105
A70: 1955 | B70: Communications Equipment | D70: 10 | E70: 0.1 | F70: =IF(D70=0,'App.2-CC_MIFRS_DepExp_2013'!K70,+'App.2-CC_MIFRS_DepExp_2013'!K70+((C70*0.5)/D70)) -> 16819 | G70: 20189 | H70: -3370
A71: 1955 | B71: Communication Equipment (Smart Meters) | D71: 10 | E71: 0.1 | F71: =IF(D71=0,'App.2-CC_MIFRS_DepExp_2013'!K71,+'App.2-CC_MIFRS_DepExp_2013'!K71+((C71*0.5)/D71)) -> 69610.7 | G71: 69611 | H71: -0.3
A72: 1960 | B72: Miscellaneous Equipment | D72: 5 | E72: 0.2 | F72: =IF(D72=0,'App.2-CC_MIFRS_DepExp_2013'!K72,+'App.2-CC_MIFRS_DepExp_2013'!K72+((C72*0.5)/D72)) -> 14931 | G72: 11300 | H72: 3631
A73: 1975 | B73: Load Management Controls Utility Premises | G73: 0
A74: 1980 | B74: System Supervisor Equipment | E74: 0 | F74: =IF(D74=0,'App.2-CC_MIFRS_DepExp_2013'!K74,+'App.2-CC_MIFRS_DepExp_2013'!K74+((C74*0.5)/D74)) -> 4058.99 | G74: 4100 | H74: -41.01
A75: 1985 | B75: Miscellaneous Fixed Assets | G75: 0
A76: 1995 | B76: Contributions & Grants | G76: 0
A77: 1995 | B77: Contributed Capital - Poles, Towers & Fixtures | C77: -500500 | D77: 40 | E77: 0.025 | F77: =IF(D77=0,'App.2-CC_MIFRS_DepExp_2013'!K77,+'App.2-CC_MIFRS_DepExp_2013'!K77+((C77*0.5)/D77)) -> -28968.575 | G77: -29000 | H77: 31.425
A78: 1995 | B78: Contributed Capital - Overhead Conductors | C78: -411840 | D78: 60 | E78: 0.01666666667 | F78: =IF(D78=0,'App.2-CC_MIFRS_DepExp_2013'!K78,+'App.2-CC_MIFRS_DepExp_2013'!K78+((C78*0.5)/D78)) -> -17086.21667 | G78: -17100 | H78: 13.78333333
A79: 1995 | B79: Contributed Capital - Overhead Devices | C79: -45760 | D79: 40 | E79: 0.025 | F79: =IF(D79=0,'App.2-CC_MIFRS_DepExp_2013'!K79,+'App.2-CC_MIFRS_DepExp_2013'!K79+((C79*0.5)/D79)) -> -2847.7 | G79: -2800 | H79: -47.7
A80: 1995 | B80: Contributed Capital - Overhead Services | C80: -78650 | D80: 60 | E80: 0.01666666667 | F80: =IF(D80=0,'App.2-CC_MIFRS_DepExp_2013'!K80,+'App.2-CC_MIFRS_DepExp_2013'!K80+((C80*0.5)/D80)) -> 331.8833333 | G80: 300 | H80: 31.88333333
A81: 1995 | B81: Contributed Capital - Underground Trenching & Ductwork | C81: -815625 | D81: 60 | E81: 0.01666666667 | F81: =IF(D81=0,'App.2-CC_MIFRS_DepExp_2013'!K81,+'App.2-CC_MIFRS_DepExp_2013'!K81+((C81*0.5)/D81)) -> -38069.49167 | G81: -38100 | H81: 30.50833333
A82: 1995 | B82: Contributed Capital - Underground Cables | C82: -700583 | D82: 40 | E82: 0.025 | F82: =IF(D82=0,'App.2-CC_MIFRS_DepExp_2013'!K82,+'App.2-CC_MIFRS_DepExp_2013'!K82+((C82*0.5)/D82)) -> -59175.1375 | G82: -59200 | H82: 24.8625
A83: 1995 | B83: Contributed Capital - Underground Devices | C83: -77843 | D83: 40 | E83: =IF(D83=0,0,1/D83) -> 0.025 | F83: =IF(D83=0,'App.2-CC_MIFRS_DepExp_2013'!K83,+'App.2-CC_MIFRS_DepExp_2013'!K83+((C83*0.5)/D83)) -> -5320.7375 | G83: -5300 | H83: =IF(ISERROR(+F83-G83), 0, +F83-G83) -> -20.7375
A84: 1995 | B84: Contributed Capital - Overhead Transformer | C84: 0 | D84: 40 | E84: 0.025 | F84: =IF(D84=0,'App.2-CC_MIFRS_DepExp_2013'!K84,+'App.2-CC_MIFRS_DepExp_2013'!K84+((C84*0.5)/D84)) -> -1200.6 | G84: -1200 | H84: -0.6
A85: 1995 | B85: Contributed Capital - Underground Padmount Transformer | C85: -134868 | D85: 40 | E85: 0.025 | F85: =IF(D85=0,'App.2-CC_MIFRS_DepExp_2013'!K85,+'App.2-CC_MIFRS_DepExp_2013'!K85+((C85*0.5)/D85)) -> -13158.5 | G85: -13200 | H85: 41.5
A86: 1995 | B86: Contributed Capital -Underground Submersible Transformer | C86: -314700 | D86: 30 | E86: 0.03333333333 | F86: =IF(D86=0,'App.2-CC_MIFRS_DepExp_2013'!K86,+'App.2-CC_MIFRS_DepExp_2013'!K86+((C86*0.5)/D86)) -> -25610.4 | G86: -25600 | H86: -10.4
A87: 1995 | B87: Contributed Capital - Underground Services | C87: -1537000 | D87: 40 | E87: 0.025 | F87: =IF(D87=0,'App.2-CC_MIFRS_DepExp_2013'!K87,+'App.2-CC_MIFRS_DepExp_2013'!K87+((C87*0.5)/D87)) -> -47484.45 | G87: -47500 | H87: 15.55
A88: 1995 | B88: Contributed Capital - Transformer Foundations | C88: -92200 | D88: 60 | E88: 0.01666666667 | F88: =IF(D88=0,'App.2-CC_MIFRS_DepExp_2013'!K88,+'App.2-CC_MIFRS_DepExp_2013'!K88+((C88*0.5)/D88)) -> -9527.633333 | G88: -9500 | H88: -27.63333333
A89: 1995 | B89: Contributed Capital - Meters | C89: -40000 | D89: 15 | E89: 0.06666666667 | F89: =IF(D89=0,'App.2-CC_MIFRS_DepExp_2013'!K89,+'App.2-CC_MIFRS_DepExp_2013'!K89+((C89*0.5)/D89)) -> -10339.33333 | G89: -6800 | H89: -3539.333333
A90: 1995 | B90: Contributed Capital - OEB Clearing | C90: 40000 | D90: 15 | E90: 0.06666666667 | F90: =IF(D90=0,'App.2-CC_MIFRS_DepExp_2013'!K90,+'App.2-CC_MIFRS_DepExp_2013'!K90+((C90*0.5)/D90)) -> 10097.46667 | G90: 6500 | H90: 3597.466667
A91: etc. | E91: =IF(D91=0,0,1/D91) -> 0 | F91: =IF(D91=0,'App.2-CC_MIFRS_DepExp_2013'!K91,+'App.2-CC_MIFRS_DepExp_2013'!K91+((C91*0.5)/D91)) -> 0 | G91: 0 | H91: =IF(ISERROR(+F91-G91), 0, +F91-G91) -> 0
E92: 0 | F92: =IF(D92=0,'App.2-CC_MIFRS_DepExp_2013'!K94,+'App.2-CC_MIFRS_DepExp_2013'!K94+((C92*0.5)/D92)) -> 0 | G92: 0 | H92: 0
B93: Total | C93: =SUM(C16:C92) -> 17645931 | F93: =SUM(F16:F92) -> 7954236.802 | G93: 8197300 | H93: =SUM(H16:H92) -> -243063.1975
B94: Depreciation expense adjustment resulting from amortization of Account 1576 | F94: -1485353.25
B95: Total Depreciation expense to be included in the test year revenue requirement | F95: =+F93+F94 -> 6468883.552
A96: Notes:
A97: 1 | B97: Board policy of the "half-year" rule - the applicant must ensure that additions in the year attract a half-year depreciation expense in the first year. Deviations from this standard practice must be supported in the application.
A98: 2 | B98: The applicant must provide an explanation of material variances in evidence
A100: General: | B100: Applicants must provide a breakdown of depreciation and amortization expense in the above format for all relevant accounts. Asset Retirement Obligations (AROs), depreciation and accretion expense should be disclosed separately consistent with the Notes of historical Audited Financial Statements.

Sheet App.2-CE_CGAAP_DepExp_2012
K1: File Number: | L1: ='LDC Info'!$E$18 -> EB-2013-0147
K2: Exhibit:
K3: Tab:
K4: Schedule:
K5: Page:
K7: Date:
A9: Appendix 2-CE
A10: Depreciation and Amortization Expense
A11: Assumes the applicant adopted IFRS for financial reporting purposes January 1, 2013
C12: Year | D12: 2012 | E12: CGAAP
A14: Account | B14: Description | C14: Opening Regulatory Gross PP&E as at Jan 1, 2012 | D14: Less Fully Depreciated | E14: Net for Depreciation | F14: Additions | G14: Total for Depreciation | H14: Years | I14: Depreciation Rate | J14: 2012 Depreciation Expense | K14: 2012 Depreciation Expense per Appendix 2-B Fixed Assets, Column K (l) | L14: Variance 2
C15: (a) | D15: (b) | E15: (c) | F15: (d) | G15: (e) = (c) + ½ x (d) 1 | H15: (f) | I15: (g) = 1 / (f) | J15: (h) = (e) / (f) | L15: (m) = (h) - (l)
A16: 1611 | B16: Computer Software (Formally known as Account 1925) | E16: =C16-D16 -> 0 | G16: =E16+0.5*F16 -> 0 | I16: =IF(H16=0,"",1/H16) ->  | J16: =IF(H16=0,0,G16/H16) -> 0 | L16: =IF(ISERROR(+J16-K16), "", +J16-K16) -> 0
A17: 1612 | B17: Land Rights (Formally known as Account 1906) | E17: =C17-D17 -> 0 | G17: =E17+0.5*F17 -> 0 | J17: 0 | L17: =IF(ISERROR(+J17-K17), "", +J17-K17) -> 0
A18: 1805 | B18: Land | E18: 0 | G18: 0 | J18: 0 | L18: 0
A19: 1808 | B19: Buildings | E19: 0 | G19: 0 | J19: 0 | L19: 0
A20: 1810 | B20: Leasehold Improvements | E20: 0 | G20: 0 | J20: 0 | L20: 0
A21: 1815 | B21: Transformer Station Equipment >50 kV | E21: 0 | G21: 0 | J21: 0 | L21: 0
A22: 1820 | B22: Distribution Station Equipment <50 kV | E22: 0 | G22: 0 | J22: 0 | L22: 0
A23: 1825 | B23: Storage Battery Equipment | E23: 0 | G23: 0 | J23: 0 | L23: 0
A24: 1830 | B24: Poles, Towers & Fixtures | E24: 0 | G24: 0 | J24: 0 | L24: 0
A25: 1835 | B25: Overhead Conductors & Devices | E25: 0 | G25: 0 | J25: 0 | L25: 0
A26: 1840 | B26: Underground Conduit | E26: 0 | G26: 0 | J26: 0 | L26: 0
A27: 1845 | B27: Underground Conductors & Devices | E27: 0 | G27: 0 | J27: 0 | L27: 0
A28: 1850 | B28: Line Transformers | E28: 0 | G28: 0 | J28: 0 | L28: 0
A29: 1855 | B29: Services (Overhead & Underground) | E29: 0 | G29: 0 | J29: 0 | L29: 0
A30: 1860 | B30: Meters | E30: 0 | G30: 0 | J30: 0 | L30: 0
A31: 1860 | B31: Meters (Smart Meters) | E31: 0 | G31: 0 | J31: 0 | L31: 0
A32: 1905 | B32: Land | E32: 0 | G32: 0 | J32: 0 | L32: 0
A33: 1908 | B33: Buildings & Fixtures | E33: 0 | G33: 0 | J33: 0 | L33: 0
A34: 1910 | B34: Leasehold Improvements | E34: 0 | G34: 0 | J34: 0 | L34: 0
A35: 1915 | B35: Office Furniture & Equipment (10 years) | E35: 0 | G35: 0 | J35: 0 | L35: 0
A36: 1915 | B36: Office Furniture & Equipment (5 years) | E36: 0 | G36: 0 | J36: 0 | L36: 0
A37: 1920 | B37: Computer Equipment - Hardware | E37: 0 | G37: 0 | J37: 0 | L37: 0
A38: 1920 | B38: Computer Equip.-Hardware(Post Mar. 22/04) | E38: 0 | G38: 0 | J38: 0 | L38: 0
A39: 1920 | B39: Computer Equip.-Hardware(Post Mar. 19/07) | E39: 0 | G39: 0 | J39: 0 | L39: 0
A40: 1930 | B40: Transportation Equipment | E40: 0 | G40: 0 | J40: 0 | L40: 0
A41: 1935 | B41: Stores Equipment | E41: 0 | G41: 0 | J41: 0 | L41: 0
A42: 1940 | B42: Tools, Shop & Garage Equipment | E42: 0 | G42: 0 | J42: 0 | L42: 0
A43: 1945 | B43: Measurement & Testing Equipment | E43: 0 | G43: 0 | J43: 0 | L43: 0
A44: 1950 | B44: Power Operated Equipment | E44: 0 | G44: 0 | J44: 0 | L44: 0
A45: 1955 | B45: Communications Equipment | E45: 0 | G45: 0 | J45: 0 | L45: 0
A46: 1955 | B46: Communication Equipment (Smart Meters) | E46: 0 | G46: 0 | J46: 0 | L46: 0
A47: 1960 | B47: Miscellaneous Equipment | E47: 0 | G47: 0 | J47: 0 | L47: 0
A48: 1975 | B48: Load Management Controls Utility Premises | E48: 0 | G48: 0 | J48: 0 | L48: 0
A49: 1980 | B49: System Supervisor Equipment | E49: 0 | G49: 0 | J49: 0 | L49: 0
A50: 1985 | B50: Miscellaneous Fixed Assets | E50: 0 | G50: 0 | J50: 0 | L50: 0
A51: 1995 | B51: Contributions & Grants | E51: 0 | G51: 0 | J51: 0 | L51: 0
A52: etc. | E52: 0 | G52: 0 | J52: 0 | L52: 0
E53: 0 | G53: 0 | J53: 0 | L53: 0
B54: Total | C54: =SUM(C16:C53) -> 0 | D54: =SUM(D16:D53) -> 0 | E54: =SUM(E16:E53) -> 0 | F54: =SUM(F16:F53) -> 0 | G54: =SUM(G16:G53) -> 0 | J54: =SUM(J16:J53) -> 0 | K54: =SUM(K16:K53) -> 0 | L54: =SUM(L16:L53) -> 0
A56: Notes:
A57: 1 | B57: Board policy of the "half-year" rule - the applicant must ensure that additions in the year attract a half-year depreciation expense in the first year. Deviations from this standard practice must be supported in the application.
A58: 2 | B58: The applicant must provide an explanation of material variances in evidence
A59: General: | B59: Applicants must provide a breakdown of depreciation and amortization expense in the above format for all relevant accounts. Asset Retirement Obligations (AROs), depreciation and accretion expense should be disclosed separately consistent with the Notes of historical Audited Financial Statements.

Sheet App.2-CF_CGAAP_DepExp_2013
K1: File Number: | L1: ='LDC Info'!$E$18 -> EB-2013-0147
K2: Exhibit:
K3: Tab:
K4: Schedule:
K5: Page:
K7: Date:
A9: Appendix 2-CF
A10: Depreciation and Amortization Expense
A11: Assumes the applicant adopted IFRS for financial reporting purposes January 1, 2013
C12: Year | D12: 2013 | E12: CGAAP
A14: Account | B14: Description | C14: Opening Regulatory Gross PP&E as at Jan 1, 2013 | D14: Less Fully Depreciated | E14: Net for Depreciation | F14: Additions | G14: Total for Depreciation | H14: Years | I14: Depreciation Rate | J14: 2013 Depreciation Expense | K14: 2013 Depreciation Expense per Appendix 2-B Fixed Assets, Column K (l) | L14: Variance 2
C15: (a) | D15: (b) | E15: (c) | F15: (d) | G15: (e) = (c) + ½ x (d) 1 | H15: (f) | I15: (g) = 1 / (f) | J15: (h) = (e) / (f) | L15: (m) = (h) - (l)
A16: 1611 | B16: Computer Software (Formally known as Account 1925) | E16: =C16-D16 -> 0 | G16: =E16+0.5*F16 -> 0 | I16: =IF(H16=0,0,1/H16) -> 0 | J16: =IF(H16=0,0,G16/H16) -> 0 | L16: =IF(ISERROR(+J16-K16), 0, +J16-K16) -> 0
A17: 1612 | B17: Land Rights (Formally known as Account 1906) | E17: =C17-D17 -> 0 | G17: =E17+0.5*F17 -> 0 | I17: 0 | J17: 0 | L17: 0
A18: 1805 | B18: Land | E18: 0 | G18: 0 | I18: 0 | J18: 0 | L18: 0
A19: 1808 | B19: Buildings | E19: 0 | G19: 0 | I19: 0 | J19: 0 | L19: 0
A20: 1810 | B20: Leasehold Improvements | E20: 0 | G20: 0 | I20: 0 | J20: 0 | L20: 0
A21: 1815 | B21: Transformer Station Equipment >50 kV | E21: 0 | G21: 0 | I21: 0 | J21: 0 | L21: 0
A22: 1820 | B22: Distribution Station Equipment <50 kV | E22: 0 | G22: 0 | I22: 0 | J22: 0 | L22: 0
A23: 1825 | B23: Storage Battery Equipment | E23: 0 | G23: 0 | I23: 0 | J23: 0 | L23: 0
A24: 1830 | B24: Poles, Towers & Fixtures | E24: 0 | G24: 0 | I24: 0 | J24: 0 | L24: 0
A25: 1835 | B25: Overhead Conductors & Devices | E25: 0 | G25: 0 | I25: 0 | J25: 0 | L25: 0
A26: 1840 | B26: Underground Conduit | E26: 0 | G26: 0 | I26: 0 | J26: 0 | L26: 0
A27: 1845 | B27: Underground Conductors & Devices | E27: 0 | G27: 0 | I27: 0 | J27: 0 | L27: 0
A28: 1850 | B28: Line Transformers | E28: 0 | G28: 0 | I28: 0 | J28: 0 | L28: 0
A29: 1855 | B29: Services (Overhead & Underground) | E29: 0 | G29: 0 | I29: 0 | J29: 0 | L29: 0
A30: 1860 | B30: Meters | E30: 0 | G30: 0 | I30: 0 | J30: 0 | L30: 0
A31: 1860 | B31: Meters (Smart Meters) | E31: 0 | G31: 0 | I31: 0 | J31: 0 | L31: 0
A32: 1905 | B32: Land | E32: 0 | G32: 0 | I32: 0 | J32: 0 | L32: 0
A33: 1908 | B33: Buildings & Fixtures | E33: 0 | G33: 0 | I33: 0 | J33: 0 | L33: 0
A34: 1910 | B34: Leasehold Improvements | E34: 0 | G34: 0 | I34: 0 | J34: 0 | L34: 0
A35: 1915 | B35: Office Furniture & Equipment (10 years) | E35: 0 | G35: 0 | I35: 0 | J35: 0 | L35: 0
A36: 1915 | B36: Office Furniture & Equipment (5 years) | E36: 0 | G36: 0 | I36: 0 | J36: 0 | L36: 0
A37: 1920 | B37: Computer Equipment - Hardware | E37: 0 | G37: 0 | I37: 0 | J37: 0 | L37: 0
A38: 1920 | B38: Computer Equip.-Hardware(Post Mar. 22/04) | E38: 0 | G38: 0 | I38: 0 | J38: 0 | L38: 0
A39: 1920 | B39: Computer Equip.-Hardware(Post Mar. 19/07) | E39: 0 | G39: 0 | I39: 0 | J39: 0 | L39: 0
A40: 1930 | B40: Transportation Equipment | E40: 0 | G40: 0 | I40: 0 | J40: 0 | L40: 0
A41: 1935 | B41: Stores Equipment | E41: 0 | G41: 0 | I41: 0 | J41: 0 | L41: 0
A42: 1940 | B42: Tools, Shop & Garage Equipment | E42: 0 | G42: 0 | I42: 0 | J42: 0 | L42: 0
A43: 1945 | B43: Measurement & Testing Equipment | E43: 0 | G43: 0 | I43: 0 | J43: 0 | L43: 0
A44: 1950 | B44: Power Operated Equipment | E44: 0 | G44: 0 | I44: 0 | J44: 0 | L44: 0
A45: 1955 | B45: Communications Equipment | E45: 0 | G45: 0 | I45: 0 | J45: 0 | L45: 0
A46: 1955 | B46: Communication Equipment (Smart Meters) | E46: 0 | G46: 0 | I46: 0 | J46: 0 | L46: 0
A47: 1960 | B47: Miscellaneous Equipment | E47: 0 | G47: 0 | I47: 0 | J47: 0 | L47: 0
A48: 1975 | B48: Load Management Controls Utility Premises | E48: 0 | G48: 0 | I48: 0 | J48: 0 | L48: 0
A49: 1980 | B49: System Supervisor Equipment | E49: 0 | G49: 0 | I49: 0 | J49: 0 | L49: 0
A50: 1985 | B50: Miscellaneous Fixed Assets | E50: 0 | G50: 0 | I50: 0 | J50: 0 | L50: 0
A51: 1995 | B51: Contributions & Grants | E51: 0 | G51: 0 | I51: 0 | J51: 0 | L51: 0
A52: etc. | E52: 0 | G52: 0 | I52: 0 | J52: 0 | L52: 0
E53: 0 | G53: 0 | I53: 0 | J53: 0 | L53: 0
B54: Total | C54: =SUM(C16:C53) -> 0 | D54: =SUM(D16:D53) -> 0 | E54: =SUM(E16:E53) -> 0 | F54: =SUM(F16:F53) -> 0 | G54: =SUM(G16:G53) -> 0 | J54: =SUM(J16:J53) -> 0 | K54: =SUM(K16:K53) -> 0 | L54: =SUM(L16:L53) -> 0
A56: Notes:
A57: 1 | B57: Board policy of the "half-year" rule - the applicant must ensure that additions in the year attract a half-year depreciation expense in the first year. Deviations from this standard practice must be supported in the application.
A58: 2 | B58: The applicant must provide an explanation of material variances in evidence
A60: General: | B60: Applicants must provide a breakdown of depreciation and amortization expense in the above format for all relevant accounts. Asset Retirement Obligations (AROs), depreciation and accretion expense should be disclosed separately consistent with the Notes of historical Audited Financial Statements.

Sheet App.2-CG_MIFRS_DepExp_2013
N1: File Number: | O1: ='LDC Info'!$E$18 -> EB-2013-0147
N2: Exhibit:
N3: Tab:
N4: Schedule:
N5: Page:
N7: Date:
A9: Appendix 2-CG
A10: Depreciation and Amortization Expense
A11: Assumes the applicant adopted IFRS for financial reporting purposes January 1, 2013
C12: Year | D12: 2013 | E12: MIFRS
A14: Account | B14: Description | C14: Opening NBV as at Jan 1, 2013 5 | D14: Additions | E14: Average Remaining Life of Opening NBV 4 | F14: Years (new additions only) 3 | G14: Depreciation Rate on New Additions | H14: Depreciation Expense on Opening NBV | I14: Depreciation Expense on Additions 1 | J14: 2013 Depreciation Expense | K14: 2013 Depreciation Expense per Appendix 2-B Fixed Assets, Column K (l) | L14: Variance 2 | M14: Depreciation Expense on 2013 Full Year Additions | N14: Less Depreciation Expense on Assets Fully Depreciated during the year (o) | O14: 2013 Full Year Depreciation 6
C15: (a) | D15: (d) | E15: (i) | F15: (f) | G15: (g) = 1 / (f) | H15: (j) = (a) / (i) | I15: (h)=((d)*0.5)/(f) | J15: (k) = (j) + (h) | L15: (m) = (k) - (l) | M15: (n)=((d))/(f) | O15: (p) = (j) + (n) - (o)
A16: 1611 | B16: Computer Software (Formally known as Account 1925) | G16: =IF(F16=0,0,1/F16) -> 0 | H16: =IF(E16=0,0,+C16/E16) -> 0 | I16: =IF(F16=0,0,+(D16*0.5)/F16) -> 0 | J16: =IF(ISERROR(+H16+I16), 0, +H16+I16) -> 0 | L16: =IF(ISERROR(+J16-K16), 0, +J16-K16) -> 0 | M16: =IF(F16=0,0,+(D16)/F16) -> 0 | O16: =IF(ISERROR(+M16+H16-N16), 0, +M16+H16-N16) -> 0
A17: 1612 | B17: Land Rights (Formally known as Account 1906) | G17: 0 | H17: 0 | I17: 0 | J17: 0 | L17: 0 | M17: 0 | O17: =IF(ISERROR(+M17+H17-N17), 0, +M17+H17-N17) -> 0
A18: 1805 | B18: Land | G18: 0 | H18: 0 | I18: 0 | J18: 0 | L18: 0 | M18: 0 | O18: 0
A19: 1808 | B19: Buildings | G19: 0 | H19: 0 | I19: 0 | J19: 0 | L19: 0 | M19: 0 | O19: 0
A20: 1810 | B20: Leasehold Improvements | G20: 0 | H20: 0 | I20: 0 | J20: 0 | L20: 0 | M20: 0 | O20: 0
A21: 1815 | B21: Transformer Station Equipment >50 kV | G21: 0 | H21: 0 | I21: 0 | J21: 0 | L21: 0 | M21: 0 | O21: 0
A22: 1820 | B22: Distribution Station Equipment <50 kV | G22: 0 | H22: 0 | I22: 0 | J22: 0 | L22: 0 | M22: 0 | O22: 0
A23: 1825 | B23: Storage Battery Equipment | G23: 0 | H23: 0 | I23: 0 | J23: 0 | L23: 0 | M23: 0 | O23: 0
A24: 1830 | B24: Poles, Towers & Fixtures | G24: 0 | H24: 0 | I24: 0 | J24: 0 | L24: 0 | M24: 0 | O24: 0
A25: 1835 | B25: Overhead Conductors & Devices | G25: 0 | H25: 0 | I25: 0 | J25: 0 | L25: 0 | M25: 0 | O25: 0
A26: 1840 | B26: Underground Conduit | G26: 0 | H26: 0 | I26: 0 | J26: 0 | L26: 0 | M26: 0 | O26: 0
A27: 1845 | B27: Underground Conductors & Devices | G27: 0 | H27: 0 | I27: 0 | J27: 0 | L27: 0 | M27: 0 | O27: 0
A28: 1850 | B28: Line Transformers | G28: 0 | H28: 0 | I28: 0 | J28: 0 | L28: 0 | M28: 0 | O28: 0
A29: 1855 | B29: Services (Overhead & Underground) | G29: 0 | H29: 0 | I29: 0 | J29: 0 | L29: 0 | M29: 0 | O29: 0
A30: 1860 | B30: Meters | G30: 0 | H30: 0 | I30: 0 | J30: 0 | L30: 0 | M30: 0 | O30: 0
A31: 1860 | B31: Meters (Smart Meters) | G31: 0 | H31: 0 | I31: 0 | J31: 0 | L31: 0 | M31: 0 | O31: 0
A32: 1905 | B32: Land | G32: 0 | H32: 0 | I32: 0 | J32: 0 | L32: 0 | M32: 0 | O32: 0
A33: 1908 | B33: Buildings & Fixtures | G33: 0 | H33: 0 | I33: 0 | J33: 0 | L33: 0 | M33: 0 | O33: 0
A34: 1910 | B34: Leasehold Improvements | G34: 0 | H34: 0 | I34: 0 | J34: 0 | L34: 0 | M34: 0 | O34: 0
A35: 1915 | B35: Office Furniture & Equipment (10 years) | G35: 0 | H35: 0 | I35: 0 | J35: 0 | L35: 0 | M35: 0 | O35: 0
A36: 1915 | B36: Office Furniture & Equipment (5 years) | G36: 0 | H36: 0 | I36: 0 | J36: 0 | L36: 0 | M36: 0 | O36: 0
A37: 1920 | B37: Computer Equipment - Hardware | G37: 0 | H37: 0 | I37: 0 | J37: 0 | L37: 0 | M37: 0 | O37: 0
A38: 1920 | B38: Computer Equip.-Hardware(Post Mar. 22/04) | G38: 0 | H38: 0 | I38: 0 | J38: 0 | L38: 0 | M38: 0 | O38: 0
A39: 1920 | B39: Computer Equip.-Hardware(Post Mar. 19/07) | G39: 0 | H39: 0 | I39: 0 | J39: 0 | L39: 0 | M39: 0 | O39: 0
A40: 1930 | B40: Transportation Equipment | G40: 0 | H40: 0 | I40: 0 | J40: 0 | L40: 0 | M40: 0 | O40: 0
A41: 1935 | B41: Stores Equipment | G41: 0 | H41: 0 | I41: 0 | J41: 0 | L41: 0 | M41: 0 | O41: 0
A42: 1940 | B42: Tools, Shop & Garage Equipment | G42: 0 | H42: 0 | I42: 0 | J42: 0 | L42: 0 | M42: 0 | O42: 0
A43: 1945 | B43: Measurement & Testing Equipment | G43: 0 | H43: 0 | I43: 0 | J43: 0 | L43: 0 | M43: 0 | O43: 0
A44: 1950 | B44: Power Operated Equipment | G44: 0 | H44: 0 | I44: 0 | J44: 0 | L44: 0 | M44: 0 | O44: 0
A45: 1955 | B45: Communications Equipment | G45: 0 | H45: 0 | I45: 0 | J45: 0 | L45: 0 | M45: 0 | O45: 0
A46: 1955 | B46: Communication Equipment (Smart Meters) | G46: 0 | H46: 0 | I46: 0 | J46: 0 | L46: 0 | M46: 0 | O46: 0
A47: 1960 | B47: Miscellaneous Equipment | G47: 0 | H47: 0 | I47: 0 | J47: 0 | L47: 0 | M47: 0 | O47: 0
A48: 1975 | B48: Load Management Controls Utility Premises | G48: 0 | H48: 0 | I48: 0 | J48: 0 | L48: 0 | M48: 0 | O48: 0
A49: 1980 | B49: System Supervisor Equipment | G49: 0 | H49: 0 | I49: 0 | J49: 0 | L49: 0 | M49: 0 | O49: 0
A50: 1985 | B50: Miscellaneous Fixed Assets | G50: 0 | H50: 0 | I50: 0 | J50: 0 | L50: 0 | M50: 0 | O50: 0
A51: 1995 | B51: Contributions & Grants | G51: 0 | H51: 0 | I51: 0 | J51: 0 | L51: 0 | M51: 0 | O51: 0
A52: etc. | G52: 0 | H52: 0 | I52: 0 | J52: 0 | L52: 0 | M52: 0 | O52: 0
G53: 0 | H53: 0 | I53: 0 | J53: 0 | L53: 0 | M53: 0 | O53: 0
B54: Total | C54: =SUM(C16:C53) -> 0 | D54: =SUM(D16:D53) -> 0 | H54: =SUM(H16:H53) -> 0 | I54: 0 | J54: 0 | K54: 0 | L54: 0 | M54: 0 | N54: =SUM(N16:N53) -> 0 | O54: 0
A56: Notes:
A58: 1 | B58: Board policy of the "half-year" rule - the applicant must ensure that additions in the year attract a half-year depreciation expense in the first year. Deviations from this standard practice must be supported in the application.
A59: 2 | B59: The applicant must provide an explanation of material variances in evidence
A60: 3 | B60: The applicant should ensure that the years for new additions of assets are the asset useful lives determined by management in accordance with IFRS.
A61: 4 | B61: A recalculation should be performed to determine the average remaining life of opening balance of assets (i.e. excluding 2012 additions) under IFRS. For example, Asset A had a useful life of 20 years under CGAAP. On January 1, 2012, the date of transition, Asset A was 3 years depreciated. As a result, Asset A would have a remaining service life of 17 years (20 years less 3 years) under CGAAP as of January 1, 2012. Due to the transition to IFRS, management re-assessed the asset useful lives under IFRS principles and concluded that the revised useful life of Asset A is now 30 years. Therefore, the average remaining useful life of opening balance of Asset A is determined to be 27 years (30 years less 3 years) under IFRS as of January 1, 2012.
A62: 5 | B62: NBV must exclude assets still on the books but which have been fully amortized or depreciated.
A63: 6 | B63: This column refers to the calculated full year depreciation but excludes the depreciation expense on assets fully depreciated during the year. This column is used for the purpose of calculating depreciation expense in the following year on the next worksheet.
A65: General: | B65: Applicants must provide a breakdown of depreciation and amortization expense in the above format for all relevant accounts. Asset Retirement Obligations (AROs), depreciation and accretion expense should be disclosed separately consistent with the Notes of historical Audited Financial Statements.

Sheet App.2-CH_MIFRS_DepExp_2014
I1: File Number: | J1: ='LDC Info'!$E$18 -> EB-2013-0147
I2: Exhibit:
I3: Tab:
I4: Schedule:
I5: Page:
I7: Date:
A9: Appendix 2-CH
A10: Depreciation and Amortization Expense
A11: Assumes the applicant adopted IFRS for financial reporting purposes January 1, 2013
C12: Year | D12: 2014 | E12: MIFRS
A14: Account | B14: Description | C14: Additions | D14: Years (new additions only) | E14: Depreciation Rate on New Additions | F14: 2014 Depreciation Expense 1 | G14: 2014 Depreciation Expense per Appendix 2-B Fixed Assets, Column K (l) | H14: Variance 2
C15: (d) | D15: (f) | E15: (g) = 1 / (f) | F15: (h)=2012 Full Year Depreciation + ((d)*0.5)/(f) | H15: (m) = (h) - (l)
A16: 1611 | B16: Computer Software (Formally known as Account 1925) | E16: =IF(D16=0,0,1/D16) -> 0 | F16: =IF(D16=0,'App.2-CG_MIFRS_DepExp_2013'!O16,+'App.2-CG_MIFRS_DepExp_2013'!O16+((C16*0.5)/D16)) -> 0 | H16: =IF(ISERROR(+F16-G16), 0, +F16-G16) -> 0
A17: 1612 | B17: Land Rights (Formally known as Account 1906) | E17: 0 | F17: =IF(D17=0,'App.2-CG_MIFRS_DepExp_2013'!O17,+'App.2-CG_MIFRS_DepExp_2013'!O17+((C17*0.5)/D17)) -> 0 | H17: 0
A18: 1805 | B18: Land | E18: 0 | F18: =IF(D18=0,'App.2-CG_MIFRS_DepExp_2013'!O18,+'App.2-CG_MIFRS_DepExp_2013'!O18+((C18*0.5)/D18)) -> 0 | H18: 0
A19: 1808 | B19: Buildings | E19: 0 | F19: =IF(D19=0,'App.2-CG_MIFRS_DepExp_2013'!O19,+'App.2-CG_MIFRS_DepExp_2013'!O19+((C19*0.5)/D19)) -> 0 | H19: 0
A20: 1810 | B20: Leasehold Improvements | E20: 0 | F20: =IF(D20=0,'App.2-CG_MIFRS_DepExp_2013'!O20,+'App.2-CG_MIFRS_DepExp_2013'!O20+((C20*0.5)/D20)) -> 0 | H20: 0
A21: 1815 | B21: Transformer Station Equipment >50 kV | E21: 0 | F21: =IF(D21=0,'App.2-CG_MIFRS_DepExp_2013'!O21,+'App.2-CG_MIFRS_DepExp_2013'!O21+((C21*0.5)/D21)) -> 0 | H21: 0
A22: 1820 | B22: Distribution Station Equipment <50 kV | E22: 0 | F22: =IF(D22=0,'App.2-CG_MIFRS_DepExp_2013'!O22,+'App.2-CG_MIFRS_DepExp_2013'!O22+((C22*0.5)/D22)) -> 0 | H22: 0
A23: 1825 | B23: Storage Battery Equipment | E23: 0 | F23: =IF(D23=0,'App.2-CG_MIFRS_DepExp_2013'!O23,+'App.2-CG_MIFRS_DepExp_2013'!O23+((C23*0.5)/D23)) -> 0 | H23: 0
A24: 1830 | B24: Poles, Towers & Fixtures | E24: 0 | F24: =IF(D24=0,'App.2-CG_MIFRS_DepExp_2013'!O24,+'App.2-CG_MIFRS_DepExp_2013'!O24+((C24*0.5)/D24)) -> 0 | H24: 0
A25: 1835 | B25: Overhead Conductors & Devices | E25: 0 | F25: =IF(D25=0,'App.2-CG_MIFRS_DepExp_2013'!O25,+'App.2-CG_MIFRS_DepExp_2013'!O25+((C25*0.5)/D25)) -> 0 | H25: 0
A26: 1840 | B26: Underground Conduit | E26: 0 | F26: =IF(D26=0,'App.2-CG_MIFRS_DepExp_2013'!O26,+'App.2-CG_MIFRS_DepExp_2013'!O26+((C26*0.5)/D26)) -> 0 | H26: 0
A27: 1845 | B27: Underground Conductors & Devices | E27: 0 | F27: =IF(D27=0,'App.2-CG_MIFRS_DepExp_2013'!O27,+'App.2-CG_MIFRS_DepExp_2013'!O27+((C27*0.5)/D27)) -> 0 | H27: 0
A28: 1850 | B28: Line Transformers | E28: 0 | F28: =IF(D28=0,'App.2-CG_MIFRS_DepExp_2013'!O28,+'App.2-CG_MIFRS_DepExp_2013'!O28+((C28*0.5)/D28)) -> 0 | H28: 0
A29: 1855 | B29: Services (Overhead & Underground) | E29: 0 | F29: =IF(D29=0,'App.2-CG_MIFRS_DepExp_2013'!O29,+'App.2-CG_MIFRS_DepExp_2013'!O29+((C29*0.5)/D29)) -> 0 | H29: 0
A30: 1860 | B30: Meters | E30: 0 | F30: =IF(D30=0,'App.2-CG_MIFRS_DepExp_2013'!O30,+'App.2-CG_MIFRS_DepExp_2013'!O30+((C30*0.5)/D30)) -> 0 | H30: 0
A31: 1860 | B31: Meters (Smart Meters) | E31: 0 | F31: =IF(D31=0,'App.2-CG_MIFRS_DepExp_2013'!O31,+'App.2-CG_MIFRS_DepExp_2013'!O31+((C31*0.5)/D31)) -> 0 | H31: 0
A32: 1905 | B32: Land | E32: 0 | F32: =IF(D32=0,'App.2-CG_MIFRS_DepExp_2013'!O32,+'App.2-CG_MIFRS_DepExp_2013'!O32+((C32*0.5)/D32)) -> 0 | H32: 0
A33: 1908 | B33: Buildings & Fixtures | E33: 0 | F33: =IF(D33=0,'App.2-CG_MIFRS_DepExp_2013'!O33,+'App.2-CG_MIFRS_DepExp_2013'!O33+((C33*0.5)/D33)) -> 0 | H33: 0
A34: 1910 | B34: Leasehold Improvements | E34: 0 | F34: =IF(D34=0,'App.2-CG_MIFRS_DepExp_2013'!O34,+'App.2-CG_MIFRS_DepExp_2013'!O34+((C34*0.5)/D34)) -> 0 | H34: 0
A35: 1915 | B35: Office Furniture & Equipment (10 years) | E35: 0 | F35: =IF(D35=0,'App.2-CG_MIFRS_DepExp_2013'!O35,+'App.2-CG_MIFRS_DepExp_2013'!O35+((C35*0.5)/D35)) -> 0 | H35: 0
A36: 1915 | B36: Office Furniture & Equipment (5 years) | E36: 0 | F36: =IF(D36=0,'App.2-CG_MIFRS_DepExp_2013'!O36,+'App.2-CG_MIFRS_DepExp_2013'!O36+((C36*0.5)/D36)) -> 0 | H36: 0
A37: 1920 | B37: Computer Equipment - Hardware | E37: 0 | F37: =IF(D37=0,'App.2-CG_MIFRS_DepExp_2013'!O37,+'App.2-CG_MIFRS_DepExp_2013'!O37+((C37*0.5)/D37)) -> 0 | H37: 0
A38: 1920 | B38: Computer Equip.-Hardware(Post Mar. 22/04) | E38: 0 | F38: =IF(D38=0,'App.2-CG_MIFRS_DepExp_2013'!O38,+'App.2-CG_MIFRS_DepExp_2013'!O38+((C38*0.5)/D38)) -> 0 | H38: 0
A39: 1920 | B39: Computer Equip.-Hardware(Post Mar. 19/07) | E39: 0 | F39: =IF(D39=0,'App.2-CG_MIFRS_DepExp_2013'!O39,+'App.2-CG_MIFRS_DepExp_2013'!O39+((C39*0.5)/D39)) -> 0 | H39: 0
A40: 1930 | B40: Transportation Equipment | E40: 0 | F40: =IF(D40=0,'App.2-CG_MIFRS_DepExp_2013'!O40,+'App.2-CG_MIFRS_DepExp_2013'!O40+((C40*0.5)/D40)) -> 0 | H40: 0
A41: 1935 | B41: Stores Equipment | E41: 0 | F41: =IF(D41=0,'App.2-CG_MIFRS_DepExp_2013'!O41,+'App.2-CG_MIFRS_DepExp_2013'!O41+((C41*0.5)/D41)) -> 0 | H41: 0
A42: 1940 | B42: Tools, Shop & Garage Equipment | E42: 0 | F42: =IF(D42=0,'App.2-CG_MIFRS_DepExp_2013'!O42,+'App.2-CG_MIFRS_DepExp_2013'!O42+((C42*0.5)/D42)) -> 0 | H42: 0
A43: 1945 | B43: Measurement & Testing Equipment | E43: 0 | F43: =IF(D43=0,'App.2-CG_MIFRS_DepExp_2013'!O43,+'App.2-CG_MIFRS_DepExp_2013'!O43+((C43*0.5)/D43)) -> 0 | H43: 0
A44: 1950 | B44: Power Operated Equipment | E44: 0 | F44: =IF(D44=0,'App.2-CG_MIFRS_DepExp_2013'!O44,+'App.2-CG_MIFRS_DepExp_2013'!O44+((C44*0.5)/D44)) -> 0 | H44: 0
A45: 1955 | B45: Communications Equipment | E45: 0 | F45: =IF(D45=0,'App.2-CG_MIFRS_DepExp_2013'!O45,+'App.2-CG_MIFRS_DepExp_2013'!O45+((C45*0.5)/D45)) -> 0 | H45: 0
A46: 1955 | B46: Communication Equipment (Smart Meters) | E46: 0 | F46: =IF(D46=0,'App.2-CG_MIFRS_DepExp_2013'!O46,+'App.2-CG_MIFRS_DepExp_2013'!O46+((C46*0.5)/D46)) -> 0 | H46: 0
A47: 1960 | B47: Miscellaneous Equipment | E47: 0 | F47: =IF(D47=0,'App.2-CG_MIFRS_DepExp_2013'!O47,+'App.2-CG_MIFRS_DepExp_2013'!O47+((C47*0.5)/D47)) -> 0 | H47: 0
A48: 1975 | B48: Load Management Controls Utility Premises | E48: 0 | F48: =IF(D48=0,'App.2-CG_MIFRS_DepExp_2013'!O48,+'App.2-CG_MIFRS_DepExp_2013'!O48+((C48*0.5)/D48)) -> 0 | H48: 0
A49: 1980 | B49: System Supervisor Equipment | E49: 0 | F49: =IF(D49=0,'App.2-CG_MIFRS_DepExp_2013'!O49,+'App.2-CG_MIFRS_DepExp_2013'!O49+((C49*0.5)/D49)) -> 0 | H49: 0
A50: 1985 | B50: Miscellaneous Fixed Assets | E50: 0 | F50: =IF(D50=0,'App.2-CG_MIFRS_DepExp_2013'!O50,+'App.2-CG_MIFRS_DepExp_2013'!O50+((C50*0.5)/D50)) -> 0 | H50: 0
A51: 1995 | B51: Contributions & Grants | E51: 0 | F51: =IF(D51=0,'App.2-CG_MIFRS_DepExp_2013'!O51,+'App.2-CG_MIFRS_DepExp_2013'!O51+((C51*0.5)/D51)) -> 0 | H51: 0
A52: etc. | E52: 0 | F52: =IF(D52=0,'App.2-CG_MIFRS_DepExp_2013'!O52,+'App.2-CG_MIFRS_DepExp_2013'!O52+((C52*0.5)/D52)) -> 0 | H52: 0
E53: 0 | F53: =IF(D53=0,'App.2-CG_MIFRS_DepExp_2013'!O53,+'App.2-CG_MIFRS_DepExp_2013'!O53+((C53*0.5)/D53)) -> 0 | H53: 0
B54: Total | C54: =SUM(C16:C53) -> 0 | F54: =SUM(F16:F53) -> 0 | G54: =SUM(G16:G53) -> 0 | H54: =SUM(H16:H53) -> 0
B55: Depreciation expense adjustment resulting from amortization of Account 1575 | F55: 0
B56: Total Depreciation expense to be included in the test year revenue requirement | F56: =+F55+F54 -> 0
A58: Notes:
A59: 1 | B59: Board policy of the "half-year" rule - the applicant must ensure that additions in the year attract a half-year depreciation expense in the first year. Deviations from this standard practice must be supported in the application.
A60: 2 | B60: The applicant must provide an explanation of material variances in evidence
A63: General: | B63: Applicants must provide a breakdown of depreciation and amortization expense in the above format for all relevant accounts. Asset Retirement Obligations (AROs), depreciation and accretion expense should be disclosed separately consistent with the Notes of historical Audited Financial Statements.

Sheet App.2-CI_AltAccStd_DepExp
K1: File Number: | L1: ='LDC Info'!$E$18 -> EB-2013-0147
K2: Exhibit:
K3: Tab:
K4: Schedule:
K5: Page:
K7: Date:
A9: Appendix 2-CI
A10: Depreciation and Amortization Expense
A11: Assumes the applicant adopted an alternate accounting standard other than IFRS for financial reporting purposes. For applicants adopting an Alternate Accounting Standard for financial reporting purposes January 1, 2013, applicants must complete 4 versions of the table below (2012 CGAAP, 2012 Alternate Accounting Standard, 2013 Alternate Accounting Standard and 2014 Alternate Accounting Standard). For applicants adopting an Alternate Accounting Standard for financial reporting purposes January 1, 2014, applicants must complete 4 versions of the table below (2012 CGAAP, 2013 CGAAP, 2013 Alternate Accounting Standard and 2014 Alternate Accounting Standard).
B12: Year | E12: Accounting Standard
A14: Account | B14: Description | C14: Opening Regulatory Gross PP&E | D14: Less Fully Depreciated | E14: Net for Depreciation | F14: Additions | G14: Total for Depreciation | H14: Years | I14: Depreciation Rate | J14: Depreciation Expense | K14: Depreciation Expense per Appendix 2-B Fixed Assets, Column K (l) | L14: Variance 2
C15: (a) | D15: (b) | E15: (c) | F15: (d) | G15: (e) = (c) + ½ x (d) 1 | H15: (f) | I15: (g) = 1 / (f) | J15: (h) = (e) / (f) | L15: (m) = (h) - (l)
A16: 1611 | B16: Computer Software (Formally known as Account 1925) | E16: =C16-D16 -> 0 | G16: =E16+0.5*F16 -> 0 | I16: =IF(H16=0,0,1/H16) -> 0 | J16: =IF(H16=0,0,G16/H16) -> 0 | L16: =IF(ISERROR(+J16-K16), 0, +J16-K16) -> 0
A17: 1612 | B17: Land Rights (Formally known as Account 1906) | E17: =C17-D17 -> 0 | G17: =E17+0.5*F17 -> 0 | I17: 0 | J17: 0 | L17: 0
A18: 1805 | B18: Land | E18: 0 | G18: 0 | I18: 0 | J18: 0 | L18: 0
A19: 1808 | B19: Buildings | E19: 0 | G19: 0 | I19: 0 | J19: 0 | L19: 0
A20: 1810 | B20: Leasehold Improvements | E20: 0 | G20: 0 | I20: 0 | J20: 0 | L20: 0
A21: 1815 | B21: Transformer Station Equipment >50 kV | E21: 0 | G21: 0 | I21: 0 | J21: 0 | L21: 0
A22: 1820 | B22: Distribution Station Equipment <50 kV | E22: 0 | G22: 0 | I22: 0 | J22: 0 | L22: 0
A23: 1825 | B23: Storage Battery Equipment | E23: 0 | G23: 0 | I23: 0 | J23: 0 | L23: 0
A24: 1830 | B24: Poles, Towers & Fixtures | E24: 0 | G24: 0 | I24: 0 | J24: 0 | L24: 0
A25: 1835 | B25: Overhead Conductors & Devices | E25: 0 | G25: 0 | I25: 0 | J25: 0 | L25: 0
A26: 1840 | B26: Underground Conduit | E26: 0 | G26: 0 | I26: 0 | J26: 0 | L26: 0
A27: 1845 | B27: Underground Conductors & Devices | E27: 0 | G27: 0 | I27: 0 | J27: 0 | L27: 0
A28: 1850 | B28: Line Transformers | E28: 0 | G28: 0 | I28: 0 | J28: 0 | L28: 0
A29: 1855 | B29: Services (Overhead & Underground) | E29: 0 | G29: 0 | I29: 0 | J29: 0 | L29: 0
A30: 1860 | B30: Meters | E30: 0 | G30: 0 | I30: 0 | J30: 0 | L30: 0
A31: 1860 | B31: Meters (Smart Meters) | E31: 0 | G31: 0 | I31: 0 | J31: 0 | L31: 0
A32: 1905 | B32: Land | E32: 0 | G32: 0 | I32: 0 | J32: 0 | L32: 0
A33: 1908 | B33: Buildings & Fixtures | E33: 0 | G33: 0 | I33: 0 | J33: 0 | L33: 0
A34: 1910 | B34: Leasehold Improvements | E34: 0 | G34: 0 | I34: 0 | J34: 0 | L34: 0
A35: 1915 | B35: Office Furniture & Equipment (10 years) | E35: 0 | G35: 0 | I35: 0 | J35: 0 | L35: 0
A36: 1915 | B36: Office Furniture & Equipment (5 years) | E36: 0 | G36: 0 | I36: 0 | J36: 0 | L36: 0
A37: 1920 | B37: Computer Equipment - Hardware | E37: 0 | G37: 0 | I37: 0 | J37: 0 | L37: 0
A38: 1920 | B38: Computer Equip.-Hardware(Post Mar. 22/04) | E38: 0 | G38: 0 | I38: 0 | J38: 0 | L38: 0
A39: 1920 | B39: Computer Equip.-Hardware(Post Mar. 19/07) | E39: 0 | G39: 0 | I39: 0 | J39: 0 | L39: 0
A40: 1930 | B40: Transportation Equipment | E40: 0 | G40: 0 | I40: 0 | J40: 0 | L40: 0
A41: 1935 | B41: Stores Equipment | E41: 0 | G41: 0 | I41: 0 | J41: 0 | L41: 0
A42: 1940 | B42: Tools, Shop & Garage Equipment | E42: 0 | G42: 0 | I42: 0 | J42: 0 | L42: 0
A43: 1945 | B43: Measurement & Testing Equipment | E43: 0 | G43: 0 | I43: 0 | J43: 0 | L43: 0
A44: 1950 | B44: Power Operated Equipment | E44: 0 | G44: 0 | I44: 0 | J44: 0 | L44: 0
A45: 1955 | B45: Communications Equipment | E45: 0 | G45: 0 | I45: 0 | J45: 0 | L45: 0
A46: 1955 | B46: Communication Equipment (Smart Meters) | E46: 0 | G46: 0 | I46: 0 | J46: 0 | L46: 0
A47: 1960 | B47: Miscellaneous Equipment | E47: 0 | G47: 0 | I47: 0 | J47: 0 | L47: 0
A48: 1975 | B48: Load Management Controls Utility Premises | E48: 0 | G48: 0 | I48: 0 | J48: 0 | L48: 0
A49: 1980 | B49: System Supervisor Equipment | E49: 0 | G49: 0 | I49: 0 | J49: 0 | L49: 0
A50: 1985 | B50: Miscellaneous Fixed Assets | E50: 0 | G50: 0 | I50: 0 | J50: 0 | L50: 0
A51: 1995 | B51: Contributions & Grants | E51: 0 | G51: 0 | I51: 0 | J51: 0 | L51: 0
A52: etc. | E52: 0 | G52: 0 | I52: 0 | J52: 0 | L52: 0
E53: 0 | G53: 0 | I53: 0 | J53: 0 | L53: 0
B54: Total | C54: =SUM(C16:C53) -> 0 | D54: =SUM(D16:D53) -> 0 | E54: =SUM(E16:E53) -> 0 | F54: 0 | G54: 0 | J54: =SUM(J16:J53) -> 0 | K54: =SUM(K16:K53) -> 0 | L54: =SUM(L16:L53) -> 0
A56: Notes:
A58: 1 | B58: Board policy of the "half-year" rule - the applicant must ensure that additions in the year attract a half-year depreciation expense in the first year. Deviations from this standard practice must be supported in the application.
A59: 2 | B59: The applicant must provide an explanation of material variances in evidence
A62: General: | B62: Applicants must provide a breakdown of depreciation and amortization expense in the above format for all relevant accounts. Asset Retirement Obligations (AROs), depreciation and accretion expense should be disclosed separately consistent with the Notes of historical Audited Financial Statements.

Sheet App.2-D_Overhead
L1: File Number: | M1: ='LDC Info'!$E$18 -> EB-2013-0147
L2: Exhibit:
L3: Tab:
L4: Schedule:
L5: Page:
L7: Date:
A9: Appendix 2-D
A10: Overhead Expense
A12: The following table should be completed based on the information requested below. An explanation should be provided for any blank entries. The entries should include overhead costs that are currently capitalized on self-constructed assets under MIFRS or an alternate accounting standard.
E13: (A) 1 | F13: (B) | G13: (C) | H13: (D) | I13: (E) 1 | J13: (F) | K13: (G)
A14: Nature of the Overhead Costs | E14: Dollar | F14: Dollar | G14: Dollar | H14: Dollar Impact - | I14: Dollar Impact - | J14: Directly | K14: Reasons why the overhead costs are allowed to be
E15: Impact on PP&E | F15: Impact on PP&E | G15: Impact on PP&E | H15: PP&E Variance | I15: PP&E Variance | J15: Attributable? | K15: capitalized under MIFRS or an alternate accounting
E16: Historic Year | F16: Bridge Year | G16: Test Year | H16: Test versus Bridge | I16: Test versus Historic | J16: (Y/N) | K16: standard given limitations on capitalized overhead
A17: employee benefits | H17: =+G17-F17 -> 0 | I17: =+G17-E17 -> 0
A18: costs of site preparation | H18: 0 | I18: 0
A19: initial delivery and handling costs | H19: 0 | I19: 0
A20: costs of testing whether the asset is functioning properly | H20: 0 | I20: 0
A21: professional fees | H21: 0 | I21: 0
H22: 0 | I22: 0
A23: costs of opening a new facility | H23: 0 | I23: 0
A24: costs of introducing a new product or service (including costs of advertising and promotional activities) | H24: 0 | I24: 0
A25: costs of conducting business in a new location or with a new class of customer (including costs of staff training) | H25: 0 | I25: 0
A26: administration and other general overhead costs | H26: 0 | I26: 0
H27: 0 | I27: 0
H28: 0 | I28: 0
H29: 0 | I29: 0
A30: Insert description of additional item(s) and new rows if needed. | H30: 0 | I30: 0
A31: Total | E31: =SUM(E17:E30) -> 0 | F31: =SUM(F17:F30) -> 0 | G31: =SUM(G17:G30) -> 0 | H31: =SUM(H17:H30) -> 0 | I31: =SUM(I17:I30) -> 0
A34: The following table should be completed based on the information requested below. An explanation should be provided for any blank entries. The entries should include overhead costs that were capitalized on self-constructed assets under CGAAP but are no longer capitalized under MIFRS or an alternate accounting standard and are included in OM&A.
E35: (A) 1 | F35: (B) | G35: (C) | H35: (D) | I35: (E) 1 | J35: (F) | K35: (G)
A36: Nature of the Overhead Costs | E36: Dollar | F36: Dollar | G36: Dollar | H36: Dollar Impact - | I36: Dollar Impact - | J36: Directly | K36: Reasons why the overhead costs are not allowed to be
E37: Impact on OM&A | F37: Impact on OM&A | G37: Impact on OM&A | H37: OM&A Variance | I37: OM&A Variance | J37: Attributable? | K37: capitalized under MIFRS or an alternate accounting
E38: Historic Year | F38: Bridge Year | G38: Test Year | H38: Test versus Bridge | I38: Test versus Historic | J38: (Y/N) | K38: standard given limitations on capitalized overhead
A39: employee benefits | E39: -259837 | F39: =E39*0.1 -> -25983.7 | G39: =(F39+E39)*0.05 -> -14291.035 | H39: =+G39-F39 -> 11692.665 | I39: =+G39-E39 -> 245545.965 | J39: N | K39: PBO adjusted to be overhead charge - decreased OM&A
A40: costs of site preparation | E40: 0 | H40: =+G40-F40 -> 0 | I40: =+G40-E40 -> 0 | J40: N | K40: Not applicable to 2014 application
A41: initial delivery and handling costs (warehousing) | E41: 321778 | F41: =E41*0.02 -> 6435.56 | G41: =(F41+E41)*0.02 -> 6564.2712 | H41: =+G41-F41 -> 128.7112 | I41: =+G41-E41 -> -315213.7288 | J41: N | K41: Only salaries of 2 1/2 stockkeepers can be capitalized
A42: costs of testing whether the asset is functioning properly | H42: =+G42-F42 -> 0 | I42: =+G42-E42 -> 0 | J42: N | K42: Not applicable to 2014 application
A43: professional fees | H43: =+G43-F43 -> 0 | I43: =+G43-E43 -> 0 | J43: N | K43: No impact
A45: costs of opening a new facility | H45: =+G45-F45 -> 0 | I45: =+G45-E45 -> 0 | J45: N | K45: Not applicable to 2014 application
A46: costs of introducing a new product or service (including costs of advertising and promotional activities) | H46: 0 | I46: 0 | J46: N | K46: Not applicable to 2014 application
A47: costs of conducting business in a new location or with a new class of customer (including costs of staff training) | H47: 0 | I47: 0 | J47: N | K47: Not applicable to 2014 application
A48: administration and other general overhead costs | E48: 262620 | F48: =E48*0.02 -> 5252.4 | G48: =(F48+E48)*0.02 -> 5357.448 | H48: 105.048 | I48: -257262.552 | J48: N | K48: HR and senior staff salary costs not directly attributable
A49: Expense of Engineering department costs | E49: 626084 | F49: 12521.68 | G49: 12772.1136 | H49: 250.4336 | I49: -613311.8864 | J49: N | K49: Time study removed 39% of department cost from capital
A50: Expense of Garage and Service Centre Expenses | E50: 319872 | F50: 6397.44 | G50: 6525.3888 | H50: 127.9488 | I50: -313346.6112 | J50: N | K50: Garage and service centre costs not directly attributable
A51: Expense of Safety Expenses | E51: 421819 | F51: 8436.38 | G51: 8605.1076 | H51: 168.7276 | I51: -413213.8924 | J51: N | K51: Safety costs not directly attributable
H52: 0 | I52: 0
A53: Total | E53: =SUM(E39:E52) -> 1692336 | F53: =SUM(F39:F52) -> 13059.76 | G53: =SUM(G39:G52) -> 25533.2942 | H53: =SUM(H39:H52) -> 12473.5342 | I53: =SUM(I39:I52) -> -1666802.706
A55: Notes:
A56: 1 | B56: If the applicant chooses to adopt IFRS or an alternate accounting standard for financial reporting purposes in 2013, the applicant does not need to complete Columns A, E. If the applicant adopts IFRS or an alternate accounting standard for financial reporting purposes in 2012, the applicant must complete all columns.

Sheet App.2-EA_PP&E Deferral Account
H1: File Number: | I1: ='LDC Info'!$E$18 -> EB-2013-0147
H2: Exhibit:
H3: Tab:
H4: Schedule:
H5: Page:
H7: Date:
A9: Appendix 2-EA
A10: IFRS-CGAAP Transitional PP&E Amounts
A11: 2012 Adopters of IFRS for Financial Reporting Purposes
A13: For applicants that adopt IFRS on January 1, 2012 for financial reporting purposes
A15: Note: this sheet should be filled out if the applicant adopts IFRS for its financial reporting purpose as of January 1, 2012.
B17: 2010 Rebasing Year | C17: 2011 | D17: 2012 | E17: 2013 | F17: 2014 Rebasing Year | G17: 2015 | H17: 2016 | I17: 2017
A18: Reporting Basis | B18: CGAAP | C18: IRM | D18: IRM | E18: IRM | F18: MIFRS | G18: IRM | H18: IRM | I18: IRM
A19: Forecast vs. Actual Used in Rebasing Year | B19: Forecast | C19: Actual | D19: Actual | E19: Forecast | F19: Forecast
D20: $ | E20: $
A21: PP&E Values under CGAAP
A22: Opening net PP&E - Note 1 | D22: -259837 | E22: =+D25 -> 0
A23: Additions | D23: 0 | E23: 19021591
A24: Depreciation (amounts should be negative) | D24: 321778 | E24: -12368981
A25: Closing net PP&E (1) | E25: =E22+E23+E24 -> 6652610
A27: PP&E Values under MIFRS (Starts from 2011, the transition year)
A28: Opening net PP&E - Note 1 | E28: =+D31 -> 262620
A29: Additions | E29: 17971915
A30: Depreciation (amounts should be negative) | E30: -7643125
A31: Closing net PP&E (2) | D31: 262620 | E31: =SUM(E28:E30) -> 10591410
D32: 626084
A33: Difference in Closing net PP&E, CGAAP vs. MIFRS (Shown as adjustment to rate base on rebasing) | D33: 319872 | E33: =E25-E31 -> -3938800
D34: 421819
A35: Account 1575 - IFRS-CGAAP Transitional PP&E Amounts
A36: Opening balance | D36: 0 | E36: =D40 -> 319872 | F36: =E40 -> -3938800 | G36: =F40 -> -2954100 | H36: =G40 -> -1969400 | I36: =H40 -> -984700
A37: Amounts added in the year | D37: =D33 -> 319872 | E37: =E33-D33 -> -4258672
A38: Sub-total | D38: =D36+D37 -> 319872 | E38: -3938800 | F38: -3938800 | G38: -2954100 | H38: -1969400 | I38: -984700
A39: Amount of amortization, included in depreciation expense - Note 2 | F39: =IF(ISERROR(-E33/I44), 0, -E33/I44) -> 984700 | G39: =+F39 -> 984700 | H39: =+F39 -> 984700 | I39: =+F39 -> 984700
A40: Closing balance in deferral account | D40: =D38+D39 -> 319872 | E40: -3938800 | F40: =IF(ISERROR(F38+F39), 0, F38+F39) -> -2954100 | G40: -1969400 | H40: -984700 | I40: 0
A42: Effect on Revenue Requirement
A43: Amortization of deferred balance as above - Note 2 | F43: =IF(ISERROR(E33/I44), 0, E33/I44) -> -984700 | H43: WACC
A44: Return on Rate Base Associated with deferred PP&E balance at WACC - Note 3 | F44: =E33*I43 -> 0 | H44: Disposition Period - Note 4 | I44: 4 | J44: Years
A45: Amount included in Revenue Requirement on rebasing | F45: =F43+F44 -> -984700
A47: Notes:
A48: 1 For an applicant that adopts IFRS on January 1, 2012, the PP&E values as of January 1, 2011 under both CGAAP and MIFRS should be the same.
A49: 2 Amortization of the deferred balance in Account 1575 will start from the rebasing year.
A50: Assume the utility requests for a certain disposition period, the amortization that should be included in the depreciation expense is calculated as:
A51: the opening balance of Account 1575 / the approved disposition period
A52: 3 Return on rate base associated with deferred balance is calculated as:
A53: the deferred account opening balance as of 2013 rebasing year x WACC
A54: * Please note that the calculation should be adjusted once WACC is updated and finalized in the rate application.
A55: 4 Consistent with the 4 year normal rate cycle, the model is using a 4 year amortization period as a default selection to "clear" the PP&E deferral account through a one-time adjustment to ratebase to capture and remove the impact of the accounting policy changes as caused by the transition from CGAAP to MIFRS.

Sheet App.2-EB_PP&E Deferral Account
H1: File Number: | I1: ='LDC Info'!$E$18 -> EB-2013-0147
H2: Exhibit:
H3: Tab:
H4: Schedule:
H5: Page:
H7: Date:
A9: Appendix 2-EB
A10: IFRS-CGAAP Transitional PP&E Amounts
A11: 2013 Adopters of IFRS for Financial Reporting Purposes
A13: For applicants that adopt IFRS on January 1, 2013 for financial reporting purposes
A15: Note: this sheet should be filled out if the applicant adopts IFRS for its financial reporting purpose as of January 1, 2013.
B17: 2009 Rebasing Year | C17: 2010 | D17: 2011 | E17: 2012 | F17: 2013 Rebasing Year | G17: 2014 | H17: 2015 | I17: 2016
A18: Reporting Basis | B18: CGAAP | C18: IRM | D18: IRM | E18: IRM | F18: MIFRS | G18: IRM | H18: IRM | I18: IRM
A19: Forecast vs. Actual Used in Rebasing Year | B19: Forecast | C19: Actual | D19: Actual | E19: Forecast | F19: Forecast
D20: $ | E20: $ | F20: $ | G20: $ | H20: $ | I20: $
A21: PP&E Values under CGAAP
A22: Opening net PP&E - Note 1
A23: Additions
A24: Depreciation (amounts should be negative)
A25: Closing net PP&E (1) | E25: =SUM(E22:E24) -> 0
A27: PP&E Values under MIFRS (Starts from 2012, the transition year)
A28: Opening net PP&E - Note 1
A29: Additions
A30: Depreciation (amounts should be negative)
A31: Closing net PP&E (2) | E31: =SUM(E28:E30) -> 0
A33: Difference in Closing net PP&E, CGAAP vs. MIFRS (Shown as adjustment to rate base on rebasing) | E33: =E25-E31 -> 0
A35: Account 1575 - IFRS-CGAAP Transitional PP&E Amounts
A36: Opening balance | E36: =D40 -> 0 | F36: =E40 -> 0 | G36: =F40 -> 0 | H36: =G40 -> 0 | I36: =H40 -> 0
A37: Amounts added in the year | E37: =E33-D33 -> 0
A38: Sub-total | E38: =E36+E37 -> 0 | F38: =F36+F37 -> 0 | G38: =G36+G37 -> 0 | H38: =H36+H37 -> 0 | I38: =I36+I37 -> 0
A39: Amount of amortization, included in depreciation expense - Note 2 | F39: =IF(ISERROR(-E33/I44), 0, -E33/I44) -> 0 | G39: =+F39 -> 0 | H39: =+F39 -> 0 | I39: =+F39 -> 0
A40: Closing balance in deferral account | E40: =E38+E39 -> 0 | F40: =IF(ISERROR(F38+F39), 0, F38+F39) -> 0 | G40: =G38+G39 -> 0 | H40: =H38+H39 -> 0 | I40: =I38+I39 -> 0
A42: Effect on Revenue Requirement
A43: Amortization of deferred balance as above - Note 2 | F43: =IF(ISERROR(E33/I44), 0, E33/I44) -> 0 | H43: WACC
A44: Return on Rate Base Associated with deferred PP&E balance at WACC - Note 3 | F44: =E33*I43 -> 0 | H44: Disposition Period - Note 4 | I44: 4 | J44: Years
A45: Amount included in Revenue Requirement on rebasing | F45: =F43+F44 -> 0
A47: Notes:
A48: 1 For an applicant that adopts IFRS on January 1, 2013, the PP&E values as of January 1, 2012 under both CGAAP and MIFRS should be the same.
A49: 2 Amortization of the deferred balance in Account 1575 will start from the rebasing year.
A50: Assume the utility requests for a certain disposition period, the amortization that should be included in the depreciation expense is calculated as:
A51: the opening balance of Account 1575 / the approved disposition period
A52: 3 Return on rate base associated with deferred balance is calculated as:
A53: the deferred account opening balance as of 2013 rebasing year x WACC
A54: * Please note that the calculation should be adjusted once WACC is updated and finalized in the rate application.
A55: 4 Consistent with the 4 year normal rate cycle, the model is using a 4 year amortization period as a default selection to "clear" the PP&E deferral account through a one-time adjustment to ratebase to capture and remove the impact of the accounting policy changes as caused by the transition from CGAAP to MIFRS.

Sheet App.2-F_Other_Oper_Rev
A1: Appendix 2-F | J1: 2 | K1: If the applicant is adopting IFRS or an alternate accounting standard as of January 1, 2012 for financial reporting purposes, 2011 must be presented on both a CGAAP and MIFRS (or alternate accounting standard) basis.
A2: Other Operating Revenue | J2: 3 | K2: If the applicant is adopting IFRS or an alternate accounting standard as of January 1, 2013 for financial reporting purposes, 2012 must be presented on both a CGAAP and MIFRS (or alternate accounting standard) basis.
A4: USoA # | B4: USoA Description | C4: =G5-3 & " Actual" -> 2009 Actual | D4: =G5-2 & " Actual" -> 2010 Actual | E4: =G5-1 & " Actual"& CHAR(178) -> 2011 Actual² | F4: 2012 Actual | G4: 2012 Actual | H4: ="Bridge Year" & CHAR(179) -> Bridge Year³ | I4: Test Year
F5: 2012 | G5: 2012 | H5: ='LDC Info'!E26 -> 2013 | I5: ='LDC Info'!E28+1 -> 2014
B6: Reporting Basis | C6: CGAAP | D6: CGAAP | E6: CGAAP | F6: CGAAP | G6: MIFRS | H6: MIFRS | I6: MIFRS
A7: 4082 | B7: Retailer Services Revenue | C7: 57356.86 | D7: 58638.3 | E7: 67824.95 | F7: 61296.2 | G7: 61296.2 | H7: 66800 | I7: 68000
A8: 4084 | B8: STR Revenue | C8: 2335 | D8: 3606 | E8: 1969 | F8: 1959 | G8: 1959 | H8: 2200 | I8: 2300
A9: 4086 | B9: SSS Administration Charges | F9: 247538.5 | G9: 247538.5 | H9: 249300 | I9: 251800
A10: 4210 | B10: Rent from Electric Property | C10: 627075.49 | D10: 541300.33 | E10: 559195.1 | F10: 531738.45 | G10: 531738.45 | H10: 494600 | I10: 503000
A11: 4220 | B11: Other Electric Revenues | C11: 25760 | D11: 24000 | E11: 24685.74 | F11: 27600 | G11: 27600 | H11: 27600 | I11: 38400
A12: 4225 | B12: Late Payment Charges | C12: 213312.18 | D12: 234173.36 | E12: 248287.58 | F12: 255787.05 | G12: 255787.05 | H12: 260900 | I12: 266100
A13: 4235 | B13: Specific Service Charges | C13: 221695 | D13: 248935 | E13: 240644.15 | F13: 269250.91 | G13: 269250.91 | H13: 276500 | I13: 497900
A14: 4305 | B14: Regulatory Debits | C14: 0 | D14: 0 | E14: 0 | F14: -2265213 | G14: -2265213 | H14: -3676200 | I14: 0
A15: 4325 | B15: Revenues from Merchandise, Jobbing, Etc. | C15: 0 | D15: 336.02 | E15: 0 | F15: 0 | G15: 0 | H15: 0 | I15: 0
A16: 4355 | B16: Gain on Disposition of Other Property | C16: 48050.51 | D16: 113244.21 | E16: 2997.63 | F16: 86908.47 | G16: 86908.47 | H16: 30000 | I16: 30000
A17: 4360 | B17: Loss on Disposition of Utility and Other Property | C17: 0 | D17: 0 | E17: 0 | F17: -173158.23 | G17: -173158.23 | H17: 0 | I17: 0
A18: 4375 | B18: Revenues from Non-Utility Operations | C18: 2974241.99 | D18: 2462139.67 | E18: 1852892.03 | F18: 1964213.64 | G18: 1964213.64 | H18: 2279600 | I18: 2331800
A19: 4380 | B19: Expenses of Non-Utility Operations | C19: -2334615.64 | D19: -2124913.47 | E19: -1650097.98 | F19: -1816459.65 | G19: -1816459.65 | H19: -2213100 | I19: -2264000
A20: 4390 | B20: Miscellaneous Non-Operating Income | C20: 103792.37 | D20: 152854.51 | E20: 182470.9 | F20: 186092.47 | G20: 186092.47 | H20: 165000 | I20: 165000
A21: 4398 | B21: Foreign Exchange Gains & Losses | C21: 0 | D21: 0 | E21: 0 | F21: 240.48 | G21: 240.48 | H21: 0 | I21: 0
A22: 4405 | B22: Interest & Dividend Income | C22: 582726.88 | D22: 329266.55 | E22: 425686.94 | F22: 439132.83 | G22: 439132.83 | H22: 201400 | I22: 163900
A25: Specific Service Charges | C25: =C13 -> 221695 | D25: 248935 | E25: 240644.15 | F25: 269250.91 | G25: 269250.91 | H25: 276500 | I25: 497900
A26: Late Payment Charges | C26: =C12 -> 213312.18 | D26: 234173.36 | E26: 248287.58 | F26: 255787.05 | G26: 255787.05 | H26: 260900 | I26: 266100
A27: Other Operating Revenues | C27: =SUM(C10:C11)+C7+C8+C9 -> 712527.35 | D27: =SUM(D10:D11)+D7+D8+D9 -> 627544.63 | E27: 653674.79 | F27: 870132.15 | G27: 870132.15 | H27: 840500 | I27: =SUM(I10:I11)+I7+I8+I9 -> 863500
A28: Other Income or Deductions | C28: =SUM(C14:C22) -> 1374196.11 | D28: =SUM(D14:D22) -> 932927.49 | E28: 813949.52 | F28: -1578242.99 | G28: -1578242.99 | H28: -3213300 | I28: 426700
A29: Total | C29: =SUM(C25:C28) -> 2521730.64 | D29: 2043580.48 | E29: 1956556.04 | F29: =SUM(F25:F28) -> -183072.88 | G29: -183072.88 | H29: -1835400 | I29: 2054200
A31: Description | C31: Account(s)
A32: Specific Service Charges: | C32: 4235
A33: Late Payment Charges: | C33: 4225
A34: Other Distribution Revenues: | C34: 4080, 4082, 4084, 4090, 4205, 4210, 4215, 4220, 4240, 4245
A35: Other Income and Expenses: | C35: 4305, 4310, 4315, 4320, 4325, 4330, 4335, 4340, 4345, 4350, 4355, 4360, 4365, 4370, 4375, 4380, 4385, 4390, 4395, 4398, 4405, 4415
A38: Note: Add all applicable accounts listed above to the table and include all relevant information.
A39: The above table assumes adoption of MIFRS as of January 1, 2013. If the adoption year differs, please adjust the table accordingly.
A43: Account Breakdown Details
A45: For each "Other Operating Revenue" and "Other Income or Deductions" Account, a detailed breakdown of the account components is required. See the example below for Account 4405, Interest and Dividend Income.
A48: Account 4082 - Retailer Services Revenues
C49: 2009 Actual | D49: 2010 Actual | E49: 2011 Actual | F49: 2012 Actual | G49: 2012 Actual | H49: Bridge Year³ | I49: Test Year
A50: Reporting Basis | C50: CGAAP | D50: CGAAP | E50: CGAAP | F50: CGAAP | G50: MIFRS | H50: MIFRS | I50: MIFRS
A51: Retailer Services Revenues | C51: 57356.86 | D51: 58638.3 | E51: 67824.95 | F51: 61296.2 | G51: 61296.2 | H51: 66800 | I51: 68000
A55: Total | C55: =SUM(C51:C54) -> 57356.86 | D55: 58638.3 | E55: 67824.95 | F55: 61296.2 | G55: 61296.2 | H55: 66800 | I55: 68000
A58: Account 4084 - STR Revenue
C59: 2009 Actual | D59: 2010 Actual | E59: 2011 Actual | F59: 2012 Actual | G59: 2012 Actual | H59: Bridge Year³ | I59: Test Year
A60: Reporting Basis | C60: CGAAP | D60: CGAAP | E60: CGAAP | F60: CGAAP | G60: MIFRS | H60: MIFRS | I60: MIFRS
A61: STR Revenue | C61: 2335 | D61: 3606 | E61: 1969 | F61: 1959 | G61: 1959 | H61: 2200 | I61: 2300
A65: Total | C65: =SUM(C61:C64) -> 2335 | D65: 3606 | E65: 1969 | F65: 1959 | G65: 1959 | H65: 2200 | I65: 2300
A68: Account 4086 - SSS Administration Charges
C69: 2009 Actual | D69: 2010 Actual | E69: 2011 Actual | F69: 2012 Actual | G69: 2012 Actual | H69: Bridge Year³ | I69: Test Year
A70: Reporting Basis | C70: CGAAP | D70: CGAAP | E70: CGAAP | F70: CGAAP | G70: MIFRS | H70: MIFRS | I70: MIFRS
A71: SSS Administration Charges | C71: =C9 -> 0 | D71: =D9 -> 0 | E71: =E9 -> 0 | F71: 247538.5 | G71: 247538.5 | H71: 249300 | I71: 251800
A75: Total | C75: =SUM(C71:C74) -> 0 | D75: 0 | E75: 0 | F75: 247538.5 | G75: 247538.5 | H75: 249300 | I75: 251800
A78: Account 4210 - Rent from Electric Property
C79: 2009 Actual | D79: 2010 Actual | E79: 2011 Actual | F79: 2012 Actual | G79: 2012 Actual | H79: Bridge Year³ | I79: Test Year
A80: Reporting Basis | C80: CGAAP | D80: CGAAP | E80: CGAAP | F80: MIFRS | G80: MIFRS | H80: MIFRS | I80: MIFRS
A81: Pole Rentals | C81: 454514.54 | D81: 464840.31 | E81: 474349.66 | F81: 464840.31 | G81: 474349.66 | H81: 483800 | I81: 493500
A82: Rent Revenue | C82: 86785.79 | D82: 89254.79 | E82: 57388.79 | F82: 89254.79 | G82: 57388.79 | H82: 10800 | I82: 9500
A83: Mobile Substation Revenue | C83: 0 | D83: 5100 | E83: 0 | F83: 5100 | G83: 0
A85: Total | C85: =SUM(C81:C84) -> 541300.33 | D85: 559195.1 | E85: 531738.45 | F85: =SUM(F81:F84) -> 559195.1 | G85: 531738.45 | H85: 494600 | I85: 503000
A89: Account 4220 - Other Electric Revenues
C90: 2009 Actual | D90: 2010 Actual | E90: 2011 Actual | F90: 2012 Actual | G90: 2012 Actual | H90: Bridge Year³ | I90: Test Year
A91: Reporting Basis | C91: CGAAP | D91: CGAAP | E91: CGAAP | F91: MIFRS | G91: MIFRS | H91: MIFRS | I91: MIFRS
A92: Engineering Services | C92: 0 | D92: 385.74 | F92: 0 | G92: 0 | H92: 0 | I92: 0
A93: Control Room Services | C93: 24000 | D93: 24300 | E93: 27600 | F93: 27600 | G93: 27600 | H93: 27600 | I93: 27600
A94: Accounting Services | I94: 10800
A95: Total | C95: =SUM(C92:C94) -> 24000 | D95: 24685.74 | E95: 27600 | F95: =SUM(F92:F94) -> 27600 | G95: 27600 | H95: 27600 | I95: 38400
A98: Account 4225 - Late Payment Charges
C99: 2009 Actual | D99: 2010 Actual | E99: 2011 Actual | F99: 2012 Actual | G99: 2012 Actual | H99: Bridge Year³ | I99: Test Year
A100: Reporting Basis | C100: CGAAP | D100: CGAAP | E100: CGAAP | F100: MIFRS | G100: MIFRS | H100: MIFRS | I100: MIFRS
A101: Late Payment Charges | C101: =C12 -> 213312.18 | D101: =D12 -> 234173.36 | E101: 248287.58 | F101: =F12 -> 255787.05 | G101: 255787.05 | H101: 260900 | I101: 266100
A103: Total | C103: =SUM(C101:C102) -> 213312.18 | D103: 234173.36 | E103: 248287.58 | F103: =SUM(F101:F102) -> 255787.05 | G103: 255787.05 | H103: 260900 | I103: 266100
A106: Account 4235 - Specific Service Charges
C107: 2009 Actual | D107: 2010 Actual | E107: 2011 Actual | F107: 2012 Actual | G107: 2012 Actual | H107: Bridge Year³ | I107: Test Year
A108: Reporting Basis | C108: CGAAP | D108: CGAAP | E108: CGAAP | F108: MIFRS | G108: MIFRS | H108: MIFRS | I108: MIFRS
A109: Unsealing Meters Revenue | C109: 15265 | D109: 9045 | E109: 10365 | F109: 9045 | G109: 10365 | H109: 10400 | I109: 27600
A110: Reconnection Charges Revenue | C110: 48695 | D110: 28950 | E110: 46587.5 | F110: 28950 | G110: 46587.5 | H110: 46600 | I110: 63300
A111: Change of Occupancy Charges | C111: 162470 | D111: 152440 | E111: 154990 | F111: 152440 | G111: 154990 | H111: 155000 | I111: 321800
A112: Returned Cheque Charges Revenue | C112: 22505 | D112: 23437.5 | E112: 20190 | F112: 23437.5 | G112: 20190 | H112: 20200 | I112: 20200
A113: Collection of Account Revenue - No Disconnection | C113: 0 | D113: 21390 | E113: 25215 | F113: 21390 | G113: 25215 | H113: 25200 | I113: 25200
A114: Meter Dispute Revenue (if meter found correct) | C114: 0 | D114: 30 | E114: 180 | F114: 30 | G114: 180 | H114: 0
A115: Unauthroized Meter Removal Revenue | C115: 0 | D115: 540 | E115: 50 | F115: 540 | G115: 50 | H115: 0
A116: Credit/Reference Check (plus credit agency costs) | C116: 0 | D116: 0 | E116: 0 | F116: 0 | G116: 0 | H116: 0 | I116: 12800
A117: MicroFIT Generators Service Charges | C117: 336.02 | D117: 4811.65 | E117: 11673.41 | F117: 4811.65 | G117: 11673.41 | H117: 19100 | I117: 27000
A119: Total | C119: =SUM(C109:C118) -> 249271.02 | D119: 240644.15 | E119: 269250.91 | F119: =SUM(F109:F118) -> 240644.15 | G119: 269250.91 | H119: 276500 | I119: 497900
A122: Account 4305 - Regulatory Debits
C123: 2009 Actual | D123: 2010 Actual | E123: 2011 Actual | F123: 2012 Actual | G123: 2012 Actual | H123: Bridge Year³ | I123: Test Year
A124: Reporting Basis | C124: CGAAP | D124: CGAAP | E124: CGAAP | F124: MIFRS | G124: MIFRS | H124: MIFRS | I124: MIFRS
A125: Accounting Charges Under CGAAP | C125: 0 | D125: 0 | E125: =E14 -> 0 | F125: =F14 -> -2265213 | G125: =G14 -> -2265213 | H125: =H14 -> -3676200 | I125: 0
A127: Total | C127: =SUM(C125:C126) -> 0 | D127: 0 | E127: 0 | F127: =SUM(F125:F126) -> -2265213 | G127: -2265213 | H127: -3676200 | I127: 0
A135: Account 4355 - Gain on Disposition of Other Property
C136: 2009 Actual | D136: 2010 Actual | E136: 2011 Actual | F136: 2012 Actual | G136: 2012 Actual | H136: Bridge Year³ | I136: Test Year
A137: Reporting Basis | C137: CGAAP | D137: CGAAP | E137: CGAAP | F137: MIFRS | G137: MIFRS | H137: MIFRS | I137: MIFRS
A138: Proceeds on Disposition of Other Property | C138: 119926.94 | D138: 12385 | E138: 89862.04 | F138: 12385 | G138: 89862.04 | H138: 80000 | I138: 80000
A139: NBV of Assets Disposed | C139: -6682.73 | D139: -9387.37 | E139: -2953.57 | F139: -9387.37 | G139: -2953.57 | H139: -50000 | I139: -50000
A141: Total | C141: =SUM(C138:C140) -> 113244.21 | D141: 2997.63 | E141: 86908.47 | F141: =SUM(F138:F140) -> 2997.63 | G141: 86908.47 | H141: 30000 | I141: 30000
A144: Account 4360 - Loss on Utility & Other Plant
C145: 2009 Actual | D145: 2010 Actual | E145: 2011 Actual | F145: 2012 Actual | G145: 2012 Actual | H145: Bridge Year³ | I145: Test Year
A146: Reporting Basis | C146: CGAAP | D146: CGAAP | E146: CGAAP | F146: MIFRS | G146: MIFRS | H146: MIFRS | I146: MIFRS
A147: Cost on Disposition of Utility Property | C147: 0 | D147: 0 | E147: 0 | F147: -173158 | G147: -173158 | H147: 0 | I147: 0
A148: NBV of Assets Disposed | C148: 0 | D148: 0 | E148: 0 | F148: 0 | G148: 0 | H148: 0 | I148: 0
A150: Total | C150: =SUM(C147:C149) -> 0 | D150: 0 | E150: 0 | F150: =SUM(F147:F149) -> -173158 | G150: -173158 | H150: 0 | I150: 0
A153: Account 4375 - Revenue from Non-Utility Operations
C154: 2009 Actual | D154: 2010 Actual | E154: 2011 Actual | F154: 2012 Actual | G154: 2012 Actual | H154: Bridge Year³ | I154: Test Year
A155: Reporting Basis | C155: CGAAP | D155: CGAAP | E155: CGAAP | F155: MIFRS | G155: MIFRS | H155: MIFRS | I155: MIFRS
A156: OPA Programs | C156: 1511287.28 | D156: 766831.52 | E156: 914430.58 | F156: 766831.52 | G156: 914430.58 | H156: 1084200 | I156: 1112500
A157: Streetlighting Services Revenues | C157: 950852.39 | D157: 1086060.51 | E157: 1049783.06 | F157: 1086060.51 | G157: 1049783.06 | H157: 1195400 | I157: 1219300
A159: Total | C159: =SUM(C156:C158) -> 2462139.67 | D159: 1852892.03 | E159: 1964213.64 | F159: =SUM(F156:F158) -> 1852892.03 | G159: 1964213.64 | H159: 2279600 | I159: 2331800
A162: Account 4380 - Expenses from Non-Utility Operations
C163: 2009 Actual | D163: 2010 Actual | E163: 2011 Actual | F163: 2012 Actual | G163: 2012 Actual | H163: Bridge Year³ | I163: Test Year
A164: Reporting Basis | C164: CGAAP | D164: CGAAP | E164: CGAAP | F164: MIFRS | G164: MIFRS | H164: MIFRS | I164: MIFRS
A165: OPA Programs | C165: -1511287.28 | D165: -766831.52 | E165: -914430.58 | F165: -766831.52 | G165: -914430.58 | H165: -1084200 | I165: -1112500
A166: Streetlighting Services Revenues | C166: -950852.39 | D166: -1086060.51 | E166: -1049783.06 | F166: -1086060.51 | G166: -1049783.06 | H166: -1128900 | I166: -1151500
A168: Total | C168: =SUM(C165:C167) -> -2462139.67 | D168: -1852892.03 | E168: -1964213.64 | F168: =SUM(F165:F167) -> -1852892.03 | G168: -1964213.64 | H168: -2213100 | I168: -2264000
A171: Account 4390 - Miscellaneous Non-Operating Income
C172: 2009 Actual | D172: 2010 Actual | E172: 2011 Actual | F172: 2012 Actual | G172: 2012 Actual | H172: Bridge Year³ | I172: Test Year
A173: Reporting Basis | C173: CGAAP | D173: CGAAP | E173: CGAAP | F173: MIFRS | G173: MIFRS | H173: MIFRS | I173: MIFRS
A174: Scrap Sales | C174: 101726.75 | D174: 147236.99 | E174: 149409.41 | F174: 147236.99 | G174: 149409.41 | H174: 125000 | I174: 125000
A175: Other Miscellaneous Non-Operating Revenue | C175: 14350.89 | D175: 10698.66 | E175: 4232.09 | F175: 10698.66 | G175: 4232.09 | H175: 10000 | I175: 10000
A176: A/P Discounts Taken/Lost | C176: 29276.87 | D176: 24535.25 | E176: 32450.97 | F176: 24535.25 | G176: 32450.97 | H176: 30000 | I176: 30000
A177: Foreign Exchange Gain/Loss | C177: 0 | D177: 0 | E177: 240.48 | F177: 0 | G177: 240.48 | H177: 0
A178: Lease Option Consideration | C178: 7500 | D178: 0 | F178: 0 | G178: 0 | H178: 0
A180: Total | C180: =SUM(C174:C179) -> 152854.51 | D180: 182470.9 | E180: 186332.95 | F180: =SUM(F174:F179) -> 182470.9 | G180: 186332.95 | H180: 165000 | I180: 165000
A181: Account 4398 - Foreign Exchange Gains & Losses
C182: 2009 Actual | D182: 2010 Actual | E182: 2011 Actual | F182: 2012 Actual | G182: 2012 Actual | H182: Bridge Year³ | I182: Test Year
A183: Reporting Basis | C183: CGAAP | D183: CGAAP | E183: CGAAP | F183: MIFRS | G183: MIFRS | H183: MIFRS | I183: MIFRS
A184: Foreign Exchange Gains & Losses on USD Bank Account | C184: 0 | D184: 0 | E184: =E21 -> 0 | F184: 240 | G184: =F184 -> 240 | H184: 0 | I184: 0
A186: Total | C186: =SUM(C184:C185) -> 0 | D186: 0 | E186: 0 | F186: =SUM(F184:F185) -> 240 | G186: 240 | H186: 0 | I186: 0
A189: Notes:
A190: Account 4405 - Interest and Dividend Income
C191: 2009 Actual | D191: 2010 Actual | E191: 2011 Actual | F191: 2012 Actual | G191: 2012 Actual | H191: Bridge Year | I191: Test Year
A192: Reporting Basis | C192: =IF(ISBLANK(C6), "", C6) -> CGAAP | D192: =IF(ISBLANK(D6), "", D6) -> CGAAP | E192: =IF(ISBLANK(E6), "", E6) -> CGAAP | F192: MIFRS | G192: MIFRS | H192: =IF(ISBLANK(H6), "", H6) -> MIFRS | I192: =IF(ISBLANK(I6), "", I6) -> MIFRS
A193: Short-term Investment Interest | C193: 171852.63 | D193: 89351.04 | E193: 117927.28 | F193: 89351.04 | G193: 117927.28
A194: Bank Deposit Interest | C194: 83182.91 | D194: 261934.1 | E194: 185484.84 | F194: 261934.1 | G194: 185484.84 | H194: 201400 | I194: 163900
A195: Prudential Interest Earned | C195: -436.48 | F195: 0 | G195: 0
A196: Interest Revenue on Variance Accounts | C196: 73005.4 | D196: 74701.12 | E196: 135720.71 | F196: 74701.12 | G196: 135720.71
A197: Interest Revenue - PILS returns | C197: 1203.04 | D197: 55.21 | E197: 0 | F197: 55.21 | G197: 0
A198: Miscellaneous Interest Revenue | C198: 459.05 | D198: -354.53 | F198: -354.53 | G198: 0
A200: Total | C200: =SUM(C193:C199) -> 329266.55 | D200: 425686.94 | E200: 439132.83 | F200: =SUM(F193:F199) -> 425686.94 | G200: 439132.83 | H200: 201400 | I200: 163900
A203: Notes:
A204: 1 | B204: List and specify any other interest revenue
A205: 2 | B205: If the applicant is adopting IFRS or an alternate accounting standard as of January 1, 2012 for financial reporting purposes, 2011 must be presented on both a CGAAP and MIFRS (or alternate accounting standard) basis.
A206: 3 | B206: If the applicant is adopting IFRS or an alternate accounting standard as of January 1, 2013 for financial reporting purposes, 2012 must be presented on both a CGAAP and MIFRS (or alternate accounting standard) basis.

Sheet App.2-G_Detailed_OM&A_Expenses
G1: File Number: | H1: ='LDC Info'!$E$18 -> EB-2013-0147
G2: Exhibit:
G3: Tab:
G4: Schedule:
G5: Page:
G7: Date:
A9: Appendix 2-G
A10: Detailed, Account by Account, OM&A Expense Table
A11: (excluding Depreciation and Amortization)
A14: Account | B14: Description | C14: ="Last Rebasing Year (" & 'LDC Info'!E30 & " Actuals)" -> Last Rebasing Year (2010 Actuals) | D14: ='LDC Info'!E26-2 & " Actual" -> 2011 Actual | E14: ='LDC Info'!E26-1 & " Actual" & CHAR(178) -> 2012 Actual² | F14: ='LDC Info'!E26-1 & " Actual"& CHAR(178) -> 2012 Actual² | G14: ="Bridge Year " & 'LDC Info'!E26& CHAR(179) -> Bridge Year 2013³ | H14: ="Test Year " & 'LDC Info'!E28+1 -> Test Year 2014
A15: Reporting Basis | C15: CGAAP | D15: CGAAP | E15: CGAAP | F15: MIFRS | G15: MIFRS | H15: MIFRS
A16: Operations
A17: 5005 | B17: Operation Supervision and Engineering | C17: 526577.07 | D17: 758695.99 | E17: 712472 | F17: 1697768.95 | G17: 2256200 | H17: 2501400
A18: 5010 | B18: Load Dispatching | C18: 614270.25 | D18: 591453.1 | E18: 594790.7 | F18: 649356.65 | G18: 676500 | H18: 697500
A19: 5012 | B19: Station Buildings and Fixtures Expense | G19: 0
A20: 5014 | B20: Transformer Station Equipment - Operation Labour | C20: 281354.13 | D20: 273645.93 | E20: 279711.32 | F20: 279711.32 | G20: 285100 | H20: 294700
A21: 5015 | B21: Transformer Station Equipment - Operation Supplies and Expenses | C21: 553544.33 | D21: 529505.09 | E21: 517625.13 | F21: 575563.91 | G21: 628600 | H21: 647500
A22: 5016 | B22: Distribution Station Equipment - Operation Labour | C22: 5824.82 | D22: 4842.48 | E22: 6127.12 | F22: 6127 | G22: 5500 | H22: 5700
A23: 5017 | B23: Distribution Station Equipment - Operation Supplies and Expenses | C23: 15225.64 | D23: 13525.86 | E23: 15461.94 | F23: 17041.88 | G23: 16700 | H23: 17200
A24: 5020 | B24: Overhead Distribution Lines and Feeders - Operation Labour | C24: 17401.15 | D24: 16070.65 | E24: 29029.71 | F24: 29029.71 | G24: 24000 | H24: 24600
A25: 5025 | B25: Overhead Distribution Lines and Feeders - Operation Supplies and Expenses | C25: 27452.99 | D25: 23869.08 | E25: 95451.49 | F25: 100940.6 | G25: 91400 | H25: 42300
A26: 5030 | B26: Overhead Sub-transmission Feeders - Operation
A27: 5035 | B27: Overhead Distribution Transformers - Operation
A28: 5040 | B28: Underground Distribution Lines and Feeders - Operation Labour | C28: 310008.21 | D28: 340326.88 | E28: 357355.46 | F28: 357355.46 | G28: 400300 | H28: 410400
A29: 5045 | B29: Underground Distribution Lines and Feeders - Operation Supplies and Expenses | C29: 130168.65 | D29: 145477.26 | E29: 80073.6 | F29: 192133.92 | G29: 237000 | H29: 241700
A30: 5050 | B30: Underground Sub-transmission Feeders - Operation
A31: 5055 | B31: Underground Distribution Transformers - Operation
A32: 5060 | B32: Street Lighting and Signal System Expense
A33: 5065 | B33: Meter Expense | C33: 285879.59 | D33: 499602.24 | E33: 880357.54 | F33: 868071 | G33: 687600 | H33: 699700
A34: 5070 | B34: Customer Premises - Operation Labour | C34: 10878.11 | D34: 10677.24 | E34: 5600.64 | F34: 5600.64 | G34: 7400 | H34: 7600
A35: 5075 | B35: Customer Premises - Operation Materials and Expenses | C35: 16850.93 | D35: 13664.14 | E35: 7112.15 | F35: 7956.05 | G35: 11800 | H35: 12400
A36: 5085 | B36: Miscellaneous Distribution Expenses
A37: 5090 | B37: Underground Distribution Lines and Feeders - Rental Paid | C37: 9405.31 | D37: 17920.85 | E37: 15207.59 | F37: 15207.59 | G37: 16400 | H37: 17300
A38: 5095 | B38: Overhead Distribution Lines and Feeders - Rental Paid | C38: 19878.56 | D38: 19348.55 | E38: 19443 | F38: 19443 | G38: 21000 | H38: 22000
A39: 5096 | B39: Other Rent
A40: Total - Operations | C40: =SUM(C17:C39) -> 2824719.74 | D40: =SUM(D17:D39) -> 3258625.34 | E40: =SUM(E17:E39) -> 3615819.39 | F40: =SUM(F17:F39) -> 4821307.68 | G40: 5365500 | H40: =SUM(H17:H39) -> 5642000
A41: Account | B41: Description | C41: =C14 -> Last Rebasing Year (2010 Actuals) | D41: 2011 Actual | E41: 2012 Actual² | F41: 2012 Actual² | G41: Bridge Year 2013³ | H41: Test Year 2014
A42: Maintenance
A43: 5105 | B43: Maintenance Supervision and Engineering
A44: 5110 | B44: Maintenance of Buildings and Fixtures - Distribution Stations | C44: 126048.69 | D44: 149303.4 | E44: 181447.82 | F44: 193574.08 | G44: 201600 | H44: 183000
A45: 5112 | B45: Maintenance of Transformer Station Equipment | C45: 264109.43 | D45: 579330.14 | E45: 629894.72 | F45: 685770.63 | G45: 661800 | H45: 748100
A46: 5114 | B46: Maintenance of Distribution Station Equipment | C46: 23182.49 | D46: 58337.25 | E46: 34909.85 | F46: 38472.97 | G46: 124100 | H46: 79100
A47: 5120 | B47: Maintenance of Poles, Towers and Fixtures | C47: 373990.66 | D47: 443347.15 | E47: 390584.47 | F47: 444489.36 | G47: 294600 | H47: 359600
A48: 5125 | B48: Maintenance of Overhead Conductors and Devices | C48: 697691.8 | D48: 866573.27 | E48: 755273.28 | F48: 893394.65 | G48: 1063000 | H48: 1089500
A49: 5130 | B49: Maintenance of Overhead Services | C49: 1331737.46 | D49: 1384653.32 | E49: 1357821.54 | F49: 1464731.88 | G49: 1561500 | H49: 1681700
A50: 5135 | B50: Overhead Distribution Lines and Feeders - Right of Way
A51: 5145 | B51: Maintenance of Underground Conduit | C51: 336883.73 | D51: 184247.86 | E51: 232669.78 | F51: 250539.6 | G51: 277800 | H51: 302100
A52: 5150 | B52: Maintenance of Underground Conductors and Devices | C52: 250976.47 | D52: 489647.74 | E52: 536264.99 | F52: 587887.79 | G52: 455200 | H52: 473800
A53: 5155 | B53: Maintenance of Underground Services | C53: 231388.34 | D53: 201732.97 | E53: 233018.72 | F53: 245749.06 | G53: 208600 | H53: 217700
A54: 5160 | B54: Maintenance of Line Transformers | C54: 363339.72 | D54: 471370.05 | E54: 293000.52 | F54: 339664.85 | G54: 411700 | H54: 484200
A55: 5165 | B55: Maintenance of Street Lighting and Signal Systems
A56: 5170 | B56: Sentinel Lights - Labour
A57: 5172 | B57: Sentinel Lights - Materials and Expenses
A58: 5175 | B58: Maintenance of Meters | C58: 70261.94 | D58: 27675.4 | E58: 82456 | F58: 82478.38 | G58: 600 | H58: 600
A59: 5178 | B59: Customer Installations Expenses - Leased Property
A60: 5195 | B60: Maintenance of Other Installations on Customer Premises
A61: Total - Maintenance | C61: =SUM(C43:C60) -> 4069610.73 | D61: =SUM(D43:D60) -> 4856218.55 | E61: =SUM(E43:E60) -> 4727341.69 | F61: =SUM(F43:F60) -> 5226753.25 | G61: 5260500 | H61: =SUM(H43:H60) -> 5619400
A62: Account | B62: Description | C62: =C41 -> Last Rebasing Year (2010 Actuals) | D62: =D41 -> 2011 Actual | E62: =E41 -> 2012 Actual² | F62: =F41 -> 2012 Actual² | G62: Bridge Year 2013³ | H62: =H41 -> Test Year 2014
A63: Billing and Collecting
A64: 5305 | B64: Supervision | C64: 198624.4 | D64: 237871 | E64: 234874.53 | F64: 242320.46 | G64: 256000 | H64: 278700
A65: 5310 | B65: Meter Reading Expense | C65: 474327.83 | D65: 437507 | E65: 793060.4663 | F65: 800933.34 | G65: 529600 | H65: 512400
A66: 5315 | B66: Customer Billing | C66: 1324912.79 | D66: 1338095 | E66: 1458648.02 | F66: 1414088.41 | G66: 1620800 | H66: 1857200
A67: 5320 | B67: Collecting | C67: 722737.82 | D67: 772098.13 | E67: 899625.7941 | F67: 909892.66 | G67: 1063800 | H67: 1138500
A68: 5325 | B68: Collecting - Cash Over and Short | C68: 109.26 | D68: 102.91
A69: 5330 | B69: Collection Charges | C69: 25764.38 | D69: 28530.88
A70: 5335 | B70: Bad Debt Expense | C70: -46362.93 | D70: 103015.38 | E70: 146917 | F70: 146917 | G70: 147000 | H70: 147000
A71: 5340 | B71: Miscellaneous Customer Accounts Expenses | D71: 2682
A72: Total - Billing and Collecting | C72: =SUM(C64:C71) -> 2700113.55 | D72: =SUM(D64:D71) -> 2919902.3 | E72: =SUM(E64:E71) -> 3533125.81 | F72: =SUM(F64:F71) -> 3514151.87 | G72: 3617200 | H72: =SUM(H64:H71) -> 3933800
A73: Account | B73: Description | C73: =C62 -> Last Rebasing Year (2010 Actuals) | D73: =D62 -> 2011 Actual | E73: =E62 -> 2012 Actual² | F73: =F62 -> 2012 Actual² | G73: Bridge Year 2013³ | H73: =H62 -> Test Year 2014
A74: Community Relations
A75: 5405 | B75: Supervision
A76: 5410 | B76: Community Relations - Sundry | C76: 83208.29 | D76: 128452.71 | E76: 94498.84 | F76: 94498.84 | G76: 103500 | H76: 103500
A77: 5415 | B77: Energy Conservation | C77: 61633.61 | D77: 2895.77
A78: 5420 | B78: Community Safety Program | C78: 67342.6 | D78: 66874.07 | E78: 70281.16 | F78: 70409.94 | G78: 85700 | H78: 87800
A79: 5425 | B79: Miscellaneous Customer Service and Informational Expenses
A80: 5505 | B80: Supervision
A81: 5510 | B81: Demonstrating and Selling Expense
A82: 5515 | B82: Advertising Expenses
A83: 5520 | B83: Miscellaneous Sales Expense
A84: Total - Community Relations | C84: =SUM(C75:C83) -> 212184.5 | D84: =SUM(D75:D83) -> 198222.55 | E84: =SUM(E75:E83) -> 164780 | F84: =SUM(F75:F83) -> 164908.78 | G84: 189200 | H84: =SUM(H75:H83) -> 191300
A85: Account | B85: Description | C85: =C73 -> Last Rebasing Year (2010 Actuals) | D85: =D73 -> 2011 Actual | E85: =E73 -> 2012 Actual² | F85: =F73 -> 2012 Actual² | G85: Bridge Year 2013³ | H85: =H73 -> Test Year 2014
A86: Administrative and General Expenses
A87: 5605 | B87: Executive Salaries and Expenses | C87: 47824.96 | D87: 58585.97 | E87: 43940 | F87: 43940 | G87: 46900 | H87: 37800
A88: 5610 | B88: Management Salaries and Expenses | C88: 813653.79 | D88: 846795.92 | E88: 926561 | F88: 875406.74 | G88: 846200 | H88: 895500
A89: 5615 | B89: General Administrative Salaries and Expenses | C89: 239719.9 | D89: 263518.1 | E89: 281615 | F89: 218866.94 | G89: 243400 | H89: 254900
A90: 5620 | B90: Office Supplies and Expenses | C90: 142646.63 | D90: 143528.44 | E90: 157023 | F90: 163154.84 | G90: 177000 | H90: 180800
A91: 5625 | B91: Administrative Expense Transferred - Credit | C91: -189237.13 | D91: -189293.62 | E91: -189059.91 | F91: -189059.91 | G91: -179400 | H91: -184400
A92: 5630 | B92: Outside Services Employed | C92: 161522.54 | D92: 250057.62 | E92: 172152.45 | F92: 172152.45 | G92: 228200 | H92: 237700
A93: 5635 | B93: Property Insurance | C93: 207712.08 | D93: 252666 | E93: 252666 | F93: 252666 | G93: 279100 | H93: 287500
A94: 5640 | B94: Injuries and Damages | C94: 120902.06 | D94: 178277.49 | E94: 135778 | F94: 135778 | G94: 229700 | H94: 236600
A95: 5645 | B95: OMERS Pensions and Benefits | C95: 242947.04 | D95: 327706.99 | E95: 2516 | F95: 7938 | G95: 5600 | H95: 4500
A96: 5646 | B96: Employee Pensions and OPEB
A97: 5647 | B97: Employee Sick Leave
A98: 5650 | B98: Franchise Requirements
A99: 5655 | B99: Regulatory Expenses | C99: 492356.57 | D99: 481306.87 | E99: 552316 | F99: 556472.1 | G99: 640200 | H99: 697900
A100: 5660 | B100: General Advertising Expenses
A101: 5665 | B101: Miscellaneous General Expenses | C101: 36937.21 | D101: 43471.54 | E101: 59845 | F101: 79367.81 | G101: 97100 | H101: 101300
A102: 5670 | B102: Rent
A103: 5672 | B103: Lease Payment Charge
A104: 5675 | B104: Maintenance of General Plant | C104: 272391.39 | D104: 307551.48 | E104: 280626 | F104: 272549.9 | G104: 299100 | H104: 298600
A105: 5680 | B105: Electrical Safety Authority Fees | C105: 36914.36 | D105: 36813.43 | E105: 38643 | F105: 38643 | G105: 40600 | H105: 42600
A106: 5681 | B106: Special Purpose Charge Expense
A107: 5685 | B107: Independent Electricity System Operator Fees and Penalties
A108: 5695 | B108: OM&A Contra Account | C108: -161962.64 | D108: -556950.04 | E108: 41257 | F108: 41257
A109: 6205 | B109: Donations | C109: 73752 | D109: 26370 | E109: 36152 | F109: 36152 | G109: 42525 | H109: 44000
A110: 6205 | B110: Donations, Sub-account LEAP Funding | C110: 0 | D110: 47475 | E110: 47475 | F110: 47475 | G110: 47475 | H110: 46000
A111: Total - Administrative and General Expenses | C111: =SUM(C87:C110) -> 2538080.76 | D111: =SUM(D87:D110) -> 2517881.19 | E111: 2839505.54 | F111: 2752759.87 | G111: 3043700 | H111: 3181300
A112: Total OM&A | C112: =C40+C61+C72+C84+C111 -> 12344709.28 | D112: =D40+D61+D72+D84+D111 -> 13750849.93 | E112: =E40+E61+E72+E84+E111 -> 14880572.43 | F112: =F40+F61+F72+F84+F111 -> 16479881.45 | G112: 17476100 | H112: =H40+H61+H72+H84+H111 -> 18567800
A113: Adjustments for non-recoverable items
A114: 5681 | B114: Special Purpose Charge Expense
A115: 6205 | B115: Donations1 | C115: 73752 | D115: 26370 | E115: 36152 | F115: 36152 | G115: 42525 | H115: 44000
A119: Total Recoverable OM&A | C119: =C112-SUM(C114:C118) -> 12270957.28 | D119: =D112-SUM(D114:D118) -> 13724479.93 | E119: 14844420.43 | F119: =F112-SUM(F114:F118) -> 16443729.45 | G119: 17433575 | H119: 18523800
A121: 1 Account 6205 - Donations is generally non-recoverable. However, the sub-account LEAP funding of account 6205 is generally recoverable.
A123: Note:
A124: 1 | B124: If it has been more than three years since the applicant last filed a cost of service application, additional years of historical actuals should be incorporated into the table, as necessary, to go back to the last cost of service application. If the applicant last filed a cost of service application less than three years ago, a minimum of three years of actual information is required.
A125: 2 | B125: If the applicant is adopting IFRS or an alternate accounting standard as of January 1, 2012 for financial reporting purposes, 2011 must be presented on both a CGAAP and MIFRS (or alternate accounting standard) basis.
A126: 3 | B126: If the applicant is adopting IFRS or an alternate accounting standard as of January 1, 2013 for financial reporting purposes, 2012 must be presented on both a CGAAP and MIFRS (or alternate accounting standard) basis.

Sheet App.2-H_OM&A_Detailed_Analysis
K1: File Number: | L1: ='LDC Info'!$E$18 -> EB-2013-0147
K2: Exhibit:
K3: Tab:
K4: Schedule:
K5: Page:
K7: Date:
A9: Appendix 2-H
A10: OM&A Detailed Variance Analysis
A11: (excluding Depreciation and Amortization)
A14: Account | B14: Description | C14: ="Last Board-approved Rebasing Year ("&'LDC Info'!E30&" Year)" -> Last Board-approved Rebasing Year (2010 Year) | D14: Most Current Actuals Year 2012 | E14: Most Current Actuals Year 2012 | F14: ="Test Year " & 'LDC Info'!E28+1 -> Test Year 2014 | G14: Test Year Versus Last Rebasing | I14: Test Year Versus Most Current Actuals (MIFRS) | K14: Test Year Versus Most Current Actuals (CGAAP)
G15: Variance ($) | H15: Percentage Change (%) | I15: Variance ($) | J15: Percentage Change (%) | K15: Variance ($) | L15: Percentage Change (%)
A16: Reporting Basis | C16: CGAAP | D16: CGAAP | E16: MIFRS | F16: MIFRS
A17: Operations
A18: 5005 | B18: Operation Supervision and Engineering | C18: 526577.07 | D18: 712472 | E18: 1697768.95 | F18: 2501400 | G18: 1974822.93 | H18: 3.750301793 | I18: 803631.05 | J18: 0.4733453572 | K18: 1788928 | L18: 2.510874813
A19: 5010 | B19: Load Dispatching | C19: 614270.25 | D19: 594790.7 | E19: 649356.65 | F19: 697500 | G19: 83229.75 | H19: 0.1354937017 | I19: 48143.35 | J19: 0.07414007387 | K19: 102709.3 | L19: 0.1726814155
A20: 5012 | B20: Station Buildings and Fixtures Expense | C20: 0 | D20: 0 | E20: 0 | F20: 0 | G20: 0 | I20: 0 | K20: 0
A21: 5014 | B21: Transformer Station Equipment - Operation Labour | C21: 281354.13 | D21: 279711.32 | E21: 279711.32 | F21: 294700 | G21: 13345.87 | H21: 0.0474344201 | I21: 14988.68 | J21: 0.05358624742 | K21: 14988.68 | L21: 0.05358624742
A22: 5015 | B22: Transformer Station Equipment - Operation Supplies and Expenses | C22: 553544.33 | D22: 517625.13 | E22: 575563.91 | F22: 647500 | G22: 93955.67 | H22: 0.1697346805 | I22: 71936.09 | J22: 0.1249836704 | K22: 129874.87 | L22: 0.2509052642
A23: 5016 | B23: Distribution Station Equipment - Operation Labour | C23: 5824.82 | D23: 6127.12 | E23: 6127 | F23: 5700 | G23: -124.82 | H23: -0.02142898836 | I23: -427 | J23: -0.0696915293 | K23: -427.12 | L23: -0.06970974944
A24: 5017 | B24: Distribution Station Equipment - Operation Supplies and Expenses | C24: 15225.64 | D24: 15461.94 | E24: 17041.88 | F24: 17200 | G24: 1974.36 | H24: 0.1296733668 | I24: 158.12 | J24: 0.009278319059 | K24: 1738.06 | L24: 0.1124089215
A25: 5020 | B25: Overhead Distribution Lines and Feeders - Operation Labour | C25: 17401.15 | D25: 29029.71 | E25: 29029.71 | F25: 24600 | G25: 7198.85 | H25: 0.4136996693 | I25: -4429.71 | J25: -0.1525922925 | K25: -4429.71 | L25: -0.1525922925
A26: 5025 | B26: Overhead Distribution Lines and Feeders - Operation Supplies and Expenses | C26: 27452.99 | D26: 95451.49 | E26: 100940.6 | F26: 42300 | G26: 14847.01 | H26: 0.5408157727 | I26: -58640.6 | J26: -0.5809416627 | K26: -53151.49 | L26: -0.5568429576
A27: 5030 | B27: Overhead Sub-transmission Feeders - Operation | C27: 0 | D27: 0 | E27: 0 | F27: 0 | G27: 0 | I27: 0 | K27: 0
A28: 5035 | B28: Overhead Distribution Transformers - Operation | C28: 0 | D28: 0 | E28: 0 | F28: 0 | G28: 0 | I28: 0 | K28: 0
A29: 5040 | B29: Underground Distribution Lines and Feeders - Operation Labour | C29: 310008.21 | D29: 357355.46 | E29: 357355.46 | F29: 410400 | G29: 100391.79 | H29: 0.3238359074 | I29: 53044.54 | J29: 0.1484363496 | K29: 53044.54 | L29: 0.1484363496
A30: 5045 | B30: Underground Distribution Lines and Feeders - Operation Supplies and Expenses | C30: 130168.65 | D30: 80073.6 | E30: 192133.92 | F30: 241700 | G30: 111531.35 | H30: 0.8568218999 | I30: 49566.08 | J30: 0.2579767279 | K30: 161626.4 | L30: 2.018473005
A31: 5050 | B31: Underground Sub-transmission Feeders - Operation | C31: 0 | D31: 0 | E31: 0 | F31: 0 | G31: 0 | I31: 0 | K31: 0
A32: 5055 | B32: Underground Distribution Transformers - Operation | C32: 0 | D32: 0 | E32: 0 | F32: 0 | G32: 0 | I32: 0 | K32: 0
A33: 5060 | B33: Street Lighting and Signal System Expense | C33: 0 | D33: 0 | E33: 0 | F33: 0 | G33: 0 | I33: 0 | K33: 0
A34: 5065 | B34: Meter Expense | C34: 285879.59 | D34: 880357.54 | E34: 868071 | F34: 699700 | G34: 413820.41 | H34: 1.447533943 | I34: -168371 | J34: -0.1939599411 | K34: -180657.54 | L34: -0.2052092835
A35: 5070 | B35: Customer Premises - Operation Labour | C35: 10878.11 | D35: 5600.64 | E35: 5600.64 | F35: 7600 | G35: -3278.11 | H35: -0.3013492233 | I35: 1999.36 | J35: 0.3569877728 | K35: 1999.36 | L35: 0.3569877728
A36: 5075 | B36: Customer Premises - Operation Materials and Expenses | C36: 16850.93 | D36: 7112.15 | E36: 7956.05 | F36: 12400 | G36: -4450.93 | H36: -0.26413557 | I36: 4443.95 | J36: 0.5585623519 | K36: 5287.85 | L36: 0.7434952862
A37: 5085 | B37: Miscellaneous Distribution Expenses | C37: 0 | D37: 0 | E37: 0 | F37: 0 | G37: 0 | I37: 0 | K37: 0
A38: 5090 | B38: Underground Distribution Lines and Feeders - Rental Paid | C38: 9405.31 | D38: 15207.59 | E38: 15207.59 | F38: 17300 | G38: 7894.69 | H38: 0.8393864742 | I38: 2092.41 | J38: 0.1375898482 | K38: 2092.41 | L38: 0.1375898482
A39: 5095 | B39: Overhead Distribution Lines and Feeders - Rental Paid | C39: 19878.56 | D39: 19443 | E39: 19443 | F39: 22000 | G39: 2121.44 | H39: 0.1067200039 | I39: 2557 | J39: 0.1315126267 | K39: 2557 | L39: 0.1315126267
A40: 5096 | B40: Other Rent | C40: 0 | D40: 0 | E40: 0 | F40: 0 | G40: 0 | I40: 0 | K40: 0
A41: Total - Operations | C41: =SUM(C18:C40) -> 2824719.74 | D41: =SUM(D18:D40) -> 3615819.39 | E41: =SUM(E18:E40) -> 4821307.68 | F41: =SUM(F18:F40) -> 5642000 | G41: =F41-C41 -> 2817280.26 | H41: =IF(C41=0,"",(F41/C41)-1) -> 0.9973662945 | I41: =H41-E41 -> -4821306.683 | J41: =IF(E41=0,"",(H41/E41)-1) -> -0.9999997931 | K41: =F41-D41 -> 2026180.61 | L41: =IF(D41=0,"",(F41/D41)-1) -> 0.5603655469
A42: Account | B42: Description
A43: Maintenance
A44: 5105 | B44: Maintenance Supervision and Engineering | C44: 0 | D44: 0 | E44: 0 | F44: 0 | G44: 0 | I44: 0 | K44: 0
A45: 5110 | B45: Maintenance of Buildings and Fixtures - Distribution Stations | C45: 126048.69 | D45: 181447.82 | E45: 193574.08 | F45: 183000 | G45: 56951.31 | H45: 0.4518199277 | I45: -10574.08 | J45: -0.05462549531 | K45: 1552.18 | L45: 0.008554415258
A46: 5112 | B46: Maintenance of Transformer Station Equipment | C46: 264109.43 | D46: 629894.72 | E46: 685770.63 | F46: 748100 | G46: 483990.57 | H46: 1.832538013 | I46: 62329.37 | J46: 0.09088952964 | K46: 118205.28 | L46: 0.1876587884
A47: 5114 | B47: Maintenance of Distribution Station Equipment | C47: 23182.49 | D47: 34909.85 | E47: 38472.97 | F47: 79100 | G47: 55917.51 | H47: 2.41205798 | I47: 40627.03 | J47: 1.055988919 | K47: 44190.15 | L47: 1.265836147
A48: 5120 | B48: Maintenance of Poles, Towers and Fixtures | C48: 373990.66 | D48: 390584.47 | E48: 444489.36 | F48: 359600 | G48: -14390.66 | H48: -0.03847866147 | I48: -84889.36 | J48: -0.1909817594 | K48: -30984.47 | L48: -0.07932847407
A49: 5125 | B49: Maintenance of Overhead Conductors and Devices | C49: 697691.8 | D49: 755273.28 | E49: 893394.65 | F49: 1089500 | G49: 391808.2 | H49: 0.5615777626 | I49: 196105.35 | J49: 0.2195058477 | K49: 334226.72 | L49: 0.4425242212
A50: 5130 | B50: Maintenance of Overhead Services | C50: 1331737.46 | D50: 1357821.54 | E50: 1464731.88 | F50: 1681700 | G50: 349962.54 | H50: 0.2627864354 | I50: 216968.12 | J50: 0.1481282158 | K50: 323878.46 | L50: 0.2385280027
A51: 5135 | B51: Overhead Distribution Lines and Feeders - Right of Way | C51: 0 | D51: 0 | E51: 0 | F51: 0 | G51: 0 | I51: 0 | K51: 0
A52: 5145 | B52: Maintenance of Underground Conduit | C52: 336883.73 | D52: 232669.78 | E52: 250539.6 | F52: 302100 | G52: -34783.73 | H52: -0.1032514393 | I52: 51560.4 | J52: 0.2057974069 | K52: 69430.22 | L52: 0.2984066947
A53: 5150 | B53: Maintenance of Underground Conductors and Devices | C53: 250976.47 | D53: 536264.99 | E53: 587887.79 | F53: 473800 | G53: 222823.53 | H53: 0.8878263767 | I53: -114087.79 | J53: -0.1940638876 | K53: -62464.99 | L53: -0.1164815738
A54: 5155 | B54: Maintenance of Underground Services | C54: 231388.34 | D54: 233018.72 | E54: 245749.06 | F54: 217700 | G54: -13688.34 | H54: -0.05915743205 | I54: -28049.06 | J54: -0.1141369981 | K54: -15318.72 | L54: -0.0657402976
A55: 5160 | B55: Maintenance of Line Transformers | C55: 363339.72 | D55: 293000.52 | E55: 339664.85 | F55: 484200 | G55: 120860.28 | H55: 0.3326371254 | I55: 144535.15 | J55: 0.4255228352 | K55: 191199.48 | L55: 0.6525567941
A56: 5165 | B56: Maintenance of Street Lighting and Signal Systems | C56: 0 | D56: 0 | E56: 0 | F56: 0 | G56: 0 | I56: 0 | K56: 0
A57: 5170 | B57: Sentinel Lights - Labour | C57: 0 | D57: 0 | E57: 0 | F57: 0 | G57: 0 | I57: 0 | K57: 0
A58: 5172 | B58: Sentinel Lights - Materials and Expenses | C58: 0 | D58: 0 | E58: 0 | F58: 0 | G58: 0 | I58: 0 | K58: 0
A59: 5175 | B59: Maintenance of Meters | C59: 70261.94 | D59: 82456 | E59: 82478.38 | F59: 600 | G59: -69661.94 | H59: -0.9914605261 | I59: -81878.38 | J59: -0.9927253663 | K59: -81856 | L59: -0.9927233919
A60: 5178 | B60: Customer Installations Expenses - Leased Property | C60: 0 | D60: 0 | E60: 0 | F60: 0 | G60: 0 | I60: 0 | K60: 0
A61: 5195 | B61: Maintenance of Other Installations on Customer Premises | C61: =+'App.2-G_Detailed_OM&A_Expenses'!C60 -> 0 | D61: =+'App.2-G_Detailed_OM&A_Expenses'!E60 -> 0 | E61: =+'App.2-G_Detailed_OM&A_Expenses'!F60 -> 0 | F61: =+'App.2-G_Detailed_OM&A_Expenses'!H60 -> 0 | G61: =F61-C61 -> 0 | H61: =IF(C61=0,"",(F61/C61)-1) ->  | I61: =+F61-E61 -> 0 | J61: =IF(E61=0,"",(F61/E61)-1) ->  | K61: =F61-D61 -> 0 | L61: =IF(D61=0,"",(F61/D61)-1) -> 
A62: Total - Maintenance | C62: =SUM(C44:C61) -> 4069610.73 | D62: =SUM(D44:D61) -> 4727341.69 | E62: =SUM(E44:E61) -> 5226753.25 | F62: =SUM(F44:F61) -> 5619400 | G62: 1549789.27 | H62: 0.3808200275 | I62: =H62-E62 -> -5226752.869 | J62: =IF(E62=0,"",(H62/E62)-1) -> -0.9999999271 | K62: 892058.31 | L62: 0.1887018897
A63: Account | B63: Description
A64: Billing and Collecting
A65: 5305 | B65: Supervision | C65: 198624.4 | D65: 234874.53 | E65: 242320.46 | F65: 278700 | G65: 80075.6 | H65: 0.4031508717 | I65: 36379.54 | J65: 0.1501298735 | K65: 43825.47 | L65: 0.1865909854
A66: 5310 | B66: Meter Reading Expense | C66: 474327.83 | D66: 793060.4663 | E66: 800933.34 | F66: 512400 | G66: 38072.17 | H66: 0.08026552016 | I66: -288533.34 | J66: -0.3602463845 | K66: -280660.4663 | L66: -0.3538954194
A67: 5315 | B67: Customer Billing | C67: 1324912.79 | D67: 1458648.02 | E67: 1414088.41 | F67: 1857200 | G67: 532287.21 | H67: 0.4017526391 | I67: 443111.59 | J67: 0.3133549408 | K67: 398551.98 | L67: 0.2732338265
A68: 5320 | B68: Collecting | C68: 722737.82 | D68: 899625.7941 | E68: 909892.66 | F68: 1138500 | G68: 415762.18 | H68: 0.57526003 | I68: 228607.34 | J68: 0.2512464932 | K68: 238874.2059 | L68: 0.2655261859
A69: 5325 | B69: Collecting - Cash Over and Short | C69: 109.26 | D69: 0 | E69: 0 | F69: 0 | G69: -109.26 | H69: -1 | I69: 0 | K69: 0
A70: 5330 | B70: Collection Charges | C70: 25764.38 | D70: 0 | E70: 0 | F70: 0 | G70: -25764.38 | H70: -1 | I70: 0 | K70: 0
A71: 5335 | B71: Bad Debt Expense | C71: -46362.93 | D71: 146917 | E71: 146917 | F71: 147000 | G71: 193362.93 | H71: -4.170636541 | I71: 83 | J71: 0.0005649448328 | K71: 83 | L71: 0.0005649448328
A72: 5340 | B72: Miscellaneous Customer Accounts Expenses | C72: 0 | D72: 0 | E72: 0 | F72: 0 | G72: 0 | I72: 0 | K72: 0
A73: Total - Billing and Collecting | C73: =SUM(C65:C72) -> 2700113.55 | D73: =SUM(D65:D72) -> 3533125.81 | E73: =SUM(E65:E72) -> 3514151.87 | F73: =SUM(F65:F72) -> 3933800 | G73: =F73-C73 -> 1233686.45 | H73: =IF(C73=0,"",(F73/C73)-1) -> 0.4569016922 | I73: =H73-E73 -> -3514151.413 | J73: =IF(E73=0,"",(H73/E73)-1) -> -0.99999987 | K73: =F73-D73 -> 400674.1895 | L73: =IF(D73=0,"",(F73/D73)-1) -> 0.1134050161
A74: Account | B74: Description
A75: Community Relations
A76: 5405 | B76: Supervision | C76: 0 | D76: 0 | E76: 0 | F76: 0 | G76: 0 | I76: 0 | K76: 0
A77: 5410 | B77: Community Relations - Sundry | C77: 83208.29 | D77: 94498.84 | E77: 94498.84 | F77: 103500 | G77: 20291.71 | H77: 0.2438664465 | I77: 9001.16 | J77: 0.0952515396 | K77: 9001.16 | L77: 0.0952515396
A78: 5415 | B78: Energy Conservation | C78: 61633.61 | D78: 0 | E78: 0 | F78: 0 | G78: -61633.61 | H78: -1 | I78: 0 | K78: 0
A79: 5420 | B79: Community Safety Program | C79: 67342.6 | D79: 70281.16 | E79: 70409.94 | F79: 87800 | G79: 20457.4 | H79: 0.3037809648 | I79: 17390.06 | J79: 0.2469830254 | K79: 17518.84 | L79: 0.2492679404
A80: 5425 | B80: Miscellaneous Customer Service and Informational Expenses | C80: 0 | D80: 0 | E80: 0 | F80: 0 | G80: 0 | I80: 0 | K80: 0
A81: 5505 | B81: Supervision | C81: 0 | D81: 0 | E81: 0 | F81: 0 | G81: 0 | I81: 0 | K81: 0
A82: 5510 | B82: Demonstrating and Selling Expense | C82: 0 | D82: 0 | E82: 0 | F82: 0 | G82: 0 | I82: 0 | K82: 0
A83: 5515 | B83: Advertising Expenses | C83: 0 | D83: 0 | E83: 0 | F83: 0 | G83: 0 | I83: 0 | K83: 0
A84: 5520 | B84: Miscellaneous Sales Expense | C84: =+'App.2-G_Detailed_OM&A_Expenses'!C83 -> 0 | D84: =+'App.2-G_Detailed_OM&A_Expenses'!E83 -> 0 | E84: =+'App.2-G_Detailed_OM&A_Expenses'!F83 -> 0 | F84: =+'App.2-G_Detailed_OM&A_Expenses'!H83 -> 0 | G84: =F84-C84 -> 0 | H84: =IF(C84=0,"",(F84/C84)-1) ->  | I84: =+F84-E84 -> 0 | J84: =IF(E84=0,"",(F84/E84)-1) ->  | K84: =F84-D84 -> 0 | L84: =IF(D84=0,"",(F84/D84)-1) -> 
A85: Total - Community Relations | C85: =SUM(C76:C84) -> 212184.5 | D85: =SUM(D76:D84) -> 164780 | E85: =SUM(E76:E84) -> 164908.78 | F85: =SUM(F76:F84) -> 191300 | G85: -20884.5 | H85: -0.09842613386 | I85: =H85-E85 -> -164908.8784 | J85: =IF(E85=0,"",(H85/E85)-1) -> -1.000000597 | K85: 26520 | L85: 0.1609418619
A86: Account | B86: Description
A87: Administrative and General Expenses
A88: 5605 | B88: Executive Salaries and Expenses | C88: 47824.96 | D88: 43940 | E88: 43940 | F88: 37800 | G88: -10024.96 | H88: -0.2096177394 | I88: -6140 | J88: -0.1397360036 | K88: -6140 | L88: -0.1397360036
A89: 5610 | B89: Management Salaries and Expenses | C89: 813653.79 | D89: 926561 | E89: 875406.74 | F89: 895500 | G89: 81846.21 | H89: 0.1005909528 | I89: 20093.26 | J89: 0.02295305608 | K89: -31061 | L89: -0.03352288732
A90: 5615 | B90: General Administrative Salaries and Expenses | C90: 239719.9 | D90: 281615 | E90: 218866.94 | F90: 254900 | G90: 15180.1 | H90: 0.06332432143 | I90: 36033.06 | J90: 0.1646345492 | K90: -26715 | L90: -0.09486355485
A91: 5620 | B91: Office Supplies and Expenses | C91: 142646.63 | D91: 157023 | E91: 163154.84 | F91: 180800 | G91: 38153.37 | H91: 0.2674677278 | I91: 17645.16 | J91: 0.1081497797 | K91: 23777 | L91: 0.1514236768
A92: 5625 | B92: Administrative Expense Transferred - Credit | C92: -189237.13 | D92: -189059.91 | E92: -189059.91 | F92: -184400 | G92: 4837.13 | H92: -0.0255612099 | I92: 4659.91 | J92: -0.02464779551 | K92: 4659.91 | L92: -0.02464779551
A93: 5630 | B93: Outside Services Employed | C93: 161522.54 | D93: 172152.45 | E93: 172152.45 | F93: 237700 | G93: 76177.46 | H93: 0.4716212363 | I93: 65547.55 | J93: 0.3807529315 | K93: 65547.55 | L93: 0.3807529315
A94: 5635 | B94: Property Insurance | C94: 207712.08 | D94: 252666 | E94: 252666 | F94: 287500 | G94: 79787.92 | H94: 0.3841274903 | I94: 34834 | J94: 0.1378657991 | K94: 34834 | L94: 0.1378657991
A95: 5640 | B95: Injuries and Damages | C95: 120902.06 | D95: 135778 | E95: 135778 | F95: 236600 | G95: 115697.94 | H95: 0.956955903 | I95: 100822 | J95: 0.7425503395 | K95: 100822 | L95: 0.7425503395
A96: 5645 | B96: OMERS Pensions and Benefits | C96: 242947.04 | D96: 2516 | E96: 7938 | F96: 4500 | G96: -238447.04 | H96: -0.9814774446 | I96: -3438 | J96: -0.433106576 | K96: 1984 | L96: 0.7885532591
A97: 5646 | B97: Employee Pensions and OPEB | C97: 0 | D97: 0 | E97: 0 | F97: 0 | G97: 0 | I97: 0 | K97: 0
A98: 5647 | B98: Employee Sick Leave | C98: 0 | D98: 0 | E98: 0 | F98: 0 | G98: 0 | I98: 0 | K98: 0
A99: 5650 | B99: Franchise Requirements | C99: 0 | D99: 0 | E99: 0 | F99: 0 | G99: 0 | I99: 0 | K99: 0
A100: 5655 | B100: Regulatory Expenses | C100: 492356.57 | D100: 552316 | E100: 556472.1 | F100: 697900 | G100: 205543.43 | H100: 0.4174686447 | I100: 141427.9 | J100: 0.2541509269 | K100: 145584 | L100: 0.2635882357
A101: 5660 | B101: General Advertising Expenses | C101: 0 | D101: 0 | E101: 0 | F101: 0 | G101: 0 | I101: 0 | K101: 0
A102: 5665 | B102: Miscellaneous General Expenses | C102: 36937.21 | D102: 59845 | E102: 79367.81 | F102: 101300 | G102: 64362.79 | H102: 1.742491921 | I102: 21932.19 | J102: 0.2763360864 | K102: 41455 | L102: 0.6927061576
A103: 5670 | B103: Rent | C103: 0 | D103: 0 | E103: 0 | F103: 0 | G103: 0 | I103: 0 | K103: 0
A104: 5672 | B104: Lease Payment Charge | C104: 0 | D104: 0 | E104: 0 | F104: 0 | G104: 0 | I104: 0 | K104: 0
A105: 5675 | B105: Maintenance of General Plant | C105: 272391.39 | D105: 280626 | E105: 272549.9 | F105: 298600 | G105: 26208.61 | H105: 0.09621673431 | I105: 26050.1 | J105: 0.09557919486 | K105: 17974 | L105: 0.0640496604
A106: 5680 | B106: Electrical Safety Authority Fees | C106: 36914.36 | D106: 38643 | E106: 38643 | F106: 42600 | G106: 5685.64 | H106: 0.1540224455 | I106: 3957 | J106: 0.1023988821 | K106: 3957 | L106: 0.1023988821
A107: 5681 | B107: Special Purpose Charge Expense | C107: 0 | D107: 0 | E107: 0 | F107: 0 | G107: 0 | I107: 0 | K107: 0
A108: 5685 | B108: Independent Electricity System Operator Fees and Penalties | C108: 0 | D108: 0 | E108: 0 | F108: 0 | G108: 0 | I108: 0 | K108: 0
A109: 5695 | B109: OM&A Contra Account | C109: -161962.64 | D109: 41257 | E109: 41257 | F109: 0 | G109: 161962.64 | H109: -1 | I109: -41257 | J109: -1 | K109: -41257 | L109: -1
A110: 6205 | B110: Donations | C110: 73752 | D110: 36152 | E110: 36152 | F110: 44000 | G110: -29752 | H110: -0.4034060093 | I110: 7848 | J110: 0.2170834255 | K110: 7848 | L110: 0.2170834255
A111: 6205 | B111: Donations, Sub-account LEAP Funding | C111: 0 | D111: 47475 | E111: 47475 | F111: 46000 | G111: 46000 | I111: -1475 | J111: -0.03106898368 | K111: -1475 | L111: -0.03106898368
A112: Total - Administrative and General Expenses | C112: =SUM(C88:C111) -> 2538080.76 | D112: =SUM(D88:D111) -> 2839505.54 | E112: =SUM(E88:E111) -> 2752759.87 | F112: =SUM(F88:F111) -> 3181300 | G112: =F112-C112 -> 643219.24 | H112: =IF(C112=0,"",(F112/C112)-1) -> 0.2534274126 | I112: =H112-E112 -> -2752759.617 | J112: =IF(E112=0,"",(H112/E112)-1) -> -0.9999999079 | K112: =F112-D112 -> 341794.46 | L112: =IF(D112=0,"",(F112/D112)-1) -> 0.1203711193
A113: Total OM&A | C113: =C112+C85+C73+C62+C41 -> 12344709.28 | D113: =D112+D85+D73+D62+D41 -> 14880572.43 | E113: =E112+E85+E73+E62+E41 -> 16479881.45 | F113: =F112+F85+F73+F62+F41 -> 18567800 | G113: 6223090.72 | H113: 0.5041099453 | I113: -16479880.95 | J113: -0.9999999694 | K113: 3687227.57 | L113: 0.2477880194
A114: Adjustments for non-recoverable items
A115: 5681 | B115: Special Purpose Charge Expense | G115: =F115-C115 -> 0 | H115: =IF(C115=0,"",(F115/C115)-1) ->  | I115: =+F115-E115 -> 0 | J115: =IF(E115=0,"",(F115/E115)-1) ->  | K115: =F115-D115 -> 0 | L115: =IF(D115=0,"",(F115/D115)-1) -> 
A116: 6205 | B116: Donations1 | C116: 73752 | D116: 36152 | E116: 36152 | F116: 44000 | G116: -29752 | H116: -0.4034060093 | I116: 7848 | J116: 0.2170834255 | K116: 7848 | L116: 0.2170834255
G117: 0 | I117: 0 | K117: 0
G118: =F118-C118 -> 0 | H118: =IF(C118=0,"",(F118/C118)-1) ->  | I118: 0 | K118: =F118-D118 -> 0 | L118: =IF(D118=0,"",(F118/D118)-1) -> 
G119: =F119-C119 -> 0 | H119: =IF(C119=0,"",(F119/C119)-1) ->  | I119: 0 | K119: =F119-D119 -> 0 | L119: =IF(D119=0,"",(F119/D119)-1) -> 
A120: Total Recoverable OM&A | C120: =C113-SUM(C115:C119) -> 12270957.28 | D120: =D113-SUM(D115:D119) -> 14844420.43 | E120: 16443729.45 | F120: 18523800 | G120: 6252842.72 | H120: =IF(C120=0,"",(F120/C120)-1) -> 0.5095643785 | I120: =I113-SUM(I115:I119) -> -16487728.95 | J120: =IF(E120=0,"",(H120/E120)-1) -> -0.999999969 | K120: 3679379.57 | L120: =IF(D120=0,"",(F120/D120)-1) -> 0.2478627971
A122: 1 Account 6205 - Donations is generally non-recoverable. However, the sub-account LEAP funding of account 6205 is generally recoverable.
A125: Note:
A127: 1 | B127: If the applicant is adopting IFRS or an alternate accounting standard as of January 1, 2013 for financial reporting purposes, Column D "Most Current Actual Year" must be provided on CGAAP.
A128: 2 | B128: If the applicant is adopting IFRS or an alternate accounting standard as of January 1, 2012 for financial reporting purposes, Column D "Most Current Actual Year" must be provided on that standard.

Sheet App.2-I_OM&A_Summary_Analys
L1: File Number: | M1: ='LDC Info'!$E$18 -> EB-2013-0147
L2: Exhibit:
L3: Tab:
L4: Schedule:
L5: Page:
L7: Date:
A9: Appendix 2-I
A10: Summary of Recoverable OM&A Expenses
B13: ="Last Rebasing Year (" & 'LDC Info'!E30 & " BA)" -> Last Rebasing Year (2010 BA) | C13: ="Last Rebasing Year (" & 'LDC Info'!E30 & " Actuals)" -> Last Rebasing Year (2010 Actuals) | D13: ='LDC Info'!E26 -2 & " Actuals" -> 2011 Actuals | E13: ='LDC Info'!E26 -1 & " Actuals" -> 2012 Actuals | F13: 2012 Actuals | G13: ='LDC Info'!E26 & " Bridge Year" -> 2013 Bridge Year | H13: ='LDC Info'!E28+ 1& " Test Year" -> 2014 Test Year
A14: Reporting Basis | B14: CGAAP | C14: CGAAP | D14: CGAAP | E14: CGAAP | F14: MIFRS | G14: MIFRS | H14: MIFRS
A15: Operations | B15: 3051200 | C15: 2824719.74 | D15: 3258625.34 | E15: 3615819.39 | F15: 4821307.68 | G15: 5365500 | H15: 5642000
A16: Maintenance | B16: 4761500 | C16: 4069610.73 | D16: 4856218.55 | E16: 4727341.69 | F16: 5226753.25 | G16: 5260500 | H16: 5619400
A17: SubTotal | B17: =SUM(B15:B16) -> 7812700 | C17: =SUM(C15:C16) -> 6894330.47 | D17: 8114843.89 | E17: 8343161.08 | F17: =SUM(F15:F16) -> 10048060.93 | G17: 10626000 | H17: 11261400
A18: %Change (year over year) | D18: =IF(ISERROR((D17-C17)/C17), "", (D17-C17)/C17) -> 0.1770314645 | E18: =IF(ISERROR((E17-D17)/D17), "", (E17-D17)/D17) -> 0.02813574643 | F18: 0.2043469895 | G18: =IF(ISERROR((G17-E17)/E17), "", (G17-E17)/E17) -> 0.2736179846 | H18: 0.05979672501 | K18: 13881503.38 | L18: <<--per RRWF 2010 BA amount
A19: %Change (Test Year vs Last Rebasing Year - Actual) | H19: =IF(ISERROR((H17-C17)/C17), "", (H17-C17)/C17) -> 0.6334290979
A20: Billing and Collecting | B20: 3003200 | C20: 2700113.55 | D20: 2919902.3 | E20: 3533125.81 | F20: 3514151.87 | G20: 3617200 | H20: 3933800
A21: Community Relations | B21: 209400 | C21: 212184.5 | D21: 245697.55 | E21: 212255 | F21: 212383.78 | G21: 236675 | H21: 237300
A22: Administrative and General | B22: 2856203.381 | C22: 2464328.76 | D22: 2444036.19 | E22: 2755878.54 | F22: 2669132.87 | G22: 2953700 | H22: 3091300
A23: SubTotal | B23: =SUM(B20:B22) -> 6068803.381 | C23: =SUM(C20:C22) -> 5376626.81 | D23: 5609636.04 | E23: 6501259.35 | F23: =SUM(F20:F22) -> 6395668.52 | G23: 6807575 | H23: 7262400
A24: %Change (year over year) | D24: =IF(ISERROR((D23-C23)/C23), "", (D23-C23)/C23) -> 0.04333743781 | E24: =IF(ISERROR((E23-D23)/D23), "", (E23-D23)/D23) -> 0.1589449483 | F24: -0.0162415964 | G24: =IF(ISERROR((G23-E23)/E23), "", (G23-E23)/E23) -> 0.04711635593 | H24: =IF(ISERROR((H23-G23)/G23), "", (H23-G23)/G23) -> 0.06681160325
A25: %Change (Test Year vs Last Rebasing Year - Actual) | H25: =IF(ISERROR((H23-C23)/C23), "", (H23-C23)/C23) -> 0.3507353693
A26: Total | B26: =SUM(B23,B17) -> 13881503.38 | C26: =SUM(C23,C17) -> 12270957.28 | D26: 13724479.93 | E26: 14844420.43 | F26: =SUM(F23,F17) -> 16443729.45 | G26: 17433575 | H26: 18523800
A27: %Change (year over year) | D27: =IF(ISERROR((D26-C26)/C26), "", (D26-C26)/C26) -> 0.1184522623 | E27: =IF(ISERROR((E26-D26)/D26), "", (E26-D26)/D26) -> 0.08160167133 | F27: 0.1077380573 | G27: =IF(ISERROR((G26-E26)/E26), "", (G26-E26)/E26) -> 0.1744193774 | H27: =IF(ISERROR((H26-G26)/G26), "", (H26-G26)/G26) -> 0.06253593999
B30: =B13 -> Last Rebasing Year (2010 BA) | C30: =C13 -> Last Rebasing Year (2010 Actuals) | D30: 2011 Actuals | E30: 2012 Actuals | F30: =F13 -> 2012 Actuals | G30: 2013 Bridge Year | H30: 2014 Test Year
A31: Operations | B31: 3051200 | C31: 2824719.74 | D31: 3258625.34 | E31: 3615819.39 | F31: 4821307.68 | G31: 5365500 | H31: 5642000
A32: Maintenance | B32: 4761500 | C32: 4069610.73 | D32: 4856218.55 | E32: 4727341.69 | F32: 5226753.25 | G32: 5260500 | H32: 5619400
A33: Billing and Collecting | B33: 3003200 | C33: 2700113.55 | D33: 2919902.3 | E33: 3533125.81 | F33: 3514151.87 | G33: 3617200 | H33: 3933800
A34: Community Relations | B34: 209400 | C34: 212184.5 | D34: 245697.55 | E34: 212255 | F34: 212383.78 | G34: 236675 | H34: 237300
A35: Administrative and General | B35: 2856203.381 | C35: 2464328.76 | D35: 2444036.19 | E35: 2755878.54 | F35: 2669132.87 | G35: 2953700 | H35: 3091300
A36: Total | B36: =SUM(B31:B35) -> 13881503.38 | C36: =SUM(C31:C35) -> 12270957.28 | D36: 13724479.93 | E36: 14844420.43 | F36: =SUM(F31:F35) -> 16443729.45 | G36: 17433575 | H36: 18523800
A37: %Change (year over year) | D37: =IF(ISERROR((D36-C36)/C36), "", (D36-C36)/C36) -> 0.1184522623 | E37: =IF(ISERROR((E36-D36)/D36), "", (E36-D36)/D36) -> 0.08160167133 | F37: 0.1077380573 | G37: =IF(ISERROR((G36-E36)/E36), "", (G36-E36)/E36) -> 0.1744193774 | H37: =IF(ISERROR((H36-G36)/G36), "", (H36-G36)/G36) -> 0.06253593999
B40: =B13 -> Last Rebasing Year (2010 BA) | C40: =C13 -> Last Rebasing Year (2010 Actuals) | D40: ="Variance " & 'LDC Info'!E30 & " BA – " & 'LDC Info'!E30 & " Actuals" -> Variance 2010 BA – 2010 Actuals | E40: =D13 -> 2011 Actuals | F40: =E13 -> 2012 Actuals | G40: ="Variance " & 'LDC Info'!E26 -2 & " Actuals vs. " & 'LDC Info'!E30 & " Actuals" -> Variance 2011 Actuals vs. 2010 Actuals | H40: =E13 -> 2012 Actuals | I40: ="Variance " & 'LDC Info'!E26 -1 & " Actuals vs. " & 'LDC Info'!E26-2 & " Actuals" -> Variance 2012 Actuals vs. 2011 Actuals | J40: =G13 -> 2013 Bridge Year | K40: ="Variance " & 'LDC Info'!E26 & " Bridge vs. " & 'LDC Info'!E26 -1 & " Actuals" -> Variance 2013 Bridge vs. 2012 Actuals | L40: =H13 -> 2014 Test Year | M40: ="Variance " & 'LDC Info'!E28+1 & " Test vs. " & 'LDC Info'!E26 & " Bridge" -> Variance 2014 Test vs. 2013 Bridge
A41: Operations | B41: 3051200 | C41: 2824719.74 | D41: 226480.26 | E41: 3258625.34 | F41: 3615819.39 | G41: 433905.6 | H41: 3615819.39 | I41: 357194.05 | J41: 5365500 | K41: 1749680.61 | L41: 5642000 | M41: 276500
A42: Maintenance | B42: 4761500 | C42: 4069610.73 | D42: 691889.27 | E42: 4856218.55 | F42: 4727341.69 | G42: 786607.82 | H42: 4727341.69 | I42: -128876.86 | J42: 5260500 | K42: 533158.31 | L42: 5619400 | M42: 358900
A43: Billing and Collecting | B43: 3003200 | C43: 2700113.55 | D43: 303086.45 | E43: 2919902.3 | F43: 3533125.81 | G43: 219788.75 | H43: 3533125.81 | I43: 613223.5105 | J43: 3617200 | K43: 84074.18955 | L43: 3933800 | M43: 316600
A44: Community Relations | B44: 209400 | C44: 212184.5 | D44: -2784.5 | E44: 245697.55 | F44: 212255 | G44: 33513.05 | H44: 212255 | I44: -33442.55 | J44: 236675 | K44: 24420 | L44: 237300 | M44: 625
A45: Administrative and General | B45: 2856203.381 | C45: 2464328.76 | D45: 391874.621 | E45: 2444036.19 | F45: 2755878.54 | G45: -20292.57 | H45: 2755878.54 | I45: 311842.35 | J45: 2953700 | K45: 197821.46 | L45: 3091300 | M45: 137600
A46: Total OM&A Expenses | B46: 13881503.38 | C46: 12270957.28 | D46: 1610546.101 | E46: 13724479.93 | F46: 14844420.43 | G46: 1453522.65 | H46: 14844420.43 | I46: 1119940.5 | J46: 17433575 | K46: 2589154.57 | L46: 18523800 | M46: 1090225
A47: Variance from previous year | E47: =E46-C46 -> 1453522.65 | F47: =F46-D46 -> 13233874.33 | H47: =H46-E46 -> 1119940.5 | J47: =J46-H46 -> 2589154.57 | L47: =L46-J46 -> 1090225
A48: Percent change (year over year) | E48: =IF(ISERROR(E47/C46), "", E47/C46) -> 0.1184522623 | F48: =IF(ISERROR(F47/D46), "", F47/D46) -> 8.217010566 | H48: =IF(ISERROR(H47/E46), "", H47/E46) -> 0.08160167133 | J48: =IF(ISERROR(J47/H46), "", J47/H46) -> 0.1744193774 | L48: =IF(ISERROR(L47/J46), "", L47/J46) -> 0.06253593999
A49: Percent Change: Test year vs. Most Current Actual | H49: =IF(ISERROR((L46-H46)/H46), "", (L46-H46)/H46) -> 0.2478627971
A50: Simple average of % variance for all years | H50: =IF(ISERROR((L46-C46)/C46), "", (L46-C46)/C46) -> 0.5095643785 | M50: =IF(ISERROR(AVERAGE(E48,H48,J48,L48)), "", AVERAGE(E48,H48,J48,L48)) -> 0.1092523128
A51: Compound Annual Growth Rate for all years | H51: =IF(ISERROR((L47-C47)/C47), "", (L47-C47)/C47) ->  | M51: =IF((L46-C46)=0, "", (L46-C46)^(1/5)-1) -> 21.8673322
A52: ="Compound Growth Rate (" & E13 & " vs. " & 'LDC Info'!E30 & " Actuals)" -> Compound Growth Rate (2012 Actuals vs. 2010 Actuals) | H52: =IF(ISERROR((H46/C46)^(1/(2010-2008)) - 1), "", (H46-C46)/C46) -> 0.2097198362
A54: Note:
A56: 1 "BA" = Board-Approved
A57: 2 If it has been more than three years since the applicant last filed a cost of service application, additional years of historical actuals should be incorporated into the table, as necessary, to go back to the last cost of service application. If the applicant last filed a cost of service application less than three years ago, a minimum of three years of actual information is required.
A59: 3 Recoverable OM&A that is included on these tables should be identical to the recoverable OM&A that is shown for the corresponding periods on Appendix 2-H.

Sheet App.2-J_OM&A_Cost _Drivers
G1: File Number: | H1: ='LDC Info'!$E$18 -> EB-2013-0147
G2: Exhibit: | H2: 4
G3: Tab:
G4: Schedule:
G5: Page:
G7: Date:
A10: Appendix 2-J
A11: OM&A Cost Driver Table
A13: OM&A | B13: ="Last Rebasing Year (" & 'LDC Info'!E30 & " Actuals)" -> Last Rebasing Year (2010 Actuals) | C13: 2009 Actuals | D13: ='LDC Info'!E26 -2 & " Actuals" -> 2011 Actuals | E13: ='LDC Info'!E26 -1 & " Actuals" -> 2012 Actuals | F13: 2012 Actuals | G13: ='LDC Info'!E26 & " Bridge Year" -> 2013 Bridge Year | H13: ='LDC Info'!E28+1 & " Test Year" -> 2014 Test Year
A14: Reporting Basis | B14: CGAAP | D14: CGAAP | E14: CGAAP | F14: MIFRS | G14: MIFRS | H14: MIFRS
A15: Opening Balance | B15: 13881503.38 | C15: 12270957.38 | D15: 12270957.38 | E15: 13724479.79 | F15: 13724479.79 | G15: 16443729.41 | H15: 17433575.08
A16: Pension and Payroll Benefits | D16: 29260 | E16: 108143 | F16: 108143 | G16: 108013 | H16: 72373
A17: General Salary Increases | D17: 212237 | E17: 219101 | F17: 202021 | G17: 206745 | H17: 223623
A18: Human Resources - New Resource | E18: 67759 | F18: 67759 | G18: 51040 | H18: 4300
A19: Retirements and Resignations - Finance | B19: -102056
A20: Reduction in AR Credit insurance - End of program | B20: -106950 | D20: -58049
A21: LEAP | B21: -47476 | D21: 47475
A22: Diversion of resources to OPA Programs | B22: -38898 | D22: -25020 | E22: -46393 | F22: -46393
A23: Diversion and reallocation of resources to complete TS9 | B23: -779303 | D23: 881929.9709 | E23: -173733
A24: HST Impact | B24: -11504 | D24: -39810 | E24: -69902 | F24: -69902 | G24: -40000
A25: Increase in Non recoverable Pole accidents | D25: 99677 | E25: -32428 | F25: -32428
A26: Effect of the Smart Meter Decision | E26: 1084463 | F26: 1084463 | G26: 345000 | H26: 351900
A27: Monthly Billing | G27: 178000 | H27: 164000
A28: Additional Admin Credit | B28: -257997
A29: Collection of a bad debt previously deemed uncollectible | B29: -266362 | D29: 146300
A30: IFRS Changes | E30: -179336 | F30: 1227168.384
A31: Inflation | D31: 159522.441 | E31: 178418.2373 | F31: 178418.2373 | G31: 141047.6706 | H31: 274029.5017
A33: Closing Balance | B33: =SUM(B15:B32) -> 12270957.38 | C33: 12270957.38 | D33: 13724479.79 | E33: 14880572.03 | F33: 16443729.41 | G33: 17433575.08 | H33: 18523800.59
A35: Notes:
A37: 1 | B37: For each year, a detailed explanation for each cost driver and associated amount is
B38: required.
A39: 2 | B39: The closing balance for each year becomes the opening balance for the next year.
A40: 3 | B40: If it has been more than three years since the applicant last filed a cost of service application, additional years of historical actuals should be incorporated into the table, as necessary, to go back to the last cost of service application. If the applicant last filed a cost of service application less than three years ago, a minimum of three years of actual information is required.
A44: 4 | B44: Opening Balance for "Last Rebasing Year" (cell B15) should be equal to the Board-Approved amount.

Sheet App.2-K_Employee Costs
F1: File Number: | G1: ='LDC Info'!$E$18 -> EB-2013-0147
F2: Exhibit: | G2: 4
F3: Tab:
F4: Schedule:
F5: Page:
F7: Date:
A9: Appendix 2-K
A10: Employee Costs
B12: ="Last Rebasing Year (" & 'LDC Info'!E30 & " Board-Approved)" -> Last Rebasing Year (2010 Board-Approved) | C12: ="Last Rebasing Year (" & 'LDC Info'!E30 & " Actuals)" -> Last Rebasing Year (2010 Actuals) | D12: ='LDC Info'!E26 -2 & " Actuals" -> 2011 Actuals | E12: ='LDC Info'!E26 -1 & " Actuals" -> 2012 Actuals | F12: ='LDC Info'!E26 & " Bridge Year" -> 2013 Bridge Year | G12: ='LDC Info'!E28+1 & " Test Year" -> 2014 Test Year
A13: Reporting Basis | B13: CGAAP | C13: CGAAP | D13: CGAAP | E13: MIFRS | F13: MIFRS | G13: MIFRS
A14: Number of Employees (FTEs including Part-Time)1
A15: Executive | B15: 0 | C15: 0 | D15: 4 | E15: 4 | F15: 4 | G15: 4
A16: Management | B16: 32 | C16: 31 | D16: 26 | E16: 29 | F16: 29 | G16: 30
A17: Non-Union | B17: 27 | C17: 28 | D17: 28 | E17: 27 | F17: 27 | G17: 27
A18: Union | B18: 115 | C18: 113 | D18: 114 | E18: 114 | F18: 115 | G18: 116
A19: Total | B19: =SUM(B15:B18) -> 174 | C19: 172 | D19: 172 | E19: 174 | F19: 175 | G19: 177
A20: Number of Part-Time Employees
A21: Executive | B21: 0 | C21: 0 | D21: 0 | E21: 0 | F21: 0 | G21: 0
A22: Management | B22: 0 | C22: 0 | D22: 0 | E22: 0 | F22: 0 | G22: 0
A23: Non-Union | B23: 0 | C23: 0 | D23: 0 | E23: 0 | F23: 0 | G23: 0
A24: Union | B24: 0 | C24: 0 | D24: 0 | E24: 0 | F24: 0 | G24: 0
A25: Total | B25: =SUM(B21:B24) -> 0 | C25: 0 | D25: 0 | E25: 0 | F25: 0 | G25: 0
A26: Total Salary and Wages
A27: Executive | D27: 545363.44 | E27: 586913.87 | F27: 616228 | G27: 655228
A28: Management | B28: 3109607 | C28: 3097650 | D28: 2448007 | E28: 2677491 | F28: 2848667 | G28: 2955547
A29: Non-Union | B29: 2176020 | C29: 2186573 | D29: 2350504 | E29: 2333045 | F29: 2332608 | G29: 2432809
A30: Union | B30: 7796295 | C30: 7659516 | D30: 7985175 | E30: 7981362 | F30: 8173270 | G30: 8385119
A31: Total | B31: =SUM(B27:B30) -> 13081922 | C31: 12943739 | D31: 13329049.44 | E31: 13578811.87 | F31: 13970773 | G31: 14428703
A32: Current Benefits
A33: Executive | B33: 0 | C33: 0 | D33: 108019 | E33: 126462 | F33: 143147 | G33: 153278
A34: Management | B34: 182969 | C34: 549796 | D34: 505334 | E34: 590912 | F34: 676315 | G34: 706363
A35: Non-Union | B35: 176267 | C35: 488142 | D35: 518210 | E35: 564991 | F35: 617801 | G35: 647979
A36: Union | B36: 584062 | C36: 1633229 | D36: 1726049 | E36: 1824734 | F36: 2020403 | G36: 2125130
A37: Total | B37: =SUM(B33:B36) -> 943298 | C37: 2671167 | D37: 2857612 | E37: 3107099 | F37: 3457666 | G37: 3632750
A38: Accrued Pension and Post-Retirement Benefits
A39: Executive | B39: 0 | C39: 0
A40: Management | B40: 0 | C40: 46219.0351 | D40: 65402.9458 | E40: 58917.0389 | F40: 58769.31 | G40: 60691.3
A41: Non-Union | B41: 0 | C41: 74402.5669 | D41: 94550.4948 | E41: 93533.9134 | F41: 83235.42 | G41: 102238.4
A42: Union | B42: 0 | C42: 77381.4343 | D42: 81234.4194 | E42: 82574.7677 | F42: 83573.33 | G42: 90487.88
A43: Total | B43: =SUM(B39:B42) -> 0 | C43: 198003.0363 | D43: 241187.86 | E43: 235025.72 | F43: 225578.06 | G43: 253417.58
A44: Total Benefits (Current + Accrued)
A45: Executive | B45: 0 | C45: 0 | D45: 108019 | E45: 126462 | F45: 143147 | G45: 153278
A46: Management | B46: 182969 | C46: 596015.0351 | D46: 570736.9458 | E46: 649829.0389 | F46: 735084.31 | G46: 767054.3
A47: Non-Union | B47: 176267 | C47: 562544.5669 | D47: 612760.4948 | E47: 658524.9134 | F47: 701036.42 | G47: 750217.4
A48: Union | B48: 584062 | C48: 1710610.434 | D48: 1807283.419 | E48: 1907308.768 | F48: 2103976.33 | G48: 2215617.88
A49: Total | B49: =B37+B43 -> 943298 | C49: 2869170.036 | D49: 3098799.86 | E49: 3342124.72 | F49: 3683244.06 | G49: 3886167.58
A50: Total Compensation (Salary, Wages, & Benefits)
A51: Executive | B51: 0 | C51: 0 | D51: 653382.44 | E51: 713375.87 | F51: 759375 | G51: 808506
A52: Management | B52: 3292576 | C52: 3693665.035 | D52: 3018743.946 | E52: 3327320.039 | F52: 3583751.31 | G52: 3722601.3
A53: Non-Union | B53: 2352287 | C53: 2749117.567 | D53: 2963264.495 | E53: 2991569.913 | F53: 3033644.42 | G53: 3183026.4
A54: Union | B54: 8380357 | C54: 9370126.434 | D54: 9792458.419 | E54: 9888670.768 | F54: 10277246.33 | G54: 10600736.88
A55: Total | B55: =B31+B49 -> 14025220 | C55: 15812909.04 | D55: 16427849.3 | E55: 16920936.59 | F55: 17654017.06 | G55: 18314870.58
A56: Compensation - Average Yearly Base Wages
A57: Executive | D57: 136340.86 | E57: 146728.4675 | F57: 154057 | G57: 163807
A58: Management | B58: 97175.21875 | C58: 99924.19355 | D58: 94154.11538 | E58: 92327.27586 | F58: 98229.89655 | G58: 98518.23333
A59: Non-Union | B59: 80593.33333 | C59: 78091.89286 | D59: 83946.57143 | E59: 86409.07407 | F59: 86392.88889 | G59: 90104.03704
A60: Union | B60: 67793.86957 | C60: 67783.32743 | D60: 70045.39474 | E60: 70011.94737 | F60: 71071.91304 | G60: 72285.50862
A61: Total | B61: =SUM(B57:B60) -> 245562.4216 | C61: =SUM(C57:C60) -> 245799.4138 | D61: 384486.9416 | E61: 395476.7648 | F61: 409751.6985 | G61: 424714.779
A62: Compensation - Average Yearly Overtime
A63: Executive
A64: Management | B64: 1094 | C64: 1320 | D64: 1183 | E64: 724 | F64: 1648 | G64: 1777
A65: Non-Union | B65: 7639 | C65: 4995 | D65: 6966 | E65: 6801 | F65: 5663 | G65: 5897
A66: Union | B66: 9339 | C66: 7572 | D66: 8827 | E66: 7884 | F66: 5358 | G66: 5491
A67: Total | B67: =SUM(B63:B66) -> 18072 | C67: =SUM(C63:C66) -> 13887 | D67: 16976 | E67: 15409 | F67: 12669 | G67: =SUM(G63:G66) -> 13165
A68: Compensation - Average Yearly Incentive Pay
A69: Executive | B69: 0 | C69: 0 | D69: 0 | E69: 0 | F69: 0 | G69: 0
A70: Management | B70: 0 | C70: 0 | D70: 0 | E70: 0 | F70: 0 | G70: 0
A71: Non-Union | B71: 0 | C71: 0 | D71: 0 | E71: 0 | F71: 0 | G71: 0
A72: Union | B72: 0 | C72: 0 | D72: 0 | E72: 0 | F72: 0 | G72: 0
A73: Total | B73: =SUM(B69:B72) -> 0 | C73: =SUM(C69:C72) -> 0 | D73: 0 | E73: 0 | F73: 0 | G73: =SUM(G69:G72) -> 0
A74: Compensation - Average Yearly Benefits
A75: Executive | B75: 0 | C75: 0 | D75: 0 | E75: 0 | F75: 0 | G75: 0
A76: Management | B76: 5717.78125 | C76: 19226.29145 | D76: 21951.42099 | E76: 22407.89789 | F76: 25347.73483 | G76: 25568.47667
A77: Non-Union | B77: 6528.407407 | C77: 20090.87739 | D77: 21884.30339 | E77: 24389.81161 | F77: 25964.31185 | G77: 27785.82963
A78: Union | B78: 5078.8 | C78: 15138.14544 | D78: 15853.36333 | E78: 16730.77866 | F78: 18295.44635 | G78: 19100.15414
A79: Total | B79: =SUM(B75:B78) -> 17324.98866 | C79: =SUM(C75:C78) -> 54455.31428 | D79: 59689.08771 | E79: 63528.48816 | F79: 69607.49303 | G79: =SUM(G75:G78) -> 72454.46043
A81: Total Compensation | B81: =SUM(B51:B54) -> 14025220 | C81: 15812909.04 | D81: 16427849.3 | E81: 16920936.59 | F81: 17654017.06 | G81: 18314870.58
A82: Total Compensation Capitalized (CGAAP) | B82: 5166799 | C82: 7400112 | D82: 7386205 | E82: 7219874
A83: Total Compensation Charged to OM&A (CGAAP) | B83: =B81-B82 -> 8858421 | C83: =C81-C82 -> 8412797.036 | D83: =D81-D82 -> 9041644.3 | E83: =E81-E82 -> 9701062.59
A85: Total Compensation Capitalized (MIFRS) | E85: 6744361 | F85: 7224339 | G85: 7463153
A86: Total Compensation Charged to OM&A (MIFRS) | E86: =E81-E85 -> 10176575.59 | F86: =F81-F85 -> 10429678.06 | G86: =G81-G85 -> 10851717.58
A89: 1 If an applicant wishes to use headcount, it must also file the same schedule on an FTE basis.
A91: Note:
A92: 1 Please report compensation on a CGAAP and MIFRS basis for your transition year.

Sheet App.2-L_OM&A_per_Cust_FTEE
H1: File Number: | I1: ='LDC Info'!$E$18 -> EB-2013-0147
H2: Exhibit: | I2: 4
H3: Tab:
H4: Schedule:
H5: Page:
H7: Date:
A9: Appendix 2-L
A10: Recoverable OM&A Cost per Customer and per FTEE
C12: ="Last Rebasing Year (" & 'LDC Info'!E30 & " Board-Approved)" -> Last Rebasing Year (2010 Board-Approved) | D12: ="Last Rebasing Year (" & 'LDC Info'!E30 & " Actuals)" -> Last Rebasing Year (2010 Actuals) | E12: ='LDC Info'!E26 -2 & " Actuals" -> 2011 Actuals | F12: ='LDC Info'!E26 -1 & " Actuals" -> 2012 Actuals | G12: 2012 Actuals | H12: ='LDC Info'!E26 & " Bridge Year" -> 2013 Bridge Year | I12: ='LDC Info'!E28+1 & " Test Year" -> 2014 Test Year
A13: Reporting Basis | C13: CGAAP | D13: CGAAP | E13: CGAAP | F13: CGAAP | G13: MIFRS | H13: MIFRS | I13: MIFRS
A14: Number of Customers | C14: 89034 | D14: 88330 | E14: 89686 | F14: 91039 | G14: 91039 | H14: 92412 | I14: 93835
A15: Total Recoverable OM&A from Appendix 2-I | C15: =+'App.2-I_OM&A_Summary_Analys'!B26 -> 13881503.38 | D15: =+'App.2-I_OM&A_Summary_Analys'!C26 -> 12270957.28 | E15: =+'App.2-I_OM&A_Summary_Analys'!D26 -> 13724479.93 | F15: =+'App.2-I_OM&A_Summary_Analys'!E26 -> 14844420.43 | G15: =+'App.2-I_OM&A_Summary_Analys'!F26 -> 16443729.45 | H15: =+'App.2-I_OM&A_Summary_Analys'!G26 -> 17433575 | I15: =+'App.2-I_OM&A_Summary_Analys'!H26 -> 18523800
A16: OM&A cost per customer | C16: =IF(C14=0,"",C15/C14) -> 155.9123861 | D16: 138.9217398 | E16: 153.0281196 | F16: 163.0556183 | G16: 180.6229138 | H16: 188.650554 | I16: 197.4082166
A17: Number of FTEEs | C17: =+'App.2-K_Employee Costs'!B19 -> 174 | D17: =+'App.2-K_Employee Costs'!C19 -> 172 | E17: =+'App.2-K_Employee Costs'!D19 -> 172 | F17: =+'App.2-K_Employee Costs'!E19 -> 174 | G17: =+'App.2-K_Employee Costs'!E19 -> 174 | H17: =+'App.2-K_Employee Costs'!F19 -> 175 | I17: =+'App.2-K_Employee Costs'!G19 -> 177
A18: Customers/FTEEs | C18: =IF(C17=0,"",C14/C17) -> 511.6896552 | D18: 513.5465116 | E18: 521.4302326 | F18: 523.2126437 | G18: 523.2126437 | H18: 528.0685714 | I18: 530.1412429
A19: OM&A Cost per FTEE | C19: =IF(C17=0,"",C15/C17) -> 79778.75506 | D19: 71342.77488 | E19: 79793.48797 | F19: 85312.76109 | G19: 94504.19224 | H19: 99620.42857 | I19: 104654.2373
A21: Notes:
A23: 1 | B23: If it has been more than three years since the applicant last filed a cost of service application, additional years of historical actuals should be incorporated into the table, as necessary, to go back to the last cost of service application. If the applicant last filed a cost of service application less than three years ago, a minimum of three years of actual information is required.
A27: 2 | B27: The method of calculating the number of customers must be identified.
A28: 3 | B28: The method of calculating the number of FTEEs must be identified. See also Appendix 2-K
A29: 4 | B29: The number of customers and the number of FTEEs should correspond to mid-year or average of January 1 and December 31 figures.

Sheet App.2-M_Regulatory_Costs
J1: File Number: | K1: ='LDC Info'!$E$18 -> EB-2013-0147
J2: Exhibit:
J3: Tab:
J4: Schedule:
J5: Page:
J7: Date:
A9: Appendix 2-M
A10: Regulatory Cost Schedule
E11: On-Going
E12: On-Time
A13: Regulatory Cost Category | C13: USoA Account | D13: USoA Account Balance | E13: Ongoing or One-time Cost? 2 | F13: ="Last Rebasing Year (" & 'LDC Info'!E30 & " Board Approved)" -> Last Rebasing Year (2010 Board Approved) | G13: Most Current Actuals Year 2012 | H13: ='LDC Info'!E26 & " Bridge Year" -> 2013 Bridge Year | I13: Annual % Change | J13: ='LDC Info'!E28+1 & " Test Year" -> 2014 Test Year | K13: Annual % Change
A14: (A) | C14: (B) | D14: (C ) | E14: (D) | F14: (E) | G14: (F) | H14: (G) | I14: (H) = [(G)-(F)]/(F) | J14: (I) | K14: (J) = [(I)-(G)]/(G)
A15: 1 | B15: OEB Annual Assessment | C15: 5655 | E15: On-Going | F15: 230000 | G15: 227600 | H15: =254500-17000 -> 237500 | I15: =IF(G15=0,"",(H15-G15)/G15) -> 0.0434973638 | J15: 237500 | K15: =IF(H15=0,"",(J15-H15)/H15) -> 0
A16: 2 | B16: OEB Section 30 Costs (Applicant-originated) | C16: 5655 | I16: =IF(G16=0,"",(H16-G16)/G16) ->  | K16: =IF(H16=0,"",(J16-H16)/H16) -> 
A17: 3 | B17: OEB Section 30 Costs (OEB-initiated) | C17: 5655 | E17: On-Going | F17: 12200 | G17: 16373 | H17: 17000 | I17: 0.03829475356 | J17: 17000 | K17: 0
